Workbook

Sheet Design Regulator
A1: LM(2)5143/-Q1 Synchronous Buck Controller Design Tool
O2: http://www.ti.com/product/lm5175
A3: About | C3: xx | F3: = Input Box | O3: TERMS OF USE
A5: Step 1: Operating Specifications
D7: Input Voltage – Min, VIN(min) | E7: 30 | F7: V
D8: Input Voltage – Nom, VIN(nom) | E8: 49 | F8: V
D9: Input Voltage – Max, VIN(max) | E9: 54 | F9: V
D10: Output Voltage, VOUT | E10: 15 | F10: V | I10: Output Voltage, VOUT2 | J10: 5 | K10: V
D11: Full Load Output Current, IOUT | E11: 70 | F11: A | I11: Full Load Output Current, IOUT2 | J11: 12 | K11: A
D12: Switching Frequency, FSW | E12: 2200 | F12: kHz
D13: Frequency Set Resistor, RT | E13: =IF('Standard Value Calculator'!O4/1000>288, "N/A",'Standard Value Calculator'!O4/1000) -> 10 | F13: kΩ
D14: Ambient Temperature, TA | E14: 25 | F14: °C
A16: Step 2: Current Sense Resistors
D17: Required IOCP Setpoint at VIN(nom) | E17: =E11*1.4 -> 98 | F17: A | I17: Required IOCP Setpoint at VIN(nom) | J17: 16 | K17: A
D18: Recommended Sense Resistance | E18: =Rs_ideal*1000 -> 2.715738464 | F18: mΩ | I18: Recommended Sense Resistance | J18: =Rs2_ideal*1000 -> 4.431392616 | K18: mΩ
D19: Sense Resistance, RS | E19: 2 | F19: mΩ | I19: Sense Resistance, RS2 | J19: 4 | K19: mΩ
D20: Min Inductor Sat Current, ILO(SAT) | E20: ='Variable Management'!B95 -> 36.5 | F20: A | I20: Min Inductor Sat Current, ILO2(SAT) | J20: ='Variable Management'!D95 -> 18.25 | K20: A
D21: Max power loss in shunt | E21: ='Variable Management'!B105 -> 2.422024835 | F21: W | I21: Max power loss in shunt RS2 | J21: ='Variable Management'!D105 -> 1.269178781 | K21: W
D22: VIN(min) | E22: ='Variable Management'!B97 -> 139.1420918 | F22: A | I22: VIN(min) | J22: ='Variable Management'!D97 -> 17.81096417 | K22: A
C23: IOUT(typ) at OCP Inception: | D23: VIN(nom) | E23: ='Variable Management'!B98 -> 136.4786006 | F23: A | H23: IOUT2(typ) at OCP Inception: | I23: VIN(nom) | J23: ='Variable Management'!D98 -> 17.77662327 | K23: A
D24: VIN(max) | E24: ='Variable Management'!B99 -> 136.0889996 | F24: A | I24: VIN(max) | J24: ='Variable Management'!D99 -> 17.77159911 | K24: A
A26: Step 3: Buck Inductances
D27: Ch1 Recommended Inductance | E27: =Lopt*1000000 -> 0.5681818182 | F27: µH | I27: Ch2 Recommended Inductance | J27: =Lopt2*1000000 -> 0.3787878788 | K27: µH
D28: Ch1 Inductance, LO1 | E28: 1 | F28: µH | I28: Ch2 Inductance, LO2 | J28: 2.2 | K28: µH
D29: Ch1 Inductor DCR | E29: 4 | F29: mΩ | I29: Ch2 Inductor DCR | J29: 5 | K29: mΩ
D30: DIL as a % at VIN(nom) | E30: ='Variable Management'!B68*100 -> 27.2039982 | F30: % | I30: DIL2 as a % at VIN(nom) | J30: ='Variable Management'!D68*100 -> 7.889612155 | K30: %
A32: Step 4: Output Capacitors
D33: =IF(MODE=1, "Ch1 Output Voltage Ripple Spec", "Output Voltage Ripple Spec") -> Output Voltage Ripple Spec | E33: 50 | F33: mVpk-pk | I33: Ch2 Output Voltage Ripple Spec | J33: 50 | K33: mVpk-pk
D34: =IF(MODE=1, "Ch1 Minimum Output Capacitance", "Minimum Output Capacitance") -> Minimum Output Capacitance | E34: ='Variable Management'!B121 -> 5.409886007 | F34: µF | I34: Ch2 Minimum Output Capacitance | J34: ='Variable Management'!D121 -> 2.2 | K34: µF
D35: Output Capacitance (derated), COUT | E35: =580*0.4 -> 232 | F35: µF | I35: Ch2 Output Cap (derated), COUT2 | J35: 120 | K35: µF | L35: =CHOOSE(SCH_MODE, "", "** For Single-Output Operation in 2-Phase Mode, tie MODE to VDDA and use FB1 to set VOUT **", "** For Single-Output Operation in 3-Phase Mode, tie both MODE pins to VDDA. Use FB1 of master IC to set VOUT. Connect FB2 of master IC to AGND. Connect FB2 of slave IC to VDDA to configure it as a slave **", "** For Single-Output Operation in 4-Phase Mode, tie both MODE pins to VDDA. Use FB1 of master IC to set VOUT. Connect FB2 of master IC to AGND. Connect FB2 of slave IC to VDDA to configure it as a slave **") -> ** For Single-Output Operation in 4-Phase Mode, tie both MODE pins to VDDA. Use FB1 of master IC to set VOUT. Connect FB2 of master IC to AGND. Connect FB2 of slave IC to VDDA to configure it as a slave **
D36: =IF(MODE=1, "Ch1 Maximum Permitted ESR", "Maximum Permitted ESR") -> Maximum Permitted ESR | E36: ='Variable Management'!B125 -> 10.49980206 | F36: mΩ | I36: Ch2 Maximum Permitted ESR | J36: ='Variable Management'!D125 -> 52.80993697 | K36: mΩ
D37: =IF(MODE=1, "Ch1 Output Capacitor ESR", "Output Capacitor ESR") -> Output Capacitor ESR | E37: 2 | F37: mΩ | I37: Ch2 Output Capacitor ESR | J37: 2 | K37: mΩ | L37: =CHOOSE(SCH_MODE, "", "** Tie VCCX to GND if not used **", "** Slave controller (CNTRL2) not shown **","** Slave controller (CNTRL2) not shown **") -> ** Slave controller (CNTRL2) not shown ** | Q37: =IF(SCH_MODE=1, "** Tie VCCX to GND if not used **", "") -> 
D38: Resulting Output Voltage Ripple (max) | E38: ='Variable Management'!B127*1000 -> 9.592519173 | F38: mVpk-pk | I38: Resulting Output Voltage Ripple (max) | J38: ='Variable Management'!D127*1000 -> 1.945846218 | K38: mVpk-pk | L38: =IF(OR(SCH_MODE=3, SCH_MODE=4),"** Tie VCCX to GND if not used **", "") -> ** Tie VCCX to GND if not used **
D39: Output Capacitor RMS Current (max) | E39: ='Variable Management'!B114 -> 1.430529694 | F39: A (rms) | I39: Output Capacitor RMS Current (max) | J39: ='Variable Management'!D114 -> 0.2762048855 | K39: A (rms)
A41: Step 5: Input Capacitors
D42: Input Voltage Ripple Spec | E42: 1000 | F42: mVpk-pk
D43: Minimum Input Capacitance | E43: ='Variable Management'!B145 -> 10 | F43: µF
D44: Input Capacitance, CIN | E44: 50 | F44: µF
D45: Maximum Permitted ESR | E45: ='Variable Management'!B150 -> 48.0648355 | F45: mΩ
D46: Input Capacitor ESR | E46: 30 | F46: mΩ
D47: Resulting Input Voltage Ripple (max) | E47: ='Variable Management'!B155*1000 -> 639.1052306 | F47: mVpk-pk
D48: Input Capacitor RMS Current (max) | E48: ='Variable Management'!B138 -> 8.75 | F48: A (rms)
A50: Step 6: Soft-start, Hiccup, Dither, DEMB, MODE
D51: Soft-Start Time, tSS | E51: 3 | F51: ms
D52: Soft-Start Capacitance, CSS | E52: =IF(Tss>0.5/1000,Css_u*1000000000,"N/A") -> 100 | F52: nF
D53: Hiccup Fault Time, tRES | E53: 30 | F53: ms
D54: RES Capacitance, CRES | E54: =IF(Tres>1/1000,Cres_u*1000000000,"N/A") -> 470 | F54: nF
D55: Modulating Frequency | E55: 9 | F55: =IF(DITHER=1, "kHz", "") -> 
D56: =IF(DITHER=1, "DITH Capacitance, Cd", "*Tie DITH to VDDA") -> *Tie DITH to VDDA | E56: =IF(DITHER=1,IF(E55>0,'Standard Value Calculator'!O22*1000000000,"N/A"),"") ->  | F56: =IF(DITHER=1, "nF", "") -> 
D57: =IF(DEMB=1, "* Tie DEMB to VDDA", "*Tie DEMB to AGND") -> * Tie DEMB to VDDA
D58: =IF(MODE=2, "* Tie MODE to VDDA", "* Tie MODE to AGND") -> * Tie MODE to VDDA
A60: Step 7: Compensation Design
D61: =IF(MODE=1, "Ch1 Load Pole Frequency", "Load Pole Frequency") -> Load Pole Frequency | E61: =Fp_dominant -> 4117.736247 | F61: Hz | I61: Ch2 Load Pole Frequency | J61: =Fp_dominant_Ch2 -> 3455.233869 | K61: Hz
D62: =IF(MODE=1, "Ch1 ESR Zero Frequency", "ESR Zero Frequency") -> ESR Zero Frequency | E62: =Fesr/1000 -> 343.0063433 | F62: kHz | I62: Ch2 ESR Zero Frequency | J62: =Fesr_Ch2/1000 -> 663.145597 | K62: kHz
D63: =IF(MODE=1, "Ch1 Desired Crossover Frequency", "Desired Crossover Frequency") -> Desired Crossover Frequency | E63: 50 | F63: =" kHz " -> kHz | I63: Ch2 Desired Crossover Frequency | J63: 60 | K63: =" kHz " -> kHz
D64: =IF(MODE=1, "Ch1 Error Amp Pole Frequency", "Error Amp Pole Frequency") -> Error Amp Pole Frequency | E64: =Fp1_u -> 2.486019108 | F64: Hz | I64: Ch2 Error Amp Pole Frequency | J64: =Fp1_u_Ch2 -> 1.381229601 | K64: Hz
D65: =CHOOSE(Ch1_VOUT, "* Tie FB1 to VDDA for Ch1 3.3V Out", "* Tie FB1 to AGND for Ch1 5V Out", IF(MODE=1, "Ch1 Upper Feedback Resistor", "Upper Feedback Resistor")) -> Upper Feedback Resistor | E65: 39.3 | F65: kΩ | I65: =CHOOSE(Ch2_VOUT, "* Tie FB2 to VDDA for Ch2 3.3V Out", "* Tie FB2 to AGND for Ch2 5V Out", "Ch2 Upper Feedback Resistor") -> * Tie FB2 to AGND for Ch2 5V Out | J65: 115 | K65: kΩ
D66: =IF(Ch1_VOUT=3, IF(MODE=1,"Ch1 Lower Feedback Resistor","Lower Feedback Resistor"),"") -> Lower Feedback Resistor | E66: =IF(Vout=Vref,"OPEN",Rfb2_u/1000) -> 1.65 | F66: =IF(Vout=Vref,"","kΩ") -> kΩ | I66: =IF(Ch2_VOUT=3, "Ch2 Lower Feedback Resistor","") ->  | J66: =IF(Vout2=Vref,"OPEN",Rfb4_u/1000) -> 15.8 | K66: =IF(Vout=Vref,"","kΩ") -> kΩ
A68: Compensation Components
B69: Calculated / | C69: Std Values | D69: =C69 -> Std Values | F69: Actual P/Z Frequencies
A70: RC1 | B70: =Rcea1/1000 -> 9.110618685 | C70: ='Standard Value Calculator'!O30 -> 9.09 | D70: 20 | E70: kΩ | F70: =Fp1_u -> 2.486019108 | G70: Hz (FPEA)
A71: CC1 | B71: =Cc1ea*1000000000 -> 3.493833927 | C71: ='Standard Value Calculator'!O31 -> 3.3 | D71: 1 | E71: nF | F71: =Fz1_u/1000 -> 7.957747164 | G71: kHz (FZCOMP)
A72: CC2 | B72: =IF(Cc2ea<0, "N/A", Cc2ea*1000000000000) -> 44.56338412 | C72: ='Standard Value Calculator'!O32 -> 47 | D72: 33 | E72: pF | F72: =Fp2_u/1000 -> 202.1467051 | G72: kHz (FPCOMP)
A73: RC2 | B73: =Rcea2/1000 -> 15.07964472 | C73: ='Standard Value Calculator'!O34 -> 15 | D73: =C73 -> 15 | E73: kΩ | F73: =Fp1_u_Ch2 -> 1.381229601 | G73: Hz (FPEA2)
A74: CC3 | B74: =Cc3ea*1000000000 -> 1.759048331 | C74: ='Standard Value Calculator'!O35 -> 1.8 | D74: 1.8 | E74: nF | F74: =Fz1_u_Ch2/1000 -> 5.894627529 | G74: kHz (FZCOMP2)
A75: CC4 | B75: =IF(Cc4ea<0, "N/A", Cc4ea*1000000000000) -> 9.549296596 | C75: =IF(1, 'Standard Value Calculator'!O36) -> 10 | D75: 10 | E75: pF | F75: =Fp2_u_Ch2/1000 -> 648.3075499 | G75: kHz (FPCOMP2) | N75: ** Specify Inductor Core Loss ** | O75: 0.3 | P75: W
A77: Efficiency / Power Loss Analyzer
A79: Step 8: Efficiency
F80: =IF(MODE=1, "Ch1 Power MOSFETs", "Power MOSFETs") -> Power MOSFETs | G80: (Q1, Q2) | I80: =IF(MODE=1, "Ch2 Power MOSFETs ", "Power MOSFETs ") -> Power MOSFETs | J80: (Q3, Q4)
E81: NVMFS5H663, NVMFS5C628NL | H81: NVMFS5H663, NVMFS5C628NL
E82: High-side | F82: Low-side | H82: High-side | I82: Low-side
D83: On-State Resistance, RDS(on) | E83: 6 | F83: 2.5 | G83: mΩ | H83: 6 | I83: 2.5 | J83: mΩ
D84: Total Gate Charge, QG | E84: 8 | F84: 25 | G84: nC | H84: 8 | I84: 25 | J84: nC
D85: Gate-Drain Charge, QGD | E85: 1.4 | F85: 4.5 | G85: nC | H85: 1.4 | I85: 4.5 | J85: nC
D86: Gate-Source Charge, QGS | E86: 3.8 | F86: 12 | G86: nC | H86: 3.8 | I86: 12 | J86: nC
D87: Output Charge, QOSS | F87: 30 | G87: nC | I87: 30 | J87: nC
D88: Output Capacitance, COSS | E88: 213 | F88: 1700 | G88: pF | H88: 213 | I88: 1700 | J88: pF
D89: Gate Resistance, RG | E89: 0.5 | F89: 0.5 | G89: Ω | H89: 0.5 | I89: 0.5 | J89: Ω
D90: Transconductance, gFS | E90: 64 | F90: 280 | G90: S | H90: 64 | I90: 280 | J90: S
D91: Gate-Source Threshold Voltage, VTH | E91: 2.9 | F91: 3 | G91: V | H91: 2.9 | I91: 3 | J91: V
D92: Body Diode Forward Voltage, VBD | E92: 0.7 | F92: 0.7 | G92: V | H92: 0.7 | I92: 0.7 | J92: V
D93: Body Diode Rev Recovery Charge, QRR | F93: 60 | G93: nC | I93: 60 | J93: nC
D94: Thermal Resistance, θJA | E94: 50 | F94: 38 | G94: °C/W | H94: 50 | I94: 38 | J94: °C/W
A96: External Schottky Diode (if applicable) | E96: =CHOOSE(MODE, "Ch1", "") ->  | F96: =CHOOSE(MODE, "Ch2", "") -> 
D97: Schottky Fwd Voltage, VFWDsch | E97: 0 | F97: 0 | G97: V
D98: Schottky Rev Recovery Charge, QRRsch | E98: 0 | F98: 0 | G98: nC
A102: Step 9: IC Power Loss
D103: IC Power Dissipation | E103: ='Variable Management'!B322 -> 0.726 | F103: W
D104: IC Junction Temperature (estimate) | E104: ='Variable Management'!B324 -> 50.2648 | F104: °C

Sheet BOM & Schematic
A37: ** Tie DEMB to VDDA for FPWM, AGND for DCM ** | I37: =IF(OR(SCH_MODE=3, SCH_MODE=4), "** Slave controller (CNTRL2) not shown **","** Tie VCCX to GND if not used **") -> ** Slave controller (CNTRL2) not shown **
A38: ** Tie MODE to VDDA for Single, AGND for Dual Outputs ** | I38: =IF(OR(SCH_MODE=3, SCH_MODE=4),"** Tie VCCX to GND if not used **", "") -> ** Tie VCCX to GND if not used **
A39: ** For Dual-Output Operation, tie FB1/FB2 to to VDDA for Fixed 3.3V, AGND for Fixed 5V Output **
A40: ** For Single-Output Operation in 2-Phase Mode, tie MODE to VDDA and use FB1 to set VOUT. Connect FB2 to AGND to disable EA of channel 2 **
A41: ** For Single-Output Operation in 3-Phase or 4-Phase Mode, tie all MODE pins to VDDA. Use FB1 of master IC to set VOUT. Connect FB2 of master IC to AGND. Connect FB2 of slave IC to VDDA to configure it as a slave **
A42: =CHOOSE(MODE, "VIN = "&VIN_min&" V to "&VIN_max&" V, VOUT1 = "& Vout &" V, IOUT1 = " &Iout &"A"&", VOUT2 = "& Vout2 &" V, IOUT2 = " &Iout2 & " A, Fsw = " & Fsw/1000 &" kHz, Current Limit = "&ROUNDUP(Ilimit_DC,0)&" A", "VIN = "&VIN_min&" V to "&VIN_max&" V, VOUT = "& Vout &" V, IOUT = " &Iout & " A, Fsw = " & Fsw/1000 &" kHz, Current Limit = "&ROUNDUP(Ilimit_DC,0)&" A") -> VIN = 30 V to 54 V, VOUT = 15 V, IOUT = 70 A, Fsw = 2200 kHz, Current Limit = 98 A
A43: High Efficiency Synchronous Buck Regulator BOM
A44: Count | B44: Ref Des | C44: Value | D44: Description | H44: Size | I44: Part Number | J44: MFR
A45: 2 | B45: CBOOT1, CBOOT2 | C45: 0.1 | D45: =C45 -> 0.1 | H45: 0603 | I45: Std | J45: Std
A46: 1 | B46: CC1 | C46: ='Design Regulator'!D71 -> 1 | D46: 1 | H46: 0603 | I46: Std | J46: Std
A47: 1 | B47: CC2 | C47: ='Design Regulator'!D72 -> 33 | D47: 33 | H47: 0603 | I47: Std | J47: Std
A48: 1 | B48: CC3 | C48: =IF(MODE=1, 'Variable Management'!E354, "N/A") -> N/A | D48: =C48 -> N/A | H48: =IF(MODE=1, "0603", "-") -> - | I48: =IF(MODE=1, "Std", "-") -> - | J48: =IF(MODE=1, "Std", "-") -> -
A49: 1 | B49: CC4 | C49: =IF(MODE=1, 'Variable Management'!E355, "N/A") -> N/A | D49: N/A | H49: =IF(MODE=1, "0603", "-") -> - | I49: =IF(MODE=1, "Std", "-") -> - | J49: =IF(MODE=1, "Std", "-") -> -
A50: 1 | B50: CRES | C50: =Cres_u*1000000000 -> 470 | D50: =C50 -> 470 | H50: 0603 | I50: Std | J50: Std
A51: 1 | B51: CDITH | C51: =Cdither*1000000000 -> 10 | D51: =C51 -> 10 | H51: 0603 | I51: Std | J51: Std
A52: =ROUNDUP('Design Regulator'!E44/10,0) -> 5 | B52: CIN | C52: 10 | D52: =C52 -> 10 | H52: 1210 | I52: Std | J52: Std
A53: =ROUNDUP('Design Regulator'!E35/47,0) -> 5 | B53: COUT | C53: 47 | D53: =C53 -> 47 | H53: 1210 | I53: Std | J53: Std
A54: 2 | B54: CSS1, CSS2 | C54: ='Design Regulator'!E52 -> 100 | D54: =C54 -> 100 | H54: 0603 | I54: Std | J54: Std
A55: 3 | B55: CVCC1, CVCC2, CVCCX | C55: 2.2 | D55: 2.2 | H55: 0603 | I55: Std | J55: Std
A56: 1 | B56: CVDDA | C56: 0.47 | D56: 0.47 | H56: 0603 | I56: Std | J56: Std
A57: 2 | B57: DBOOT1, DBOOT2 | C57: See description | D57: Schottky Diode, 60V, 200mA | H57: - | I57: - | J57: Various
A58: 1 | B58: LO1 | C58: ='Design Regulator'!E28 -> 1 | D58: ="Inductor, "&Lf*1000000&"µH, "&Rdcr*1000&"mΩ, >"&ROUNDUP(Ilimit_DC*1.3/SCH_MODE,0)&"A" -> Inductor, 1µH, 4mΩ, >32A | H58: - | I58: - | J58: Various
A59: 1 | B59: LO2 | C59: =IF(MODE = 1, 'Design Regulator'!J28, 'Design Regulator'!E28) -> 1 | D59: =IF(MODE=1, "Inductor, "&Lo_2*1000000&"µH, "&Rdcr2*1000&"mΩ, >"&ROUNDUP(Ilimit2_DC*1.3,0)&"A", "Inductor, "&Lf*1000000&"µH, "&Rdcr*1000&"mΩ, >"&ROUNDUP(Ilimit_DC*1.3/SCH_MODE,0)&"A") -> Inductor, 1µH, 4mΩ, >32A | H59: - | I59: - | J59: Various
A60: 2 | B60: Q1, Q2 | C60: See description | D60: ='Design Regulator'!E83 -> 6 | H60: Std | I60: ='Design Regulator'!E81 -> NVMFS5H663, NVMFS5C628NL | J60: -
A61: 2 | B61: Q3, Q4 | C61: See description | D61: ='Design Regulator'!H83 -> 6 | H61: Std | I61: =IF(MODE=1, 'Design Regulator'!H81, 'Design Regulator'!E81) -> NVMFS5H663, NVMFS5C628NL | J61: -
A62: 1 | B62: RC1 | C62: ='Design Regulator'!D70 -> 20 | D62: =C62 -> 20 | H62: 0603 | I62: Std | J62: Std
A63: 1 | B63: RC2 | C63: =IF(MODE=1, 'Variable Management'!E353, "N/A") -> N/A | D63: =C63 -> N/A | H63: =IF(MODE=1, "0603", "-") -> - | I63: =IF(MODE=1, "Std", "-") -> - | J63: =IF(MODE=1, "Std", "-") -> -
A64: 1 | B64: RS1 | C64: =Rs*1000 -> 2 | D64: 2 | H64: 0508 | I64: Std | J64: Std
A65: 1 | B65: RS2 | C65: =IF(MODE=1, Rs_Ch2*1000, Rs*1000) -> 2 | D65: =C65 -> 2 | H65: 0508 | I65: Std | J65: Std
A66: 1 | B66: RT | C66: ='Design Regulator'!E13 -> 10 | D66: 10 | H66: 0603 | I66: Std | J66: Std
A67: 1 | B67: RFB1 | C67: ='Design Regulator'!E65 -> 39.3 | D67: 39.3 | H67: 0603 | I67: Std | J67: Std
A68: 1 | B68: RFB2 | C68: ='Design Regulator'!E66 -> 1.65 | D68: 1.65 | H68: 0603 | I68: Std | J68: Std
A69: 1 | B69: RFB3 | C69: =IF(MODE=1, 'Design Regulator'!J65, "N/A") -> N/A | D69: =C69 -> N/A | H69: =IF(MODE=1, "0603", "-") -> - | I69: =IF(MODE=1, "Std", "-") -> - | J69: =IF(MODE=1, "Std", "-") -> -
A70: 1 | B70: RFB4 | C70: =IF(MODE=1, 'Design Regulator'!J66, "N/A") -> N/A | D70: N/A | H70: =IF(MODE=1, "0603", "-") -> - | I70: =IF(MODE=1, "Std", "-") -> - | J70: =IF(MODE=1, "Std", "-") -> -
A71: 2 | B71: RPGOOD1, RPGOOD2 | C71: 100 | D71: 100 | H71: 0603 | I71: Std | J71: Std
A72: 2 | B72: RPG1, RPG2 | C72: 100 | D72: 100 | H72: 0603 | I72: Std | J72: Std
A73: 1 | B73: RDEMB | C73: 100 | D73: 100 | H73: 0603 | I73: Std | J73: Std
A74: 1 | B74: RVIN | C74: 2.2 | D74: 2.2 | H74: 0603 | I74: Std | J74: Std
A75: 1 | B75: U1 | C75: =CHOOSE(VARIANT, "LM5143", "LM5143-Q1", "LM5143A-Q1","LM25143","LM25143-Q1") -> LM5143 | D75: =CHOOSE(VARIANT, "IC, LM5143, Buck PWM Controller, 3.5V–65V Input","IC, LM5143-Q1, Buck PWM Controller, 3.5V–65V Input","IC, LM5143A-Q1, Buck PWM Controller, 3.5V–65V Input","IC, LM25143, Buck PWM Controller, 3.5V–42V Input","IC, LM25143-Q1, Buck PWM Controller, 3.5V–42V Input") -> IC, LM5143, Buck PWM Controller, 3.5V–65V Input | H75: VQFN-40 | I75: =CHOOSE(VARIANT, "LM5143RHAR", "LM5143QRWGRQ1", "LM5143QRHARQ1", "LM25143RHAR", "LM25143QRHARQ1") -> LM5143RHAR | J75: TI
A78: NOTES:
A79: ** For information on TI NexFETTM MOSFETs, see ** | D79: http://www.ti.com/nexfet | E79: **
A80: ** Inductor saturation current should be higher than the peak inductor current at the OCP setpoint for all input voltages and operating temperatures **
A81: ** Effective input and output capacitances should be appropriately derated for applied voltage and temperature, particularly with ceramics **

Sheet EVM
A1: LM(2)5143/-Q1 Quickstart Design Tool
B6: LM5143-Q1EVM-2100 PCB Layout

Sheet Variable Management (hidden)
A1: EXCEL Variables Names/Calculations
B2: Input from user =
B3: Output =
B4: Constant
A5: Variable Name | B5: Value | C5: STD Units | E5: Notes | I5: Iteration
A6: Step 1: Operational Specs
A7: VIN_min | B7: ='Design Regulator'!E7 -> 30 | C7: V | D7: Minimum input voltage | I7: 1
A8: VIN_nom | B8: ='Design Regulator'!E8 -> 49 | C8: V | D8: Nominal input voltage | K8: =CHOOSE(SCH_MODE, "Efficiency vs. IOUT (Ch1)", "Efficiency vs. IOUT - 2 Ph", "Efficiency vs. IOUT - 3 Ph", "Efficiency vs. IOUT - 4 Ph") -> Efficiency vs. IOUT - 4 Ph | L8: 1 | N8: DITHER Enabled | O8: 1 | T8: Dual Outputs | U8: 1 | W8: FPWM | X8: 1 | Z8: =CHOOSE(SCH_MODE, "Bode Plot (Ch1)", "Bode Plot - 2 Ph", "Bode Plot - 3 Ph", "Bode Plot - 4 Ph") -> Bode Plot - 4 Ph | AA8: 1
A9: VIN_max | B9: ='Design Regulator'!E9 -> 54 | C9: V | D9: Maximum input voltage | K9: =IF(MODE=1, "Efficiency vs. IOUT (Ch2)", "N/A - Do Not Use") -> N/A - Do Not Use | L9: 2 | N9: DITHER Disabled | O9: 2 | T9: Single Output – 2 Phases | U9: 2 | W9: DEM | X9: 2 | Z9: =IF(MODE=1, "Bode Plot (Ch2)", "N/A - Do Not Use") -> N/A - Do Not Use | AA9: 2
K10: PLOT_TYPE | L10: 1 | N10: DITHER Yes/No | O10: 2 | P10: 1 = Yes, 2 = No | T10: Single Output – 3 Phases | U10: 3 | W10: FPWM/DEM | X10: 1 | Z10: BODE_PLOT_TYPE | AA10: 1
A11: Vout | B11: ='Design Regulator'!E10 -> 15 | C11: V | D11: Output voltage - channel 1 | T11: Single Output – 4 Phases | U11: 4
A12: Iout | B12: ='Design Regulator'!E11 -> 70 | C12: A | D12: Output current - channel 1 | I12: 1 | T12: Single/Dual Yes/No | U12: 4
A13: Vout2 | B13: ='Design Regulator'!J10 -> 5 | C13: V | D13: Output voltage - channel 2 | I13: 1 | K13: 3.3V | L13: 1 | N13: 3.3V | O13: 1 | T13: MODE (Single/Dual), DUAL = 1, SINGLE = 2 | U13: =IF(U12=1, 1, 2) -> 2 | W13: VCCX Connected | X13: 1
A14: Iout2 | B14: ='Design Regulator'!J11 -> 12 | C14: A | D14: Output current - channel 2 | K14: 5V | L14: 2 | N14: 5V | O14: 2 | T14: SINGLE OUTPUT (1 = YES) | U14: =IF(U12=1, 2, 1) -> 1 | W14: No External VCC | X14: 2
K15: Adjustable | L15: 3 | N15: Adjustable | O15: 3 | T15: Number of Phases | U15: =SCH_MODE -> 4 | W15: Ext_VCC | X15: 1 | Z15: Shunt current sensing | AA15: 1
A16: Rout | B16: =Vout/Iout -> 0.2142857143 | C16: W | D16: Load resistance - Channel 1 | K16: Ch1 Output Setting | L16: =IF(Vout=3.3, 1, IF(Vout=5, 2, 3)) -> 3 | N16: Ch2 Output Setting | O16: =IF(Vout2=3.3, 1, IF(Vout2=5, 2, 3)) -> 2 | Z16: Inductor DCR current sensing | AA16: 2
A17: Rout2 | B17: =Vout2/Iout2 -> 0.4166666667 | C17: W | Z17: SENSING_TYPE | AA17: 1
A18: Pout | B18: =CHOOSE(MODE, Vout*Iout+Vout2*Iout2, Vout*Iout) -> 1050 | C18: W | D18: Output power
AA19: =SENSING_TYPE -> 1
A20: Efficiency | B20: 0.9 | D20: Estimate of efficiency | X20: LM5143 | Y20: 1
A21: Pin | B21: =Pout/Efficiency -> 1166.666667 | C21: W | D21: Calculate input power assuming finite efficiency | L21: =Vout -> 15 | X21: LM5143-Q1 | Y21: 2
X22: LM5143A-Q1 | Y22: 3
A23: Iin_Vinmin | B23: =Pin/VIN_min -> 38.88888889 | C23: A | X23: LM25143 | Y23: 4
A24: Iin_Vinnom | B24: =Pin/VIN_nom -> 23.80952381 | C24: A | D24: Input currents at min, nom, max Vin | X24: LM25143-Q1 | Y24: 5
A25: Iin_Vinmax | B25: =Pin/VIN_max -> 21.60493827 | C25: A | W25: VARIANT | X25: =CHOOSE(VARIANT, "LM5143", "LM5143-Q1", "LM5143A-Q1", "LM25143", "LM25143-Q1") -> LM5143 | Y25: 1
W26: VIN-MAX | X26: =CHOOSE(VARIANT, 65, 65, 65, 42, 42) -> 65 | Y26: V
A27: Fsw | B27: ='Design Regulator'!E12*1000 -> 2200000 | C27: Hz | D27: Nominal switching frequency - determines RT resistor (SYNCIN must be 80-120% of this) | W27: VOUT-MAX | X27: =CHOOSE(VARIANT, 55, 55, 55, 36, 36) -> 55 | Y27: V
A28: Tsw | B28: =1/Fsw -> 4.545454545e-07 | C28: sec | D28: Switching period | I28: 1
A29: Vref | B29: 0.6 | C29: V | D29: Reference voltage
A30: Rt | B30: =22*1000/(Fsw/1000000) -> 10000 | C30: W | D30: Frequency set resistor
A33: Step 2: Buck Inductor | B33: Channel 1 | D33: Channel 2
A34: Don1 | B34: =Vout/VIN_nom -> 0.306122449 | F34: Ideal Duty Cycle at VIN(nom)
A35: Doff1 | B35: =1-34:34 -> 0.693877551 | F35: Ideal 1- Duty Cycle at VIN(nom)
A37: D_Vinmin | B37: =Vout/VIN_min -> 0.5 | D37: =Vout2/VIN_min -> 0.1666666667
A38: D_Vinnom | B38: =Vout/VIN_nom -> 0.306122449 | D38: =Vout2/VIN_nom -> 0.1020408163
A39: D_Vinmax | B39: =Vout/VIN_max -> 0.2777777778 | D39: =Vout2/VIN_max -> 0.09259259259
A41: L_Vinnom | B41: =(VIN_nom-Vout)*D1_Vinnom/(Fsw*(Iout/Number_of_Phases)*0.35) -> 7.724054371e-07 | C41: H | D41: =(VIN_nom-Vout2)*D2_Vinnom/(Fsw*Iout2*0.35) -> 4.859086492e-07 | E41: H | F41: Calculated inductance for 35% ripple at VIN(nom)
A42: L_slopecomp | B42: =1000*Vout*Rs/24/Fsw -> 5.681818182e-07 | C42: H | D42: =1000*Vout2*Rs_Ch2/24/Fsw -> 3.787878788e-07 | E42: H | F42: Calculated inductance based on one times inductor downslope
A44: Lopt | B44: =B42 -> 5.681818182e-07 | C44: H | D44: =D42 -> 3.787878788e-07 | E44: H | F44: min of calculated inductances at VIN(min) and VIN(nom)
A46: Lo | B46: ='Design Regulator'!E28/1000000 -> 1e-06 | C46: H | D46: ='Design Regulator'!J28/1000000 -> 2.2e-06 | E46: H | F46: Chosen inductance
A47: Rdcr | B47: ='Design Regulator'!E29/1000 -> 0.004 | C47: W | D47: ='Design Regulator'!J29/1000 -> 0.005 | E47: W | F47: Chosen inductor DCR
A49: Don2 | B49: =(Vout+Iout*(Rdcr+Rs))/(Vin+Iout*Rs) -> 0.3137973138
A50: Doff2 | B50: =1-_Don2 -> 0.6862026862
A52: D_Vinmin_2 | B52: =CHOOSE(MODE, (Vout+Iout*(Rdcr+Rs))/(VIN_min+Iout*Rs), (Vout+Iout/Number_of_Phases*(Rdcr+Rs))/(VIN_min+Iout/Number_of_Phases*Rs)) -> 0.5029132679 | D52: =(Vout2+Iout2*(Rdcr2+Rs_Ch2))/(VIN_min+Iout2*Rs_Ch2) -> 0.1699946752 | F52: Duty cycles adjusted for DCR/shunt voltage drops
A53: D_Vinnom_2 | B53: =CHOOSE(MODE, (Vout+Iout*(Rdcr+Rs))/(VIN_nom+Iout*Rs), (Vout+Iout/Number_of_Phases*(Rdcr+Rs))/(VIN_nom+Iout/Number_of_Phases*Rs)) -> 0.3080452738 | D53: =(Vout2+Iout2*(Rdcr2+Rs_Ch2))/(VIN_nom+Iout2*Rs_Ch2) -> 0.1041428804 | F53: need to include RDS(on) later
A54: D_Vinmax_2 | B54: =CHOOSE(MODE, (Vout+Iout*(Rdcr+Rs))/(VIN_max+Iout*Rs), (Vout+Iout/Number_of_Phases*(Rdcr+Rs))/(VIN_max+Iout/Number_of_Phases*Rs)) -> 0.2795410382 | D54: =(Vout2+Iout2*(Rdcr2+Rs_Ch2))/(VIN_max+Iout2*Rs_Ch2) -> 0.09450858496
A56: Iripple_Vinmin | B56: =MAX(0, (VIN_min-Vout)*D1_Vinmin_2/(Fsw*Lf)) -> 3.428954099 | C56: A | D56: =MAX(0.1, (VIN_min-Vout2)*D2_Vinmin_2/(Fsw*Lo_2)) -> 0.8780716694 | E56: A
A57: Iripple_Vinnom | B57: =MAX(0, (VIN_nom-Vout)*D1_Vinnom_2/(Fsw*Lf)) -> 4.760699686 | C57: A | D57: =MAX(0, (VIN_nom-Vout2)*D2_Vinnom_2/(Fsw*Lo_2)) -> 0.9467534586 | E57: A
A58: Iripple_Vinmax | B58: =MAX(0, (VIN_max-Vout)*D1_Vinmax_2/(Fsw*Lf)) -> 4.955500223 | C58: A | D58: =MAX(0, (VIN_max-Vout2)*D2_Vinmax_2/(Fsw*Lo_2)) -> 0.9568017899 | E58: A
A60: Ishunt_rms_Vinmin | B60: =SQRT((Iout/Number_of_Phases)^2+(Iripple_Vinmin^2)/12) -> 17.52797223 | C60: A | D60: =SQRT(Iout2^2+(Iripple2_Vinmin^2)/12) -> 12.00267682 | E60: A
A61: Ishunt_rms_Vinnom | B61: =SQRT((Iout/Number_of_Phases)^2+(Iripple_Vinnom^2)/12) -> 17.55387958 | C61: A | D61: =SQRT(Iout2^2+(Iripple2_Vinnom^2)/12) -> 12.0031119 | E61: A
A62: Ishunt_rms_Vinmax | B62: =SQRT((Iout/Number_of_Phases)^2+(Iripple_Vinmax^2)/12) -> 17.55837166 | C62: A | D62: =SQRT(Iout2^2+(Iripple2_Vinmax^2)/12) -> 12.00317829 | E62: A
A63: Max shunt power loss at full load | B63: =B61^2*Rs -> 0.6162773769 | C63: W | D63: =D61^2*Rs -> 0.2881493904 | E63: W | F63: Note this is power loss at full load - not loss near OCP!
A65: Max inductor ripple current | B65: =MAX(B56:B58) -> 4.955500223 | C65: A | D65: =MAX(D56:D58) -> 0.9568017899 | E65: A | F65: Ripple current at Vin(max)
B67: =B56/(Iout/Number_of_Phases) -> 0.1959402342 | D67: =D56/Iout2 -> 0.07317263911
A68: % ripple current | B68: =B57/(Iout/Number_of_Phases) -> 0.272039982 | D68: =D57/Iout2 -> 0.07889612155
B69: =B58/(Iout/Number_of_Phases) -> 0.2831714413 | D69: =D58/Iout2 -> 0.07973348249
A71: Inductor copper temerature | B71: 100 | C71: °C | D71: 100 | E71: °C
A72: DCR at hot | B72: =Rdcr*(1+0.0039*(B71-25)) -> 0.00517 | C72: W | D72: =Rdcr2*(1+0.0039*(D71-25)) -> 0.0064625 | E72: W
A75: Step 3: Sense Resistors, Slope Comp, Current Limit
A77: Ilimit_DC | B77: ='Design Regulator'!E17 -> 98 | C77: A | D77: ='Design Regulator'!J17 -> 16 | E77: A | F77: Chosen OCP level - based on output current
A79: Ilimit_inductor_Vinmin | B79: =CHOOSE(MODE, Ilimit_DC+Iripple_Vinmin/2, Ilimit_DC/Number_of_Phases+Iripple_Vinmin/2) -> 26.21447705 | C79: A | D79: =Ilimit2_DC+Iripple2_Vinmin/2 -> 16.43903583 | E79: A | F79: Peak inductor current at current limit inception
A80: Ilimit_inductor_Vinnom | B80: =CHOOSE(MODE, Ilimit_DC+Iripple_Vinnom/2, Ilimit_DC/Number_of_Phases+Iripple_Vinnom/2) -> 26.88034984 | C80: A | D80: =Ilimit2_DC+Iripple2_Vinnom/2 -> 16.47337673 | E80: A
A81: Ilimit_inductor_Vinmax | B81: =CHOOSE(MODE, Ilimit_DC+Iripple_Vinmax/2, Ilimit_DC/Number_of_Phases+Iripple_Vinmax/2) -> 26.97775011 | C81: A | D81: =Ilimit2_DC+Iripple2_Vinmax/2 -> 16.47840089 | E81: A
A84: CS threshold_min | B84: 0.066 | C84: V
A85: CS threshold | B85: 0.073 | C85: V
A86: CS threshold_max | B86: 0.08 | C86: V
F87: =SENSING_TYPE -> 1
A88: Shunt required to get OCP at VIN(min) | B88: =Buck_CS_threshold/B79 -> 0.002784720819 | C88: W | D88: =Buck_CS_threshold/D79 -> 0.004440649728 | E88: W
A89: Shunt required to get OCP at VIN(nom) | B89: =Buck_CS_threshold/B80 -> 0.002715738464 | C89: W | D89: =Buck_CS_threshold/D80 -> 0.004431392616 | E89: W
A90: Shunt required to get OCP at VIN(max) | B90: =Buck_CS_threshold/B81 -> 0.002705933582 | C90: W | D90: =Buck_CS_threshold/D81 -> 0.004430041511 | E90: W
A92: Rs_ideal | B92: =B89 -> 0.002715738464 | C92: W | D92: =D89 -> 0.004431392616 | E92: W | F92: Ideal Rs for the required OCP -- based on 73mV CL threshold
A93: Rs | B93: =CHOOSE(SENSING_TYPE, 'Design Regulator'!E19/1000, Rdcr) -> 0.002 | C93: W | D93: =CHOOSE(SENSING_TYPE, 'Design Regulator'!J19/1000, Rdcr2) -> 0.004 | E93: W | F93: Selected (starndard value) current limit sense resistor
A95: Current limit - peak | B95: =Buck_CS_threshold/Rs -> 36.5 | C95: A | D95: =Buck_CS_threshold/Rs_Ch2 -> 18.25 | E95: A | F95: Peak inductor current limit = min sat current
A97: Iout_OCP_Vinmin | B97: =Number_of_Phases*(Buck_CS_threshold/Rs-Iripple_Vinmin/2) -> 139.1420918 | C97: A | D97: =Buck_CS_threshold/Rs_Ch2-Iripple2_Vinmin/2 -> 17.81096417 | E97: A | F97: Current limit setpoints (i.e. IOUT) after standard components are selected
A98: Iout_OCP_Vinnom | B98: =Number_of_Phases*(Buck_CS_threshold/Rs-Iripple_Vinnom/2) -> 136.4786006 | C98: A | D98: =Buck_CS_threshold/Rs_Ch2-Iripple2_Vinnom/2 -> 17.77662327 | E98: A
A99: Iout_OCP_Vinmax | B99: =Number_of_Phases*(Buck_CS_threshold/Rs-Iripple_Vinmax/2) -> 136.0889996 | C99: A | D99: =Buck_CS_threshold/Rs_Ch2-Iripple2_Vinmax/2 -> 17.77159911 | E99: A
A101: Irms_OCP_Vinmin | B101: =SQRT((Iout_OCP_Vinmin/Number_of_Phases)^2+(Iripple_Vinmin^2)/12) -> 34.7996037 | C101: A | D101: =SQRT(Iout2_OCP_Vinmin^2+(Iripple2_Vinmin^2)/12) -> 17.81276776 | E101: A
A102: Irms_OCP_Vinnom | B102: =SQRT((Iout_OCP_Vinnom/Number_of_Phases)^2+(Iripple_Vinnom^2)/12) -> 34.14731637 | C102: A | D102: =SQRT(Iout2_OCP_Vinnom^2+(Iripple2_Vinnom^2)/12) -> 17.77872408 | E102: A
A103: Irms_OCP_Vinmax | B103: =SQRT((Iout_OCP_Vinmax/Number_of_Phases)^2+(Iripple_Vinmax^2)/12) -> 34.05231127 | C103: A | D103: =SQRT(Iout2_OCP_Vinmax^2+(Iripple2_Vinmax^2)/12) -> 17.77374535 | E103: A
A105: Pshunt_Vinmin | B105: =B101^2*Rs -> 2.422024835 | C105: W | D105: =D101^2*Rs_Ch2 -> 1.269178781 | E105: W | F105: Max power dissipations in shunt
A106: Pshunt_Vinnom | B106: =B102^2*Rs -> 2.332078431 | C106: W | D106: =D102^2*Rs_Ch2 -> 1.26433212 | E106: W
A107: Pshunt_Vinmax | B107: =B103^2*Rs -> 2.319119805 | C107: W | D107: =D103^2*Rs_Ch2 -> 1.263624096 | E107: W
A110: Step 4: Output Capacitor
A111: Icoutrms_VINmin | B111: =Iripple_Vinmin/SQRT(12) -> 0.989853786 | C111: A | D111: =Iripple2_Vinmin/SQRT(12) -> 0.2534774573 | E111: A | F111: Output Cap RMS current
A112: Icoutrms_VINnom | B112: =Iripple_Vinnom/SQRT(12) -> 1.374295623 | C112: A | D112: =Iripple2_Vinnom/SQRT(12) -> 0.2733041821 | E112: A
A113: Icoutrms_VINmax | B113: =Iripple_Vinmax/SQRT(12) -> 1.430529694 | C113: A | D113: =Iripple2_Vinmax/SQRT(12) -> 0.2762048855 | E113: A
A114: Max Cout rms current | B114: =MAX(B111:B113) -> 1.430529694 | C114: A | D114: =MAX(D111:D113) -> 0.2762048855 | E114: A
A116: Vripple1 | B116: ='Design Regulator'!E33/1000 -> 0.05 | C116: V | D116: ='Design Regulator'!J33/1000 -> 0.05 | E116: V | F116: Output voltage ripple spec(pk-pk)
A118: Output Ripple Spec (pk-pk) | B118: =Vo1_ripple*1000 -> 50 | C118: mV | D118: =Vo2_ripple*1000 -> 50 | E118: mV | F118: Vout ripple spec at Vin(nom)
A120: Coutmin | B120: =Iripple_Vinnom/(Fsw*8*Vo1_ripple) -> 5.409886007e-06 | C120: F | D120: =Iripple2_Vinnom/(Fsw*8*Vo2_ripple) -> 1.075856203e-06 | E120: F | F120: Minimum output capacitnace | H120: =Vo2_ripple -> 0.05 | I120: 1
A121: Reported Coutmin | B121: =IF(Cout_min*1000000<2, 2.2,Cout_min*1000000) -> 5.409886007 | C121: uF | D121: =IF(Cout2_min*1000000<2, 2.2,Cout2_min*1000000) -> 2.2 | E121: uF
A122: Cout | B122: ='Design Regulator'!E35/1000000 -> 0.000232 | C122: F | D122: ='Design Regulator'!J35/1000000 -> 0.00012 | E122: F | F122: Chosen output capacitance | I122: 1
A123: Resrmax | B123: =SQRT((Vo1_ripple/Iripple_Vinnom)^2-(1/(Fsw*Cout*8))^2) -> 0.01049980206 | C123: W | D123: =SQRT((Vo2_ripple/Iripple2_Vinnom)^2-(1/(Fsw*Cout2*8))^2) -> 0.05280993697 | E123: W | F123: Max ESR before ripple exceeds Vripple1 | I123: 1
A125: Reported Cout ESR max | B125: =IF(OR(CoutEsrMax>0.3, CoutEsrMax<0, (ISERROR(CoutEsrMax))), "N/A", CoutEsrMax*1000) -> 10.49980206 | C125: mΩ | D125: =IF(OR(Cout2EsrMax>0.3, Cout2EsrMax<0, (ISERROR(Cout2EsrMax))), "N/A", Cout2EsrMax*1000) -> 52.80993697 | E125: mΩ
A126: CoutEsr | B126: ='Design Regulator'!E37/1000 -> 0.002 | C126: W | D126: ='Design Regulator'!J37/1000 -> 0.002 | E126: W | F126: Chosen ESR | I126: 1 | K126: =ISERROR(CoutEsrMax) -> FALSE | L126: =ISERROR(B125) -> FALSE
A127: Vripple | B127: =Iripple_Vinnom*SQRT(Cout_ESR^2+(1/(8*Fsw*Cout))^2) -> 0.009592519173 | C127: Vp-p | D127: =Iripple2_Vinnom*SQRT(Cout2_ESR^2+(1/(8*Fsw*Cout2))^2) -> 0.001945846218 | E127: Vp-p | L127: =OR(CoutEsrMax>0.3,CoutEsrMax<0) -> FALSE
K128: =OR(TRUE, FALSE, TRUE) -> TRUE
A129: Step 5: Input Capacitor
K130: Two channels operating at full load
A131: Icinrms_VINmin | B131: =SQRT(D1_Vinmin_2*(Iout^2*(1-D1_Vinmin_2)+Iripple_Vinmin^2/12)) -> 35.00644473 | C131: A | D131: =SQRT(D2_Vinmin_2*(Iout2^2*(1-D2_Vinmin_2)+Iripple2_Vinmin^2/12)) -> 4.508748853 | E131: A | F131: Calculate input cap rms current with one output unloaded | K131: =SQRT(Iout^2*D1_Vinmin*(1-D1_Vinmin)+Iout2^2*D2_Vinmin*(1-D2_Vinmin)-2*Iout*Iout2*D1_Vinmin*D2_Vinmin) -> 33.24154028 | L131: A | M131: =SQRT(Iout^2*D1_Vinmin*(1-D1_Vinmin)+Iout2^2*D2_Vinmin*(1-D2_Vinmin)-2*Iout*Iout2*(0.5-D2_Vinmin*(1-D1_Vinmin))) -> 23.34523506 | N131: A
A132: Icinrms_VINnom | B132: =SQRT(D1_Vinnom_2*(Iout^2*(1-D1_Vinnom_2)+Iripple_Vinnom^2/12)) -> 32.32697602 | C132: A | D132: =SQRT(D2_Vinnom_2*(Iout2^2*(1-D2_Vinnom_2)+Iripple2_Vinnom^2/12)) -> 3.666410678 | E132: A | K132: =SQRT(Iout^2*D1_Vinnom*(1-D1_Vinnom)+Iout2^2*D2_Vinnom*(1-D2_Vinnom)-2*Iout*Iout2*D1_Vinnom*D2_Vinnom) -> 31.64700135 | L132: A
A133: Icinrms_VINmax | B133: =SQRT(D1_Vinmax_2*(Iout^2*(1-D1_Vinmax_2)+Iripple_Vinmax^2/12)) -> 31.42326373 | C133: A | D133: =SQRT(D2_Vinmax_2*(Iout2^2*(1-D2_Vinmax_2)+Iripple2_Vinmax^2/12)) -> 3.511446505 | E133: A | K133: =SQRT(Iout^2*D1_Vinmax*(1-D1_Vinmax)+Iout2^2*D2_Vinmax*(1-D2_Vinmax)-2*Iout*Iout2*D1_Vinmax*D2_Vinmax) -> 30.85309677 | L133: A
A134: Max Cin rms current | B134: =MAX(B131:B133, D131:D133) -> 35.00644473 | C134: A | K134: =MAX(K131:K133) -> 33.24154028 | L134: A
F135: =Number_of_Phases*D1_Vinnom -> 1.224489796 | G135: N*D
A136: Icinrms - multiphase | B136: =Iout*SQRT((D1_Vinnom-F136/Number_of_Phases)*((F136+1)/Number_of_Phases-D1_Vinnom)) -> 7.301802964 | C136: A | F136: =FLOOR(Number_of_Phases*D1_Vinnom,1) -> 1 | G136: floor(N*D)
A137: Icinrms - multiphase - max | B137: =Iout/2/Number_of_Phases -> 8.75 | C137: A
A138: Final result | B138: =CHOOSE(MODE, B134, B137) -> 8.75 | C138: A | D138: …report this
A140: Vinripple1 | B140: ='Design Regulator'!E42/1000 -> 1 | C140: Vp-p | F140: Input voltage ripple spec (pk-pk)
A142: Cinmin_Vinmax | B142: =Iout/Number_of_Phases*D1_Vinmax*(1-D1_Vinmax)/(Vinripple1*Fsw) -> 1.595819304e-06 | C142: F | F142: Calculate cap at Vinmax and 50% duty cycle (Vin = 2*Vout)
A143: Cinmin_50%D | B143: =MAX(Iout/Number_of_Phases*0.5*(1-0.5)/(Vinripple1*Fsw), Iout2*0.5*(1-0.5)/(Vinripple1*Fsw)) -> 1.988636364e-06 | C143: F | F143: Buck 50% typically worst case
A144: Cinmin | B144: =IF(VIN_max<2*Vout, B142,B143) -> 1.988636364e-06 | C144: F
A145: Reported Cinmin | B145: =IF(Cinmin*1000000<10, 10,Cinmin*1000000) -> 10 | C145: uF | F145: …report this
A146: Cin | B146: ='Design Regulator'!E44/1000000 -> 5e-05 | C146: F | F146: Input capacitance
A147: CinEsrMax_Vinmax | B147: =-(Iout/Number_of_Phases*D1_Vinmax*(1-D1_Vinmax)/(Cin*Fsw)-Vinripple1)/(Iout/Number_of_Phases+Iripple_Vinmax/2) -> 0.04845809005 | C147: W
A148: CinEsrMax_50%D | B148: =-(Iout/Number_of_Phases*0.5*(1-0.5)/(Cin*Fsw)-Vinripple1)/(Iout/Number_of_Phases+Iripple_Vinmax/2) -> 0.0480648355 | C148: W | F148: Calculate ESR at Vinmax and 50% duty cycle (Vin = 2*Vout)
A149: CinEsrMax | B149: =IF(VIN_max<2*Vout, B147,B148) -> 0.0480648355 | C149: W
A150: Reported Cin ESR max | B150: =IF(OR(CinEsrMax>0.3, CinEsrMax<0), "N/A",CinEsrMax*1000) -> 48.0648355 | C150: mΩ | F150: …report this
A151: RCinEsr | B151: ='Design Regulator'!E46/1000 -> 0.03 | C151: W | F151: Input capacitance series resistance (ESR)
A153: Vinripple2_Vinmax | B153: =Iout/Number_of_Phases*D1_Vinmax_2*(1-D1_Vinmax_2)/(Cin*Fsw)+(Iout/Number_of_Phases +Iripple_Vinmax/2)*RCinEsr -> 0.6313730698 | C153: Vp-p
A154: Vinripple2_50%D | B154: =Iout/Number_of_Phases*0.5*(1-0.5)/(Cin*Fsw)+(Iout/Number_of_Phases +Iripple_Vinmax/2)*RCinEsr -> 0.6391052306 | C154: Vp-p | F154: Calculate ripple at Vinmax and 50% duty cycle (Vin = 2*Vout)
A155: Vinripple2 | B155: =IF(VIN_max<2*Vout, B153,B154) -> 0.6391052306 | C155: Vp-p | F155: …report highest of these
B157: =Iout*D1_Vinmax_2*(1-D1_Vinmax_2)/(Cin*Fsw) -> 0.1281622657 | C157: Vp-p
A159: Step 6a: Soft Start
A160: Tss | B160: ='Design Regulator'!E51/1000 -> 0.003 | C160: s | D160: Soft-start time
A161: Iss | B161: =Cout*Vout/Tss -> 1.16 | C161: A | D161: Load cap current during soft start
A162: Css | B162: =0.00002*Tss/0.6 -> 1e-07 | C162: F
A163: Css_u | B163: ='Standard Value Calculator'!B4 -> 1e-07 | C163: F
A165: Step 6b: Other Components - Dither, Hiccup, DEMB, MODE
A166: Tres | B166: ='Design Regulator'!E53/1000 -> 0.03 | C166: s | D166: Hiccup time
A167: Cres | B167: =0.00002*Tres/1.2 -> 5e-07 | C167: F
A168: Cres_u | B168: ='Standard Value Calculator'!G4 -> 4.7e-07 | C168: F
A170: RPG1/2 | B170: 100 | C170: kΩ
A171: RFB1/2 | C171: W | E171: Tie to VDDA or AGND for 3.3V/5V output, respectively.
A172: R_MODE | C172: W | E172: Tie to VDDA or AGND for Single/Dual operation, respectively.
A173: R_DEMB | C173: W | E173: Tie to VDDA or AGND for FPWM/DEM, respectively.
A175: Dither Modulation Frequency | B175: ='Design Regulator'!E55*1000 -> 9000 | C175: Hz
A176: Cdither_calculated | B176: =10*10^-6/Fdither/0.12 -> 9.259259259e-09 | C176: F
A177: Cdither_stdvalue | B177: ='Standard Value Calculator'!O22 -> 1e-08 | C177: F
A180: Step 7: Compensation
A181: Pi | B181: 3.14159265 | D181: p
A182: CS Amp Gain | B182: 12
A183: Ri | B183: =Rs*CSAmp_gain -> 0.024 | C183: W | D183: =Rs_Ch2*CSAmp_gain -> 0.048 | E183: W | F183: Current Sense effective resistance = shunt resistor Rs * CS amp gain
A184: gm | B184: 0.0012 | C184: S | F184: Error Amp Transconductance
A186: Se_ext | B186: =B190/Ri*1000 -> 26666666.67 | C186: A/s | D186: =B190/Ri_Ch2*1000 -> 13333333.33 | E186: A/s | F186: Slope Comp Slope - referred to inductor current
A187: Sn | B187: =(Vin-Vout)/Lf -> 34000000 | C187: A/s | D187: =(Vin-Vout2)/Lo_2 -> 20000000 | E187: A/s | F187: On-time Slope
A188: Sf | B188: =Vout/Lf -> 15000000 | C188: A/s | D188: =Vout2/Lo_2 -> 2272727.273 | E188: A/s | F188: Off-time Slope
K189: Tsw | L189: Tsw (us) | M189: Slope comp amplitude
A190: Se_int | B190: =(Fsw/1000)/220*64 -> 640 | C190: mV/μs | F190: Slope Comp Slope - referred to IC | K190: =Ts -> 4.545454545e-07 | L190: =Ts*1000000 -> 0.4545454545 | M190: =B190*L190 -> 290.9090909 | N190: mV
A191: Sn_int | B191: =Sn*Ri/1000 -> 816 | C191: mV/μs | D191: =Sn_Ch2*Ri_Ch2/1000 -> 960 | E191: mV/μs | F191: etc
A192: Sf_int | B192: =Sf*Ri/1000 -> 360 | C192: mV/μs | D192: =Sf_Ch2*Ri_Ch2/1000 -> 109.0909091 | E192: mV/μs | F192: etc
A194: mc_buck | B194: =1+Se_ext/Sn -> 1.784313725 | D194: =1+Se_ext_Ch2/Sn_Ch2 -> 1.666666667 | F194: mc = 1 + Se/Sf for peak current-mode buck
A195: k_buck | B195: =mc_buck*(1-D1_Vinnom_2) -> 1.234664315 | D195: =mc_buck_Ch2*(1-D2_Vinnom_2) -> 1.493095199 | F195: mc*(1-d)
A197: mc | B197: =1+Se_ext/Sn -> 1.784313725 | D197: =1+Se_ext_Ch2/Sn_Ch2 -> 1.666666667
A198: k | B198: =mc_buck*(1-D1_Vinnom_2) -> 1.234664315 | D198: =mc_buck_Ch2*(1-D2_Vinnom_2) -> 1.493095199
A199: Q | B199: =1/Pi/(k-0.5) -> 0.4332725571 | D199: =1/Pi/(k_Ch2-0.5) -> 0.3205230342 | F199: 1/(Pi*(k-0.5)) | H199: Q = 2/Pi = 0.636 gives ideal one-cycle damping
A201: Error Amp (EA)
A202: GBW | B202: 30 | C202: MHz | F202: EA gain-bandwidth product
A203: Cbw | B203: =gm/(2*Pi*GBW*1000000) -> 6.366197731e-12 | C203: F | F203: EA effective bandwidth limiting capacitance = gm/(2*Pi*GBW)
A204: RoEA | B204: 64000000 | C204: W | F204: EA output resistance
A205: AEA | B205: =gm*RoEA -> 76800 | C205: V/V | F205: EA DC gain = gm*RoEA
A206: Afb | B206: =Vref/Vout -> 0.04 | C206: V/V | D206: =Vref/Vout2 -> 0.12 | E206: V/V | F206: Feedback gain from Vout to FB
A207: Acs | B207: =1/Ri -> 41.66666667 | D207: =1/Ri_Ch2 -> 20.83333333 | F207: Acs = 1/Ri
A208: Am_buck | B208: =(Ro/Number_of_Phases)/Ri/((1+Ro/Number_of_Phases*(k-0.5)/(Fsw*Lf))) -> 2.19291263 | D208: =Ro_Ch2/Ri_Ch2/((1+Ro_Ch2*(k_Ch2-0.5)/(Fsw*Lo_2))) -> 7.99687303
A209: Am | B209: =(Ro*Number_of_Phases)/Ri/((1+Ro*Number_of_Phases*(k-0.5)/(Fsw*Lf))) -> 27.76657874 | D209: =Ro_Ch2/Ri_Ch2/((1+Ro_Ch2*(k_Ch2-0.5)/(Fsw*Lo_2))) -> 7.99687303 | F209: Buck modulator gain
A211: Scaling factor to calculate Rcomp - buck | B211: =2*Pi*Ri/gm -> 125.663706 | F211: 2*Pi*Ri/gm -- scaling factor to calculate Rcomp given desired buck crossover frequency
A212: DC Gain is Adc = AEA*Afb*Am
A214: Ro | B214: =Rout -> 0.2142857143 | C214: W | D214: =Rout2 -> 0.4166666667 | E214: W | F214: Output Resistance
A216: Fp_load_buck | B216: =1/(2*Pi*Ro*Cout)+(k-0.5)/(2*Pi*Fsw*Lf*Cout/Number_of_Phases) -> 4117.736247 | C216: Hz | D216: =1/(2*Pi*Ro_Ch2*Cout2)+(k_Ch2-0.5)/(2*Pi*Fsw*Lo_2*Cout2) -> 3455.233869 | E216: Hz | F216: Buck dominant pole frequency -- note slope comp influence
A217: Fp_dominant | B217: =Fload_u -> 4117.736247 | C217: Hz | D217: =Fload_u_Ch2 -> 3455.233869 | E217: Hz
B218: =Cbw -> 6.366197731e-12
A219: Fp_EA | B219: =1/(2*Pi*(RoEA+Rcea1_u)*Cc1ea_u) -> 2.486019108 | C219: Hz | D219: =1/(2*Pi*(RoEA+Rcea2_u)*Cc3ea_u) -> 1.381229601 | E219: Hz | F219: Error Amp LF pole -- related to amplifier ouptut resistance and comp cap
A220: Fp_HF | B220: =1/(2*Pi*Rcea1_u*(Cc2ea_u+Cbw)) -> 202146.7051 | C220: Hz | D220: =1/(2*Pi*Rcea2_u*(Cc4ea_u+Cbw)) -> 648307.5499 | E220: Hz | F220: Error Amp HF pole cancels zero related to Output Cap ESR
A221: Fesr | B221: =1/(2*Pi*Cout*Cout_ESR) -> 343006.3433 | C221: Hz | D221: =1/(2*Pi*Cout2*Cout2_ESR) -> 663145.597 | E221: Hz | F221: Cout ESR zero frequency
A222: F_mod | B222: =Fsw/2 -> 1100000 | C222: Hz | F222: Zero-order sample-and-hold effects of current-mode control modeled as pole at Fsw/2
A224: Desired Crossover Frequency | B224: ='Design Regulator'!E63*1000 -> 50000 | C224: Hz | D224: ='Design Regulator'!J63*1000 -> 60000 | E224: Hz
A225: Rcea1 | B225: =Fcross*Cout/Number_of_Phases*2*Pi*Ri/(gm*Afb) -> 9110.618685 | C225: W | D225: =Fcross_Ch2*Cout2*2*Pi*Ri_Ch2/(gm*Afb_Ch2) -> 15079.64472 | E225: W | F225: This component will largely determine the crossover frequency
A226: Cc1ea, Cc3ea | B226: =10/(Rcea1*Fcross*2*Pi) -> 3.493833927e-09 | C226: F | D226: =10/(Rcea2*Fcross_Ch2*2*Pi) -> 1.759048331e-09 | E226: F | F226: This along with Rcea1 will set a zero at Fcrossover/5 to optimize phase margin
A227: Cc2ea, Cc4ea | B227: =MAX(1/(Rcea1*2*Pi*Fesr)-Cbw, 1/(Rcea1*2*Pi*(Fsw/2))-Cbw) -> 4.456338412e-11 | C227: F | D227: =MAX(1/(Rcea2*2*Pi*Fesr_Ch2)-Cbw, 1/(Rcea2*2*Pi*(Fsw/2))-Cbw) -> 9.549296596e-12 | E227: F | F227: This along with Rcea1 places a pole at the output cap ESR zero
A229: Chosen Compensation Components from the standard value sheet
A230: Rcea1_u | B230: ='Design Regulator'!D70*1000 -> 20000 | C230: W | D230: ='Design Regulator'!D73*1000 -> 15000 | E230: W | F230: =1/(Rcea1*2*Pi*(Fsw/2))-Cbw -> 9.514865572e-12
A231: Cc1ea_u | B231: ='Design Regulator'!D71*0.000000001 -> 1e-09 | C231: F | D231: ='Design Regulator'!D74*0.000000001 -> 1.8e-09 | E231: F
A232: Cc2ea_u | B232: ='Design Regulator'!D72*0.000000000001 -> 3.3e-11 | C232: F | D232: ='Design Regulator'!D75*0.000000000001 -> 1e-11 | E232: F
A234: Resulting Pole/Zero Locations | F234: =Cout -> 0.000232 | G234: =Cout_ESR -> 0.002
A235: Fz1 | B235: =1/(2*Pi*Rcea1_u*Cc1ea_u) -> 7957.747164 | C235: Hz | D235: =1/(2*Pi*Rcea2_u*Cc3ea_u) -> 5894.627529 | E235: Hz | F235: This zero is set at or close to the dominant load pole
A236: Fp2 | B236: =1/(2*Pi*Rcea1_u*(Cc1ea_u*(Cc2ea_u+Cbw)/(Cc1ea_u+Cc2ea_u+Cbw))) -> 210104.4523 | C236: Hz | D236: =1/(2*Pi*Rcea2_u*(Cc3ea_u*(Cc4ea_u+Cbw)/(Cc3ea_u+Cc4ea_u+Cbw))) -> 654202.1774 | E236: Hz | F236: This pole cancels the zero from the Output Cap ESR
A238: Rfb1 | B238: ='Design Regulator'!E65*1000 -> 39300 | C238: W | D238: ='Design Regulator'!J65*1000 -> 115000 | E238: W | F238: Upper Feedback Resistance - chosen by user
A239: Rfb2 | B239: =IF(Vout=Vref,100000000,Vref*B238/((Vout-Vref))) -> 1637.5 | C239: W | D239: =IF(Vout2=Vref,100000000,Vref*D238/((Vout2-Vref))) -> 15681.81818 | E239: W | F239: Lower Feedback Resistance
A240: Rfb2_u | B240: =IF(Vout=Vref,"N/A",'Standard Value Calculator'!O11) -> 1650 | C240: W | D240: =IF(Vout2=Vref,"N/A",'Standard Value Calculator'!O13) -> 15800 | E240: W | F240: Std Value Lower Feedback Resistance
A243: Other Input Variables
A244: Rfets | B244: 0 | C244: W | D244: Series resistance due to FETs
A245: Diode loss eq res | B245: =0.00000002*Fsw*0.6*4/Iripple1 -> 
A246: Fet loss eq res | B246: =_Don2*RdsonTop+Doff2*RdsonBot -> 
A247: cap loss eq res | B247: =B248*Vin^2*Fsw/2/(((Iripple1/SQRT(3))^2)) -> 
A248: Sw cap | B248: 5e-09
A250: Step 8: Efficiency
A251: VAR | B251: 0
A252: Design
A253: Ta | B253: ='Design Regulator'!E14 -> 25 | C253: °C | D253: Ambient Temperature
A254: Components
... 109 more rows

Sheet Stability Calculations (hidden)
A2: Divider Network & EA Poles/Zeros | E2: Modulator | J2: Power Stage Poles/Zeros | M2: Complex Pole Pair | P2: Total System
B3: Afb1 | C3: =Afb -> 0.04 | D3: V/V | E3: Acs | F3: =Acs -> 41.66666667 | G3: A/V | H3: gm | I3: =gm -> 0.0012 | J3: z_ESR | K3: =Fesr -> 343006.3433 | L3: Hz | M3: p3 | N3: =Fsw/2 -> 1100000 | O3: Hz | P3: Adc | Q3: =Am*Afb*AEA -> 85298.9299 | R3: V/V
B4: EA zero, z1 | C4: =Fz1_u -> 7957.747164 | D4: Hz | E4: Am | F4: =Am -> 27.76657874 | G4: V/V | J4: p_dom | K4: =Fp_dominant -> 4117.736247 | L4: Hz | M4: pterm1 | N4: =Q*pole3 -> 476599.8128 | P4: Crossover | Q4: =AE7 -> 100 | R4: kHz
B5: EA pole, p1 | C5: =Fp1_u -> 2.486019108 | D5: Hz | E5: Q | F5: =Q -> 0.4332725571 | M5: pterm2 | N5: =pole3^2 -> 1210000000000 | P5: Phase Margin | Q5: =AE9 -> 65.79606406 | R5: °
B6: Aea | C6: =AEA -> 76800 | D6: V/V | E6: mc | F6: =mc -> 1.784313725 | P6: radconv | Q6: =180/Pi -> 57.29577958 | AD6: XOVER SEARCH
B7: EA pole, p2 | C7: =Fp2_u -> 202146.7051 | D7: Hz | E7: k | F7: =k -> 1.234664315 | AD7: xover | AE7: =SUM(AD12:AD613)/1000 -> 100
AD9: phase margin | AE9: =SUM(AE13:AE613) -> 65.79606406
A10: Freq (Hz) | C10: Power Stage | I10: Error Amplifier | O10: Sampling Double Pole | Q10: System Response | X10: ERROR AMP Response | AA10: PLANT Response
C11: p_dom | E11: z_ESR | G11: z_RHP | I11: p1 | K11: z1 | M11: p2 | O11: p3
C12: Gain(V/V) | D12: Phase(rad) | E12: Gain(V/V) | F12: Phase(rad) | G12: Gain(V/V) | H12: Phase(rad) | I12: Gain(V/V) | J12: Phase(rad) | K12: Gain(V/V) | L12: Phase(rad) | M12: Gain(V/V) | N12: Phase(rad) | O12: Gain(V/V) | P12: Phase(rad) | Q12: Gain (dB) | R12: Phase (°) | S12: Phase Margin (°) | V12: Fsquare | X12: Gain(dB) | Y12: Phase(Deg) | AA12: Gain(dB) | AB12: Phase(Deg)
A13: 1 | B13: =A13/1000 -> 0.001 | C13: =SQRT(1+(A13/pole1)^2) -> 1.000000029 | D13: =ATAN(A13/pole1) -> 0.0002428518779 | E13: =SQRT(1+(A13/Zero1)^2) -> 1 | F13: =ATAN(A13/Zero1) -> 2.915397979e-06 | G13: =IF(VIN_nom>Vout, 1, SQRT(1+(A13/z_RHP)^2)) -> 1 | H13: =IF(VIN_nom>Vout, 0, -ATAN(A13/z_RHP)) -> 0 | I13: =SQRT(1+(A13/Pole2)^2) -> 1.077870437 | J13: =ATAN(A13/Pole2) -> 0.3824441155 | K13: =SQRT(1+(A13/Zero2)^2) -> 1.000000008 | L13: =ATAN(A13/Zero2) -> 0.0001256637053 | M13: =SQRT(1+(A13/pole4)^2) -> 1 | N13: =ATAN(A13/pole4) -> 4.946902298e-06 | O13: =SQRT((1-(V13/pterm2))^2+(A13/pterm1)^2) -> 1 | P13: =IF((ATAN((A13/pterm1)/(1-A13^2/pterm2))>0),ATAN((A13/pterm1)/(1-A13^2/pterm2)),PI()+ATAN((A13/pterm1)/(1-A13^2/pterm2))) -> 2.098196376e-06 | Q13: =20*LOG10(((E13*K13*G13)/(C13*I13*O13*M13))*Adc) -> 97.96754026 | R13: =((F13+L13+H13)-(D13+J13+P13+N13))*radconv -> -21.91938474 | S13: =IF(R13>0,R13,R13+180) -> 158.0806153 | U13: =IF(Q13<0,A13,1000000000) -> 1000000000 | V13: =A13^2 -> 1 | X13: =20*LOG10((K13/(I13*M13))*AEA) -> 97.05589326 | Y13: =(L13-(J13+N13))*radconv -> -21.90551718 | AA13: =20*LOG10((E13*G13/(C13*O13))*Acs*Am) -> 61.26622234 | AB13: =(F13+H13-(D13+P13))*radconv -> -0.01386756546 | AD13: =SUM((Q14<0)*(Q13>0))*A13 -> 0 | AE13: =IF(AD13>0,S11,0) -> 0
A14: 1.0965 | B14: =A14/1000 -> 0.0010965 | C14: 1.000000035 | D14: 0.000266287083 | E14: 1 | F14: 3.196733884e-06 | G14: 1 | H14: 0 | I14: 1.09295002 | J14: 0.4154001239 | K14: 1.000000009 | L14: 0.0001377902528 | M14: 1 | N14: 5.42427837e-06 | O14: 1 | P14: 2.300672326e-06 | Q14: 97.84686538 | R14: -23.80829571 | S14: 156.1917043 | U14: =IF(Q14<0,A14,1000000000) -> 1000000000 | V14: =A14^2 -> 1.20231225 | X14: 96.93521843 | Y14: -23.79308992 | AA14: 61.26622229 | AB14: -0.01520578547 | AD14: =SUM((Q15<0)*(Q14>0))*A14 -> 0 | AE14: 0
A15: 1.2023 | B15: 0.0012023 | C15: 1.000000043 | D15: 0.0002919808102 | E15: 1 | F15: 3.50518299e-06 | G15: 1 | H15: 0 | I15: 1.110807254 | J15: 0.4504616794 | K15: 1.000000011 | L15: 0.0001510854726 | M15: 1 | N15: 5.947660633e-06 | O15: 1 | P15: 2.522661503e-06 | Q15: 97.70609724 | R15: -25.81791028 | S15: 154.1820897 | U15: 1000000000 | V15: 1.44552529 | X15: 96.79445036 | Y15: -25.80123731 | AA15: 61.26622222 | AB15: -0.01667297381 | AD15: 0 | AE15: 0
A16: 1.3183 | B16: 0.0013183 | C16: 1.000000051 | D16: 0.000320151626 | E16: 1 | F16: 3.843369156e-06 | G16: 1 | H16: 0 | I16: 1.131902275 | J16: 0.4875814793 | K16: 1.000000014 | L16: 0.0001656624621 | M16: 1 | N16: 6.521501299e-06 | O16: 1 | P16: 2.766052282e-06 | Q16: 97.54269267 | R16: -27.94552447 | S16: 152.0544755 | U16: 1000000000 | V16: 1.73791489 | X16: 96.63104586 | Y16: -27.92724286 | AA16: 61.26622215 | AB16: -0.01828161128 | AD16: 0 | AE16: 0
A17: 1.4454 | B17: 0.0014454 | C17: 1.000000062 | D17: 0.0003510180968 | E17: 1 | F17: 4.213916239e-06 | G17: 1 | H17: 0 | I17: 1.156736481 | J17: 0.5266393127 | K17: 1.000000016 | L17: 0.0001816343187 | M17: 1 | N17: 7.150252581e-06 | O17: 1 | P17: 3.032733042e-06 | Q17: 97.35418261 | R17: -30.18425696 | S17: 149.815743 | U17: 1000000000 | V17: 2.08918116 | X17: 96.44253589 | Y17: -30.16421278 | AA17: 61.26622206 | AB17: -0.02004417869 | AD17: 0 | AE17: 0
A18: 1.5849 | B18: 0.0015849 | C18: 1.000000074 | D18: 0.0003848959298 | E18: 1 | F18: 4.620614257e-06 | G18: 1 | H18: 0 | I18: 1.185933585 | J18: 0.5675555915 | K18: 1.00000002 | L18: 0.000199164405 | M18: 1 | N18: 7.840345452e-06 | O18: 1 | P18: 3.325431436e-06 | Q18: 97.13766382 | R18: -32.52955671 | S18: 147.4704433 | U18: 1000000000 | V18: 2.51190801 | X18: 96.22601721 | Y18: -32.50757801 | AA18: 61.26622195 | AB18: -0.02197870385 | AD18: 0 | AE18: 0
A19: 1.7378 | B19: 0.0017378 | C19: 1.000000089 | D19: 0.0004220279766 | E19: 1 | F19: 5.066378608e-06 | G19: 1 | H19: 0 | I19: 1.220099116 | J19: 0.6100741376 | K19: 1.000000024 | L19: 0.0002183783848 | M19: 1 | N19: 8.596726813e-06 | O19: 1 | P19: 3.646245662e-06 | Q19: 96.89096884 | R19: -34.96675277 | S19: 145.0332472 | U19: 1000000000 | V19: 3.01994884 | X19: 95.97932236 | Y19: -34.94265371 | AA19: 61.26622182 | AB19: -0.0240990543 | AD19: 0 | AE19: 0
A20: 1.9055 | B20: 0.0019055 | C20: 1.000000107 | D20: 0.0004627542294 | E20: 1 | F20: 5.555290849e-06 | G20: 1 | H20: 0 | I20: 1.259960913 | J20: 0.6539692221 | K20: 1.000000029 | L20: 0.0002394521872 | M20: 1 | N20: 9.426322329e-06 | O20: 1 | P20: 3.998113194e-06 | Q20: 96.61172953 | R20: -37.48292153 | S20: 142.5170785 | U20: 1000000000 | V20: 3.63093025 | X20: 95.7000832 | Y20: -37.45649689 | AA20: 61.26622167 | AB20: -0.02642464462 | AD20: 0 | AE20: 0
A21: 2.0893 | B21: 0.0020893 | C21: 1.000000129 | D21: 0.0005073903949 | E21: 1 | F21: 6.091140998e-06 | G21: 1 | H21: 0 | I21: 1.306256351 | J21: 0.6989059794 | K21: 1.000000034 | L21: 0.0002625491749 | M21: 1 | N21: 1.033556297e-05 | O21: 1 | P21: 4.383761688e-06 | Q21: 96.29830253 | R21: -40.05888567 | S21: 139.9411143 | U21: 1000000000 | V21: 4.36517449 | X21: 95.3866564 | Y21: -40.02991216 | AA21: 61.26622148 | AB21: -0.0289735026 | AD21: 0 | AE21: 0
A22: 2.2909 | B22: 0.0022909 | C22: 1.000000155 | D22: 0.0005563493206 | E22: 1 | F22: 6.67888523e-06 | G22: 1 | H22: 0 | I22: 1.359848155 | J22: 0.7445746329 | K22: 1.000000041 | L22: 0.0002878829761 | M22: 1 | N22: 1.133285847e-05 | O22: 1 | P22: 4.806758078e-06 | Q22: 95.94906234 | R22: -42.67690809 | S22: 137.3230919 | U22: 1000000000 | V22: 5.24822281 | X22: 95.03741643 | Y22: -42.64513889 | AA22: 61.26622125 | AB22: -0.03176920306 | AD22: 0 | AE22: 0
A23: 2.5119 | B23: 0.0025119 | C23: 1.000000186 | D23: 0.0006100195684 | E23: 1 | F23: 7.323188184e-06 | G23: 1 | H23: 0 | I23: 1.421594011 | J23: 0.7905764507 | K23: 1.00000005 | L23: 0.0003156546526 | M23: 1 | N23: 1.242612388e-05 | O23: 1 | P23: 5.270459477e-06 | Q23: 95.56335877 | R23: -45.31415428 | S23: 134.6858457 | U23: 1000000000 | V23: 6.30964161 | X23: 94.65171313 | Y23: -45.27932034 | AA23: 61.26622098 | AB23: -0.03483393404 | AD23: 0 | AE23: 0
A24: 2.7542 | B24: 0.0027542 | C24: 1.000000224 | D24: 0.0006688625555 | E24: 1 | F24: 8.029589114e-06 | G24: 1 | H24: 0 | I24: 1.492443776 | J24: 0.8365309731 | K24: 1.00000006 | L24: 0.0003461029652 | M24: 1 | N24: 1.362475831e-05 | O24: 1 | P24: 5.778852458e-06 | Q24: 95.14091065 | R24: -47.94883869 | S24: 132.0511613 | U24: 1000000000 | V24: 7.58561764 | X24: 94.22926534 | Y24: -47.91064464 | AA24: 61.26622065 | AB24: -0.03819404384 | AD24: 0 | AE24: 0
A25: 3.02 | B25: 0.00302 | C25: 1.000000269 | D25: 0.0007334125541 | E25: 1 | F25: 8.804501897e-06 | G25: 1 | H25: 0 | I25: 1.573443164 | J25: 0.8820771196 | K25: 1.000000072 | L25: 0.0003795043739 | M25: 1 | N25: 1.493964494e-05 | O25: 1 | P25: 6.336553055e-06 | Q25: 94.68184874 | R25: -50.56028824 | S25: 129.4397118 | U25: 1000000000 | V25: 9.1204 | X25: 93.77020382 | Y25: -50.5184082 | AA25: 61.26622026 | AB25: -0.04188004099 | AD25: 0 | AE25: 0
A26: 3.3113 | B26: 0.0033113 | C26: 1.000000323 | D26: 0.0008041552657 | E26: 1 | F26: 9.653757328e-06 | G26: 1 | H26: 0 | I26: 1.665575277 | J26: 0.9268036804 | K26: 1.000000087 | L26: 0.0004161102057 | M26: 1 | N26: 1.638067758e-05 | O26: 1 | P26: 6.947757659e-06 | Q26: 94.18758428 | R26: -53.12495623 | S26: 126.8750438 | U26: 1000000000 | V26: 10.96470769 | X26: 93.27593983 | Y26: -53.07903657 | AA26: 61.26621979 | AB26: -0.04591966049 | AD26: 0 | AE26: 0
A27: 3.6308 | B27: 0.0036308 | C27: 1.000000389 | D27: 0.000881746387 | E27: 1 | F27: 1.058522698e-05 | G27: 1 | H27: 0 | I27: 1.77003501 | J27: 0.9704108529 | K27: 1.000000104 | L27: 0.0004562597521 | M27: 1 | N27: 1.796121286e-05 | O27: 1 | P27: 7.618131402e-06 | Q27: 93.65923205 | R27: -55.62568402 | S27: 124.374316 | U27: 1000000000 | V27: 13.18270864 | X27: 92.74758818 | Y27: -55.57533367 | AA27: 61.26621922 | AB27: -0.05035034458 | AD27: 0 | AE27: 0
A28: 3.9811 | B28: 0.0039811 | C28: 1.000000467 | D28: 0.0009668173288 | E28: 1 | F28: 1.160649089e-05 | G28: 1 | H28: 0 | I28: 1.887979817 | J28: 1.012588781 | K28: 1.000000125 | L28: 0.0005002797382 | M28: 1 | N28: 1.969411274e-05 | O28: 1 | P28: 8.353129592e-06 | Q28: 93.09892174 | R28: -58.04473624 | S28: 121.9552638 | U28: 1000000000 | V28: 15.84915721 | X28: 92.18727854 | Y28: -57.98952809 | AA28: 61.26621854 | AB28: -0.05520814869 | AD28: 0 | AE28: 0
A29: 4.3652 | B29: 0.0043652 | C29: 1.000000562 | D29: 0.001060096641 | E29: 1 | F29: 1.272629526e-05 | G29: 1 | H29: 0 | I29: 2.020688859 | J29: 1.053098744 | K29: 1.00000015 | L29: 0.0005485471544 | M29: 1 | N29: 2.159421791e-05 | O29: 1 | P29: 9.15904682e-06 | Q29: 92.50887914 | R29: -60.36845599 | S29: 119.631544 | U29: 1000000000 | V29: 19.05497104 | X29: 91.59723676 | Y29: -60.30792132 | AA29: 61.26621771 | AB29: -0.0605346752 | AD29: 0 | AE29: 0
A30: 4.7863 | B30: 0.0047863 | C30: 1.000000676 | D30: 0.001162361442 | E30: 1 | F30: 1.395396935e-05 | G30: 1 | H30: 0 | I30: 2.169499854 | J30: 1.091746993 | K30: 1.000000181 | L30: 0.0006014641235 | M30: 1 | N30: 2.367735846e-05 | O30: 1 | P30: 1.004259731e-05 | Q30: 91.89167486 | R30: -62.58576464 | S30: 117.4142354 | U30: 1000000000 | V30: 22.90866769 | X30: 90.98003347 | Y30: -62.51939034 | AA30: 61.26621673 | AB30: -0.06637429989 | AD30: 0 | AE30: 0
A31: 5.2481 | B31: 0.0052481 | C31: 1.000000812 | D31: 0.001274510275 | E31: 1 | F31: 1.530030013e-05 | G31: 1 | H31: 0 | I31: 2.335918243 | J31: 1.12841012 | K31: 1.000000217 | L31: 0.0006594955998 | M31: 1 | N31: 2.596183794e-05 | O31: 1 | P31: 1.10115444e-05 | Q31: 91.24971372 | R31: -64.68961705 | S31: 115.310383 | U31: 1000000000 | V31: 27.54255361 | X31: 90.33807352 | Y31: -64.61683872 | AA31: 61.26621554 | AB31: -0.0727783322 | AD31: 0 | AE31: 0
A32: 5.7544 | B32: 0.0057544 | C32: 1.000000976 | D32: 0.001397465964 | E32: 1 | F32: 1.677636613e-05 | G32: 1 | H32: 0 | I32: 2.521479256 | J32: 1.162994262 | K32: 1.000000261 | L32: 0.0007231191038 | M32: 1 | N32: 2.846645458e-05 | O32: 1 | P32: 1.207386123e-05 | Q32: 90.58575745 | R32: -66.6746617 | S32: 113.3253383 | U32: 1000000000 | V32: 33.11311936 | X32: 89.67411868 | Y32: -66.59486223 | AA32: 61.26621411 | AB32: -0.07979946815 | AD32: 0 | AE32: 0
A33: 6.3096 | B33: 0.0063096 | C33: 1.000001174 | D33: 0.00153229704 | E33: 1 | F33: 1.839499509e-05 | G33: 1 | H33: 0 | I33: 2.727932276 | J33: 1.195468005 | K33: 1.000000314 | L33: 0.0007928875532 | M33: 1 | N33: 3.121297473e-05 | O33: 1 | P33: 1.323877985e-05 | Q33: 89.9021925 | R33: -68.53912928 | S33: 111.4608707 | U33: 1000000000 | V33: 39.81105216 | X33: 88.99055544 | Y33: -68.45163056 | AA33: 61.2662124 | AB33: -0.08749872406 | AD33: 0 | AE33: 0
A34: 6.9183 | B34: 0.0069183 | C34: 1.000001411 | D34: 0.001680120599 | E34: 1 | F34: 2.016959784e-05 | G34: 1 | H34: 0 | I34: 2.957099439 | J34: 1.225825507 | K34: 1.000000378 | L34: 0.0008693789982 | M34: 1.000000001 | N34: 3.422415415e-05 | O34: 1 | P34: 1.451595199e-05 | Q34: 89.2015441 | R34: -70.28271709 | S34: 109.7172829 | U34: 1000000000 | V34: 47.86287489 | X34: 88.2899091 | Y34: -70.1867772 | AA34: 61.26621034 | AB34: -0.09593988945 | AD34: 0 | AE34: 0
A35: 7.5858 | B35: 0.0075858 | C35: 1.000001697 | D35: 0.001842223727 | E35: 1 | F35: 2.211562599e-05 | G35: 1 | H35: 0 | I35: 3.211066325 | J35: 1.254106164 | K35: 1.000000454 | L35: 0.0009532594522 | M35: 1.000000001 | N35: 3.752621143e-05 | O35: 1 | P35: 1.591649807e-05 | Q35: 88.48587534 | R35: -71.90771915 | S35: 108.0922808 | U35: 1000000000 | V35: 57.54436164 | X35: 87.57424282 | Y35: -71.80252269 | AA35: 61.26620786 | AB35: -0.1051964608 | AD35: 0 | AE35: 0
A36: 8.3176 | B36: 0.0083176 | C36: 1.00000204 | D36: 0.002019942072 | E36: 1 | F36: 2.424911423e-05 | G36: 1 | H36: 0 | I36: 3.491997607 | J36: 1.280361321 | K36: 1.000000546 | L36: 0.00104522006 | M36: 1.000000001 | N36: 4.114635453e-05 | O36: 1 | P36: 1.745195818e-05 | Q36: 87.75737993 | R36: -73.41711557 | S36: 106.5828844 | U36: 1000000000 | V36: 69.18246976 | X36: 86.84575039 | Y36: -73.30177087 | AA36: 61.26620488 | AB36: -0.1153447074 | AD36: 0 | AE36: 0
A37: 9.1201 | B37: 0.0091201 | C37: 1.000002453 | D37: 0.002214829833 | E37: 1 | F37: 2.65887211e-05 | G37: 1 | H37: 0 | I37: 3.802407422 | J37: 1.304675006 | K37: 1.000000657 | L37: 0.001146065063 | M37: 1.000000001 | N37: 4.511624362e-05 | O37: 1 | P37: 1.913576077e-05 | Q37: 87.01768307 | R37: -74.81576524 | S37: 105.1842348 | U37: 1000000000 | V37: 83.17622401 | X37: 86.10605712 | Y37: -74.68929186 | AA37: 61.26620129 | AB37: -0.1264733788 | AD37: 0 | AE37: 0
A38: 10 | B38: 0.01 | C38: 1.000002949 | D38: 0.002428514052 | E38: 1 | F38: 2.915397978e-05 | G38: 1 | H38: 0 | I38: 4.144932794 | J38: 1.327133945 | K38: 1.00000079 | L38: 0.001256636399 | M38: 1.000000001 | N38: 4.946902294e-05 | O38: 1 | P38: 2.098196376e-05 | Q38: 86.26850303 | R38: -76.10868375 | S38: 103.8913163 | U38: 1000000000 | V38: 100 | X38: 85.35688138 | Y38: -75.97000837 | AA38: 61.26619698 | AB38: -0.1386753838 | AD38: 0 | AE38: 0
A39: 10.965 | B39: 0.010965 | C39: 1.000003545 | D39: 0.002662864599 | E39: 1.000000001 | F39: 3.196733883e-05 | G39: 1 | H39: 0 | I39: 4.522607072 | J39: 1.347842392 | K39: 1.000000949 | L39: 0.001377901664 | M39: 1.000000001 | N39: 5.424278364e-05 | O39: 1 | P39: 2.300672326e-05 | Q39: 85.51107195 | R39: -77.30189803 | S39: 102.698102 | U39: 1000000000 | V39: 120.231225 | X39: 84.59945548 | Y39: -77.14984054 | AA39: 61.2661918 | AB39: -0.1520574977 | AD39: 0 | AE39: 0
A40: 12.023 | B40: 0.012023 | C40: 1.000004263 | D40: 0.002919799888 | E40: 1.000000001 | F40: 3.505182989e-05 | G40: 1 | H40: 0 | I40: 4.93854994 | J40: 1.366897841 | K40: 1.000001141 | L40: 0.001510853588 | M40: 1.000000002 | N40: 5.947660626e-05 | O40: 1 | P40: 2.522661503e-05 | Q40: 84.74685554 | R40: -78.40104889 | S40: 101.5989511 | U40: 1000000000 | V40: 144.552529 | X40: 83.8352453 | Y40: -78.23431962 | AA40: 61.26618557 | AB40: -0.1667292674 | AD40: 0 | AE40: 0
A41: 13.183 | B41: 0.013183 | C41: 1.000005125 | D41: 0.003201505431 | E41: 1.000000001 | F41: 3.843369154e-05 | G41: 1 | H41: 0 | I41: 5.396320602 | J41: 1.384407534 | K41: 1.000001372 | L41: 0.001656623121 | M41: 1.000000002 | N41: 6.52150129e-05 | O41: 1 | P41: 2.766052282e-05 | Q41: 83.97688417 | R41: -79.41234342 | S41: 100.5876566 | U41: 1000000000 | V41: 173.791489 | X41: 83.06528143 | Y41: -79.22952792 | AA41: 61.26617809 | AB41: -0.1828154924 | AD41: 0 | AE41: 0
A42: 14.454 | B42: 0.014454 | C42: 1.000006161 | D42: 0.003510166695 | E42: 1.000000001 | F42: 4.213916237e-05 | G42: 1 | H42: 0 | I42: 5.899485455 | J42: 1.40046762 | K42: 1.00000165 | L42: 0.001816341209 | M42: 1.000000003 | N42: 7.150252569e-05 | O42: 1 | P42: 3.032733041e-05 | Q42: 83.20254976 | R42: -80.34135314 | S42: 99.65864686 | U42: 1000000000 | V42: 208.918116 | X42: 82.29095601 | Y42: -80.14091217 | AA42: 61.26616909 | AB42: -0.2004409691 | AD42: 0 | AE42: 0
A43: 15.849 | B43: 0.015849 | C43: 1.000007407 | D43: 0.003848940482 | E43: 1.000000001 | F43: 4.620614254e-05 | G43: 1 | H43: 0 | I43: 6.453204386 | J43: 1.415207567 | K43: 1.000001983 | L43: 0.001991641443 | M43: 1.000000003 | N43: 7.840345436e-05 | O43: 1 | P43: 3.325431436e-05 | Q43: 82.42331612 | R43: -81.19558631 | S43: 98.80441369 | U43: 1000000000 | V43: 251.190801 | X43: 81.5117332 | Y43: -80.97580035 | AA43: 61.26615826 | AB43: -0.2197859604 | AD43: 0 | AE43: 0
A44: 17.378 | B44: 0.017378 | C44: 1.000008905 | D44: 0.004220254962 | E44: 1.000000001 | F44: 5.066378604e-05 | G44: 1 | H44: 0 | I44: 7.061457723 | J44: 1.428704852 | K44: 1.000002384 | L44: 0.002183780411 | M44: 1.000000004 | N44: 8.596726792e-05 | O44: 1 | P44: 3.646245661e-05 | Q44: 81.64092773 | R44: -81.97955157 | S44: 98.02044843 | U44: 1000000000 | V44: 301.994884 | X44: 80.72935781 | Y44: -81.73856245 | AA44: 61.26614525 | AB44: -0.2409891218 | AD44: 0 | AE44: 0
A45: 19.055 | B45: 0.019055 | C45: 1.000010707 | D45: 0.004627509593 | E45: 1.000000002 | F45: 5.555290844e-05 | G45: 1 | H45: 0 | I45: 7.729822135 | J45: 1.441063638 | K45: 1.000002867 | L45: 0.002394517341 | M45: 1.000000004 | N45: 9.426322301e-05 | O45: 1 | P45: 3.998113193e-05 | Q45: 80.85541351 | R45: -82.69931426 | S45: 97.30068574 | U45: 1000000000 | V45: 363.093025 | X45: 79.94385925 | Y45: -82.43506968 | AA45: 61.2661296 | AB45: -0.2642445726 | AD45: 0 | AE45: =IF(AD45>0,S43,0) -> 0
A46: 20.893 | B46: 0.020893 | C46: 1.000012872 | D46: 0.005073860843 | E46: 1.000000002 | F46: 6.09114099e-05 | G46: 1 | H46: 0 | I46: 8.463484245 | J46: 1.452365021 | K46: 1.000003447 | L46: 0.002625485777 | M46: 1.000000005 | N46: 0.0001033556293 | O46: 1.000000001 | P46: 4.383761687e-05 | Q46: 80.06780595 | R46: -83.35961124 | S46: 96.64038876 | U46: 1000000000 | V46: 436.517449 | X46: 79.15627049 | Y46: -83.06987868 | AA46: 61.2661108 | AB46: -0.2897325562 | AD46: 0 | AE46: 0
A47: 22.909 | B47: 0.022909 | C47: 1.000015476 | D47: 0.00556343638 | E47: 1.000000002 | F47: 6.678885221e-05 | G47: 1 | H47: 0 | I47: 9.269234086 | J47: 1.462702169 | K47: 1.000004144 | L47: 0.002878821888 | M47: 1.000000006 | N47: 0.0001133285843 | O47: 1.000000001 | P47: 4.806758076e-05 | Q47: 79.27789618 | R47: -83.96589876 | S47: 96.03410124 | U47: 1000000000 | V47: 524.822281 | X47: 78.36638334 | Y47: -83.64820999 | AA47: 61.26608819 | AB47: -0.3176887747 | AD47: 0 | AE47: 0
A48: 25.119 | B48: 0.025119 | C48: 1.000018606 | D48: 0.006100120775 | E48: 1.000000003 | F48: 7.323188171e-05 | G48: 1 | H48: 0 | I48: 10.15347001 | J48: 1.472147908 | K48: 1.000004982 | L48: 0.003156536147 | M48: 1.000000008 | N48: 0.0001242612382 | O48: 1.000000001 | P48: 5.270459474e-05 | Q48: 78.48646346 | R48: -84.52246054 | S48: 95.47753946 | U48: 1000000000 | V48: 630.964161 | X48: 77.57497779 | Y48: -84.17412549 | AA48: 61.266061 | AB48: -0.3483350484 | AD48: 0 | AE48: 0
A49: 27.542 | B49: 0.027542 | C49: 1.000022369 | D49: 0.00668852681 | E49: 1.000000003 | F49: 8.029589097e-05 | G49: 1 | H49: 0 | I49: 11.12379623 | J49: 1.480777432 | K49: 1.000005989 | L49: 0.003461015971 | M49: 1.000000009 | N49: 0.0001362475822 | O49: 1.000000001 | P49: 5.778852456e-05 | Q49: 77.69366884 | R49: -85.03373692 | S49: 94.96626308 | U49: 1000000000 | V49: 758.561764 | X49: 76.78221585 | Y49: -84.65180214 | AA49: 61.26602832 | AB49: -0.3819347807 | AD49: 0 | AE49: 0
A50: 30.2 | B50: 0.0302 | C50: 1.000026894 | D50: 0.007333995361 | E50: 1.000000004 | F50: 8.804501874e-05 | G50: 1 | H50: 0 | I50: 12.18902536 | J50: 1.488663 | K50: 1.000007201 | L50: 0.003795025702 | M50: 1.000000011 | N50: 0.0001493964483 | O50: 1.000000001 | P50: 6.336553052e-05 | Q50: 76.89932092 | R50: -85.50402091 | S50: 94.49597909 | U50: 1000000000 | V50: 912.04 | X50: 75.98790724 | Y50: -85.08522796 | AA50: 61.26598902 | AB50: -0.4187929511 | AD50: 0 | AE50: 0
A51: 33.113 | B51: 0.033113 | C51: 1.000032333 | D51: 0.008041381057 | E51: 1.000000005 | F51: 9.653757299e-05 | G51: 1 | H51: 0 | I51: 13.35717412 | J51: 1.495860078 | K51: 1.000008657 | L51: 0.004161078281 | M51: 1.000000013 | N51: 0.0001638067743 | O51: 1.000000002 | P51: 6.947757655e-05 | Q51: 76.10437418 | R51: -85.93662931 | S51: 94.06337069 | U51: 1000000000 | V51: 1096.470769 | X51: 75.19300773 | Y51: -85.47744253 | AA51: 61.26594179 | AB51: -0.459186773 | AD51: 0 | AE51: 0
A52: 36.308 | B52: 0.036308 | C52: 1.000038873 | D52: 0.008817237654 | E52: 1.000000006 | F52: 0.0001058522694 | G52: 1 | H52: 0 | I52: 14.63907079 | J52: 1.502432742 | K52: 1.000010409 | L52: 0.004562566178 | M52: 1.000000016 | N52: 0.0001796121267 | O52: 1.000000002 | P52: 7.618131395e-05 | Q52: 75.3083541 | R52: -86.33542094 | S52: 93.66457906 | U52: 1000000000 | V52: 1318.270864 | X52: 74.39704445 | Y52: -85.83193046 | AA52: 61.26588499 | AB52: -0.5034904846 | AD52: 0 | AE52: 0
A53: 39.811 | B53: 0.039811 | C53: 1.000046736 | D53: 0.009667875078 | E53: 1.000000007 | F53: 0.0001160649084 | G53: 1 | H53: 0 | I53: 16.04514814 | J53: 1.508431772 | K53: 1.000012514 | L53: 0.005002756064 | M53: 1.000000019 | N53: 0.0001969411248 | O53: 1.000000002 | P53: 8.353129584e-05 | Q53: 74.51169966 | R53: -86.70348582 | S53: 93.29651418 | U53: 1000000000 | V53: 1584.915721 | X53: 73.6004583 | Y53: -86.15142142 | AA53: 61.2658167 | AB53: -0.5520644007 | AD53: 0 | AE53: 0
A54: 43.652 | B54: 0.043652 | C54: 1.000056189 | D54: 0.01060057329 | E54: 1.000000008 | F54: 0.0001272629519 | G54: 1 | H54: 0 | I54: 17.58744855 | J54: 1.513906915 | K54: 1.000015045 | L54: 0.005485417075 | M54: 1.000000023 | N54: 0.0002159421758 | O54: 1.000000003 | P54: 9.159046809e-05 | Q54: 73.71445734 | R54: -87.04388246 | S54: 92.95611754 | U54: 1000000000 | V54: 1905.497104 | X54: 72.80329808 | Y54: -86.43855823 | AA54: 61.26573461 | AB54: -0.6053242281 | AD54: 0 | AE54: 0
A55: 47.863 | B55: 0.047863 | C55: 1.000067552 | D55: 0.01162309622 | E55: 1.00000001 | F55: 0.0001395396926 | G55: 1 | H55: 0 | I55: 19.27882158 | J55: 1.518902648 | K55: 1.000018088 | L55: 0.006014569433 | M55: 1.000000028 | N55: 0.0002367735803 | O55: 1.000000003 | P55: 0.000100425973 | Q55: 72.91683217 | R55: -87.35938133 | S55: 92.64061867 | U55: 1000000000 | V55: 2290.866769 | X55: 72.00577158 | Y55: -86.69566803 | AA55: 61.26563592 | AB55: -0.6637133079 | AD55: 0 | AE55: 0
A56: 52.481 | B56: 0.052481 | C56: 1.000081216 | D56: 0.01274441963 | E56: 1.000000012 | F56: 0.0001530030002 | G56: 1 | H56: 0 | I56: 21.13412888 | J56: 1.523461822 | K56: 1.000021746 | L56: 0.006594861345 | M56: 1.000000034 | N56: 0.0002596183737 | O56: 1.000000004 | P56: 0.0001101154438 | Q56: 72.11866789 | R56: -87.65269425 | S56: 92.34730575 | U56: 1000000000 | V56: 2754.255361 | X56: 71.20772596 | Y56: -86.92495007 | AA56: 61.26551726 | AB56: -0.7277441817 | AD56: 0 | AE56: 0
A57: 57.544 | B57: 0.057544 | C57: 1.000097641 | D57: 0.01397375913 | E57: 1.000000014 | F57: 0.0001677636597 | G57: 1 | H57: 0 | I57: 23.1686375 | J57: 1.527621118 | K57: 1.000026145 | L57: 0.007231066262 | M57: 1.000000041 | N57: 0.0002846645381 | O57: 1.000000005 | P57: 0.000120738612 | Q57: 71.32024052 | R57: -87.92618647 | S57: 92.07381353 | U57: 1000000000 | V57: 3311.311936 | X57: 70.40944124 | Y57: -87.12824338 | AA57: 61.26537462 | AB57: -0.7979430863 | AD57: 0 | AE57: 0
A58: 63.096 | B58: 0.063096 | C58: 1.00011739 | D58: 0.01532178331 | E58: 1.000000017 | F58: 0.0001839499488 | G58: 1 | H58: 0 | I58: 25.40002855 | J58: 1.531416115 | K58: 1.000031433 | L58: 0.007928711045 | M58: 1.000000049 | N58: 0.0003121297373 | O58: 1.000000005 | P58: 0.0001323877982 | Q58: 70.52144068 | R58: -88.18220141 | S58: 91.81779859 | U58: 1000000000 | V58: 3981.105216 | X58: 69.6108129 | Y58: -87.30728218 | AA58: 61.26520312 | AB58: -0.8749192257 | AD58: 0 | AE58: 0
A59: 69.183 | B59: 0.069183 | C59: 1.000141131 | D59: 0.01679964118 | E59: 1.00000002 | F59: 0.0002016959757 | G59: 1 | H59: 0 | I59: 27.84678993 | J59: 1.534877822 | K59: 1.00003779 | L59: 0.008693573151 | M59: 1.000000059 | N59: 0.0003422415283 | O59: 1.000000007 | P59: 0.0001451595194 | Q59: 69.72247097 | R59: -88.42283456 | S59: 91.57716544 | U59: 1000000000 | V59: 4786.287489 | X59: 68.81204936 | Y59: -87.46352532 | AA59: 61.26499696 | AB59: -0.9593092375 | AD59: 0 | AE59: 0
A60: 75.858 | B60: 0.075858 | C60: 1.000169675 | D60: 0.01842017449 | E60: 1.000000024 | F60: 0.0002211562563 | G60: 1 | H60: 0 | I60: 30.53022592 | J60: 1.538036042 | K60: 1.000045434 | L60: 0.009532308682 | M60: 1.00000007 | N60: 0.0003752620969 | O60: 1.000000008 | P60: 0.0001591649801 | Q60: 68.9231918 | R60: -88.65016034 | S60: 91.34983966 | U60: 1000000000 | V60: 5754.436164 | X60: 68.01301806 | Y60: -87.59831393 | AA60: 61.26474908 | AB60: -1.051846419 | AD60: 0 | AE60: 0
A61: 83.176 | B61: 0.083176 | C61: 1.000203988 | D61: 0.02019670162 | E61: 1.000000029 | F61: 0.0002424911376 | G61: 1 | H61: 0 | I61: 33.47244731 | J61: 1.540916563 | K61: 1.000054623 | L61: 0.01045182381 | M61: 1.000000085 | N61: 0.0004114635223 | O61: 1.00000001 | P61: 0.000174519581 | Q61: 68.12382456 | R61: -88.86603676 | S61: 91.13396324 | U61: 1000000000 | V61: 6918.246976 | X61: 67.21394877 | Y61: -87.71274548 | AA61: 61.26445113 | AB61: -1.153291281 | AD61: 0 | AE61: 0
A62: 91.201 | B62: 0.091201 | C62: 1.000245244 | D62: 0.022144714 | E62: 1.000000035 | F62: 0.0002658872048 | G62: 1 | H62: 0 | I62: 36.69918555 | J62: 1.543544393 | K62: 1.000065671 | L62: 0.01146015392 | M62: 1.000000102 | N62: 0.0004511624059 | O62: 1.000000011 | P62: 0.0001913576067 | Q62: 67.32418295 | R62: -89.07233896 | S62: 90.92766104 | U62: 1000000000 | V62: 8317.622401 | X62: 66.41466539 | Y62: -87.80781054 | AA62: 61.2640929 | AB62: -1.264528421 | AD62: 0 | AE62: 0
A63: 100 | B63: 0.1 | C63: 1.000294842 | D63: 0.02428041573 | E63: 1.000000042 | F63: 0.0002915397897 | G63: 1 | H63: 0 | I63: 40.23738047 | J63: 1.545941255 | K63: 1.000078954 | L63: 0.0125657092 | M63: 1.000000122 | N63: 0.0004946901894 | O63: 1.000000014 | P63: 0.0002098196362 | Q63: 66.52440202 | R63: -89.27077409 | S63: 90.72922591 | U63: 1000000000 | V63: 10000 | X63: 65.6153151 | Y63: -87.88429096 | AA63: 61.26366226 | AB63: -1.386483128 | AD63: 0 | AE63: 0
A64: 109.65 | B64: 0.10965 | C64: 1.000354481 | D64: 0.02662241758 | E64: 1.000000051 | F64: 0.0003196733775 | G64: 1 | H64: 0 | I64: 44.11799489 | J64: 1.548127897 | K64: 1.000094926 | L64: 0.01377815343 | M64: 1.000000147 | N64: 0.0005424277838 | O64: 1.000000017 | P64: 0.0002300672308 | Q64: 65.7243014 | R64: -89.46306167 | S64: 90.53693833 | U64: 1000000000 | V64: 12023.1225 | X64: 64.81573228 | Y64: -87.94284356 | AA64: 61.26314446 | AB64: -1.520218115 | AD64: 0 | AE64: 0
A65: 120.23 | B65: 0.12023 | C65: 1.000426173 | D65: 0.0291897887 | E65: 1.000000061 | F65: 0.0003505182847 | G65: 1 | H65: 0 | I65: 48.37279763 | J65: 1.550122078 | K65: 1.000114128 | L65: 0.01510739793 | M65: 1.000000177 | N65: 0.0005947659932 | O65: 1.00000002 | P65: 0.0002522661479 | Q65: 64.92413671 | R65: -89.65076262 | S65: 90.34923738 | U65: 1000000000 | V65: 14455.2529 | X65: 64.01619 | Y65: -87.98394035 | AA65: 61.26252205 | AB65: -1.666822267 | AD65: 0 | AE65: 0
A66: 131.83 | B66: 0.13183 | C66: 1.000512354 | D66: 0.03200423221 | E66: 1.000000074 | F66: 0.0003843368967 | G66: 1 | H66: 0 | I66: 53.03798265 | J66: 1.551940797 | K66: 1.000137211 | L66: 0.01656473113 | M66: 1.000000213 | N66: 0.0006521500375 | O66: 1.000000024 | P66: 0.0002766052252 | Q66: 64.12387291 | R66: -89.83546895 | S66: 90.16453105 | U66: 1000000000 | V66: 17379.1489 | X66: 63.21667433 | Y66: -88.00793409 | AA66: 61.26177392 | AB66: -1.827534864 | AD66: 0 | AE66: 0
A67: 144.54 | B67: 0.14454 | C67: 1.000615879 | D67: 0.03508740502 | E67: 1.000000089 | F67: 0.000421391599 | G67: 1 | H67: 0 | I67: 58.14974517 | J67: 1.553598499 | K67: 1.000164942 | L67: 0.01816143503 | M67: 1.000000256 | N67: 0.0007150251363 | O67: 1.000000029 | P67: 0.0003032733001 | Q67: 63.32399838 | R67: -90.01862405 | S67: 89.98137595 | U67: 1000000000 | V67: 20891.8116 | X67: 62.41769841 | Y67: -88.0150315 | AA67: 61.26087531 | AB67: -2.003592544 | AD67: 0 | AE67: 0
A68: 158.49 | B68: 0.15849 | C68: 1.00074045 | D68: 0.03847060497 | E68: 1.000000107 | F68: 0.0004620613928 | G68: 1 | H68: 0 | I68: 63.76036923 | J68: 1.55511196 | K68: 1.000198313 | L68: 0.01991380801 | M68: 1.000000307 | N68: 0.0007840343846 | O68: 1.000000035 | P68: 0.0003325431383 | Q68: 62.52314641 | R68: -90.20207926 | S68: 89.79792074 | U68: 1000000000 | V68: 25119.0801 | X68: 61.61792761 | Y68: -88.0052968 | AA68: 61.25979413 | AB68: -2.196782453 | AD68: 0 | AE68: 0
A69: 173.78 | B69: 0.17378 | C69: 1.000890142 | D69: 0.04217777144 | E69: 1.000000128 | F69: 0.0005066378175 | G69: 1 | H69: 0 | I69: 69.9100745 | J69: 1.556491749 | K69: 1.000238417 | L69: 0.0218343684 | M69: 1.00000037 | N69: 0.0008596724696 | O69: 1.000000042 | P69: 0.0003646245591 | Q69: 61.72241628 | R69: -90.38711814 | S69: 89.61288186 | U69: 1000000000 | V69: 30199.4884 | X69: 60.81849651 | Y69: -87.97864661 | AA69: 61.25849511 | AB69: -2.408471535 | AD69: 0 | AE69: 0
A70: 190.55 | B70: 0.19055 | C70: 1.001070135 | D70: 0.04624243698 | E70: 1.000000154 | F70: 0.0005555290278 | G70: 1 | H70: 0 | I70: 76.65516958 | J70: 1.557750522 | K70: 1.000286646 | L70: 0.02394064423 | M70: 1.000000444 | N70: 0.0009426319537 | O70: 1.00000005 | P70: 0.0003998113101 | Q70: 60.92123904 | R70: -90.57541602 | S70: 89.42458398 | U70: 1000000000 | V70: 36309.3025 | X70: 60.01888098 | Y70: -87.93484151 | AA70: 61.2569334 | AB70: -2.640574509 | AD70: 0 | AE70: 0
A71: 208.93 | B71: 0.20893 | C71: 1.001286398 | D71: 0.05069556926 | E71: 1.000000186 | F71: 0.0006091140245 | G71: 1 | H71: 0 | I71: 84.04794202 | J71: 1.558898075 | K71: 1.000344601 | L71: 0.0262488879 | M71: 1.000000534 | N71: 0.001033555929 | O71: 1.00000006 | P71: 0.0004383761566 | Q71: 60.12015275 | R71: -90.76840798 | S71: 89.23159202 | U71: 1000000000 | V71: 43651.7449 | X71: 59.21967073 | Y71: -87.87354838 | AA71: 61.25505736 | AB71: -2.894859603 | AD71: 0 | AE71: 0
A72: 229.09 | B72: 0.22909 | C72: 1.001546427 | D72: 0.05557764289 | E72: 1.000000223 | F72: 0.0006678884237 | G72: 1 | H72: 0 | I72: 92.1567689 | J72: 1.559945039 | K72: 1.000414297 | L72: 0.02878034944 | M72: 1.000000642 | N72: 0.001133285362 | O72: 1.000000072 | P72: 0.0004806757916 | Q72: 59.31849867 | R72: -90.9678449 | S72: 89.0321551 | U72: 1000000000 | V72: 52482.2281 | X72: 58.42027183 | Y72: -87.79420702 | AA72: 61.25280218 | AB72: -3.173637883 | AD72: 0 | AE72: 0
A73: 251.19 | B73: 0.25119 | C73: 1.001858892 | D73: 0.06092646526 | E73: 1.000000268 | F73: 0.0007323186875 | G73: 1 | H73: 0 | I73: 101.046006 | J73: 1.560899683 | K73: 1.000498065 | L73: 0.03155498885 | M73: 1.000000772 | N73: 0.001242611749 | O73: 1.000000087 | P73: 0.0005270459263 | Q73: 58.5166774 | R73: -91.17526097 | S73: 88.82473903 | U73: 1000000000 | V73: 63096.4161 | X73: 57.62115972 | Y73: -87.69619291 | AA73: 61.25009303 | AB73: -3.479068061 | AD73: 0 | AE73: 0
A74: 275.42 | B74: 0.27542 | C74: 1.00223439 | D74: 0.06678678777 | E74: 1.000000322 | F74: 0.0008029587389 | G74: 1 | H74: 0 | I74: 110.7920766 | J74: 1.561770288 | K74: 1.000598757 | L74: 0.03459648825 | M74: 1.000000928 | N74: 0.001362474988 | O74: 1.000000104 | P74: 0.0005778852178 | Q74: 57.7145046 | R74: -91.39238278 | S74: 88.60761722 | U74: 1000000000 | V74: 75856.1764 | X74: 56.82224147 | Y74: -87.57867748 | AA74: 61.24683847 | AB74: -3.813705308 | AD74: 0 | AE74: 0
A75: 302 | B75: 0.302 | C75: 1.002685864 | D75: 0.07321019187 | E75: 1.000000388 | F75: 0.0008804499622 | G75: 1 | H75: 0 | I75: 121.4834718 | J75: 1.562564661 | K75: 1.000719859 | L75: 0.03793223575 | M75: 1.000001116 | N75: 0.001493963383 | O75: 1.000000125 | P75: 0.0006336552685 | Q75: 56.91147287 | R75: -91.62109592 | S75: 88.37890408 | U75: 1000000000 | V75: 91204 | X75: 56.02312118 | Y75: -87.44060119 | AA75: 61.24292703 | AB75: -4.180494722 | AD75: 0 | AE75: 0
A76: 331.13 | B76: 0.33113 | C76: 1.003228119 | D76: 0.08024287339 | E76: 1.000000466 | F76: 0.000965375433 | G76: 1 | H76: 0 | I76: 133.2006383 | J76: 1.563288785 | K76: 1.000865364 | L76: 0.04158703171 | M76: 1.000001342 | N76: 0.001638066293 | O76: 1.000000151 | P76: 0.0006947757171 | Q76: 56.1082559 | R76: -91.86301628 | S76: 88.13698372 | U76: 1000000000 | V76: 109647.0769 | X76: 55.22459983 | Y76: -87.28094251 | AA76: 61.2382314 | AB76: -4.582073765 | AD76: 0 | AE76: 0
A77: 363.08 | B77: 0.36308 | C77: =SQRT(1+(A77/pole1)^2) -> 1.003879859 | D77: =ATAN(A77/pole1) -> 0.08794720905 | E77: =SQRT(1+(A77/Zero1)^2) -> 1.00000056 | F77: =ATAN(A77/Zero1) -> 0.001058522303 | G77: =IF(VIN_nom>Vout, 1, SQRT(1+(A77/z_RHP)^2)) -> 1 | H77: =IF(VIN_nom>Vout, 0, -ATAN(A77/z_RHP)) -> 0 | I77: =SQRT(1+(A77/Pole2)^2) -> 146.0521803 | J77: =ATAN(A77/Pole2) -> 1.563949405 | K77: =SQRT(1+(A77/Zero2)^2) -> 1.001040324 | L77: =ATAN(A77/Zero2) -> 0.04559435754 | M77: =SQRT(1+(A77/pole4)^2) -> 1.000001613 | N77: =ATAN(A77/pole4) -> 0.001796119355 | O77: =SQRT((1-(V77/pterm2))^2+(A77/pterm1)^2) -> 1.000000181 | P77: =IF((ATAN((A77/pterm1)/(1-A77^2/pterm2))>0),ATAN((A77/pterm1)/(1-A77^2/pterm2)),PI()+ATAN((A77/pterm1)/(1-A77^2/pterm2))) -> 0.0007618130758 | Q77: =20*LOG10(((E77*K77*G77)/(C77*I77*O77*M77))*Adc) -> 55.30409667 | R77: =((F77+L77+H77)-(D77+J77+P77+N77))*radconv -> -92.12024991 | S77: =IF(R77>0,R77,R77+180) -> 87.87975009 | U77: 1000000000 | V77: 131827.0864 | X77: =20*LOG10((K77/(I77*M77))*AEA) -> 54.42608094 | Y77: =(L77-(J77+N77))*radconv -> -87.0982462 | AA77: =20*LOG10((E77*G77/(C77*O77))*Acs*Am) -> 61.23259107 | AB77: =(F77+H77-(D77+P77))*radconv -> -5.022003718 | AD77: 0 | AE77: =IF(AD77>0,S75,0) -> 0
A78: 398.11 | B78: =A78/1000 -> 0.39811 | C78: 1.004662811 | D78: 0.09638220143 | E78: 1.000000674 | F78: 0.001160648568 | G78: 1 | H78: 0 | I78: 160.1426798 | J78: 1.564551855 | K78: 1.001250617 | L78: 0.04998630391 | M78: 1.000001939 | N78: 0.001969408728 | O78: 1.000000218 | P78: 0.0008353128743 | Q78: 54.49916634 | R78: -92.39470577 | S78: 87.60529423 | U78: =IF(Q78<0,A78,1000000000) -> 1000000000 | V78: =A78^2 -> 158491.5721 | X78: 53.62792166 | Y78: -86.89105276 | AA78: 61.22582002 | AB78: -5.503653006 | AD78: =SUM((Q79<0)*(Q78>0))*A78 -> 0 | AE78: 0
A79: 436.52 | B79: 0.43652 | C79: 1.00560333 | D79: 0.1056152458 | E79: 1.00000081 | F79: 0.001272628839 | G79: 1 | H79: 0 | I79: 175.5928093 | J79: 1.565101302 | K79: 1.00150339 | L79: 0.05479980004 | M79: 1.000002332 | N79: 0.002159418435 | O79: 1.000000262 | P79: 0.0009159045701 | Q79: 53.69323604 | R79: -92.68849656 | S79: 87.31150344 | U79: 1000000000 | V79: 190549.7104 | X79: 52.83011808 | Y79: -86.65762752 | AA79: 61.2176933 | AB79: -6.030869049 | AD79: 0 | AE79: 0
A80: 478.63 | B80: 0.47863 | C80: 1.006732762 | D80: 0.1157169163 | E80: 1.000000974 | F80: 0.001395396029 | G80: 1 | H80: 0 | I80: 192.5312861 | J80: 1.565602342 | K80: 1.001807163 | L80: 0.06007404823 | M80: 1.000002803 | N80: 0.002367731422 | O80: 1.000000315 | P80: 0.001004259584 | Q80: 52.8862254 | R80: -93.00375877 | S80: 86.99624123 | U80: 1000000000 | V80: 229086.6769 | X80: 52.03285647 | Y80: -86.39607831 | AA80: 61.20794428 | AB80: -6.607680462 | AD80: 0 | AE80: 0
A81: 524.81 | B81: 0.52481 | C81: 1.008089174 | D81: 0.1267676494 | E81: 1.00000117 | F81: 0.00153002882 | G81: 1 | H81: 0 | I81: 211.1069406 | J81: 1.566059373 | K81: 1.002172313 | L81: 0.06585420579 | M81: 1.00000337 | N81: 0.002596177962 | O81: 1.000000379 | P81: 0.001101154246 | Q81: 52.07766802 | R81: -93.34285324 | S81: 86.65714676 | U81: 1000000000 | V81: 275425.5361 | X81: 51.2359929 | Y81: -86.10417465 | AA81: 61.19625046 | AB81: -7.238678594 | AD81: 0 | AE81: 0
A82: 575.44 | B82: 0.57544 | C82: 1.009717355 | D82: 0.1388474897 | E82: 1.000001407 | F82: 0.001677635039 | G82: 1 | H82: 0 | I82: 231.4726256 | J82: 1.566476148 | K82: 1.002611098 | L82: 0.07218627692 | M82: 1.000004052 | N82: 0.002846637769 | O82: 1.000000455 | P82: 0.001207385866 | Q82: 51.26750571 | R82: -93.70803529 | S82: 86.29196471 | U82: 1000000000 | V82: 331131.1936 | X82: 50.4398466 | Y82: -85.77960341 | AA82: 61.18223445 | AB82: -7.928431871 | AD82: 0 | AE82: 0
A83: 630.96 | B83: 0.63096 | C83: 1.011671577 | D83: 0.1520471931 | E83: 1.000001692 | F83: 0.001839497434 | G83: 1 | H83: 0 | I83: 253.805329 | J83: 1.566856289 | K83: 1.00313843 | L83: 0.07912324072 | M83: 1.000004871 | N83: 0.003121287338 | O83: 1.000000547 | P83: 0.001323877647 | Q83: 50.45525096 | R83: -94.10178102 | S83: 85.89821898 | U83: 1000000000 | V83: 398110.5216 | X83: 49.64438473 | Y83: -85.4196614 | AA83: 61.16544157 | AB83: -8.682119626 | AD83: 0 | AE83: 0
A84: 691.83 | B84: 0.69183 | C84: 1.014015831 | D84: 0.1664575761 | E84: 1.000002034 | F84: 0.002016957049 | G84: 1 | H84: 0 | I84: 278.2900841 | J84: 1.567202946 | K84: 1.003771987 | L84: 0.08671987822 | M84: 1.000005856 | N84: 0.003422402055 | O84: 1.000000658 | P84: 0.001451594753 | Q84: 49.64068482 | R84: -94.52644445 | S84: 85.47355555 | U84: 1000000000 | V84: 478628.7489 | X84: 48.84992032 | Y84: -85.02152073 | AA84: 61.14533984 | AB84: -9.504923718 | AD84: 0 | AE84: 0
A85: 758.58 | B85: 0.75858 | C85: 1.016827399 | D85: 0.1821799696 | E85: 1.000002446 | F85: 0.002211558993 | G85: 1 | H85: 0 | I85: 305.1400817 | J85: 1.567519138 | K85: 1.004533246 | L85: 0.09503879456 | M85: 1.000007041 | N85: 0.00375260353 | O85: 1.000000791 | P85: 0.00159164922 | Q85: 48.8231812 | R85: -94.98454268 | S85: 85.01545732 | U85: 1000000000 | V85: 575443.6164 | X85: 48.05646437 | Y85: -84.58191751 | AA85: 61.12129216 | AB85: -10.40262517 | AD85: 0 | AE85: 0
A86: 831.76 | B86: 0.83176 | C86: 1.020196927 | D86: 0.1993125933 | E86: 1.00000294 | F86: 0.00242490667 | G86: 1 | H86: 0 | I86: 334.5765576 | J86: 1.56780747 | K86: 1.005447591 | L86: 0.1041438903 | M86: 1.000008465 | N86: 0.004114612235 | O86: 1.000000951 | P86: 0.001745195044 | Q86: 48.00241377 | R86: -95.47832155 | S86: 84.52167845 | U86: 1000000000 | V86: 691824.6976 | X86: 47.26442946 | Y86: -84.09749574 | AA86: 61.09255965 | AB86: -11.3808258 | AD86: 0 | AE86: 0
A87: 912.01 | B87: 0.91201 | C87: 1.024233798 | D87: 0.2179647298 | E87: 1.000003535 | F87: 0.002658865845 | G87: 1 | H87: 0 | I87: 366.8569503 | J87: 1.568070465 | K87: 1.006545907 | L87: 0.1141087013 | M87: 1.000010177 | N87: 0.004511593754 | O87: 1.000001143 | P87: 0.001913575056 | Q87: 47.17755869 | R87: -96.01012512 | S87: 83.98987488 | U87: 1000000000 | V87: 831762.2401 | X87: 46.47387272 | Y87: -83.56436802 | AA87: 61.05826131 | AB87: -12.4457571 | AD87: 0 | AE87: 0
A88: 1000 | B88: 1 | C88: 1.029066099 | D88: 0.2382397909 | E88: 1.00000425 | F88: 0.002915389719 | G88: 1 | H88: 0 | I88: 402.2507659 | J88: 1.568310313 | K88: 1.007864756 | L88: 0.1250084362 | M88: 1.000012236 | N88: 0.004946861945 | O88: 1.000001375 | P88: 0.002098195031 | Q88: 46.3480325 | R88: -96.58185324 | S88: 83.41814676 | U88: 1000000000 | V88: 1000000 | X88: 45.6852257 | Y88: -82.9785405 | AA88: 61.01738214 | AB88: -13.60331274 | AD88: 0 | AE88: 0
A89: 1096.5 | B89: 1.0965 | C89: 1.034847242 | D89: 0.2602479811 | E89: 1.00000511 | F89: 0.003196722995 | G89: 1 | H89: 0 | I89: 441.0677355 | J89: 1.568529099 | K89: 1.00944844 | L89: 0.1369280192 | M89: 1.000014711 | N89: 0.005424225172 | O89: 1.000001653 | P89: 0.002300670553 | Q89: 45.512826 | R89: -97.19525608 | S89: 82.80474392 | U89: 1000000000 | V89: 1202312.25 | X89: 44.89867365 | Y89: -82.33548515 | AA89: 60.96872769 | AB89: -14.85977094 | AD89: 0 | AE89: 0
A90: 1202.3 | B90: 1.2023 | C90: 1.041754673 | D90: 0.2840836071 | E90: 1.000006143 | F90: 0.003505168635 | G90: 1 | H90: 0 | I90: 483.6256352 | J90: 1.56872861 | K90: 1.01134901 | L90: 0.1499513662 | M90: 1.000017687 | N90: 0.005947590502 | O90: 1.000001987 | P90: 0.002522659165 | Q90: 44.67127979 | R90: -97.85121817 | S90: 82.14878183 | U90: 1000000000 | V90: 1445525.29 | X90: 44.11490558 | Y90: -81.63072008 | AA90: 60.91094955 | AB90: -16.22049809 | AD90: 0 | AE90: =IF(AD90>0,S90,0) -> 0
A91: 1318.3 | B91: 1.3183 | C91: 1.049998605 | D91: 0.3098404901 | E91: 1.000007386 | F91: 0.003843350232 | G91: 1 | H91: 0 | I91: 530.2864889 | J91: 1.568910553 | K91: 1.013629149 | L91: 0.1641714562 | M91: 1.000021265 | N91: 0.006521408849 | O91: 1.000002389 | P91: 0.002766049201 | Q91: 43.8223265 | R91: -98.55009846 | S91: 81.44990154 | U91: 1000000000 | V91: 1737914.89 | X91: 43.33441028 | Y91: -80.85927084 | AA91: 60.84249155 | AB91: -17.69082762 | AD91: 0 | AE91: 0
A92: 1445.4 | B92: 1.4454 | C92: 1.059817774 | D92: 0.3375815346 | E92: 1.000008879 | F92: 0.004213891297 | G92: 1 | H92: 0 | I92: 581.4123204 | J92: 1.569076376 | K92: 1.016361661 | L92: 0.1796755164 | M92: 1.000025563 | N92: 0.00715013073 | O92: 1.000002872 | P92: 0.00303272898 | Q92: 42.9653587 | R92: -99.2907993 | S92: 80.7092007 | U92: 1000000000 | V92: 2089181.16 | X92: 42.55828325 | Y92: -80.01647772 | AA92: 60.76165079 | AB92: -19.27432158 | AD92: 0 | AE92: 0
A93: 1584.9 | B93: 1.5849 | C93: 1.071515232 | D93: 0.3674182199 | E93: 1.000010675 | F93: 0.004620581374 | G93: 1 | H93: 0 | I93: 637.5260531 | J93: 1.569227763 | K93: 1.019640359 | L93: 0.1965919767 | M93: 1.000030735 | N93: 0.007840184807 | O93: 1.000003453 | P93: 0.003325426082 | Q93: 42.09768204 | R93: -100.0727533 | S93: 79.92724665 | U93: 1000000000 | V93: 2511908.01 | X93: 41.78593904 | Y93: -79.09544694 | AA93: 60.66631834 | AB93: -20.97730641 | AD93: 0 | AE93: 0
A94: 1737.8 | B94: 1.7378 | C94: 1.085406668 | D94: 0.3993506474 | E94: 1.000012834 | F94: 0.005066335261 | G94: 1 | H94: 0 | I94: 699.0299362 | J94: 1.569365772 | K94: 1.023566862 | L94: 0.2150030306 | M94: 1.000036951 | N94: 0.008596515046 | O94: 1.000004152 | P94: 0.003646238603 | Q94: 41.21918526 | R94: -100.8915543 | S94: 79.10844572 | U94: 1000000000 | V94: 3019948.84 | X94: 41.01931229 | Y94: -78.09181315 | AA94: 60.55444831 | AB94: -22.79974112 | AD94: 0 | AE94: 0
A95: 1905.5 | B95: 1.9055 | C95: 1.101880895 | D95: 0.4334096062 | E95: 1.000015431 | F95: 0.005555233703 | G95: 1 | H95: 0 | I95: 766.4871182 | J95: 1.569491673 | K95: 1.028269105 | L95: 0.2350269434 | M95: 1.000044427 | N95: 0.00942604315 | O95: 1.000004992 | P95: 0.003998103889 | Q95: 40.32792192 | R95: -101.7425938 | S95: 78.25740621 | U95: 1000000000 | V95: 3630930.25 | X95: 40.25887706 | Y95: -76.9992695 | AA95: 60.4236202 | AB95: -24.7433243 | AD95: 0 | AE95: 0
A96: 2089.3 | B96: 2.0893 | C96: 1.121358576 | D96: 0.469542465 | E96: 1.000018551 | F96: 0.006091065668 | G96: 1 | H96: 0 | I96: 840.4205231 | J96: 1.569606446 | K96: 1.033891712 | L96: 0.2567543404 | M96: 1.000053411 | N96: 0.01033519497 | O96: 1.000006001 | P96: 0.004383749422 | Q96: 39.42319467 | R96: -102.6180275 | S96: 77.38197252 | U96: 1000000000 | V96: 4365174.49 | X96: 39.50632859 | Y96: -75.81304791 | AA96: 60.27144142 | AB96: -26.80497956 | AD96: 0 | AE96: 0
A97: 2290.9 | B97: 2.2909 | C97: 1.144344629 | D97: 0.5077049001 | E97: 1.000022304 | F97: 0.006678785924 | G97: 1 | H97: 0 | I97: 921.5139746 | J97: 1.569711156 | K97: 1.040613575 | L97: 0.2803035314 | M97: 1.000064215 | N97: 0.01133237334 | O97: 1.000007215 | P97: 0.004806741906 | Q97: 38.50305948 | R97: -103.509 | S97: 76.49099997 | U97: 1000000000 | V97: 5248222.81 | X97: 38.76241789 | Y97: -74.5269122 | AA97: 60.09521694 | AB97: -28.98208783 | AD97: 0 | AE97: 0
A98: 2511.9 | B98: 2.5119 | C98: 1.171376953 | D98: 0.5477543304 | E98: 1.000026814 | F98: 0.007323057276 | G98: 1 | H98: 0 | I98: 1010.411071 | J98: 1.56980663 | K98: 1.048636194 | L98: 0.3057562807 | M98: 1.000077201 | N98: 0.01242548437 | O98: 1.000008674 | P98: 0.00527043816 | Q98: 37.56696012 | R98: -104.403083 | S98: 75.59691701 | U98: 1000000000 | V98: 6309641.61 | X98: 38.0290888 | Y98: -73.13667803 | AA98: 59.89244665 | AB98: -31.26640496 | AD98: 0 | AE98: 0
A99: 2754.2 | B99: 2.7542 | C99: 1.203069928 | D99: 0.5895213628 | E99: 1.000032237 | F99: 0.008029416554 | G99: 1 | H99: 0 | I99: 1107.876087 | J99: 1.569893699 | K99: 1.058200015 | L99: 0.3331988762 | M99: 1.000092813 | N99: 0.01362391533 | O99: 1.000010428 | P99: 0.005778824359 | Q99: 36.61396902 | R99: -105.2861234 | S99: 74.71387657 | U99: 1000000000 | V99: 7585617.64 | X99: 37.30794977 | Y99: -71.63798681 | AA99: 59.66059459 | AB99: -33.64813663 | AD99: 0 | AE99: 0
A100: 3020 | B100: 3.02 | C100: 1.24011861 | D100: 0.632800435 | E100: 1.000038759 | F100: 0.008804274402 | G100: 1 | H100: 0 | I100: 1214.793971 | J100: 1.569973142 | K100: 1.069590381 | L100: 0.3627138664 | M100: 1.00011159 | N100: 0.01493853361 | O100: 1.000012538 | P100: 0.006336516009 | Q100: 35.64316291 | R100: -106.1421784 | S100: 73.85782163 | U100: 1000000000 | V100: 9120400 | X100: 36.60055241 | Y100: -70.02677627 | AA100: 59.39718584 | AB100: -36.1154021 | AD100: 0 | AE100: 0
A101: 3311.3 | B101: 3.3113 | C101: 1.283224832 | D101: 0.6772696154 | E101: 1.000046596 | F101: 0.009653457451 | G101: 1 | H101: 0 | I101: 1331.969221 | J101: 1.570045559 | K101: 1.083119441 | L101: 0.3943169022 | M101: 1.000134154 | N101: 0.01637921269 | O101: 1.000015074 | P101: 0.006947708827 | Q101: 34.65556841 | R101: -106.9524123 | S101: 73.04758768 | U101: 1000000000 | V101: 10964707.69 | X101: 35.90970247 | Y101: -68.3027497 | AA101: 59.10044128 | AB101: -38.64966262 | AD101: 0 | AE101: 0
A102: 3630.8 | B102: 3.6308 | C102: 1.333220572 | D102: 0.7226383401 | E102: 1.000056022 | F102: 0.01058483166 | G102: 1 | H102: 0 | I102: 1460.48791 | J102: 1.570111624 | K102: 1.099169227 | L102: 0.4280473549 | M102: 1.00016129 | N102: 0.01795928178 | O102: 1.000018123 | P102: 0.007618067026 | Q102: 33.65109177 | R102: -107.6985976 | S102: 72.30140236 | U102: 1000000000 | V102: 13182708.64 | X102: 35.23715547 | Y102: -66.46445368 | AA102: 58.76851164 | AB102: -41.23414396 | AD102: 0 | AE102: 0
A103: 3981.1 | B103: 3.9811 | C103: 1.390947997 | D103: 0.7685286674 | E103: 1.000067353 | F103: 0.01160596976 | G103: 1 | H103: 0 | I103: 1601.395888 | J103: 1.570171872 | K103: 1.118159138 | L103: 0.4638714079 | M103: 1.00019391 | N103: 0.01969156716 | O103: 1.000021789 | P103: 0.008353044728 | Q103: 32.63146359 | R103: -108.3616615 | S103: 71.63833855 | U103: 1000000000 | V103: 15849157.21 | X103: 34.58563845 | Y103: -64.5145912 | AA103: 58.40040048 | AB103: -43.84707025 | AD103: 0 | AE103: 0
A104: 4365.2 | B104: 4.3652 | C104: 1.457328285 | D104: 0.8145618378 | E104: 1.000080976 | F104: 0.01272560828 | G104: 1 | H104: 0 | I104: 1755.899902 | J104: 1.570226818 | K104: 1.140571804 | L104: 0.5017271405 | M104: 1.000233128 | N104: 0.02159086231 | O104: 1.000026196 | P104: 0.009158934947 | Q104: 31.59863241 | R104: -108.9241875 | S104: 71.07581251 | U104: 1000000000 | V104: 19054971.04 | X104: 33.95765725 | Y104: -62.4575873 | AA104: 57.9955505 | AB104: -46.46660018 | AD104: 0 | AE104: 0
A105: 4786.3 | B105: 4.7863 | C105: 1.53332493 | D105: 0.8603430032 | E105: 1.000097352 | F105: 0.01395306378 | G105: 1 | H105: 0 | I105: 1925.287151 | J105: 1.570276924 | K105: 1.166944377 | L105: 0.5414954196 | M105: 1.000280269 | N105: 0.02367293531 | O105: 1.000031494 | P105: 0.01004244984 | Q105: 30.55541854 | R105: -109.371159 | S105: 70.62884102 | U105: 1000000000 | V105: 22908667.69 | X105: 33.35588322 | Y105: -60.30119758 | AA105: 57.55411066 | AB105: -49.0699614 | AD105: 0 | AE105: 0
A106: 5248.1 | B106: 5.2481 | C106: 1.619993272 | D106: 0.9055073415 | E106: 1.000117043 | F106: 0.01529910637 | G106: 1 | H106: 0 | I106: 2111.045958 | J106: 1.570322628 | K106: 1.197887546 | L106: 0.5830216407 | M106: 1.000336952 | N106: 0.0259560074 | O106: 1.000037864 | P106: 0.01101134999 | Q106: 29.50473612 | R106: -109.6914281 | S106: 70.30857187 | U106: 1000000000 | V106: 27542553.61 | X106: 32.7826654 | Y106: -58.05534942 | AA106: 57.07664606 | AB106: -51.6360787 | AD106: 0 | AE106: 0
A107: 5370.3 | B107: 5.3703 | C107: 1.643443015 | D107: 0.916654234 | E107: 1.000122556 | F107: 0.01565528267 | G107: 1 | H107: 0 | I107: 2160.200844 | J107: 1.570333407 | K107: 1.206409944 | L107: 0.593647848 | M107: 1.000352823 | N107: 0.02656010214 | O107: 1.000039648 | P107: 0.01126773569 | Q107: 29.24145022 | R107: -109.7507733 | S107: 70.24922673 | U107: 1000000000 | V107: 28840122.09 | X107: 32.64417589 | Y107: -57.48174226 | AA107: 56.95184967 | AB107: -52.26903102 | AD107: 0 | AE107: 0
A108: 5432.85 | B108: 5.43285 | C108: 1.655523456 | D108: 0.9222374067 | E108: 1.000125428 | F108: 0.0158375956 | G108: 1 | H108: 0 | I108: 2185.361549 | J108: 1.570338737 | K108: 1.210824415 | L108: 0.5990288505 | M108: 1.000361089 | N108: 0.02686931009 | O108: 1.000040577 | P108: 0.01139897051 | Q108: 29.10892346 | R108: -109.7774519 | S108: 70.22254811 | U108: 1000000000 | V108: 29515859.12 | X108: 32.57524603 | Y108: -57.1914552 | AA108: 56.88825277 | AB108: -52.58599669 | AD108: 0 | AE108: 0
A109: 5495.4 | B109: 5.4954 | C109: 1.667654753 | D109: 0.9277395196 | E109: 1.000128332 | F109: 0.01601990748 | G109: 1 | H109: 0 | I109: 2210.522254 | J109: 1.570343945 | K109: 1.215273691 | L109: 0.6043706057 | M109: 1.000369449 | N109: 0.02717851291 | O109: 1.000041517 | P109: 0.01153020516 | Q109: 28.97787844 | R109: -109.8017276 | S109: 70.19827236 | U109: 1000000000 | V109: 30199421.16 | X109: 32.50760008 | Y109: -56.90340961 | AA109: 56.82485369 | AB109: -52.89831802 | AD109: 0 | AE109: 0
A110: 5559.4 | B110: 5.5594 | C110: 1.680118762 | D110: 0.9332867671 | E110: 1.000131339 | F110: 0.01620644451 | G110: 1 | H110: 0 | I110: 2236.266221 | J110: 1.570349153 | K110: 1.219861733 | L110: 0.6097956996 | M110: 1.000378103 | N110: 0.02749487812 | O110: 1.000042489 | P110: 0.01166448184 | Q110: 28.84530223 | R110: -109.824157 | S110: 70.175843 | U110: 1000000000 | V110: 30906928.36 | X110: 32.43968294 | Y110: -56.6109994 | AA110: 56.76019463 | AB110: -53.2131576 | AD110: 0 | AE110: 0
A111: 5623.4 | B111: 5.6234 | C111: 1.692633709 | D111: 0.9387521507 | E111: 1.00013438 | F111: 0.01639298041 | G111: 1 | H111: 0 | I111: 2262.010188 | J111: 1.570354242 | K111: 1.224485409 | L111: 0.6151799806 | M111: 1.000386857 | N111: 0.02781123782 | O111: 1.000043473 | P111: 0.01179875833 | Q111: 28.71422309 | R111: -109.8442273 | S111: 70.15577273 | U111: 1000000000 | V111: 31622627.56 | X111: 32.37304601 | Y111: -56.3209205 | AA111: 56.69575242 | AB111: -53.52330677 | AD111: 0 | AE111: 0
A112: 5688.9 | B112: 5.6889 | C112: 1.705493548 | D112: 0.9442624083 | E112: 1.000137528 | F112: 0.01658388707 | G112: 1 | H112: 0 | I112: 2288.357529 | J112: 1.570359332 | K112: 1.229253928 | L112: 0.6206483533 | M112: 1.00039592 | N112: 0.02813500644 | O112: 1.000044492 | P112: 0.01193618174 | Q112: 28.58159436 | R112: -109.8624049 | S112: 70.13759506 | U112: 1000000000 | V112: 32363583.21 | X112: 32.30614068 | Y112: -56.02644803 | AA112: 56.63002901 | AB112: -53.83595691 | AD112: 0 | AE112: 0
A113: 5754.4 | B113: 5.7544 | C113: 1.718404394 | D113: 0.9496900285 | E113: 1.000140713 | F113: 0.01677479251 | G113: 1 | H113: 0 | I113: 2314.704871 | J113: 1.570364306 | K113: 1.234058921 | L113: 0.6260743034 | M113: 1.000405087 | N113: 0.02845876916 | O113: 1.000045522 | P113: 0.01207360495 | Q113: 28.45047848 | R113: -109.8782716 | S113: 70.12172844 | U113: 1000000000 | V113: 33113119.36 | X113: 32.24051198 | Y113: -55.73439923 | AA113: 56.56454185 | AB113: -54.14387234 | AD113: 0 | AE113: 0
A114: 5821.4 | B114: 5.8214 | C114: 1.731662493 | D114: 0.955158045 | E114: 1.000144009 | F114: 0.01697006858 | G114: 1 | H114: 0 | I114: 2341.655586 | J114: 1.570369278 | K114: 1.239011246 | L114: 0.6315808043 | M114: 1.000414574 | N114: 0.02878994012 | O114: 1.000046588 | P114: 0.01221417505 | Q114: 28.31789714 | R114: -109.8921917 | S114: 70.10780827 | U114: 1000000000 | V114: 33888697.96 | X114: 32.17466879 | Y114: -55.43815955 | AA114: 56.49780369 | AB114: -54.45403218 | AD114: 0 | AE114: 0
A115: 5888.4 | B115: 5.8884 | C115: 1.74497158 | D115: 0.9605428102 | E115: 1.000147343 | F115: 0.01716534334 | G115: 1 | H115: 0 | I115: 2368.606302 | J115: 1.570374138 | K115: 1.244000839 | L115: 0.6370432975 | M115: 1.000424169 | N115: 0.02912110476 | O115: 1.000047667 | P115: 0.01235474494 | Q115: 28.18684254 | R115: -109.9038566 | S115: 70.09614337 | U115: 1000000000 | V115: 34673254.56 | X115: 32.11009675 | Y115: -55.14443449 | AA115: 56.43132112 | AB115: -54.75942214 | AD115: 0 | AE115: 0
A116: 5957 | B116: 5.957 | C116: 1.758650115 | D116: 0.9659715612 | E116: 1.000150795 | F116: 0.01736528003 | G116: 1 | H116: 0 | I116: 2396.200617 | J116: 1.570378999 | K116: 1.249147735 | L116: 0.6425908539 | M116: 1.000434108 | N116: 0.02946017119 | O116: 1.000048784 | P116: 0.01249867151 | Q116: 28.05421153 | R116: -109.9135461 | S116: 70.08645392 | U116: 1000000000 | V116: 35485849 | X116: 32.04526719 | Y116: -54.84628856 | AA116: 56.36351967 | AB116: -55.06725752 | AD116: 0 | AE116: 0
A117: 6025.6 | B117: 6.0256 | C117: 1.772379679 | D117: 0.9713163611 | E117: 1.000154288 | F117: 0.01756521534 | G117: 1 | H117: 0 | I117: 2423.794932 | J117: 1.570383751 | K117: 1.254332759 | L117: 0.6480927147 | M117: 1.000444161 | N117: 0.02979923084 | O117: 1.000049914 | P117: 0.01264259784 | Q117: 27.92312366 | R117: -109.921037 | S117: 70.07896302 | U117: 1000000000 | V117: 36307855.36 | X117: 31.98170515 | Y117: -54.55075406 | AA117: 56.29599385 | AB117: -55.37028292 | AD117: 0 | AE117: 0
A118: 6095.8 | B118: 6.0958 | C118: 1.786481066 | D118: 0.9767006146 | E118: 1.000157904 | F118: 0.0177698124 | G118: 1 | H118: 0 | I118: 2452.032846 | J118: 1.570388502 | K118: 1.259677695 | L118: 0.6536758356 | M118: 1.000454569 | N118: 0.03014619149 | O118: 1.000051084 | P118: 0.01278988082 | Q118: 27.79054672 | R118: -109.9265105 | S118: 70.07348952 | U118: 1000000000 | V118: 37158777.64 | X118: 31.91794009 | Y118: -54.25101641 | AA118: 56.22718197 | AB118: -55.67549407 | AD118: 0 | AE118: 0
A119: 6166 | B119: 6.166 | C119: 1.800633432 | D119: 0.9820003831 | E119: 1.000161561 | F119: 0.01797440797 | G119: 1 | H119: 0 | I119: 2480.27076 | J119: 1.570393145 | K119: 1.265061565 | L119: 0.6592116063 | M119: 1.000465096 | N119: 0.03049314489 | O119: 1.000052267 | P119: 0.01293716356 | Q119: 27.6595272 | R119: -109.9298498 | S119: 70.07015024 | U119: 1000000000 | V119: 38019556 | X119: 31.85543692 | Y119: -53.95398511 | AA119: 56.15866562 | AB119: -55.97586465 | AD119: 0 | AE119: 0
A120: 6237.8 | B120: 6.2378 | C120: 1.815159851 | D120: 0.9873353016 | E120: 1.000165346 | F120: 0.01818366513 | G120: 1 | H120: 0 | I120: 2509.152273 | J120: 1.570397786 | K120: 1.270607902 | L120: 0.6648248432 | M120: 1.000475988 | N120: 0.03084799845 | O120: 1.000053492 | P120: 0.01308780292 | Q120: 27.52710284 | R120: -109.9311422 | S120: 70.06885776 | U120: 1000000000 | V120: 38910148.84 | X120: 31.79278168 | Y120: -53.65296783 | AA120: 56.0888965 | AB120: -56.27817441 | AD120: 0 | AE120: 0
A121: 6309.6 | B121: 6.3096 | C121: 1.82973711 | D121: 0.9925853625 | E121: 1.000169174 | F121: 0.0183929207 | G121: 1 | H121: 0 | I121: 2538.033787 | J121: 1.570402321 | K121: 1.276193926 | L121: 0.6703891149 | M121: 1.000487006 | N121: 0.03120284425 | O121: 1.00005473 | P121: 0.01323844202 | Q121: 27.39624809 | R121: -109.9303718 | S121: 70.06962817 | U121: 1000000000 | V121: 39811052.16 | X121: 31.73138083 | Y121: -53.35474956 | AA121: 56.0194426 | AB121: -56.57562227 | AD121: 0 | AE121: 0
A122: 6383.05 | B122: 6.38305 | C122: 1.844700712 | D122: 0.9978700667 | E122: 1.000173135 | F122: 0.0186069834 | G122: 1 | H122: 0 | I122: 2567.579012 | J122: 1.570406855 | K122: 1.281948842 | L122: 0.6760309008 | M122: 1.000498408 | N122: 0.03156583645 | O122: 1.000056012 | P122: 0.01339254261 | Q122: 27.26398006 | R122: -109.9275347 | S122: 70.07246533 | U122: 1000000000 | V122: 40743327.3 | X122: 31.66983391 | Y122: -53.05255673 | AA122: 55.94872149 | AB122: -56.87497794 | AD122: 0 | AE122: 0
A123: 6456.5 | B123: 6.4565 | C123: 1.859715004 | D123: 1.003069583 | E123: 1.000177142 | F123: 0.0188210444 | G123: 1 | H123: 0 | I123: 2597.124237 | J123: 1.570411286 | K123: 1.287744198 | L123: 0.6816220828 | M123: 1.000509941 | N123: 0.03192882032 | O123: 1.000057308 | P123: 0.01354664292 | Q123: 27.13329387 | R123: -109.9227097 | S123: 70.07729033 | U123: 1000000000 | V123: 41686392.25 | X123: 31.60953377 | Y123: -52.7532569 | AA123: 55.87833544 | AB123: -57.16945277 | AD123: 0 | AE123: 0
A124: 6531.7 | B124: 6.5317 | C124: 1.875138265 | D124: 1.008306571 | E124: 1.000181292 | F124: 0.01904020377 | G124: 1 | H124: 0 | I124: 2627.373399 | J124: 1.570415719 | K124: 1.29371896 | L124: 0.6872943997 | M124: 1.000521886 | N124: 0.03230044383 | O124: 1.000058651 | P124: 0.01370441449 | Q124: 27.00110188 | R124: -109.9157964 | S124: 70.08420363 | U124: 1000000000 | V124: 42663104.89 | X124: 31.54905542 | Y124: -52.44980354 | AA124: 55.80662179 | AB124: -57.46599284 | AD124: 0 | AE124: 0
A125: 6606.9 | B125: 6.6069 | C125: 1.890612114 | D125: 1.013457974 | E125: 1.00018549 | F125: 0.01925936131 | G125: 1 | H125: 0 | I125: 2657.622561 | J125: 1.570420051 | K125: 1.299734964 | L125: 0.6929143858 | M125: 1.000533969 | N125: 0.03267205842 | O125: 1.000060009 | P125: 0.01386218576 | Q125: 26.87050595 | R125: -109.9069715 | S125: 70.09302849 | U125: 1000000000 | V125: 43651127.61 | X125: 31.48981764 | Y125: -52.14934221 | AA125: 55.73526365 | AB125: -57.7576293 | AD125: 0 | AE125: 0
A126: 6683.85 | B126: 6.68385 | C126: 1.906497141 | D126: 1.018642552 | E126: 1.000189836 | F126: 0.01948361701 | G126: 1 | H126: 0 | I126: 2688.57566 | J126: 1.570424383 | K126: 1.305933066 | L126: 0.6986113714 | M126: 1.000546476 | N126: 0.0330523116 | O126: 1.000061415 | P126: 0.01402362826 | Q126: 26.73849158 | R126: -109.8960489 | S126: 70.10395108 | U126: 1000000000 | V126: 44673850.82 | X126: 31.43045218 | Y126: -51.84496409 | AA126: 55.66261474 | AB126: -58.05108483 | AD126: 0 | AE126: 0
A127: 6760.8 | B127: 6.7608 | C127: 1.922432567 | D127: 1.023741314 | E127: 1.000194232 | F127: 0.01970787075 | G127: 1 | H127: 0 | I127: 2719.528758 | J127: 1.570428616 | K127: 1.312173153 | L127: 0.7042543542 | M127: 1.000559128 | N127: 0.03343255523 | O127: 1.000062837 | P127: 0.01418507044 | Q127: 26.60808516 | R127: -109.8832974 | S127: 70.11670259 | U127: 1000000000 | V127: 45708416.64 | X127: 31.37231907 | Y127: -51.5436739 | AA127: 55.59034142 | AB127: -58.33962352 | AD127: 0 | AE127: 0
A128: 6839.55 | B128: 6.83955 | C128: 1.938791636 | D128: 1.028872428 | E128: 1.000198782 | F128: 0.01993736814 | G128: 1 | H128: 0 | I128: 2751.205906 | J128: 1.57043285 | K128: 1.318602052 | L128: 0.709973852 | M128: 1.000572226 | N128: 0.03382168343 | O128: 1.00006431 | P128: 0.01435028872 | Q128: 26.47626094 | R128: -109.8684406 | S128: 70.13155942 | U128: 1000000000 | V128: 46779444.2 | X128: 31.31406857 | Y128: -51.23850879 | AA128: 55.51676771 | AB128: -58.62993179 | AD128: 0 | AE128: 0
A129: 6918.3 | B129: 6.9183 | C129: 1.955200895 | D129: 1.033917546 | E129: 1.000203386 | F129: 0.02016686342 | G129: 1 | H129: 0 | I129: 2782.883054 | J129: 1.570436987 | K129: 1.325073667 | L129: 0.7156376659 | M129: 1.000585475 | N129: 0.03421080138 | O129: 1.000065799 | P129: 0.01451550665 | Q129: 26.34605627 | R129: -109.851841 | S129: 70.14815901 | U129: 1000000000 | V129: 47862874.89 | X129: 31.25704186 | Y129: -50.93652803 | AA129: 55.44358975 | AB129: -58.91531295 | AD129: 0 | AE129: 0
A130: 6998.9 | B130: 6.9989 | C130: 1.972046306 | D130: 1.038994111 | E130: 1.000208152 | F130: 0.02040174783 | G130: 1 | H130: 0 | I130: 2815.304363 | J130: 1.570441125 | K130: 1.331740896 | L130: 0.7213773439 | M130: 1.000599192 | N130: 0.03460904979 | O130: 1.000067341 | P130: 0.01468460553 | Q130: 26.21443709 | R130: -109.8331332 | S130: 70.16686681 | U130: 1000000000 | V130: 48984601.21 | X130: 31.19990911 | Y130: -50.63072376 | AA130: 55.36910332 | AB130: -59.20240943 | AD130: 0 | AE130: 0
A131: 7079.5 | B131: 7.0795 | C131: 1.988941678 | D131: 1.043984554 | E131: 1.000212973 | F131: 0.02063662998 | G131: 1 | H131: 0 | I131: 2847.725673 | J131: 1.570445169 | K131: 1.338451561 | L131: 0.727059653 | M131: 1.000613068 | N131: 0.03500728721 | O131: 1.000068901 | P131: 0.01485370404 | Q131: 26.08444865 | R131: -109.8127721 | S131: 70.18722787 | U131: 1000000000 | V131: 50119320.25 | X131: 31.14399115 | Y131: -50.32820046 | AA131: 55.29503284 | AB131: -59.48457167 | AD131: 0 | AE131: 0
A132: 7161.95 | B132: 7.16195 | C132: 2.006275226 | D132: 1.049002447 | E132: 1.000217962 | F132: 0.020876901 | G132: 1 | H132: 0 | I132: 2880.891144 | J132: 1.570449212 | K132: 1.345360518 | L132: 0.7328135433 | M132: 1.000627427 | N132: 0.03541465382 | O132: 1.000070515 | P132: 0.01502668347 | Q132: 25.95313052 | R132: -109.7903191 | S132: 70.20968093 | U132: 1000000000 | V132: 51293527.8 | X132: 31.08801294 | Y132: -50.02209884 | AA132: 55.21969291 | AB132: -59.76822023 | AD132: 0 | AE132: 0
A133: 7244.4 | B133: 7.2444 | C133: 2.023658424 | D133: 1.053934256 | E133: 1.000223009 | F133: 0.0211171696 | G133: 1 | H133: 0 | I133: 2914.056615 | J133: 1.570453163 | K133: 1.35231356 | L133: 0.7385084523 | M133: 1.000641951 | N133: 0.03582200868 | O133: 1.000072148 | P133: 0.0151996625 | Q133: 25.82345186 | R133: -109.7663073 | S133: 70.23369273 | U133: 1000000000 | V133: 52481331.36 | X133: 31.03323862 | Y133: -49.71937065 | AA133: 55.14478858 | AB133: -60.04693662 | AD133: 0 | AE133: 0
A134: 7328.75 | B134: 7.32875 | C134: 2.041492262 | D134: 1.058892677 | E134: 1.000228232 | F134: 0.02136297249 | G134: 1 | H134: 0 | I134: 2947.986361 | J134: 1.570457112 | K134: 1.359471745 | L134: 0.7442741222 | M134: 1.000656983 | N134: 0.03623873842 | O134: 1.000073838 | P134: 0.01537662729 | Q134: 25.69244745 | R134: -109.7402143 | S134: 70.25978566 | U134: 1000000000 | V134: 53710576.56 | X134: 30.97841412 | Y134: -49.41312526 | AA134: 55.06860868 | AB134: -60.32708908 | AD134: 0 | AE134: 0
A135: 7413.1 | B135: 7.4131 | C135: 2.059375422 | D135: 1.0637651 | E135: 1.000233515 | F135: 0.0216087728 | G135: 1 | H135: 0 | I135: 2981.916106 | J135: 1.570460972 | K135: 1.366674649 | L135: 0.7499792053 | M135: 1.000672188 | N135: 0.03665545557 | O135: 1.000075547 | P135: 0.01555359167 | Q135: 25.5630908 | R135: -109.7126597 | S135: 70.28734028 | U135: 1000000000 | V135: 54954051.61 | X135: 30.92478218 | Y135: -49.11034535 | AA135: 54.99288397 | AB135: -60.60231437 | AD135: 0 | AE135: 0
A136: 7499.45 | B136: 7.49945 | C136: 2.077732366 | D136: 1.068666052 | E136: 1.000238986 | F136: 0.02186039852 | G136: 1 | H136: 0 | I136: 3016.65035 | J136: 1.570464833 | K136: 1.374093927 | L136: 0.7557574119 | M136: 1.000687933 | N136: 0.03708204019 | O136: 1.000077317 | P136: 0.01573475156 | Q136: 25.43233921 | R136: -109.6830221 | S136: 70.31697794 | U136: 1000000000 | V136: 56241750.3 | X136: 30.87108004 | Y136: -48.80394124 | AA136: 54.91583451 | AB136: -60.87908082 | AD136: 0 | AE136: 0
A137: 7585.8 | B137: 7.5858 | C137: 2.09613834 | D137: 1.073481048 | E137: 1.000244521 | F137: 0.02211202146 | G137: 1 | H137: 0 | I137: 3051.384595 | J137: 1.570468607 | K137: 1.381558589 | L137: 0.7614733675 | M137: 1.000703861 | N137: 0.03750861131 | O137: 1.000079108 | P137: 0.01591591099 | Q137: 25.303245 | R137: -109.6520206 | S137: 70.34797945 | U137: 1000000000 | V137: 57544361.64 | X137: 30.81856005 | Y137: -48.50109803 | AA137: 54.83926028 | AB137: -61.15092252 | AD137: 0 | AE137: 0
A138: 7674.15 | B138: 7.67415 | C138: 2.115020038 | D138: 1.078320713 | E138: 1.000250249 | F138: 0.02236946948 | G138: 1 | H138: 0 | I138: 3086.923338 | J138: 1.57047238 | K138: 1.389242353 | L138: 0.7672579433 | M138: 1.000720345 | N138: 0.03794504834 | O138: 1.000080962 | P138: 0.01610126589 | Q138: 25.17284093 | R138: -109.6189727 | S138: 70.38102731 | U138: 1000000000 | V138: 58892578.22 | X138: 30.76601323 | Y138: -48.19488843 | AA138: 54.76140304 | AB138: -61.42408427 | AD138: 0 | AE138: 0
A139: 7762.5 | B139: 7.7625 | C139: 2.133950397 | D139: 1.083074622 | E139: 1.000256043 | F139: 0.02262691453 | G139: 1 | H139: 0 | I139: 3122.462082 | J139: 1.570476067 | K139: 1.396972092 | L139: 0.7729786942 | M139: 1.000737021 | N139: 0.03838147092 | O139: 1.000082836 | P139: 0.01628662031 | Q139: 25.04410127 | R139: -109.5846627 | S139: 70.41533734 | U139: 1000000000 | V139: 60256406.25 | X139: 30.71463621 | Y139: -47.89232997 | AA139: 54.68404039 | AB139: -61.69233269 | AD139: 0 | AE139: 0
A140: 7852.9 | B140: 7.8529 | C140: 2.15336903 | D140: 1.087852211 | E140: 1.000262041 | F140: 0.02289033003 | G140: 1 | H140: 0 | I140: 3158.825437 | J140: 1.570479753 | K140: 1.404927979 | L140: 0.7787668329 | M140: 1.000754281 | N140: 0.03882800473 | O140: 1.000084777 | P140: 0.01647627503 | Q140: 24.9140614 | R140: -109.548332 | S140: 70.45166802 | U140: 1000000000 | V140: 61668038.41 | X140: 30.66324397 | Y140: -47.58648978 | AA140: 54.60539277 | AB140: -61.96184219 | AD140: 0 | AE140: 0
A141: 7943.3 | B141: 7.9433 | C141: =SQRT(1+(A141/pole1)^2) -> 2.172835935 | D141: =ATAN(A141/pole1) -> 1.092544298 | E141: =SQRT(1+(A141/Zero1)^2) -> 1.000268108 | F141: =ATAN(A141/Zero1) -> 0.02315374234 | G141: =IF(VIN_nom>Vout, 1, SQRT(1+(A141/z_RHP)^2)) -> 1 | H141: =IF(VIN_nom>Vout, 0, -ATAN(A141/z_RHP)) -> 0 | I141: =SQRT(1+(A141/Pole2)^2) -> 3195.188792 | J141: =ATAN(A141/Pole2) -> 1.570483356 | K141: =SQRT(1+(A141/Zero2)^2) -> 1.412930404 | L141: =ATAN(A141/Zero2) -> 0.7844895968 | M141: =SQRT(1+(A141/pole4)^2) -> 1.00077174 | N141: =ATAN(A141/pole4) -> 0.03927452306 | O141: =SQRT((1-(V141/pterm2))^2+(A141/pterm1)^2) -> 1.00008674 | P141: =IF((ATAN((A141/pterm1)/(1-A141^2/pterm2))>0),ATAN((A141/pterm1)/(1-A141^2/pterm2)),PI()+ATAN((A141/pterm1)/(1-A141^2/pterm2))) -> 0.01666592923 | Q141: =20*LOG10(((E141*K141*G141)/(C141*I141*O141*M141))*Adc) -> 24.78569228 | R141: =((F141+L141+H141)-(D141+J141+P141+N141))*radconv -> -109.5108426 | S141: =IF(R141>0,R141,R141+180) -> 70.48915742 | U141: 1000000000 | V141: 63096014.89 | X141: =20*LOG10((K141/(I141*M141))*AEA) -> 30.61300867 | Y141: =(L141-(J141+N141))*radconv -> -47.28438961 | AA141: =20*LOG10((E141*G141/(C141*O141))*Acs*Am) -> 54.52725895 | AB141: =(F141+H141-(D141+P141))*radconv -> -62.22645297 | AD141: 0 | AE141: 0
A142: 8035.8 | B142: =A142/1000 -> 8.0358 | C142: 2.192803684 | D142: 1.097259042 | E142: 1.000274388 | F142: 0.02342327042 | G142: 1 | H142: 0 | I142: 3232.396871 | J142: 1.570486959 | K142: 1.421166078 | L142: 0.7902783951 | M142: 1.000789811 | N142: 0.03973139783 | O142: 1.000088772 | P142: 0.01685998857 | Q142: 24.65603415 | R142: -109.4713632 | S142: 70.52863682 | U142: =IF(Q142<0,A142,1000000000) -> 1000000000 | V142: =A142^2 -> 64574081.64 | X142: 30.56277 | Y142: -46.9790993 | AA142: 54.4478395 | AB142: -62.49226387 | AD142: =SUM((Q143<0)*(Q142>0))*A142 -> 0 | AE142: 0
A143: 8128.3 | B143: 8.1283 | C143: 2.212819296 | D143: 1.101888595 | E143: 1.00028074 | F143: 0.02369279509 | G143: 1 | H143: 0 | I143: 3269.60495 | J143: 1.570490479 | K143: 1.429448826 | L143: 0.7960002985 | M143: 1.000808092 | N143: 0.040188256 | O143: 1.000090827 | P143: 0.01705404736 | Q143: 24.52805235 | R143: -109.43083 | S143: 70.56917001 | U143: 1000000000 | V143: 66069260.89 | X143: 30.51367484 | Y143: -46.67763615 | AA143: 54.36895285 | AB143: -62.75319384 | AD143: 0 | AE143: 0
A144: 8222.95 | B144: 8.22295 | C144: 2.233348339 | D144: 1.106539755 | E144: 1.000287315 | F144: 0.02396858083 | G144: 1 | H144: 0 | I144: 3307.677866 | J144: 1.570494 | K144: 1.437971971 | L144: 0.8017867708 | M144: 1.000827013 | N144: 0.04065571566 | O144: 1.000092955 | P144: 0.01725261612 | Q144: 24.39879411 | R144: -109.3883423 | S144: 70.61165766 | U144: 1000000000 | V144: 67616906.7 | X144: 30.4645883 | Y144: -46.37308088 | AA144: 54.28878115 | AB144: -63.01526145 | AD144: 0 | AE144: 0
A145: 8270.275 | B145: 8.270275 | C145: 2.243630729 | D145: 1.108833392 | E145: 1.000290631 | F145: 0.02410647234 | G145: 1 | H145: 0 | I145: 3326.714323 | J145: 1.57049573 | K145: 1.442251439 | L145: 0.804654312 | M145: 1.000836556 | N145: 0.04088943884 | O145: 1.000094028 | P145: 0.01735190028 | Q145: 24.33479768 | R145: -109.3667385 | S145: 70.63326154 | U145: 1000000000 | V145: 68397448.58 | X145: 30.44047066 | Y145: -46.22227334 | AA145: 54.24890235 | AB145: -63.14446512 | AD145: 0 | AE145: 0
A146: 8317.6 | B146: 8.3176 | C146: 2.253924815 | D146: 1.111106089 | E146: 1.000293967 | F146: 0.02424436292 | G146: 1 | H146: 0 | I146: 3345.750781 | J146: 1.57049744 | K146: 1.446542696 | L146: 0.8075048632 | M146: 1.000846153 | N146: 0.04112315755 | O146: 1.000095107 | P146: 0.01745118429 | Q146: 24.27121698 | R146: -109.344907 | S146: 70.65509301 | U146: 1000000000 | V146: 69182469.76 | X146: 30.41663129 | Y146: -46.07243788 | AA146: 54.20916103 | AB146: -63.27246911 | AD146: 0 | AE146: 0
A147: 8366.05 | B147: 8.36605 | C147: 2.264475559 | D147: 1.113411395 | E147: 1.000297401 | F147: 0.02438553046 | G147: 1 | H147: 0 | I147: 3365.23977 | J147: 1.570499171 | K147: 1.450948067 | L147: 0.8104056855 | M147: 1.000856035 | N147: 0.04136242751 | O147: 1.000096218 | P147: 0.01755282831 | Q147: 24.20655087 | R147: -109.3223302 | S147: 70.67766978 | U147: 1000000000 | V147: 69990792.6 | X147: 30.39250926 | Y147: -45.92004134 | AA147: 54.16861695 | AB147: -63.40228888 | AD147: 0 | AE147: 0
A148: 8414.5 | B148: 8.4145 | C148: 2.275038226 | D148: 1.115695307 | E148: 1.000300855 | F148: 0.02452669703 | G148: 1 | H148: 0 | I148: 3384.728758 | J148: 1.570500882 | K148: =SQRT(1+(A148/Zero2)^2) -> 1.455365574 | L148: =ATAN(A148/Zero2) -> 0.8132889221 | M148: 1.000865975 | N148: 0.04160169273 | O148: 1.000097336 | P148: 0.01765447216 | Q148: 24.1423111 | R148: -109.2995339 | S148: 70.70046613 | U148: 1000000000 | V148: 70803810.25 | X148: 30.36867042 | Y148: -45.76865097 | AA148: 54.12821602 | AB148: -63.53088289 | AD148: 0 | AE148: 0
A149: 8462.95 | B149: 8.46295 | C149: 2.28561265 | D149: 1.117958097 | E149: 1.000304329 | F149: 0.02466786262 | G149: 1 | H149: 0 | I149: 3404.217747 | J149: 1.570502574 | K149: 1.459795106 | L149: 0.8161546849 | M149: 1.000875972 | N149: 0.04184095319 | O149: 1.00009846 | P149: 0.01775611586 | Q149: 24.078493 | R149: -109.2765272 | S149: 70.72347283 | U149: 1000000000 | V149: 71621522.7 | X149: 30.34511057 | Y149: -45.61826039 | AA149: 54.08795777 | AB149: -63.65826679 | AD149: 0 | AE149: 0
A150: 8511.4 | B150: 8.5114 | C150: 2.29619867 | D150: 1.120200035 | E150: 1.000307823 | F150: 0.02480902722 | G150: 1 | H150: 0 | I150: 3423.706735 | J150: 1.570504246 | K150: 1.464236554 | L150: 0.8190030856 | M150: 1.000886026 | N150: 0.04208020886 | O150: 1.00009959 | P150: 0.01785775939 | Q150: 24.01509198 | R150: -109.2533192 | S150: 70.74668084 | U150: 1000000000 | V150: 72443929.96 | X150: 30.32182563 | Y150: -45.46886319 | AA150: 54.04784169 | AB150: -63.78445596 | AD150: 0 | AE150: 0
A151: 8560.95 | B151: 8.56095 | C151: 2.307036859 | D151: 1.122471581 | E151: 1.000311417 | F151: 0.02495339578 | G151: 1 | H151: 0 | I151: 3443.638198 | J151: 1.570505936 | K151: 1.468791052 | L151: 0.8218983142 | M151: 1.000896367 | N151: 0.04232489155 | O151: 1.000100753 | P151: 0.01796171045 | Q151: 23.95067819 | R151: -109.2293852 | S151: 70.77061484 | U151: 1000000000 | V151: 73289864.9 | X151: 30.29829217 | Y151: -45.31709496 | AA151: 54.00696135 | AB151: -63.9122902 | AD151: 0 | AE151: 0
A152: 8610.5 | B152: 8.6105 | C152: 2.31788684 | D152: 1.124721872 | E152: 1.000315032 | F152: 0.0250977633 | G152: 1 | H152: 0 | I152: 3463.569661 | J152: 1.570507607 | K152: 1.473357786 | L152: 0.8247756191 | M152: 1.000906769 | N152: 0.04256956918 | O152: 1.000101923 | P152: 0.01806566135 | Q152: 23.8866911 | R152: -109.205259 | S152: 70.79474103 | U152: 1000000000 | V152: 74140710.25 | X152: 30.27503779 | Y152: -45.16635227 | AA152: 53.96622865 | AB152: -64.03890669 | AD152: 0 | AE152: 0
A153: 8660.05 | B153: 8.66005 | C153: 2.32874845 | D153: 1.126951183 | E153: 1.000318667 | F153: 0.02524212977 | G153: 1 | H153: 0 | I153: 3483.501124 | J153: 1.570509259 | K153: 1.477936642 | L153: 0.8276351189 | M153: 1.00091723 | N153: 0.0428142417 | O153: 1.000103099 | P153: 0.01816961207 | Q153: 23.82312601 | R153: -109.1809495 | S153: 70.81905048 | U153: 1000000000 | V153: 74996466 | X153: 30.25205832 | Y153: -45.01662836 | AA153: 53.92564302 | AB153: -64.16432116 | AD153: 0 | AE153: 0
A154: 8709.6 | B154: 8.7096 | C154: 2.339621526 | D154: 1.129159784 | E154: 1.000322324 | F154: 0.02538649519 | G154: 1 | H154: 0 | I154: 3503.432587 | J154: 1.570510892 | K154: 1.482527509 | L154: 0.8304769321 | M154: 1.000927752 | N154: 0.0430589091 | O154: 1.000104282 | P154: 0.01827356263 | Q154: 23.75997826 | R154: -109.1564655 | S154: 70.84353448 | U154: 1000000000 | V154: 75857132.16 | X154: 30.22934969 | Y154: -44.86791643 | AA154: 53.8852039 | AB154: -64.28854909 | AD154: 0 | AE154: =IF(AD154>0,S154,0) -> 0
A155: 8760.325 | B155: 8.760325 | C155: 2.35076415 | D155: 1.131399584 | E155: 1.000326088 | F155: 0.02553428291 | G155: 1 | H155: 0 | I155: 3523.836694 | J155: 1.570512545 | K155: 1.487239565 | L155: 0.8333679371 | M155: 1.000938584 | N155: 0.04330937305 | O155: 1.000105501 | P155: 0.01837997802 | Q155: 23.69576058 | R155: -109.131229 | S155: 70.86877101 | U155: 1000000000 | V155: 76743294.11 | X155: 30.20637892 | Y155: -44.71671928 | AA155: 53.843957 | AB155: -64.41450971 | AD155: 0 | AE155: 0
A156: 8811.05 | B156: 8.81105 | C156: 2.361918456 | D156: 1.13361824 | E156: 1.000329875 | F156: 0.02568206951 | G156: 1 | H156: 0 | I156: 3544.2408 | J156: 1.570514179 | K156: 1.491963972 | L156: 0.8362406568 | M156: 1.00094948 | N156: 0.04355983157 | O156: 1.000106726 | P156: 0.01848639324 | Q156: 23.63197062 | R156: -109.1058273 | S156: 70.8941727 | U156: 1000000000 | V156: 77634602.1 | X156: 30.18368354 | Y156: -44.56656838 | AA156: 53.80286242 | AB156: -64.53925892 | AD156: 0 | AE156: 0
A157: 8861.775 | B157: 8.861775 | C157: 2.373084279 | D157: 1.135816028 | E157: 1.000333683 | F157: 0.02582985499 | G157: 1 | H157: 0 | I157: 3564.644906 | J157: 1.570515794 | K157: 1.496700614 | L157: 0.8390952172 | M157: 1.000960439 | N157: 0.04381028462 | O157: 1.000107958 | P157: 0.01859280827 | Q157: 23.5686036 | R157: -109.0802691 | S157: 70.9197309 | U157: 1000000000 | V157: 78531056.15 | X157: 30.1612594 | Y157: -44.41745656 | AA157: 53.76191954 | AB157: -64.66281255 | AD157: 0 | AE157: 0
A158: 8912.5 | B158: 8.9125 | C158: 2.384261458 | D158: 1.13799322 | E158: 1.000337514 | F158: 0.02597763935 | G158: 1 | H158: 0 | I158: 3585.049012 | J158: 1.570517391 | K158: =SQRT(1+(A158/Zero2)^2) -> 1.501449375 | L158: =ATAN(A158/Zero2) -> 0.8419317438 | M158: 1.00097146 | N158: 0.04406073217 | O158: 1.000109198 | P158: 0.01869922312 | Q158: 23.5056548 | R158: -109.0545628 | S158: 70.94543719 | U158: 1000000000 | V158: 79432656.25 | X158: 30.13910243 | Y158: -44.26937662 | AA158: 53.72112771 | AB158: -64.78518619 | AD158: 0 | AE158: 0
A159: 8964.4 | B159: 8.9644 | C159: 2.395709133 | D159: 1.140199808 | E159: 1.000341455 | F159: 0.02612884582 | G159: 1 | H159: 0 | I159: 3605.925762 | J159: 1.570519005 | K159: 1.506320561 | L159: 0.8448154415 | M159: 1.000982801 | N159: 0.04431697539 | O159: 1.000110473 | P159: 0.01880810278 | Q159: 23.44167587 | R159: -109.0281163 | S159: 70.97188369 | U159: 1000000000 | V159: 80360467.36 | X159: 30.11670455 | Y159: -44.1189271 | AA159: 53.67954666 | AB159: -64.90918921 | AD159: 0 | AE159: 0
A160: 9016.3 | B160: 9.0163 | C160: 2.407168362 | D160: 1.142385398 | E160: 1.00034542 | F160: 0.0262800511 | G160: 1 | H160: 0 | I160: 3626.802511 | J160: 1.570520602 | K160: 1.511204192 | L160: 0.8476805248 | M160: 1.000994209 | N160: 0.04457321279 | O160: 1.000111756 | P160: 0.01891698225 | Q160: 23.37812498 | R160: -109.0015319 | S160: 70.99846812 | U160: 1000000000 | V160: 81293665.69 | X160: 30.09457794 | Y160: -43.9695427 | AA160: 53.63812238 | AB160: -65.03198918 | AD160: 0 | AE160: 0
A161: 9068.2 | B161: 9.0682 | C161: 2.41863898 | D161: 1.144550267 | E161: 1.000349407 | F161: 0.02643125518 | G161: 1 | H161: 0 | I161: 3647.679261 | J161: 1.57052218 | K161: 1.516100148 | L161: 0.850527127 | M161: 1.001005682 | N161: 0.04482944433 | O161: 1.000113046 | P161: 0.01902586153 | Q161: 23.3149973 | R161: -108.9748178 | S161: 71.02518217 | U161: 1000000000 | V161: 82232251.24 | X161: 30.07271847 | Y161: -43.82121581 | AA161: 53.59685417 | AB161: -65.15360202 | AD161: 0 | AE161: 0
A162: 9120.1 | B162: 9.1201 | C162: 2.430120827 | D162: 1.146694689 | E162: 1.000353418 | F162: 0.02658245804 | G162: 1 | H162: 0 | I162: 3668.55601 | J162: 1.57052374 | K162: 1.52100831 | L162: 0.8533553804 | M162: 1.00101722 | N162: 0.04508566998 | O162: 1.000114344 | P162: 0.0191347406 | Q162: 23.25228807 | R162: -108.9479822 | S162: 71.05201777 | U162: 1000000000 | V162: 83176224.01 | X162: 30.05112208 | Y162: -43.67393886 | AA162: 53.55574133 | AB162: -65.27404337 | AD162: 0 | AE162: 0
A163: 9173.2 | B163: 9.1732 | C163: 2.441879605 | D163: 1.148867812 | E163: 1.000357544 | F163: 0.02673715567 | G163: 1 | H163: 0 | I163: 3689.915459 | J163: 1.570525318 | K163: 1.526042465 | L163: 0.8562301747 | M163: 1.001029094 | N163: 0.04534781379 | O163: 1.000115679 | P163: 0.01924613691 | Q163: 23.18855708 | R163: -108.9204086 | S163: 71.07959144 | U163: 1000000000 | V163: 84147598.24 | X163: 30.02929446 | Y163: -43.52433542 | AA163: 53.51383796 | AB163: -65.39607314 | AD163: 0 | AE163: 0
A164: 9226.3 | B164: 9.2263 | C164: 2.453649805 | D164: 1.151020095 | E164: 1.000361695 | F164: 0.02689185202 | G164: 1 | H164: 0 | I164: 3711.274908 | J164: 1.570526878 | K164: 1.53108915 | L164: 0.8590860411 | M164: 1.001041036 | N164: 0.04560995136 | O164: 1.000117022 | P164: 0.019357533 | Q164: 23.12525422 | R164: -108.8927241 | S164: 71.10727594 | U164: 1000000000 | V164: 85124611.69 | X164: 30.00773385 | Y164: -43.37581507 | AA164: 53.47209572 | AB164: -65.51690899 | AD164: 0 | AE164: 0
A165: 9279.4 | B165: 9.2794 | C165: 2.465431262 | D165: 1.153151819 | E165: 1.000365869 | F165: 0.02704654709 | G165: 1 | H165: 0 | I165: 3732.634357 | J165: 1.570528419 | K165: 1.536148239 | L165: 0.8619231196 | M165: 1.001053047 | N165: 0.04587208267 | O165: 1.000118373 | P165: 0.01946892889 | Q165: 23.06237462 | R165: -108.8649367 | S165: 71.13506331 | U165: 1000000000 | V165: 86107264.36 | X165: 29.98643613 | Y165: -43.22836981 | AA165: 53.43051383 | AB165: -65.63656688 | AD165: 0 | AE165: 0
A166: 9332.5 | B166: 9.3325 | C166: 2.477223816 | D166: 1.155263256 | E166: 1.000370068 | F166: 0.02720124085 | G166: 1 | H166: 0 | I166: 3753.993806 | J166: 1.570529944 | K166: 1.541219612 | L166: 0.8647415499 | M166: 1.001065127 | N166: 0.04613420766 | O166: 1.000119732 | P166: 0.01958032457 | Q166: 22.99991343 | R166: -108.8370542 | S166: 71.16294584 | U166: 1000000000 | V166: 87095556.25 | X166: 29.96539725 | Y166: -43.08199164 | AA166: 53.38909152 | AB166: -65.75506253 | AD166: 0 | AE166: 0
A167: 9386.85 | B167: 9.38685 | C167: 2.4893053 | D167: 1.157403671 | E167: 1.00037439 | F167: 0.02735957484 | G167: 1 | H167: 0 | I167: 3775.856067 | J167: 1.570531486 | K167: 1.546422962 | L167: 0.8676071606 | M167: 1.001077563 | N167: 0.04640249664 | O167: 1.00012113 | P167: 0.01969434233 | Q167: 22.93641025 | R167: -108.8084246 | S167: 71.19157544 | U167: 1000000000 | V167: 88112952.92 | X167: 29.94412703 | Y167: -42.93326444 | AA167: 53.34685856 | AB167: -65.87516013 | AD167: 0 | AE167: 0
A168: 9441.2 | B168: 9.4412 | C168: 2.501398078 | D168: 1.1595234 | E168: 1.000378737 | F168: 0.02751790745 | G168: 1 | H168: 0 | I168: 3797.718327 | J168: 1.570533011 | K168: 1.551638925 | L168: 0.8704535286 | M168: 1.00109007 | N168: 0.04667077893 | O168: 1.000122537 | P168: 0.01980835987 | Q168: 22.87333543 | R168: -108.779711 | S168: 71.22028904 | U168: 1000000000 | V168: 89136257.44 | X168: 29.92311964 | Y168: -42.78563836 | AA168: 53.30479113 | AB168: -65.9940726 | AD168: 0 | AE168: 0
A169: 9495.55 | B169: 9.49555 | C169: 2.513501987 | D169: 1.161622723 | E169: 1.000383109 | F169: 0.02767623869 | G169: 1 | H169: 0 | I169: 3819.580588 | J169: 1.570534518 | K169: 1.556867375 | L169: 0.8732808014 | M169: 1.00110265 | N169: 0.04693905449 | O169: 1.000123952 | P169: 0.01992237719 | Q169: 22.81068403 | R169: -108.7509209 | S169: 71.24907907 | U169: 1000000000 | V169: 90165469.8 | X169: 29.90237099 | Y169: -42.63910498 | AA169: 53.26288838 | AB169: -66.11181595 | AD169: 0 | AE169: 0
A170: 9549.9 | B170: 9.5499 | C170: 2.525616868 | D170: 1.163701915 | E170: 1.000387507 | F170: 0.02783456853 | G170: 1 | H170: 0 | I170: 3841.442849 | J170: 1.570536008 | K170: 1.562108187 | L170: 0.8760891256 | M170: 1.001115301 | N170: 0.0472073233 | O170: 1.000125375 | P170: 0.02003639428 | Q170: 22.74845119 | R170: -108.7220618 | S170: 71.27793816 | U170: 1000000000 | V170: 91200590.01 | X170: 29.88187706 | Y170: -42.49365589 | AA170: 53.22114947 | AB170: -66.22840596 | AD170: 0 | AE170: 0
A171: 9605.525 | B171: 9.605525 | C171: 2.538027148 | D171: 1.165809321 | E171: 1.000392033 | F171: 0.0279966112 | G171: 1 | H171: 0 | I171: 3863.817978 | J171: 1.570537515 | K171: 1.567484613 | L171: 0.8789438625 | M171: 1.001128324 | N171: 0.0474818784 | O171: 1.000126839 | P171: 0.02015308587 | Q171: 22.68518681 | R171: -108.6924617 | S171: 71.3075383 | U171: 1000000000 | V171: 92266110.53 | X171: 29.86116198 | Y171: -42.34590873 | AA171: 53.17860018 | AB171: -66.34655296 | AD171: 0 | AE171: 0
A172: 9661.15 | B172: 9.66115 | C172: 2.550448591 | D172: 1.167896208 | E172: 1.000396586 | F172: 0.0281586524 | G172: 1 | H172: 0 | I172: 3886.193107 | J172: 1.570539006 | K172: 1.572873727 | L172: 0.88177906 | M172: 1.001141423 | N172: 0.04775642634 | O172: 1.000128313 | P172: 0.02026977722 | Q172: 22.62235076 | R172: -108.6628041 | S172: 71.33719586 | U172: 1000000000 | V172: 93337819.32 | X172: 29.8407054 | Y172: -42.1992797 | AA172: 53.1362207 | AB172: -66.46352444 | AD172: 0 | AE172: 0
A173: 9716.775 | B173: 9.716775 | C173: 2.562881033 | D173: 1.169962857 | E173: 1.000401165 | F173: 0.02832069212 | G173: 1 | H173: 0 | I173: 3908.568236 | J173: 1.570540479 | K173: 1.578275397 | L173: 0.8845948731 | M173: 1.001154597 | N173: 0.04803096707 | O173: 1.000129794 | P173: 0.02038646833 | Q173: 22.55993803 | R173: -108.6330964 | S173: 71.36690364 | U173: 1000000000 | V173: 94415716.4 | X173: 29.82050325 | Y173: -42.05375992 | AA173: 53.09401012 | AB173: -66.57933644 | AD173: 0 | AE173: 0
A174: 9772.4 | B174: 9.7724 | C174: 2.575324316 | D174: 1.172009544 | E174: 1.00040577 | F174: 0.02848273036 | G174: 1 | H174: 0 | I174: 3930.943365 | J174: 1.570541935 | K174: 1.583689496 | L174: 0.8873914556 | M174: 1.001167846 | N174: 0.04830550055 | O174: 1.000131285 | P174: 0.02050315919 | Q174: 22.49794372 | R174: -108.6033453 | S174: 71.39665465 | U174: 1000000000 | V174: 95499801.76 | X174: 29.80055152 | Y174: -41.9093406 | AA174: 53.05196754 | AB174: -66.69400475 | AD174: 0 | AE174: 0
A175: 9829.3 | B175: 9.8293 | C175: 2.588063869 | D175: 1.174082772 | E175: 1.000410508 | F175: 0.02864848117 | G175: 1 | H175: 0 | I175: 3953.831362 | J175: 1.570543408 | K175: 1.589240419 | L175: 0.8902324022 | M175: 1.001181477 | N175: 0.04858631918 | O175: 1.000132818 | P175: 0.02062252452 | Q175: 22.43495627 | R175: -108.5728747 | S175: 71.42712527 | U175: 1000000000 | V175: 96615138.49 | X175: 29.78039748 | Y175: -41.76274044 | AA175: 53.00913413 | AB175: -66.81013429 | AD175: 0 | AE175: 0
A176: 9886.2 | B176: 9.8862 | C176: 2.600814437 | D176: 1.176135681 | E176: 1.000415274 | F176: 0.02881423042 | G176: 1 | H176: 0 | I176: 3976.719359 | J176: 1.570544863 | K176: 1.59480408 | L176: 0.8930535495 | M176: 1.001195187 | N176: 0.04886713013 | O176: 1.00013436 | P176: 0.02074188959 | Q176: 22.37239645 | R176: -108.542373 | S176: 71.45762701 | U176: 1000000000 | V176: 97736950.44 | X176: 29.76049723 | Y176: -41.61727329 | AA176: 52.96647457 | AB176: -66.92509969 | AD176: 0 | AE176: 0
A177: 9943.1 | B177: 9.9431 | C177: 2.613575858 | D177: 1.178168551 | E177: 1.000420067 | F177: 0.02897997808 | G177: 1 | H177: 0 | I177: 3999.607356 | J177: 1.570546302 | K177: 1.600380346 | L177: 0.8958550594 | M177: 1.001208976 | N177: 0.04914793337 | O177: 1.000135911 | P177: 0.0208612544 | Q177: 22.31025924 | R177: -108.5118469 | S177: 71.4881531 | U177: 1000000000 | V177: 98865237.61 | X177: 29.74084672 | Y177: -41.47292989 | AA177: 52.92398786 | AB177: -67.03891701 | AD177: 0 | AE177: 0
A178: 10000 | B178: 10 | C178: 2.626347976 | D178: 1.180181657 | E178: 1.000424887 | F178: 0.02914572415 | G178: 1 | H178: 0 | I178: 4022.495353 | J178: 1.570547725 | K178: 1.605969085 | L178: 0.8986370925 | M178: 1.001222844 | N178: 0.04942872886 | O178: 1.000137471 | P178: 0.02098061895 | Q178: 22.24853967 | R178: -108.4813031 | S178: 71.51869693 | U178: 1000000000 | V178: 100000000 | X178: 29.72144199 | Y178: -41.32970104 | AA178: 52.88167302 | AB178: -67.15160203 | AD178: 0 | AE178: 0
A179: 10058.25 | B179: 10.05825 | C179: 2.63943404 | D179: 1.182222336 | E179: 1.00042985 | F179: 0.02931540102 | G179: 1 | H179: 0 | I179: 4045.926387 | J179: 1.570549165 | K179: 1.611703206 | L179: 0.9014651232 | M179: 1.001237123 | N179: 0.04971617837 | O179: 1.000139077 | P179: 0.02110281525 | Q179: 22.18578328 | R179: -108.4500228 | S179: 71.54997718 | U179: 1000000000 | V179: 101168393.1 | X179: 29.70182739 | Y179: -41.18421895 | AA179: 52.83853124 | AB179: -67.26580387 | AD179: 0 | AE179: 0
A180: 10116.5 | B180: 10.1165 | C180: 2.652530987 | D180: 1.184242871 | E180: 1.000434842 | F180: 0.02948507621 | G180: 1 | H180: 0 | I180: 4069.357421 | J180: 1.570550588 | K180: 1.617450126 | L180: 0.9042730798 | M180: 1.001251485 | N180: 0.05000361966 | O180: 1.000140692 | P180: 0.02122501128 | Q180: 22.12345432 | R180: -108.4187373 | S180: 71.58126275 | U180: 1000000000 | V180: 102343572.2 | X180: 29.68246217 | Y180: -41.0398856 | AA180: 52.79556749 | AB180: -67.37885165 | AD180: 0 | AE180: 0
A181: 10174.75 | B181: 10.17475 | C181: 2.665638657 | D181: 1.186243543 | E181: 1.000439863 | F181: 0.02965474969 | G181: 1 | H181: 0 | I181: 4092.788455 | J181: 1.570551995 | K181: 1.623209709 | L181: 0.9070611316 | M181: 1.001265929 | N181: 0.05029105268 | O181: 1.000142317 | P181: 0.02134720703 | Q181: 22.06154771 | R181: -108.3874528 | S181: 71.61254724 | U181: 1000000000 | V181: 103525537.6 | X181: 29.66334231 | Y181: -40.89669131 | AA181: 52.75278074 | AB181: -67.49076145 | AD181: 0 | AE181: 0
A182: 10233 | B182: 10.233 | C182: 2.678756892 | D182: 1.188224628 | E182: 1.000444913 | F182: 0.02982442147 | G182: 1 | H182: 0 | I182: 4116.219489 | J182: 1.570553385 | K182: 1.62898182 | L182: 0.9098294464 | M182: 1.001280456 | N182: 0.05057847738 | O182: 1.000143951 | P182: 0.0214694025 | Q182: 22.00005845 | R182: -108.3561755 | S182: 71.64382447 | U182: 1000000000 | V182: 104714289 | X182: 29.64446387 | Y182: -40.75462646 | AA182: 52.71016992 | AB182: -67.60154907 | AD182: 0 | AE182: 0
A183: 10292.5 | B183: 10.2925 | C183: 2.692167382 | D183: 1.190228285 | E183: 1.000450101 | F183: 0.0299977325 | G183: 1 | H183: 0 | I183: 4140.153335 | J183: 1.57055479 | K183: 1.634890592 | L183: 0.9126369639 | M183: 1.00129538 | N183: 0.05087206136 | O183: 1.00014563 | P183: 0.02159421991 | Q183: 21.93767543 | R183: -108.3242408 | S183: 71.67575917 | U183: 1000000000 | V183: 105935556.2 | X183: 29.62542553 | Y183: -40.61066915 | AA183: 52.66682525 | AB183: -67.71357168 | AD183: 0 | AE183: 0
A184: 10352 | B184: 10.352 | C184: 2.705588572 | D184: 1.192212072 | E184: 1.000455319 | F184: 0.03017104173 | G184: 1 | H184: 0 | I184: 4164.087181 | J184: 1.570556178 | K184: 1.640812158 | L184: 0.9154242389 | M184: 1.001310391 | N184: 0.05116563656 | O184: 1.000147319 | P184: 0.02171903702 | Q184: 21.87571757 | R184: -108.2923261 | S184: 71.70767391 | U184: 1000000000 | V184: 107163904 | X184: 29.60663098 | Y184: -40.46787022 | AA184: 52.62366193 | AB184: -67.82445587 | AD184: 0 | AE184: 0
A185: 10411.5 | B185: 10.4115 | C185: 2.719020305 | D185: 1.194176266 | E185: 1.000460566 | F185: 0.03034434914 | G185: 1 | H185: 0 | I185: 4188.021027 | J185: 1.570557551 | K185: 1.64674638 | L185: 0.9181914469 | M185: 1.001325487 | N185: 0.05145920294 | O185: 1.000149017 | P185: 0.02184385383 | Q185: 21.81417977 | R185: -108.2604373 | S185: 71.73956275 | U185: 1000000000 | V185: 108399332.2 | X185: 29.58807626 | Y185: -40.32621963 | AA185: 52.58067884 | AB185: -67.93421763 | AD185: 0 | AE185: 0
A186: 10471 | B186: 10.471 | C186: 2.732462425 | D186: 1.196121143 | E186: 1.000465844 | F186: 0.03051765474 | G186: 1 | H186: 0 | I186: 4211.954873 | J186: 1.570558907 | K186: 1.65269312 | L186: 0.9209387618 | M186: 1.00134067 | N186: 0.05175276044 | O186: 1.000150725 | P186: 0.02196867035 | Q186: 21.75305702 | R186: -108.2285801 | S186: 71.77141994 | U186: 1000000000 | V186: 109641841 | X186: 29.56975748 | Y186: -40.18570742 | AA186: 52.53787487 | AB186: -68.04287263 | AD186: 0 | AE186: 0
A187: 10532 | B187: 10.532 | C187: 2.746254045 | D187: 1.198095277 | E187: 1.000471287 | F187: 0.03069532747 | G187: 1 | H187: 0 | I187: 4236.492093 | J187: 1.570560282 | K187: 1.658802635 | L187: 0.9237348659 | M187: 1.001356326 | N187: 0.05205370928 | O187: 1.000152486 | P187: 0.02209663319 | Q187: 21.69081908 | R187: -108.1959584 | S187: 71.80404163 | U187: 1000000000 | V187: 110923024 | X187: 29.55121782 | Y187: -40.04282435 | AA187: 52.49417661 | AB187: -68.15313403 | AD187: 0 | AE187: 0
A188: 10593 | B188: 10.593 | C188: 2.760056261 | D188: 1.200049675 | E188: 1.00047676 | F188: 0.03087299827 | G188: 1 | H188: 0 | I188: 4261.029313 | J188: 1.570561642 | K188: 1.664925023 | L188: 0.9265104274 | M188: 1.001372072 | N188: 0.05235464868 | O188: 1.000154257 | P188: 0.02222459572 | Q188: 21.62900698 | R188: -108.1633815 | S188: 71.83661848 | U188: 1000000000 | V188: 112211649 | X188: 29.53291808 | Y188: -39.90111682 | AA188: 52.45066424 | AB188: -68.26226469 | AD188: 0 | AE188: 0
A189: 10654 | B189: 10.654 | C189: 2.773868915 | D189: 1.201984616 | E189: 1.000482266 | F189: 0.03105066712 | G189: 1 | H189: 0 | I189: 4285.566534 | J189: 1.570562985 | K189: 1.671060143 | L189: 0.9292656296 | M189: 1.001387908 | N189: 0.05265557859 | O189: 1.000156039 | P189: 0.02235255792 | Q189: 21.56761557 | R189: -108.130855 | S189: 71.86914497 | U189: 1000000000 | V189: 113507716 | X189: 29.51485432 | Y189: -39.76057436 | AA189: 52.40733659 | AB189: -68.37028066 | AD189: 0 | AE189: 0
A190: 10715 | B190: 10.715 | C190: 2.787691851 | D190: 1.203900375 | E190: 1.000487803 | F190: 0.031228334 | G190: 1 | H190: 0 | I190: 4310.103754 | J190: 1.570564314 | K190: 1.677207855 | L190: 0.9320006545 | M190: 1.001403836 | N190: 0.05295649896 | O190: 1.000157831 | P190: 0.02248051981 | Q190: 21.50663977 | R190: -108.0983842 | S190: 71.90161576 | U190: 1000000000 | V190: 114811225 | X190: 29.49702265 | Y190: -39.62118656 | AA190: 52.36419246 | AB190: -68.47719768 | AD190: 0 | AE190: 0
A191: 10777.5 | B191: 10.7775 | C191: 2.801865201 | D191: 1.20584363 | E191: 1.000493508 | F191: 0.0314103677 | G191: 1 | H191: 0 | I191: 4335.244348 | J191: 1.570565659 | K191: 1.683519658 | L191: 0.9347821948 | M191: 1.001420249 | N191: 0.05326480905 | O191: 1.000159677 | P191: 0.02261162797 | Q191: 21.44459043 | R191: -108.0651782 | S191: 71.93482184 | U191: 1000000000 | V191: 116154506.2 | X191: 29.47898925 | Y191: -39.479558 | AA191: 52.32017652 | AB191: -68.58562016 | AD191: 0 | AE191: 0
A192: 10840 | B192: 10.84 | C192: 2.816049025 | D192: 1.207767316 | E192: 1.000499247 | F192: 0.03159239932 | G192: 1 | H192: 0 | I192: 4360.384943 | J192: 1.570566989 | K192: 1.689844388 | L192: 0.9375429349 | M192: 1.001436757 | N192: 0.053573109 | O192: 1.000161535 | P192: 0.02274273579 | Q192: 21.38296689 | R192: -108.0320413 | S192: 71.9679587 | U192: 1000000000 | V192: 117505600 | X192: 29.46119149 | Y192: -39.33911973 | AA192: 52.27635074 | AB192: -68.69292157 | AD192: 0 | AE192: 0
A193: 10902.5 | B193: 10.9025 | C193: 2.830243165 | D193: 1.209671715 | E193: 1.00050502 | F193: 0.03177442884 | G193: 1 | H193: 0 | I193: 4385.525537 | J193: 1.570568304 | K193: 1.696181901 | L193: 0.9402830657 | M193: 1.001453361 | N193: 0.05388139876 | O193: 1.000163403 | P193: 0.02287384326 | Q193: 21.32176395 | R193: -107.9989788 | S193: 72.00102123 | U193: 1000000000 | V193: 118864506.2 | X193: 29.44362545 | Y193: -39.19986083 | AA193: 52.23271385 | AB193: -68.79911793 | AD193: 0 | AE193: 0
A194: 10965 | B194: 10.965 | C194: 2.844447467 | D194: 1.2115571 | E194: 1.000510825 | F194: 0.03195645626 | G194: 1 | H194: 0 | I194: 4410.666132 | J194: 1.570569604 | K194: 1.702532055 | L194: 0.9430027763 | M194: 1.001470059 | N194: 0.05418967827 | O194: 1.000165281 | P194: 0.0230049504 | Q194: 21.26097651 | R194: -107.9659955 | S194: 72.03400449 | U194: 1000000000 | V194: 120231225 | X194: 29.42628726 | Y194: -39.06177048 | AA194: 52.18926459 | AB194: -68.90422503 | AD194: 0 | AE194: 0
A195: 11028.75 | B195: 11.02875 | C195: 2.858946168 | D195: 1.213460885 | E195: 1.00051678 | F195: 0.03214212204 | G195: 1 | H195: 0 | I195: 4436.309538 | J195: 1.570570914 | K195: 1.709022089 | L195: 0.9457560388 | M195: 1.00148719 | N195: 0.05450411275 | O195: 1.000167209 | P195: 0.02313867932 | Q195: 21.19939613 | R195: -107.9324392 | S195: 72.06756085 | U195: 1000000000 | V195: 121633326.6 | X195: 29.40883313 | Y195: -38.92211101 | AA195: 52.14513834 | AB195: -69.01032814 | AD195: 0 | AE195: 0
A196: 11092.5 | B196: 11.0925 | C196: 2.873455126 | D196: 1.215345452 | E196: 1.000522771 | F196: 0.03232778561 | G196: 1 | H196: 0 | I196: 4461.952945 | J196: 1.57057221 | K196: 1.715524979 | L196: 0.9484884488 | M196: 1.00150442 | N196: 0.05481853644 | O196: 1.000169147 | P196: 0.02327240788 | Q196: 21.13823754 | R196: -107.898975 | S196: 72.10102497 | U196: 1000000000 | V196: 123043556.2 | X196: 29.3916082 | Y196: -38.78364482 | AA196: 52.10120468 | AB196: -69.11533021 | AD196: 0 | AE196: 0
A197: 11156.25 | B197: 11.15625 | C197: 2.887974186 | D197: 1.217211076 | E197: 1.000528795 | F197: 0.03251344694 | G197: 1 | H197: 0 | I197: 4487.596351 | J197: 1.57057349 | K197: 1.722040581 | L197: 0.951200202 | M197: 1.001521748 | N197: 0.05513294928 | O197: 1.000171097 | P197: 0.02340613607 | Q197: 21.07749557 | R197: -107.8656078 | S197: 72.13439223 | U197: 1000000000 | V197: 124461914.1 | X197: 29.37460862 | Y197: -38.64636071 | AA197: 52.05746229 | AB197: -69.21924706 | AD197: 0 | AE197: 0
A198: 11220 | B198: 11.22 | C198: 2.902503198 | D198: 1.21905803 | E198: 1.000534854 | F198: 0.03269910603 | G198: 1 | H198: 0 | I198: 4513.239758 | J198: 1.570574756 | K198: 1.728568751 | L198: 0.9538914923 | M198: 1.001539176 | N198: 0.05544735121 | O198: 1.000173058 | P198: 0.0235398639 | Q198: 21.01716514 | R198: -107.8323418 | S198: 72.16765817 | U198: 1000000000 | V198: 125888400 | X198: 29.35783061 | Y198: -38.51024759 | AA198: 52.01390987 | AB198: -69.32209424 | AD198: 0 | AE198: 0
A199: 11285.5 | B199: 11.2855 | C199: 2.917441254 | D199: 1.220936517 | E199: 1.000541115 | F199: 0.0328898593 | G199: 1 | H199: 0 | I199: 4539.587101 | J199: 1.570576042 | K199: 1.735289066 | L199: 0.9566355499 | M199: 1.001557185 | N199: 0.05577037235 | O199: 1.000175084 | P199: 0.02367726231 | Q199: 20.95560195 | R199: -107.7982727 | S199: 72.20172729 | U199: 1000000000 | V199: 127362510.2 | X199: 29.34081892 | Y199: -38.3716061 | AA199: 51.96935837 | AB199: -69.42666661 | AD199: 0 | AE199: 0
A200: 11351 | B200: 11.351 | C200: 2.932389499 | D200: 1.222795859 | E200: 1.000547413 | F200: 0.03308061018 | G200: 1 | H200: 0 | I200: 4565.934444 | J200: 1.570577314 | K200: 1.742022347 | L200: 0.9593584151 | M200: 1.001575299 | N200: 0.05609338184 | O200: 1.000177122 | P200: 0.02381466033 | Q200: 20.89446258 | R200: -107.7643195 | S200: 72.23568052 | U200: 1000000000 | V200: 128845201 | X200: 29.32403329 | Y200: -38.23417732 | AA200: 51.92500462 | AB200: -69.53014216 | AD200: 0 | AE200: 0
A201: 11416.5 | B201: 11.4165 | C201: 2.94734778 | D201: 1.224636334 | E201: 1.000553747 | F201: 0.03327135864 | G201: 1 | H201: 0 | I201: 4592.281787 | J201: 1.57057857 | K201: 1.748768443 | L201: 0.9620602926 | M201: 1.001593517 | N201: 0.05641637962 | O201: 1.000179172 | P201: 0.02395205795 | Q201: 20.83374177 | R201: -107.7304864 | S201: 72.26951361 | U201: 1000000000 | V201: 130336472.2 | X201: 29.30746988 | Y201: -38.09794955 | AA201: 51.88084723 | AB201: -69.63253685 | AD201: 0 | AE201: 0
A202: 11482 | B202: 11.482 | C202: 2.962315943 | D202: 1.226458216 | E202: 1.000560118 | F202: 0.03346210469 | G202: 1 | H202: 0 | I202: 4618.62913 | J202: 1.570579812 | K202: 1.755527208 | L202: 0.9647413852 | M202: 1.00161184 | N202: 0.05673936561 | O202: 1.000181234 | P202: 0.02408945518 | Q202: 20.77343435 | R202: -107.6967775 | S202: 72.3032225 | U202: 1000000000 | V202: 131836324 | X202: 29.29112489 | Y202: -37.96291117 | AA202: 51.8368848 | AB202: -69.73386634 | AD202: 0 | AE202: 0
... 433 more rows

Sheet Ch2 Stability Calculations (hidden)
A2: Divider Network & EA Poles/Zeros | E2: Modulator | J2: Power Stage Poles/Zeros | M2: Complex Pole Pair | P2: Total System
B3: Afb1 | C3: =Afb_Ch2 -> 0.12 | D3: V/V | E3: Acs | F3: =Acs_Ch2 -> 20.83333333 | G3: A/V | H3: gm | I3: =gm -> 0.0012 | J3: z_ESR | K3: =Fesr_Ch2 -> 663145.597 | L3: Hz | M3: p3 | N3: =Fsw/2 -> 1100000 | O3: Hz | P3: Adc | Q3: =Am_Ch2*Afb_Ch2*AEA -> 73699.18185 | R3: V/V
B4: EA zero, z1 | C4: =Fz1_u_Ch2 -> 5894.627529 | D4: Hz | E4: Am | F4: =Am_Ch2 -> 7.99687303 | G4: V/V | J4: p_dom | K4: =Fp_dominant_Ch2 -> 3455.233869 | L4: Hz | M4: pterm1 | N4: =Q_Ch2*pole3 -> 352575.3377 | P4: Crossover | Q4: =AE7 -> 58.884 | R4: kHz
B5: EA pole, p1 | C5: =Fp1_u_Ch2 -> 1.381229601 | D5: Hz | E5: Q | F5: =Q_Ch2 -> 0.3205230342 | M5: pterm2 | N5: =pole3^2 -> 1210000000000 | P5: Phase Margin | Q5: =AE9 -> 78.01915597 | R5: °
B6: Aea | C6: =AEA -> 76800 | D6: V/V | E6: mc | F6: =mc_Ch2 -> 1.666666667 | P6: radconv | Q6: =180/Pi -> 57.29577958 | AD6: XOVER SEARCH
B7: EA pole, p2 | C7: =Fp2_u_Ch2 -> 648307.5499 | D7: Hz | E7: k | F7: =k_Ch2 -> 1.493095199 | AD7: xover | AE7: =SUM(AD12:AD613)/1000 -> 58.884
AD9: phase margin | AE9: =SUM(AE13:AE613) -> 78.01915597
A10: Freq (Hz) | C10: Power Stage | I10: Error Amplifier | O10: Sampling Double Pole | Q10: System Response | X10: ERROR AMP Response | AA10: PLANT Response
C11: p_dom | E11: z_ESR | G11: z_RHP | I11: p1 | K11: z1 | M11: p2 | O11: p3
C12: Gain(V/V) | D12: Phase(rad) | E12: Gain(V/V) | F12: Phase(rad) | G12: Gain(V/V) | H12: Phase(rad) | I12: Gain(V/V) | J12: Phase(rad) | K12: Gain(V/V) | L12: Phase(rad) | M12: Gain(V/V) | N12: Phase(rad) | O12: Gain(V/V) | P12: Phase(rad) | Q12: Gain (dB) | R12: Phase (°) | S12: Phase Margin (°) | V12: Fsquare | X12: Gain(dB) | Y12: Phase(Deg) | AA12: Gain(dB) | AB12: Phase(Deg)
A13: 1 | B13: =A13/1000 -> 0.001 | C13: =SQRT(1+(A13/pole1)^2) -> 1.000000042 | D13: =ATAN(A13/pole1) -> 0.0002894160019 | E13: =SQRT(1+(A13/Zero1)^2) -> 1 | F13: =ATAN(A13/Zero1) -> 1.507964472e-06 | G13: =IF(VIN_nom>Vout, 1, SQRT(1+(A13/z_RHP)^2)) -> 1 | H13: =IF(VIN_nom>Vout, 0, -ATAN(A13/z_RHP)) -> 0 | I13: =SQRT(1+(A13/Pole2)^2) -> 1.234570887 | J13: =ATAN(A13/Pole2) -> 0.6266475517 | K13: =SQRT(1+(A13/Zero2)^2) -> 1.000000014 | L13: =ATAN(A13/Zero2) -> 0.0001696460015 | M13: =SQRT(1+(A13/pole4)^2) -> 1 | N13: =ATAN(A13/pole4) -> 1.542477795e-06 | O13: =SQRT((1-(V13/pterm2))^2+(A13/pterm1)^2) -> 1 | P13: =IF((ATAN((A13/pterm1)/(1-A13^2/pterm2))>0),ATAN((A13/pterm1)/(1-A13^2/pterm2)),PI()+ATAN((A13/pterm1)/(1-A13^2/pterm2))) -> 2.836273253e-06 | Q13: =20*LOG10(((E13*K13*G13)/(C13*I13*O13*M13))*Adc) -> 95.51893247 | R13: =((F13+L13+H13)-(D13+J13+P13+N13))*radconv -> -35.91128679 | S13: =IF(R13>0,R13,R13+180) -> 144.0887132 | U13: =IF(Q13<0,A13,1000000000) -> 1000000000 | V13: =A13^2 -> 1 | X13: =20*LOG10((K13/(I13*M13))*AEA) -> 95.8769039 | Y13: =(L13-(J13+N13))*radconv -> -35.89462837 | AA13: =20*LOG10((E13*G13/(C13*O13))*Acs*Am) -> 61.26622223 | AB13: =(F13+H13-(D13+P13))*radconv -> -0.01665842194 | AD13: =SUM((Q14<0)*(Q13>0))*A13 -> 0 | AE13: =IF(AD13>0,S11,0) -> 0
A14: 1.0965 | B14: =A14/1000 -> 0.0010965 | C14: 1.00000005 | D14: 0.0003173446443 | E14: 1 | F14: 1.653483044e-06 | G14: 1 | H14: 0 | I14: 1.276796902 | J14: 0.6709845085 | K14: 1.000000017 | L14: 0.0001860168403 | M14: 1 | N14: 1.691326902e-06 | O14: 1 | P14: 3.109973622e-06 | Q14: 95.22681664 | R14: -38.45228538 | S14: 141.5477146 | U14: =IF(Q14<0,A14,1000000000) -> 1000000000 | V14: =A14^2 -> 1.20231225 | X14: 95.58478814 | Y14: -38.43401942 | AA14: 61.26622216 | AB14: -0.01826595955 | AD14: =SUM((Q15<0)*(Q14>0))*A14 -> 0 | AE14: 0
A15: 1.2023 | B15: 0.0012023 | C15: 1.000000061 | D15: 0.0003479648548 | E15: 1 | F15: 1.813025685e-06 | G15: 1 | H15: 0 | I15: 1.325780585 | J15: 0.7162507712 | K15: 1.000000021 | L15: 0.0002039653867 | M15: 1 | N15: 1.854521053e-06 | O15: 1 | P15: 3.410051333e-06 | Q15: 94.89981989 | R15: -41.04659463 | S15: 138.9534054 | U15: 1000000000 | V15: 1.44552529 | X15: 95.25779148 | Y15: -41.02656621 | AA15: 61.26622207 | AB15: -0.02002842045 | AD15: 0 | AE15: 0
A16: 1.3183 | B16: 0.0013183 | C16: 1.000000073 | D16: 0.0003815371075 | E16: 1 | F16: 1.987949563e-06 | G16: 1 | H16: 0 | I16: 1.382372828 | J16: 0.7620910635 | K16: 1.000000025 | L16: 0.0002236443222 | M16: 1 | N16: 2.033448477e-06 | O16: 1 | P16: 3.73905903e-06 | Q16: 94.53674915 | R16: -43.67386502 | S16: 136.326135 | U16: 1000000000 | V16: 1.73791489 | X16: 94.89472085 | Y16: -43.65190423 | AA16: 61.26622196 | AB16: -0.02196079719 | AD16: 0 | AE16: 0
A17: 1.4454 | B17: 0.0014454 | C17: 1.000000087 | D17: 0.0004183218764 | E17: 1 | F17: 2.179611848e-06 | G17: 1 | H17: 0 | I17: 1.447437811 | J17: 0.8080963542 | K17: 1.00000003 | L17: 0.000245206328 | M17: 1 | N17: 2.229497405e-06 | O17: 1 | P17: 4.09954936e-06 | Q17: 94.13725457 | R17: -46.31066712 | S17: 133.6893329 | U17: 1000000000 | V17: 2.08918116 | X17: 94.4952264 | Y17: -46.28658904 | AA17: 61.26622184 | AB17: -0.02407808234 | AD17: 0 | AE17: 0
A18: 1.5849 | B18: 0.0015849 | C18: 1.000000105 | D18: 0.0004586954021 | E18: 1 | F18: 2.389972892e-06 | G18: 1 | H18: 0 | I18: 1.522056159 | J18: 0.8539559242 | K18: 1.000000036 | L18: 0.0002688719438 | M18: 1 | N18: 2.444673057e-06 | O18: 1 | P18: 4.495209479e-06 | Q18: 93.7006392 | R18: -48.93920718 | S18: 131.0607928 | U18: 1000000000 | V18: 2.51190801 | X18: 94.05861118 | Y18: -48.91280524 | AA18: 61.26622168 | AB18: -0.02640193182 | AD18: 0 | AE18: 0
A19: 1.7378 | B19: 0.0017378 | C19: 1.000000126 | D19: 0.0005029470998 | E19: 1 | F19: 2.620540659e-06 | G19: 1 | H19: 0 | I19: 1.607156592 | J19: 0.8992249428 | K19: 1.000000043 | L19: 0.0002948108156 | M19: 1 | N19: 2.680517912e-06 | O19: 1 | P19: 4.92887566e-06 | Q19: 93.22808873 | R19: -51.53400529 | S19: 128.4659947 | U19: 1000000000 | V19: 3.01994884 | X19: 93.5860609 | Y19: -51.50505628 | AA19: 61.2662215 | AB19: -0.02894900402 | AD19: 0 | AE19: 0
A20: 1.9055 | B20: 0.0019055 | C20: 1.000000152 | D20: 0.0005514821511 | E20: 1 | F20: 2.873426301e-06 | G20: 1 | H20: 0 | I20: 1.703880145 | J20: 0.9435768543 | K20: 1.000000052 | L20: 0.0003232604476 | M20: 1 | N20: 2.939191438e-06 | O20: 1 | P20: 5.404518684e-06 | Q20: 92.72047162 | R20: -54.07636102 | S20: 125.923639 | U20: 1000000000 | V20: 3.63093025 | X20: 93.07844401 | Y20: -54.0446184 | AA20: 61.26622127 | AB20: -0.03174262068 | AD20: 0 | AE20: 0
A21: 2.0893 | B21: 0.0020893 | C21: 1.000000183 | D21: 0.000604676796 | E21: 1 | F21: 3.150590171e-06 | G21: 1 | H21: 0 | I21: 1.81330441 | J21: 0.9866596849 | K21: 1.000000063 | L21: 0.0003544413794 | M21: 1 | N21: 3.222698857e-06 | O21: 1 | P21: 5.925825708e-06 | Q21: 92.17983794 | R21: -56.54611691 | S21: 123.4538831 | U21: 1000000000 | V21: 4.36517449 | X21: 92.53781059 | Y21: -56.51131247 | AA21: 61.26622101 | AB21: -0.0348044377 | AD21: 0 | AE21: 0
A22: 2.2909 | B22: 0.0022909 | C22: 1.00000022 | D22: 0.0006630230401 | E22: 1 | F22: 3.454595809e-06 | G22: 1 | H22: 0 | I22: 1.93673337 | J22: 1.028232478 | K22: 1.000000076 | L22: 0.0003886420089 | M22: 1 | N22: 3.533662381e-06 | O22: 1 | P22: 6.497618396e-06 | Q22: 91.60785537 | R22: -58.9294791 | S22: 121.0705209 | U22: 1000000000 | V22: 5.24822281 | X22: 91.96582834 | Y22: -58.89131632 | AA22: 61.26622069 | AB22: -0.03816277432 | AD22: 0 | AE22: 0
A23: 2.5119 | B23: 0.0025119 | C23: 1.000000264 | D23: 0.0007269839474 | E23: 1 | F23: 3.787855957e-06 | G23: 1 | H23: 0 | I23: 2.075402376 | J23: 1.068049522 | K23: 1.000000091 | L23: 0.0004261337694 | M23: 1 | N23: 3.874549973e-06 | O23: 1 | P23: 7.124434785e-06 | Q23: 91.00720563 | R23: -61.21238058 | S23: 118.7876194 | U23: 1000000000 | V23: 6.30964161 | X23: 91.365179 | Y23: -61.1705363 | AA23: 61.2662203 | AB23: -0.04184428389 | AD23: 0 | AE23: 0
A24: 2.7542 | B24: 0.0027542 | C24: 1.000000318 | D24: 0.0007971094059 | E24: 1 | F24: 4.153235749e-06 | G24: 1 | H24: 0 | I24: 2.230721262 | J24: 1.105949931 | K24: 1.000000109 | L24: 0.0004672389877 | M24: 1 | N24: 4.248292343e-06 | O24: 1 | P24: 7.811663794e-06 | Q24: 90.38034539 | R24: -63.38561666 | S24: 116.6143833 | U24: 1000000000 | V24: 7.58561764 | X24: 90.73831921 | Y24: -63.33973604 | AA24: 61.26621984 | AB24: -0.04588061731 | AD24: 0 | AE24: 0
A25: 3.02 | B25: 0.00302 | C25: 1.000000382 | D25: 0.0008740361276 | E25: 1 | F25: 4.554052705e-06 | G25: 1 | H25: 0 | I25: 2.404287205 | J25: 1.141838048 | K25: 1.000000131 | L25: 0.0005123308845 | M25: 1 | N25: 4.658282941e-06 | O25: 1 | P25: 8.565545225e-06 | Q25: 89.72952425 | R25: -65.44372205 | S25: 114.556278 | U25: 1000000000 | V25: 9.1204 | X25: 90.08749863 | Y25: -65.39341362 | AA25: 61.26621928 | AB25: -0.0503084229 | AD25: 0 | AE25: 0
A26: 3.3113 | B26: 0.0033113 | C26: 1.000000459 | D26: 0.0009583429405 | E26: 1 | F26: 4.993322756e-06 | G26: 1 | H26: 0 | I26: 2.597560204 | J26: 1.175613815 | K26: 1.000000158 | L26: 0.000561748751 | M26: 1 | N26: 5.107606723e-06 | O26: 1 | P26: 9.391751624e-06 | Q26: 89.05793828 | R26: -67.38097784 | S26: 112.6190222 | U26: 1000000000 | V26: 10.96470769 | X26: 89.41591333 | Y26: -67.32581682 | AA26: 61.26621861 | AB26: -0.05516101729 | AD26: 0 | AE26: 0
A27: 3.6308 | B27: 0.0036308 | C27: 1.000000552 | D27: 0.001050811262 | E27: 1 | F27: 5.475117405e-06 | G27: 1 | H27: 0 | I27: 2.81245766 | J27: 1.207282203 | K27: 1.00000019 | L27: 0.0006159506302 | M27: 1 | N27: 5.600428378e-06 | O27: 1 | P27: 1.029794093e-05 | Q27: 88.36753032 | R27: -69.1976879 | S27: 110.8023121 | U27: 1000000000 | V27: 13.18270864 | X27: 88.72550619 | Y27: -69.13720453 | AA27: 61.2662178 | AB27: -0.0604833779 | AD27: 0 | AE27: 0
A28: 3.9811 | B28: 0.0039811 | C28: 1.000000664 | D28: 0.001152193568 | E28: 1 | F28: 6.003357359e-06 | G28: 1 | H28: 0 | I28: 3.050832318 | J28: 1.236844161 | K28: 1.000000228 | L28: 0.0006753776003 | M28: 1 | N28: 6.14075835e-06 | O28: 1 | P28: 1.129148745e-05 | Q28: 87.66088278 | R28: -70.89392478 | S28: 109.1060752 | U28: 1000000000 | V28: 15.84915721 | X28: 88.01885962 | Y28: -70.82760596 | AA28: 61.26621683 | AB28: -0.06631881621 | AD28: 0 | AE28: 0
A29: 4.3652 | B29: 0.0043652 | C29: 1.000000798 | D29: 0.001263358095 | E29: 1 | F29: 6.582566513e-06 | G29: 1 | H29: 0 | I29: 3.314808308 | J29: 1.264345663 | K29: 1.000000274 | L29: 0.0007405385974 | M29: 1 | N29: 6.733224071e-06 | O29: 1 | P29: 1.238090001e-05 | Q29: 86.94008041 | R29: -72.47234378 | S29: 107.5276562 | U29: 1000000000 | V29: 19.05497104 | X29: 87.29805841 | Y29: -72.39962648 | AA29: 61.26621566 | AB29: -0.07271730696 | AD29: 0 | AE29: 0
A30: 4.7863 | B30: 0.0047863 | C30: 1.000000959 | D30: 0.001385230963 | E30: 1 | F30: 7.217570352e-06 | G30: 1 | H30: 0 | I30: 3.606650535 | J30: 1.289849409 | K30: 1.00000033 | L30: 0.0008119764862 | M30: 1 | N30: 7.38276147e-06 | O30: 1 | P30: 1.357525467e-05 | Q30: 86.20716659 | R30: -73.93655973 | S30: 106.0634403 | U30: 1000000000 | V30: 22.90866769 | X30: 86.56514599 | Y30: -73.85682758 | AA30: 61.26621426 | AB30: -0.07973215638 | AD30: 0 | AE30: 0
A31: 5.2481 | B31: 0.0052481 | C31: 1.000001154 | D31: 0.001518882994 | E31: 1 | F31: 7.913948345e-06 | G31: 1 | H31: 0 | I31: 3.928975714 | J31: 1.313445765 | K31: 1.000000396 | L31: 0.0008903189536 | M31: 1 | N31: 8.095077716e-06 | O31: 1 | P31: 1.488504566e-05 | Q31: 85.46365987 | R31: -75.29177633 | S31: 104.7082237 | U31: 1000000000 | V31: 27.54255361 | X31: 85.82164096 | Y31: -75.20435133 | AA31: 61.26621258 | AB31: -0.08742499969 | AD31: 0 | AE31: 0
A32: 5.7544 | B32: 0.0057544 | C32: 1.000001387 | D32: 0.001665413948 | E32: 1 | F32: 8.677430757e-06 | G32: 1 | H32: 0 | I32: 4.284477481 | J32: 1.335222821 | K32: 1.000000476 | L32: 0.0009762106501 | M32: 1 | N32: 8.876034223e-06 | O32: 1 | P32: 1.632105081e-05 | Q32: 84.71128813 | R32: -76.54306738 | S32: 103.4569326 | U32: 1000000000 | V32: 33.11311936 | X32: 85.06927125 | Y32: -76.44720824 | AA32: 61.26621055 | AB32: -0.09585913765 | AD32: 0 | AE32: 0
A33: 6.3096 | B33: 0.0063096 | C33: 1.000001667 | D33: 0.001826097227 | E33: 1 | F33: 9.514652632e-06 | G33: 1 | H33: 0 | I33: 4.67627748 | J33: 1.355286685 | K33: 1.000000573 | L33: 0.001070398012 | M33: 1 | N33: 9.732417895e-06 | O33: 1 | P33: 1.789574972e-05 | Q33: 83.95123836 | R33: -77.69654338 | S33: 102.3034566 | U33: 1000000000 | V33: 39.81105216 | X33: 84.30922391 | Y33: -77.59143552 | AA33: 61.26620811 | AB33: -0.1051078657 | AD33: 0 | AE33: 0
A34: 6.9183 | B34: 0.0069183 | C34: 1.000002005 | D34: 0.002002264106 | E34: 1 | F34: 1.043255061e-05 | G34: 1 | H34: 0 | I34: 5.107646908 | J34: 1.373738578 | K34: 1.000000689 | L34: 0.001173661404 | M34: 1 | N34: 1.067132413e-05 | O34: 1 | P34: 1.962218925e-05 | Q34: 83.18482457 | R34: -78.75803616 | S34: 101.2419638 | U34: 1000000000 | V34: 47.86287489 | X34: 83.54281305 | Y34: -78.64278835 | AA34: 61.26620518 | AB34: -0.1152478104 | AD34: 0 | AE34: 0
A35: 7.5858 | B35: 0.0075858 | C35: 1.00000241 | D35: 0.002195448441 | E35: 1 | F35: 1.143911689e-05 | G35: 1 | H35: 0 | I35: 5.582361157 | J35: 1.390688488 | K35: 1.000000828 | L35: 0.00128689994 | M35: 1 | N35: 1.170092806e-05 | O35: 1 | P35: 2.151540164e-05 | Q35: 82.41288099 | R35: -79.73388481 | S35: 100.2661152 | U35: 1000000000 | V35: 57.54436164 | X35: 82.77087299 | Y35: -79.60751755 | AA35: 61.26620166 | AB35: -0.1263672586 | AD35: 0 | AE35: 0
A36: 8.3176 | B36: 0.0083176 | C36: 1.000002897 | D36: 0.002407241955 | E36: 1 | F36: 1.254264529e-05 | G36: 1 | H36: 0 | I36: 6.104346666 | J36: 1.406236931 | K36: 1.000000996 | L36: 0.001411046659 | M36: 1 | N36: 1.282971331e-05 | O36: 1 | P36: 2.359098641e-05 | Q36: 81.63645303 | R36: -80.62988713 | S36: 99.37011287 | U36: 1000000000 | V36: 69.18246976 | X36: 81.99444926 | Y36: -80.49132931 | AA36: 61.26619743 | AB36: -0.1385578278 | AD36: 0 | AE36: 0
A37: 9.1201 | B37: 0.0091201 | C37: 1.000003483 | D37: 0.002639496823 | E37: 1 | F37: 1.375278678e-05 | G37: 1 | H37: 0 | I37: 6.678180011 | J37: 1.420489612 | K37: 1.000001197 | L37: 0.001547187278 | M37: 1 | N37: 1.406755174e-05 | O37: 1 | P37: 2.586709569e-05 | Q37: 80.85607104 | R37: -81.45214453 | S37: 98.54785547 | U37: 1000000000 | V37: 83.17622401 | X37: 81.21407237 | Y37: -81.3002184 | AA37: 61.26619234 | AB37: -0.1519261269 | AD37: 0 | AE37: 0
A38: 10 | B38: 0.01 | C38: 1.000004188 | D38: 0.002894152019 | E38: 1 | F38: 1.507964472e-05 | G38: 1 | H38: 0 | I38: 7.308661123 | J38: 1.433541815 | K38: 1.000001439 | L38: 0.001696458404 | M38: 1 | N38: 1.542477795e-05 | O38: 1 | P38: 2.836273253e-05 | Q38: 80.07247294 | R38: -82.20616347 | S38: 97.79383653 | U38: 1000000000 | V38: 100 | X38: 80.43048039 | Y38: -82.03957971 | AA38: 61.26618622 | AB38: -0.166583761 | AD38: 0 | AE38: 0
A39: 10.965 | B39: 0.010965 | C39: 1.000005035 | D39: 0.003173435897 | E39: 1 | F39: 1.653483043e-05 | G39: 1 | H39: 0 | I39: 8.001314455 | J39: 1.445489193 | K39: 1.00000173 | L39: 0.001860166278 | M39: 1 | N39: 1.691326902e-05 | O39: 1 | P39: 3.109973622e-05 | Q39: 79.28599785 | R39: -82.89747855 | S39: 97.10252145 | U39: 1000000000 | V39: 120.231225 | X39: 79.64401265 | Y39: -82.71481956 | AA39: 61.26617886 | AB39: -0.1826589913 | AD39: 0 | AE39: 0
A40: 12.023 | B40: 0.012023 | C40: 1.000006054 | D40: 0.003479634644 | E40: 1 | F40: 1.813025684e-05 | G40: 1 | H40: 0 | I40: 8.761815793 | J40: 1.456415489 | K40: 1.00000208 | L40: 0.002039651067 | M40: 1 | N40: 1.854521053e-05 | O40: 1 | P40: 3.410051332e-05 | Q40: 78.49733645 | R40: -83.53094342 | S40: 96.46905658 | U40: 1000000000 | V40: 144.552529 | X40: 78.8553601 | Y40: -83.33066001 | AA40: 61.26617001 | AB40: -0.2002834079 | AD40: 0 | AE40: 0
A41: 13.183 | B41: 0.013183 | C41: 1.000007279 | D41: 0.003815352746 | E41: 1 | F41: 1.987949563e-05 | G41: 1 | H41: 0 | I41: 9.596638134 | J41: 1.466403663 | K41: 1.000002501 | L41: 0.00223643953 | M41: 1 | N41: 2.033448477e-05 | O41: 1.000000001 | P41: 3.739059029e-05 | Q41: 77.70682945 | R41: -84.11137451 | S41: 95.88862549 | U41: 1000000000 | V41: 173.791489 | X41: 78.06486374 | Y41: -83.89176759 | AA41: 61.26615937 | AB41: -0.2196069218 | AD41: 0 | AE41: 0
A42: 14.454 | B42: 0.014454 | C42: 1.00000875 | D42: 0.004183194608 | E42: 1 | F42: 2.179611847e-05 | G42: 1 | H42: 0 | I42: 10.51226053 | J42: 1.475525251 | K42: 1.000003006 | L42: 0.002452058414 | M42: 1 | N42: 2.229497405e-05 | O42: 1.000000001 | P42: 4.099549359e-05 | Q42: 76.91528113 | R42: -84.64293381 | S42: 95.35706619 | U42: 1000000000 | V42: 208.918116 | X42: 77.27332819 | Y42: -84.40215437 | AA42: 61.26614659 | AB42: -0.2407794393 | AD42: 0 | AE42: 0
A43: 15.849 | B43: 0.015849 | C43: 1.00001052 | D43: 0.004586922173 | E43: 1 | F43: 2.389972891e-05 | G43: 1 | H43: 0 | I43: 11.51805084 | J43: 1.483866638 | K43: 1.000003615 | L43: 0.002688713024 | M43: 1 | N43: 2.444673057e-05 | O43: 1.000000001 | P43: 4.495209477e-05 | Q43: 76.12161353 | R43: -85.1306621 | S43: 94.8693379 | U43: 1000000000 | V43: 251.190801 | X43: 76.47967597 | Y43: -84.86664461 | AA43: 61.26613122 | AB43: -0.2640174935 | AD43: 0 | AE43: 0
A44: 17.378 | B44: 0.017378 | C44: 1.000012648 | D44: 0.005029429015 | E44: 1 | F44: 2.620540659e-05 | G44: 1 | H44: 0 | I44: 12.62122146 | J44: 1.49148156 | K44: 1.000004346 | L44: 0.002948099701 | M44: 1 | N44: 2.680517912e-05 | O44: 1.000000001 | P44: 4.928875657e-05 | Q44: 75.32715347 | R44: -85.57770847 | S44: 94.42229153 | U44: 1000000000 | V44: 301.994884 | X44: 75.6852344 | Y44: -85.28822084 | AA44: 61.26611273 | AB44: -0.2894876348 | AD44: 0 | AE44: 0
A45: 19.055 | B45: 0.019055 | C45: 1.000015207 | D45: 0.005514766164 | E45: 1 | F45: 2.873426301e-05 | G45: 1 | H45: 0 | I45: 13.8318746 | J45: 1.498436417 | K45: 1.000005225 | L45: 0.003232593329 | M45: 1 | N45: 2.939191438e-05 | O45: 1.000000001 | P45: 5.404518681e-05 | Q45: 74.53154576 | R45: -85.9879758 | S45: 94.0120242 | U45: 1000000000 | V45: 363.093025 | X45: 74.88964892 | Y45: -85.67055276 | AA45: 61.26609051 | AB45: -0.3174230356 | AD45: 0 | AE45: 0
A46: 20.893 | B46: 0.020893 | C46: 1.000018282 | D46: 0.006046695002 | E46: 1 | F46: 3.15059017e-05 | G46: 1 | H46: 0 | I46: 15.15939604 | J46: 1.504782703 | K46: 1.000006281 | L46: 0.0035443991 | M46: 1.000000001 | N46: 3.222698856e-05 | O46: 1.000000001 | P46: 5.925825704e-05 | Q46: 73.73551111 | R46: -86.36450561 | S46: 93.63549439 | U46: 1000000000 | V46: 436.517449 | X46: 74.09364097 | Y46: -86.01646542 | AA46: 61.2660638 | AB46: -0.3480401968 | AD46: 0 | AE46: 0
A47: 22.909 | B47: 0.022909 | C47: 1.00002198 | D47: 0.006630134221 | E47: 1.000000001 | F47: 3.454595808e-05 | G47: 1 | H47: 0 | I47: 16.61606496 | J47: 1.510577217 | K47: 1.000007552 | L47: 0.003886400718 | M47: 1.000000001 | N47: 3.533662379e-05 | O47: 1.000000002 | P47: 6.49761839e-05 | Q47: 72.93856438 | R47: -86.71067175 | S47: 93.28932825 | U47: 1000000000 | V47: 524.822281 | X47: 73.29672636 | Y47: -86.32904952 | AA47: 61.26603167 | AB47: -0.3816222324 | AD47: 0 | AE47: 0
A48: 25.119 | B48: 0.025119 | C48: 1.000026425 | D48: 0.007269712687 | E48: 1.000000001 | F48: 3.787855955e-05 | G48: 1 | H48: 0 | I48: 18.2134429 | J48: 1.515864203 | K48: 1.000009079 | L48: 0.004261312158 | M48: 1.000000001 | N48: 3.874549971e-05 | O48: 1.000000002 | P48: 7.124434777e-05 | Q48: 72.14126168 | R48: -87.02912157 | S48: 92.97087843 | U48: 1000000000 | V48: 630.964161 | X48: 72.49946228 | Y48: -86.610686 | AA48: 61.26599306 | AB48: -0.4184355746 | AD48: 0 | AE48: 0
A49: 27.542 | B49: 0.027542 | C49: 1.000031769 | D49: 0.00797092693 | E49: 1.000000001 | F49: 4.153235746e-05 | G49: 1 | H49: 0 | I49: 19.96526321 | J49: 1.520688368 | K49: 1.000010916 | L49: 0.004672356216 | M49: 1.000000001 | N49: 4.24829234e-05 | O49: 1.000000002 | P49: 7.811663784e-05 | Q49: 71.34357139 | R49: -87.32254993 | S49: 92.67745007 | U49: 1000000000 | V49: 758.561764 | X49: 71.7018184 | Y49: -86.86375333 | AA49: 61.26594665 | AB49: -0.4587965973 | AD49: 0 | AE49: 0
A50: 30.2 | B50: 0.0302 | C50: 1.000038196 | D50: 0.008740140942 | E50: 1.000000001 | F50: 4.554052702e-05 | G50: 1 | H50: 0 | I50: 21.88743239 | J50: 1.525092097 | K50: 1.000013124 | L50: 0.005123264468 | M50: 1.000000001 | N50: 4.658282938e-05 | O50: 1.000000003 | P50: 8.565545211e-05 | Q50: 70.54513919 | R50: -87.59353982 | S50: 92.40646018 | U50: 1000000000 | V50: 912.04 | X50: 70.90344203 | Y50: -87.09046822 | AA50: 61.26589082 | AB50: -0.5030716048 | AD50: 0 | AE50: 0
A51: 33.113 | B51: 0.033113 | C51: 1.00004592 | D51: 0.009583138967 | E51: 1.000000001 | F51: 4.993322752e-05 | G51: 1 | H51: 0 | I51: 23.99441396 | J51: 1.529107886 | K51: 1.000015778 | L51: 0.005617429013 | M51: 1.000000001 | N51: 5.107606718e-05 | O51: 1.000000004 | P51: 9.391751605e-05 | Q51: 69.74678856 | R51: -87.84409337 | S51: 92.15590663 | U51: 1000000000 | V51: 1096.470769 | X51: 70.10515849 | Y51: -87.29249984 | AA51: 61.26582373 | AB51: -0.551593532 | AD51: 0 | AE51: 0
A52: 36.308 | B52: 0.036308 | C52: 1.000055209 | D52: 0.01050772975 | E52: 1.000000001 | F52: 5.475117399e-05 | G52: 1 | H52: 0 | I52: 26.30573718 | J52: 1.532772644 | K52: 1.00001897 | L52: 0.006159429186 | M52: 1.000000002 | N52: 5.600428372e-05 | O52: 1.000000004 | P52: 0.000102979409 | Q52: 68.947929 | R52: -88.07651491 | S52: 91.92348509 | U52: 1000000000 | V52: 1318.270864 | X52: 69.30637962 | Y52: -87.47170306 | AA52: 61.26574305 | AB52: -0.6048118417 | AD52: 0 | AE52: 0
A53: 39.811 | B53: 0.039811 | C53: 1.000066375 | D53: 0.01152143095 | E53: 1.000000002 | F53: 6.003357352e-05 | G53: 1 | H53: 0 | I53: 28.84021122 | J53: 1.536115565 | K53: 1.000022806 | L53: 0.006753674344 | M53: 1.000000002 | N53: 6.140758342e-05 | O53: 1.000000005 | P53: 0.0001129148742 | Q53: 68.14890614 | R53: -88.29265944 | S53: 91.70734056 | U53: 1000000000 | V53: 1584.915721 | X53: 68.50745374 | Y53: -87.62950019 | AA53: 61.26564606 | AB53: -0.6631592434 | AD53: 0 | AE53: 0
A54: 43.652 | B54: 0.043652 | C54: 1.000079801 | D54: 0.01263291559 | E54: 1.000000002 | F54: 6.582566504e-05 | G54: 1 | H54: 0 | I54: 31.61954161 | J54: 1.53916504 | K54: 1.00002742 | L54: 0.007405251962 | M54: 1.000000002 | N54: 6.733224061e-05 | O54: 1.000000006 | P54: 0.0001238089996 | Q54: 67.34968693 | R54: -88.49436401 | S54: 91.50563599 | U54: 1000000000 | V54: 1905.497104 | X54: 67.70835115 | Y54: -87.76722906 | AA54: 61.26552945 | AB54: -0.7271349477 | AD54: 0 | AE54: 0
A55: 47.863 | B55: 0.047863 | C55: 1.000095939 | D55: 0.01385143256 | E55: 1.000000003 | F55: 7.21757034e-05 | G55: 1 | H55: 0 | I55: 34.66688345 | J55: 1.541946351 | K55: 1.000032965 | L55: 0.008119588206 | M55: 1.000000003 | N55: 7.382761457e-05 | O55: 1.000000007 | P55: 0.0001357525462 | Q55: 66.55041031 | R55: -88.68330146 | S55: 91.31669854 | U55: 1000000000 | V55: 2290.866769 | X55: 66.90921469 | Y55: -87.88603015 | AA55: 61.26538928 | AB55: -0.7972713118 | AD55: 0 | AE55: 0
A56: 52.481 | B56: 0.052481 | C56: 1.000115344 | D56: 0.01518767376 | E56: 1.000000003 | F56: 7.913948329e-05 | G56: 1 | H56: 0 | I56: 38.0090123 | J56: 1.544483741 | K56: 1.000039633 | L56: 0.008902956657 | M56: 1.000000003 | N56: 8.095077698e-05 | O56: 1.000000009 | P56: 0.0001488504559 | Q56: 65.750864 | R56: -88.86112003 | S56: 91.13887997 | U56: 1000000000 | V56: 2754.255361 | X56: 66.10983693 | Y56: -87.98693628 | AA56: 61.26522074 | AB56: -0.8741837523 | AD56: 0 | AE56: 0
A57: 57.544 | B57: 0.057544 | C57: 1.000138671 | D57: 0.0166526154 | E57: 1.000000004 | F57: 8.677430736e-05 | G57: 1 | H57: 0 | I57: 41.67342953 | J57: 1.546797918 | K57: 1.000047648 | L57: 0.009761799514 | M57: 1.000000004 | N57: 8.8760342e-05 | O57: 1.000000011 | P57: 0.0001632105071 | Q57: 64.95127786 | R57: -89.0292723 | S57: 90.9707277 | U57: 1000000000 | V57: 3311.311936 | X57: 65.31045338 | Y57: -88.07076825 | AA57: 61.26501814 | AB57: -0.9585040529 | AD57: 0 | AE57: 0
A58: 63.096 | B58: 0.063096 | C58: 1.000166718 | D58: 0.01825896318 | E58: 1.000000005 | F58: 9.514652604e-05 | G58: 1 | H58: 0 | I58: 45.69198077 | J58: 1.548908901 | K58: 1.000057286 | L58: 0.01070357544 | M58: 1.000000005 | N58: 9.732417865e-05 | O58: 1.000000013 | P58: 0.0001789574959 | Q58: 64.15150311 | R58: -89.18921308 | S58: 90.81078692 | U58: 1000000000 | V58: 3981.105216 | X58: 64.51092222 | Y58: -88.13824953 | AA58: 61.26477455 | AB58: -1.050963544 | AD58: 0 | AE58: 0
A59: 69.183 | B59: 0.069183 | C59: 1.000200434 | D59: 0.02001999272 | E59: 1.000000005 | F59: 0.0001043255057 | G59: 1 | H59: 0 | I59: 50.09796097 | J59: 1.550834109 | K59: 1.000068872 | L59: 0.01173608058 | M59: 1.000000006 | N59: 0.0001067132409 | O59: 1.000000015 | P59: 0.0001962218907 | Q59: 63.35170962 | R59: -89.34226196 | S59: 90.65773804 | U59: 1000000000 | V59: 4786.287489 | X59: 63.71142154 | Y59: -88.18993559 | AA59: 61.26448174 | AB59: -1.152326365 | AD59: 0 | AE59: 0
A60: 75.858 | B60: 0.075858 | C60: 1.000240971 | D60: 0.02195099334 | E60: 1.000000007 | F60: 0.0001143911684 | G60: 1 | H60: 0 | I60: 54.92973338 | J60: 1.552590245 | K60: 1.000082802 | L60: 0.01286829616 | M60: 1.000000007 | N60: 0.00011700928 | O60: 1.000000018 | P60: 0.0002151540142 | Q60: 62.55172973 | R60: -89.48974606 | S60: 90.51025394 | U60: 1000000000 | V60: 5754.436164 | X60: 62.9117937 | Y60: -88.2262735 | AA60: 61.26412969 | AB60: -1.263472562 | AD60: 0 | AE60: 0
A61: 83.176 | B61: 0.083176 | C61: 1.0002897 | D61: 0.0240678178 | E61: 1.000000008 | F61: 0.0001254264523 | G61: 1 | H61: 0 | I61: 60.22711036 | J61: 1.554191745 | K61: 1.000099548 | L61: 0.01410953957 | M61: 1.000000008 | N61: 0.0001282971324 | O61: 1.000000022 | P61: 0.0002359098611 | Q61: 61.75176129 | R61: -89.6328761 | S61: 90.3671239 | U61: 1000000000 | V61: 6918.246976 | X61: 62.11224841 | Y61: -88.24756148 | AA61: 61.26370653 | AB61: -1.385314616 | AD61: 0 | AE61: 0
A62: 91.201 | B62: 0.091201 | C62: 1.000348288 | D62: 0.0263889023 | E62: 1.000000009 | F62: 0.0001375278669 | G62: 1 | H62: 0 | I62: 66.03642045 | J62: 1.555652589 | K62: 1.000119682 | L62: 0.01547065076 | M62: 1.00000001 | N62: 0.0001406755165 | O62: 1.000000027 | P62: 0.000258670953 | Q62: 60.95159744 | R62: -89.77289869 | S62: 90.22710131 | U62: 1000000000 | V62: 8317.622401 | X62: 61.31259332 | Y62: -88.25398497 | AA62: 61.26319778 | AB62: -1.518913717 | AD62: 0 | AE62: 0
A63: 100 | B63: 0.1 | C63: 1.00041872 | D63: 0.02893352441 | E63: 1.000000011 | F63: 0.0001507964461 | G63: 1 | H63: 0 | I63: 72.40616507 | J63: 1.556984909 | K63: 1.000143888 | L63: 0.01696297313 | M63: 1.000000012 | N63: 0.0001542477783 | O63: 1.000000032 | P63: 0.0002836273201 | Q63: 60.15135564 | R63: -89.91097462 | S63: 90.08902538 | U63: 1000000000 | V63: 10000 | X63: 60.51296309 | Y63: -88.24559513 | AA63: 61.26258622 | AB63: -1.665379485 | AD63: 0 | AE63: 0
A64: 109.65 | B64: 0.10965 | C64: 1.000503411 | D64: 0.03172381892 | E64: 1.000000014 | F64: 0.0001653483028 | G64: 1 | H64: 0 | I64: 79.39208588 | J64: 1.55820028 | K64: 1.000172996 | L64: 0.01859953915 | M64: 1.000000014 | N64: 0.0001691326886 | O64: 1.000000038 | P64: 0.0003109973553 | Q64: 59.35083977 | R64: -90.04830128 | S64: 89.95169872 | U64: 1000000000 | V64: 12023.1225 | X64: 59.71318253 | Y64: -88.22231527 | AA64: 61.2618509 | AB64: -1.825986012 | AD64: 0 | AE64: 0
A65: 120.23 | B65: 0.12023 | C65: 1.000605215 | D65: 0.03478245327 | E65: 1.000000016 | F65: 0.0001813025665 | G65: 1 | H65: 0 | I65: 87.05137333 | J65: 1.559308605 | K65: 1.000207988 | L65: 0.02039371121 | M65: 1.000000017 | N65: 0.0001854521032 | O65: 1.000000046 | P65: 0.0003410051241 | Q65: 58.55029152 | R65: -90.1859922 | S65: 89.8140078 | U65: 1000000000 | V65: 14455.2529 | X65: 58.91351808 | Y65: -88.18395414 | AA65: 61.2609671 | AB65: -2.002038058 | AD65: 0 | AE65: 0
A66: 131.83 | B66: 0.13183 | C66: 1.000727588 | D66: 0.03813521522 | E66: 1.00000002 | F66: 0.0001987949537 | G66: 1 | H66: 0 | I66: 95.44918201 | J66: 1.560319356 | K66: 1.000250053 | L66: 0.02236070505 | M66: 1.000000021 | N66: 0.0002033448449 | O66: 1.000000056 | P66: 0.0003739058909 | Q66: 57.74966283 | R66: -90.32521067 | S66: 89.67478933 | U66: 1000000000 | V66: 17379.1489 | X66: 58.11395166 | Y66: -88.13019067 | AA66: 61.25990483 | AB66: -2.195020003 | AD66: 0 | AE66: 0
A67: 144.54 | B67: 0.14454 | C67: 1.000874584 | D67: 0.04180781451 | E67: 1.000000024 | F67: 0.0002179611813 | G67: 1 | H67: 0 | I67: 104.6506672 | J67: 1.561240581 | K67: 1.000300586 | L67: 0.02451572062 | M67: 1.000000025 | N67: 0.0002229497368 | O67: 1.000000067 | P67: 0.0004099549202 | Q67: 56.94942995 | R67: -90.46703468 | S67: 89.53296532 | U67: 1000000000 | V67: 20891.8116 | X67: 57.31499461 | Y67: -88.06062293 | AA67: 61.258629 | AB67: -2.406411756 | AD67: 0 | AE67: 0
A68: 158.49 | B68: 0.15849 | C68: 1.001051455 | D68: 0.04583741391 | E68: 1.000000029 | F68: 0.0002389972846 | G68: 1 | H68: 0 | I68: 114.7499434 | J68: 1.562081615 | K68: 1.000361395 | L68: 0.02688071873 | M68: 1.00000003 | N68: 0.0002444673009 | O68: 1.00000008 | P68: 0.000449520927 | Q68: 56.14821348 | R68: -90.6128916 | S68: 89.3871084 | U68: 1000000000 | V68: 25119.0801 | X68: 56.51531302 | Y68: -87.97453912 | AA68: 61.25709412 | AB68: -2.63835248 | AD68: 0 | AE68: 0
A69: 173.78 | B69: 0.17378 | C69: 1.00126398 | D69: 0.05025237066 | E69: 1.000000034 | F69: 0.0002620540599 | G69: 1 | H69: 0 | I69: 125.8194067 | J69: 1.562848344 | K69: 1.000434473 | L69: 0.02947254586 | M69: 1.000000036 | N69: 0.0002680517848 | O69: 1.000000097 | P69: 0.0004928875384 | Q69: 55.34710092 | R69: -90.76379449 | S69: 89.23620551 | U69: 1000000000 | V69: 30199.4884 | X69: 55.71604439 | Y69: -87.87131996 | AA69: 61.25525019 | AB69: -2.892474537 | AD69: 0 | AE69: 0
A70: 190.55 | B70: 0.19055 | C70: 1.001519509 | D70: 0.05509241459 | E70: 1.000000041 | F70: 0.0002873426222 | G70: 1 | H70: 0 | I70: 137.9604128 | J70: 1.563547807 | K70: 1.00052235 | L70: 0.03231479299 | M70: 1.000000043 | N70: 0.0002939191354 | O70: 1.000000116 | P70: 0.000540451832 | Q70: 54.54551023 | R70: -90.92109452 | S70: 89.07890548 | U70: 1000000000 | V70: 36309.3025 | X70: 54.91667021 | Y70: -87.75002959 | AA70: 61.25303368 | AB70: -3.171064933 | AD70: 0 | AE70: 0
A71: 208.93 | B71: 0.20893 | C71: 1.001826503 | D71: 0.06039415139 | E71: 1.00000005 | F71: 0.0003150590067 | G71: 1 | H71: 0 | I71: 151.2670778 | J71: 1.564185455 | K71: 1.000627946 | L71: 0.03542930793 | M71: 1.000000052 | N71: 0.0003222698746 | O71: 1.00000014 | P71: 0.0005925825228 | Q71: 53.74396599 | R71: -91.08597084 | S71: 88.91402916 | U71: 1000000000 | V71: 43651.7449 | X71: 54.11778817 | Y71: -87.60973993 | AA71: 61.25037149 | AB71: -3.476230912 | AD71: 0 | AE71: 0
A72: 229.09 | B72: 0.22909 | C72: 1.002195588 | D72: 0.06620541426 | E72: 1.00000006 | F72: 0.0003454595671 | G72: 1 | H72: 0 | I72: 165.8624776 | J72: 1.564767199 | K72: 1.000754928 | L72: 0.03884465339 | M72: 1.000000062 | N72: 0.0003533662233 | O72: 1.000000168 | P72: 0.0006497617764 | Q72: 52.9417939 | R72: -91.25989428 | S72: 88.74010572 | U72: 1000000000 | V72: 52482.2281 | X72: 53.31881564 | Y72: -87.44916823 | AA72: 61.24717193 | AB72: -3.810726055 | AD72: 0 | AE72: 0
A73: 251.19 | B73: 0.25119 | C73: 1.002639047 | D73: 0.07257074037 | E73: 1.000000072 | F73: 0.0003787855776 | G73: 1 | H73: 0 | I73: 181.8624487 | J73: 1.565297638 | K73: 1.000907538 | L73: 0.04258761371 | M73: 1.000000075 | N73: 0.0003874549779 | O73: 1.000000202 | P73: 0.0007124433951 | Q73: 52.13937779 | R73: -91.44417177 | S73: 88.55582823 | U73: 1000000000 | V73: 63096.4161 | X73: 52.52024226 | Y73: -87.26705744 | AA73: 61.24332919 | AB73: -4.177114329 | AD73: 0 | AE73: 0
A74: 275.42 | B74: 0.27542 | C74: 1.003171888 | D74: 0.0795427747 | E74: 1.000000086 | F74: 0.000415323551 | G74: 1 | H74: 0 | I74: 199.4045473 | J74: 1.565781375 | K74: 1.001090966 | L74: 0.0466899453 | M74: 1.00000009 | N74: 0.0004248292087 | O74: 1.000000242 | P74: 0.0007811662695 | Q74: 51.33651382 | R74: -91.64029517 | S74: 88.35970483 | U74: 1000000000 | V74: 75856.1764 | X74: 51.72199331 | Y74: -87.06186864 | AA74: 61.23871417 | AB74: -4.57842653 | AD74: 0 | AE74: 0
A75: 302 | B75: 0.302 | C75: 1.00381243 | D75: 0.08718207936 | E75: 1.000000104 | F75: 0.0004554052391 | G75: 1 | H75: 0 | I75: 218.6480497 | J75: 1.566222751 | K75: 1.001311555 | L75: 0.05118833735 | M75: 1.000000108 | N75: 0.0004658282604 | O75: 1.000000291 | P75: 0.0008565543776 | Q75: 50.53267177 | R75: -91.84991715 | S75: 88.15008285 | U75: 1000000000 | V75: 91204 | X75: 50.92369586 | Y75: -86.8317678 | AA75: 61.23316958 | AB75: -5.018149355 | AD75: 0 | AE75: 0
A76: 331.13 | B76: 0.33113 | C76: 1.004581613 | D76: 0.09554254182 | E76: 1.000000125 | F76: 0.0004993322341 | G76: 1 | H76: 0 | I76: 239.7377528 | J76: 1.56662509 | K76: 1.001576566 | L76: 0.05611590382 | M76: 1.00000013 | N76: 0.0005107606278 | O76: 1.00000035 | P76: 0.0009391749714 | Q76: 49.72850023 | R76: -92.07445137 | S76: 87.92554863 | U76: 1000000000 | V76: 109647.0769 | X76: 50.12617776 | Y76: -86.57506582 | AA76: 61.22651613 | AB76: -5.499385549 | AD76: 0 | AE76: 0
A77: 363.08 | B77: 0.36308 | C77: =SQRT(1+(A77/pole1)^2) -> 1.005505868 | D77: =ATAN(A77/pole1) -> 0.1046969368 | E77: =SQRT(1+(A77/Zero1)^2) -> 1.00000015 | F77: =ATAN(A77/Zero1) -> 0.0005475116858 | G77: =IF(VIN_nom>Vout, 1, SQRT(1+(A77/z_RHP)^2)) -> 1 | H77: =IF(VIN_nom>Vout, 0, -ATAN(A77/z_RHP)) -> 0 | I77: =SQRT(1+(A77/Pole2)^2) -> 262.8691326 | J77: =ATAN(A77/Pole2) -> 1.566992143 | K77: =SQRT(1+(A77/Zero2)^2) -> 1.001895181 | L77: =ATAN(A77/Zero2) -> 0.06151735138 | M77: =SQRT(1+(A77/pole4)^2) -> 1.000000157 | N77: =ATAN(A77/pole4) -> 0.0005600427793 | O77: =SQRT((1-(V77/pterm2))^2+(A77/pterm1)^2) -> 1.000000421 | P77: =IF((ATAN((A77/pterm1)/(1-A77^2/pterm2))>0),ATAN((A77/pterm1)/(1-A77^2/pterm2)),PI()+ATAN((A77/pterm1)/(1-A77^2/pterm2))) -> 0.001029793841 | Q77: =20*LOG10(((E77*K77*G77)/(C77*I77*O77*M77))*Adc) -> 48.92321133 | R77: =((F77+L77+H77)-(D77+J77+P77+N77))*radconv -> -92.31576527 | S77: =IF(R77>0,R77,R77+180) -> 87.68423473 | U77: 1000000000 | V77: 131827.0864 | X77: =20*LOG10((K77/(I77*M77))*AEA) -> 49.32887695 | Y77: =(L77-(J77+N77))*radconv -> -86.28943993 | AA77: =20*LOG10((E77*G77/(C77*O77))*Acs*Am) -> 61.21852805 | AB77: =(F77+H77-(D77+P77))*radconv -> -6.026325344 | AD77: 0 | AE77: =IF(AD77>0,S75,0) -> 0
A78: 398.11 | B78: =A78/1000 -> 0.39811 | C78: 1.006615871 | D78: 0.1147135653 | E78: 1.00000018 | F78: 0.0006003356638 | G78: 1 | H78: 0 | I78: 288.2304258 | J78: 1.567326873 | K78: 1.00227808 | L78: 0.06743536261 | M78: 1.000000189 | N78: 0.0006140757578 | O78: 1.000000507 | P78: 0.001129148413 | Q78: 48.11694158 | R78: -92.57553924 | S78: 87.42446076 | U78: =IF(Q78<0,A78,1000000000) -> 1000000000 | V78: =A78^2 -> 158491.5721 | X78: 48.53219095 | Y78: -85.97263735 | AA78: 61.20894429 | AB78: -6.602901892 | AD78: =SUM((Q79<0)*(Q78>0))*A78 -> 0 | AE78: 0
A79: 436.52 | B79: 0.43652 | C79: 1.007948785 | D79: 0.1256701023 | E79: 1.000000217 | F79: 0.0006582565562 | G79: 1 | H79: 0 | I79: 316.0388286 | J79: 1.567632153 | K79: 1.002738239 | L79: 0.07391894706 | M79: 1.000000227 | N79: 0.0006733223053 | O79: 1.000000609 | P79: 0.001238089563 | Q79: 47.30942131 | R79: -92.85562961 | S79: 87.14437039 | U79: 1000000000 | V79: 190549.7104 | X79: 47.7361651 | Y79: -85.62204115 | AA79: 61.19744987 | AB79: -7.233588465 | AD79: 0 | AE79: 0
A80: 478.63 | B80: 0.47863 | C80: 1.009548747 | D80: 0.1376472227 | E80: 1.00000026 | F80: 0.0007217569099 | G80: 1 | H80: 0 | I80: 346.5260175 | J80: 1.567910537 | K80: 1.003291115 | L80: 0.08101992201 | M80: 1.000000273 | N80: 0.0007382760129 | O80: 1.000000732 | P80: 0.00135752489 | Q80: 46.50052336 | R80: -93.15788877 | S80: 86.84211123 | U80: 1000000000 | V80: 229086.6769 | X80: 46.94104441 | Y80: -85.23485701 | AA80: 61.18367262 | AB80: -7.923031756 | AD80: 0 | AE80: 0
A81: 524.81 | B81: 0.52481 | C81: 1.011469273 | D81: 0.1507362958 | E81: 1.000000313 | F81: 0.0007913946693 | G81: 1 | H81: 0 | I81: 379.9598684 | J81: 1.568164467 | K81: 1.003955518 | L81: 0.08879778882 | M81: 1.000000328 | N81: 0.0008095075948 | O81: 1.00000088 | P81: 0.001488503806 | Q81: 45.68972653 | R81: -93.48434346 | S81: 86.51565654 | U81: 1000000000 | V81: 275425.5361 | X81: 46.14675641 | Y81: -84.80784847 | AA81: 61.16716379 | AB81: -8.676494992 | AD81: 0 | AE81: 0
A82: 575.44 | B82: 0.57544 | C82: 1.013773193 | D82: 0.1650269386 | E82: 1.000000376 | F82: 0.000867742858 | G82: 1 | H82: 0 | I82: 416.6154976 | J82: 1.56839603 | K82: 1.004753641 | L82: 0.09731275148 | M82: 1.000000394 | N82: 0.0008876031893 | O82: 1.000001058 | P82: 0.001632104078 | Q82: 44.87691127 | R82: -93.83686094 | S82: 86.16313906 | U82: 1000000000 | V82: 331131.1936 | X82: 45.35370433 | Y82: -84.33771917 | AA82: 61.14740061 | AB82: -9.499141773 | AD82: 0 | AE82: 0
A83: 630.96 | B83: 0.63096 | C83: 1.016536465 | D83: 0.1806198009 | E83: 1.000000453 | F83: 0.0009514649761 | G83: 1 | H83: 0 | I83: 456.8114607 | J83: 1.568607238 | K83: 1.005712448 | L83: 0.1066338257 | M83: 1.000000474 | N83: 0.0009732414822 | O83: 1.000001272 | P83: 0.00178957365 | Q83: 44.06151954 | R83: -94.21744141 | S83: 85.78255859 | U83: 1000000000 | V83: 398110.5216 | X83: 44.56195697 | Y83: -83.82066902 | AA83: 61.12375623 | AB83: -10.39677239 | AD83: 0 | AE83: 0
A84: 691.83 | B84: 0.69183 | C84: 1.019848382 | D84: 0.1976135101 | E84: 1.000000544 | F84: 0.001043254682 | G84: 1 | H84: 0 | I84: 500.8807936 | J84: 1.568799842 | K84: 1.006863856 | L84: 0.1168317054 | M84: 1.000000569 | N84: 0.001067132008 | O84: 1.00000153 | P84: 0.001962217183 | Q84: 43.24325504 | R84: -94.62786129 | S84: 85.37213871 | U84: 1000000000 | V84: 478628.7489 | X84: 43.77194689 | Y84: -83.2527885 | AA84: 61.09550181 | AB84: -11.37507279 | AD84: 0 | AE84: 0
A85: 758.58 | B85: 0.75858 | C85: 1.023816435 | D85: 0.2161164567 | E85: 1.000000654 | F85: 0.00114391119 | G85: 1 | H85: 0 | I85: 549.2072113 | J85: 1.568975519 | K85: 1.008246564 | L85: 0.127986624 | M85: 1.000000685 | N85: 0.001170092272 | O85: 1.000001839 | P85: 0.002151537868 | Q85: 42.42140554 | R85: -95.0699171 | S85: 84.9300829 | U85: 1000000000 | V85: 575443.6164 | X85: 42.98382884 | Y85: -82.62962347 | AA85: 61.06177036 | AB85: -12.44029362 | AD85: 0 | AE85: 0
A86: 831.76 | B86: 0.83176 | C86: 1.028566168 | D86: 0.2362300613 | E86: 1.000000787 | F86: 0.001254263872 | G86: 1 | H86: 0 | I86: 602.1889091 | J86: 1.569135718 | K86: 1.00990621 | L86: 0.1401792992 | M86: 1.000000823 | N86: 0.001282970627 | O86: 1.000002211 | P86: 0.002359095614 | Q86: 41.59555491 | R86: -95.54496849 | S86: 84.45503151 | U86: 1000000000 | V86: 691824.6976 | X86: 42.19818306 | Y86: -81.94668078 | AA86: 61.02156552 | AB86: -13.59828772 | AD86: 0 | AE86: 0
A87: 912.01 | B87: 0.91201 | C87: 1.034248403 | D87: 0.2580646496 | E87: 1.000000946 | F87: 0.001375277811 | G87: 1 | H87: 0 | I87: 660.2892416 | J87: 1.569281838 | K87: 1.011898178 | L87: 0.1535017359 | M87: 1.000000989 | N87: 0.001406754246 | O87: 1.000002658 | P87: 0.002586705579 | Q87: 40.76478455 | R87: -96.05425075 | S87: 83.94574925 | U87: 1000000000 | V87: 831762.2401 | X87: 41.41526766 | Y87: -81.19882577 | AA87: 60.97371054 | AB87: -14.85542498 | AD87: 0 | AE87: 0
A88: 1000 | B88: 1 | C88: 1.041038725 | D88: 0.2817186514 | E88: 1.000001137 | F88: 0.001507963329 | G88: 1 | H88: 0 | I88: 723.9932832 | J88: 1.569415098 | K88: 1.014287812 | L88: 0.1680460833 | M88: 1.00000119 | N88: 0.001542476572 | O88: 1.000003196 | P88: 0.002836267992 | Q88: 39.92842082 | R88: -96.59830358 | S88: 83.40169642 | U88: 1000000000 | V88: 1000000 | X88: 40.63574747 | Y88: -80.38090758 | AA88: 60.91686702 | AB88: -16.217396 | AD88: 0 | AE88: 0
A89: 1096.5 | B89: 1.0965 | C89: 1.049146143 | D89: 0.3072923965 | E89: 1.000001367 | F89: 0.001653481537 | G89: 1 | H89: 0 | I89: 793.8585076 | J89: 1.569536656 | K89: 1.017154003 | L89: 0.1839147797 | M89: 1.00000143 | N89: 0.001691325289 | O89: 1.000003842 | P89: 0.003109966686 | Q89: 39.08537182 | R89: -97.17719928 | S89: 82.82280072 | U89: 1000000000 | V89: 1202312.25 | X89: 39.86008416 | Y89: -79.48719141 | AA89: 60.84948132 | AB89: -17.69000787 | AD89: 0 | AE89: 0
A90: 1202.3 | B90: 1.2023 | C90: 1.058810441 | D90: 0.3348606357 | E90: 1.000001644 | F90: 0.001813023698 | G90: 1 | H90: 0 | I90: 870.4568684 | J90: 1.569647505 | K90: 1.020588987 | L90: 0.2012055106 | M90: 1.00000172 | N90: 0.001854518927 | O90: 1.00000462 | P90: 0.003410042189 | Q90: 38.23492066 | R90: -97.78981055 | S90: 82.21018945 | U90: 1000000000 | V90: 1445525.29 | X90: 39.08928189 | Y90: -78.51220696 | AA90: 60.76983244 | AB90: -19.27760359 | AD90: 0 | AE90: =IF(AD90>0,S90,0) -> 0
A91: 1318.3 | B91: 1.3183 | C91: 1.070313309 | D91: 0.3644894959 | E91: 1.000001976 | F91: 0.001987946945 | G91: 1 | H91: 0 | I91: 954.4399586 | J91: 1.569748592 | K91: 1.024703267 | L91: 0.2200237182 | M91: 1.000002067 | N91: 0.002033445674 | O91: 1.000005554 | P91: 0.003739046976 | Q91: 37.37597593 | R91: -98.43408716 | S91: 81.56591284 | U91: 1000000000 | V91: 1737914.89 | X91: 38.32419659 | Y91: -77.4500467 | AA91: 60.67597301 | AB91: -20.98404046 | AD91: 0 | AE91: 0
A92: 1445.4 | B92: 1.4454 | C92: 1.083971039 | D92: 0.3962006675 | E92: 1.000002375 | F92: 0.002179608396 | G92: 1 | H92: 0 | I92: 1046.459371 | J92: 1.569840723 | K92: 1.029624274 | L92: 0.2404619126 | M92: 1.000002485 | N92: 0.002229493711 | O92: 1.000006677 | P92: 0.004099533473 | Q92: 36.50796883 | R92: -99.10616562 | S92: 80.89383438 | U92: 1000000000 | V92: 2089181.16 | X92: 37.56633084 | Y92: -76.2955359 | AA92: 60.56583166 | AB92: -22.81062972 | AD92: 0 | AE92: 0
A93: 1584.9 | B93: 1.5849 | C93: 1.100182485 | D93: 0.4300614778 | E93: 1.000002856 | F93: 0.002389968341 | G93: 1 | H93: 0 | I93: 1147.456296 | J93: 1.569924834 | K93: 1.035515391 | L93: 0.2626601338 | M93: 1.000002988 | N93: 0.002444668187 | O93: 1.000008027 | P93: 0.004495188533 | Q93: 35.62829603 | R93: -99.80214714 | S93: 80.19785286 | U93: 1000000000 | V93: 2511908.01 | X93: 36.81560655 | Y93: -75.04081927 | AA93: 60.43688314 | AB93: -24.76132787 | AD93: 0 | AE93: 0
A94: 1737.8 | B94: 1.7378 | C94: 1.119355095 | D94: 0.4660025423 | E94: 1.000003434 | F94: 0.002620534661 | G94: 1 | H94: 0 | I94: 1258.154725 | J94: 1.570001512 | K94: 1.0425514 | L94: 0.2866893098 | M94: 1.000003593 | N94: 0.002680511492 | O94: 1.000009651 | P94: 0.004928848048 | Q94: 34.73707898 | R94: -100.5141906 | S94: 79.48580938 | U94: 1000000000 | V94: 3019948.84 | X94: 36.07446166 | Y94: -73.68195506 | AA94: 60.28681099 | AB94: -26.83223556 | AD94: 0 | AE94: 0
A95: 1905.5 | B95: 1.9055 | C95: 1.141986263 | D95: 0.5039804695 | E95: 1.000004128 | F95: 0.002873418393 | G95: 1 | H95: 0 | I95: 1379.568248 | J95: 1.570071462 | K95: 1.050950676 | L95: 0.31265774 | M95: 1.000004319 | N95: 0.002939182975 | O95: 1.000011604 | P95: 0.005404482283 | Q95: 33.83271617 | R95: -101.2338754 | S95: 78.76612458 | U95: 1000000000 | V95: 3630930.25 | X95: 35.34396976 | Y95: -72.21290225 | AA95: 60.11294007 | AB95: -29.02097317 | AD95: 0 | AE95: 0
A96: 2089.3 | B96: 2.0893 | C96: 1.16860349 | D96: 0.5438512807 | E96: 1.000004963 | F96: 0.003150579747 | G96: 1 | H96: 0 | I96: 1512.638054 | J96: 1.57013523 | K96: 1.060956503 | L96: 0.3406260257 | M96: 1.000005193 | N96: 0.0032226877 | O96: 1.00001395 | P96: 0.005925777724 | Q96: 32.91503774 | R96: -101.949725 | S96: 78.050275 | U96: 1000000000 | V96: 4365174.49 | X96: 34.62643044 | Y96: -70.63033477 | AA96: 59.91280096 | AB96: -31.31939023 | AD96: 0 | AE96: 0
A97: 2290.9 | B97: 2.2909 | C97: 1.199833189 | D97: 0.5854759166 | E97: 1.000005967 | F97: 0.003454582066 | G97: 1 | H97: 0 | I97: 1658.594932 | J97: 1.570193407 | K97: 1.072866546 | L97: 0.3706768399 | M97: 1.000006243 | N97: 0.003533647673 | O97: 1.000016772 | P97: 0.006497555139 | Q97: 31.98279523 | R97: -102.6493485 | S97: 77.35065151 | U97: 1000000000 | V97: 5248222.81 | X97: 33.92327756 | Y97: -68.92969991 | AA97: 59.68371133 | AB97: -33.71964858 | AD97: 0 | AE97: 0
A98: 2511.9 | B98: 2.5119 | C98: 1.236327564 | D98: 0.6286074666 | E98: 1.000007174 | F98: 0.003787837842 | G98: 1 | H98: 0 | I98: 1818.597268 | J98: 1.570246452 | K98: 1.087009665 | L98: 0.4028305901 | M98: 1.000007506 | N98: 0.003874530585 | O98: 1.000020164 | P98: 0.007124351398 | Q98: 31.03634169 | R98: -103.3177192 | S98: 76.68228083 | U98: 1000000000 | V98: 6309641.61 | X98: 33.23709663 | Y98: -67.10999618 | AA98: 59.42343872 | AB98: -36.207723 | AD98: 0 | AE98: 0
A99: 2754.2 | B99: 2.7542 | C99: 1.278821205 | D99: 0.6729760011 | E99: 1.000008625 | F99: 0.004153211869 | G99: 1 | H99: 0 | I99: 1994.020649 | J99: 1.570294827 | K99: 1.103771853 | L99: 0.4370970563 | M99: 1.000009024 | N99: 0.004248266786 | O99: 1.000024242 | P99: 0.007811553875 | Q99: 30.075836 | R99: -103.9391497 | S99: 76.06085035 | U99: 1000000000 | V99: 7585617.64 | X99: 32.57013929 | Y99: -65.17085747 | AA99: 59.12989037 | AB99: -38.76829218 | AD99: 0 | AE99: 0
A100: 3020 | B100: 3.02 | C100: 1.328133857 | D100: 0.7182839549 | E100: 1.00001037 | F100: 0.004554021223 | G100: 1 | H100: 0 | I100: 2186.457858 | J100: 1.570338966 | K100: 1.123602679 | L100: 0.4734636194 | M100: 1.00001085 | N100: 0.004658249247 | O100: 1.000029146 | P100: 0.008565400313 | Q100: 29.10159215 | R100: -104.4977004 | S100: 75.50229965 | U100: 1000000000 | V100: 9120400 | X100: 31.92456326 | Y100: -63.11322611 | AA100: 58.80122255 | AB100: -41.38447425 | AD100: 0 | AE100: 0
A101: 3311.3 | B101: 3.3113 | C101: 1.385071028 | D101: 0.7641299382 | E101: 1.000012467 | F101: 0.004993281257 | G101: 1 | H101: 0 | I101: 2397.35688 | J101: 1.570379201 | K101: 1.146979392 | L101: 0.5118186403 | M101: 1.000013044 | N101: 0.005107562308 | O101: 1.00003504 | P101: 0.009391560604 | Q101: 28.11596157 | R101: -104.9771177 | S101: 75.02288234 | U101: 1000000000 | V101: 10964707.69 | X101: 31.30356961 | Y101: -60.94369431 | AA101: 58.43658562 | AB101: -44.03342335 | AD101: 0 | AE101: 0
A102: 3630.8 | B102: 3.6308 | C102: 1.450587854 | D102: 0.8101694561 | E102: 1.000014988 | F102: 0.005475062697 | G102: 1 | H102: 0 | I102: 2628.672495 | J102: 1.570415907 | K102: 1.174476596 | L102: 0.5520654782 | M102: 1.000015682 | N102: 0.005600369827 | O102: 1.000042128 | P102: 0.01029768911 | Q102: 27.12015838 | R102: -105.363666 | S102: 74.63633404 | U102: 1000000000 | V102: 13182708.64 | X102: 30.70924591 | Y102: -58.66805924 | AA102: 58.03510613 | AB102: -46.69560672 | AD102: 0 | AE102: 0
A103: 3981.1 | B103: 3.9811 | C103: 1.525631408 | D103: 0.8559964166 | E103: 1.00001802 | F103: 0.00600328524 | G103: 1 | H103: 0 | I103: 2882.287084 | J103: 1.57044938 | K103: 1.206704206 | L103: 0.5940090995 | M103: 1.000018854 | N103: 0.006140681164 | O103: 1.000050649 | P103: 0.01129115549 | Q103: 26.11708557 | R103: -105.6456969 | S103: 74.35430314 | U103: 1000000000 | V103: 15849157.21 | X103: 30.14433246 | Y103: -56.2977422 | AA103: 57.59694678 | AB103: -49.34795466 | AD103: 0 | AE103: 0
A104: 4365.2 | B104: 4.3652 | C104: 1.611234115 | D104: 0.901234764 | E104: 1.000021665 | F104: 0.006582471441 | G104: 1 | H104: 0 | I104: 3160.372623 | J104: 1.570479908 | K104: 1.24434626 | L104: 0.6374183481 | M104: 1.000022668 | N104: 0.00673312232 | O104: 1.000060894 | P104: 0.0123804624 | Q104: 25.10960186 | R104: -105.8154178 | S104: 74.18458222 | U104: 1000000000 | V104: 19054971.04 | X104: 29.61108663 | Y104: -53.84626898 | AA104: 57.1227089 | AB104: -51.9691488 | AD104: 0 | AE104: 0
A105: 4786.3 | B105: 4.7863 | C105: 1.708469278 | D105: 0.9455225481 | E105: 1.000026046 | F105: 0.007217445027 | G105: 1 | H105: 0 | I105: 3465.24589 | J105: 1.570507747 | K105: 1.288140561 | L105: 0.6820012415 | M105: 1.000027252 | N105: 0.007382627342 | O105: 1.000073208 | P105: 0.01357467782 | Q105: 24.10104749 | R105: -105.8693604 | S105: 74.13063961 | U105: 1000000000 | V105: 22908667.69 | X105: 29.11157166 | Y105: -51.33066628 | AA105: 56.6136695 | AB105: -54.53869411 | AD105: 0 | AE105: 0
A106: 5248.1 | B106: 5.2481 | C106: 1.81851838 | D106: 0.9885539655 | E106: 1.000031315 | F106: 0.007913783133 | G106: 1 | H106: 0 | I106: 3799.585657 | J106: 1.57053314 | K106: 1.33890562 | L106: 0.7274407686 | M106: 1.000032765 | N106: 0.008094900899 | O106: 1.000088016 | P106: 0.01488428523 | Q106: 23.09439687 | R106: -105.8087888 | S106: 74.1912112 | U106: 1000000000 | V106: 27542553.61 | X106: 28.64721431 | Y106: -48.76943834 | AA106: 56.07137623 | AB106: -57.03935046 | AD106: 0 | AE106: 0
A107: 5370.3 | B107: 5.3703 | C107: 1.848160043 | D107: 0.9990770849 | E107: 1.00003279 | F107: 0.008098044581 | G107: 1 | H107: 0 | I107: 3888.057548 | J107: 1.570539129 | K107: 1.352779352 | L107: 0.7388866012 | M107: 1.000034308 | N107: 0.008283379044 | O107: 1.000092163 | P107: 0.01523082346 | Q107: 22.84353377 | R107: -105.7763611 | S107: 74.22363886 | U107: 1000000000 | V107: 28840122.09 | X107: 28.53681204 | Y107: -48.12478257 | AA107: 55.93091539 | AB107: -57.65157857 | AD107: 0 | AE107: 0
A108: 5432.85 | B108: 5.43285 | C108: 1.863409879 | D108: 1.004333672 | E108: 1.000033558 | F108: 0.008192361501 | G108: 1 | H108: 0 | I108: 3933.343284 | J108: 1.57054209 | K108: 1.359948356 | L108: 0.7446545842 | M108: 1.000035112 | N108: 0.008379854333 | O108: 1.000094322 | P108: 0.01540820355 | Q108: 22.71746403 | R108: -105.7575168 | S108: 74.2424832 | U108: 1000000000 | V108: 29515859.12 | X108: 28.48213073 | Y108: -47.79999878 | AA108: 55.85952697 | AB108: -57.95751801 | AD108: 0 | AE108: 0
A109: 5495.4 | B109: 5.4954 | C109: 1.878710368 | D109: 1.00950478 | E109: 1.000034336 | F109: 0.008286678275 | G109: 1 | H109: 0 | I109: 3978.629019 | J109: 1.570544984 | K109: 1.367162128 | L109: 0.7503618864 | M109: 1.000035925 | N109: 0.008476329466 | O109: 1.000096506 | P109: 0.01558558297 | Q109: 22.59293616 | R109: -105.7372477 | S109: 74.26275233 | U109: 1000000000 | V109: 30199421.16 | X109: 28.42864384 | Y109: -47.47868787 | AA109: 55.78848598 | AB109: -58.25855979 | AD109: 0 | AE109: 0
A110: 5559.4 | B110: 5.5594 | C110: 1.894416691 | D110: 1.014709162 | E110: 1.00003514 | F110: 0.008383181296 | G110: 1 | H110: 0 | I110: 4024.964543 | J110: 1.570547877 | K110: 1.37458873 | L110: 0.7561392969 | M110: 1.000036767 | N110: 0.008575040869 | O110: 1.000098767 | P110: 0.0157670736 | Q110: 22.46708554 | R110: -105.7151065 | S110: 74.2848935 | U110: 1000000000 | V110: 30906928.36 | X110: 28.37511945 | Y110: -47.15348817 | AA110: 55.71615974 | AB110: -58.56161833 | AD110: 0 | AE110: 0
A111: 5623.4 | B111: 5.6234 | C111: 1.910173482 | D111: 1.01982782 | E111: 1.000035954 | F111: 0.008479684162 | G111: 1 | H111: 0 | I111: 4071.300068 | J111: 1.570550705 | K111: 1.38206072 | L111: 0.7618544263 | M111: 1.000037618 | N111: 0.008673752106 | O111: 1.000101054 | P111: 0.01594856351 | Q111: 22.34278517 | R111: -105.6916183 | S111: 74.30838166 | U111: 1000000000 | V111: 31622627.56 | X111: 28.32277789 | Y111: -46.83185312 | AA111: 55.64420095 | AB111: -58.85976522 | AD111: 0 | AE111: 0
A112: 5688.9 | B112: 5.6889 | C112: 1.926350534 | D112: 1.024979604 | E112: 1.000036796 | F112: 0.00857844865 | G112: 1 | H112: 0 | I112: 4118.721581 | J112: 1.570553533 | K112: 1.389754066 | L112: 0.7676396782 | M112: 1.0000385 | N112: 0.008774776711 | O112: 1.000103422 | P112: 0.01613430634 | Q112: 22.21714428 | R112: -105.6662571 | S112: 74.33374289 | U112: 1000000000 | V112: 32363583.21 | X112: 28.27040036 | Y112: -46.50633292 | AA112: 55.57093758 | AB112: -59.15992419 | AD112: 0 | AE112: 0
A113: 5754.4 | B113: 5.7544 | C113: 1.942577861 | D113: 1.030045449 | E113: 1.000037648 | F113: 0.00867721297 | G113: 1 | H113: 0 | I113: 4166.143095 | J113: 1.570556297 | K113: 1.397493413 | L113: 0.7733610422 | M113: 1.000039391 | N113: 0.008875801138 | O113: 1.000105817 | P113: 0.0163200484 | Q113: 22.09306217 | R113: -105.6396288 | S113: 74.36037125 | U113: 1000000000 | V113: 33113119.36 | X113: 28.219194 | Y113: -46.18446952 | AA113: 55.49806183 | AB113: -59.45515923 | AD113: 0 | AE113: 0
A114: 5821.4 | B114: 5.8214 | C114: 1.959227519 | D114: 1.035140352 | E114: 1.00003853 | F114: 0.008778238894 | G114: 1 | H114: 0 | I114: 4214.650597 | J114: 1.570559059 | K114: 1.405456798 | L114: 0.7791480436 | M114: 1.000040314 | N114: 0.008979138914 | O114: 1.000108295 | P114: 0.01651004328 | Q114: 21.96771828 | R114: -105.6111511 | S114: 74.38884891 | U114: 1000000000 | V114: 33888697.96 | X114: 28.16799272 | Y114: -45.85897787 | AA114: 55.42391922 | AB114: -59.75217322 | AD114: 0 | AE114: 0
A115: 5888.4 | B115: 5.8884 | C115: 1.975927177 | D115: 1.040149264 | E115: 1.000039422 | F115: 0.008879264639 | G115: 1 | H115: 0 | I115: 4263.158099 | J115: 1.570561759 | K115: 1.413466719 | L115: 0.7848696466 | M115: 1.000041247 | N115: 0.009082476498 | O115: 1.000110802 | P115: 0.01670003735 | Q115: 21.84393939 | R115: -105.5814899 | S115: 74.41851012 | U115: 1000000000 | V115: 34673254.56 | X115: 28.11794911 | Y115: -45.53722966 | AA115: 55.35018395 | AB115: -60.04426022 | AD115: 0 | AE115: 0
A116: 5957 | B116: 5.957 | C116: 1.993076126 | D116: 1.045190693 | E116: 1.000040346 | F116: 0.00898270275 | G116: 1 | H116: 0 | I116: 4312.82399 | J116: 1.57056446 | K116: 1.421715317 | L116: 0.7906608917 | M116: 1.000042214 | N116: 0.009188281644 | O116: 1.000113399 | P116: 0.01689456772 | Q116: 21.71879262 | R116: -105.5499648 | S116: 74.45003524 | U116: 1000000000 | V116: 35485849 | X116: 28.0678759 | Y116: -45.21163271 | AA116: 55.27511038 | AB116: -60.33833205 | AD116: 0 | AE116: 0
A117: 6025.6 | B117: 6.0256 | C117: 2.010274865 | D117: 1.050145984 | E117: 1.00004128 | F117: 0.00908614067 | G117: 1 | H117: 0 | I117: 4362.48988 | J117: 1.5705671 | K117: 1.430011047 | L117: 0.796385135 | M117: 1.000043192 | N117: 0.009294086584 | O117: 1.000116026 | P117: 0.0170890972 | Q117: 21.59521935 | R117: -105.5173396 | S117: 74.48266041 | U117: 1000000000 | V117: 36307855.36 | X117: 28.01894845 | Y117: -44.88987115 | AA117: 55.20046457 | AB117: -60.62746844 | AD117: 0 | AE117: 0
A118: 6095.8 | B118: 6.0958 | C118: 2.027924966 | D118: 1.055129709 | E118: 1.000042248 | F118: 0.009191990934 | G118: 1 | H118: 0 | I118: 4413.314159 | J118: 1.57056974 | K118: 1.438548205 | L118: 0.8021743457 | M118: 1.000044204 | N118: 0.009402359063 | O118: 1.000118745 | P118: 0.01728816289 | Q118: 21.47035889 | R118: -105.4828844 | S118: 74.51711564 | U118: 1000000000 | V118: 37158777.64 | X118: 27.97003198 | Y118: -44.56452862 | AA118: 55.12452057 | AB118: -60.91835574 | AD118: 0 | AE118: 0
A119: 6166 | B119: 6.166 | C119: 2.045624565 | D119: 1.060027313 | E119: 1.000043226 | F119: 0.009297840993 | G119: 1 | H119: 0 | I119: 4464.138438 | J119: 1.570572319 | K119: 1.447133007 | L119: 0.8078950598 | M119: 1.000045228 | N119: 0.009510631321 | O119: 1.000121495 | P119: 0.01748722764 | Q119: 21.34707802 | R119: -105.4474157 | S119: 74.55258427 | U119: 1000000000 | V119: 38019556 | X119: 27.92224747 | Y119: -44.24310719 | AA119: 55.04902421 | AB119: -61.20430854 | AD119: 0 | AE119: 0
A120: 6237.8 | B120: 6.2378 | C120: 2.063777451 | D120: 1.064949521 | E120: 1.000044239 | F120: 0.009406103373 | G120: 1 | H120: 0 | I120: 4516.121105 | J120: 1.570574898 | K120: 1.455961879 | L120: 0.8136761806 | M120: 1.000046287 | N120: 0.009621371093 | O120: 1.000124341 | P120: 0.01769082848 | Q120: 21.22258683 | R120: -105.4101588 | S120: 74.5898412 | U120: 1000000000 | V120: 38910148.84 | X120: 27.87451086 | Y120: -43.91836602 | AA120: 54.97226964 | AB120: -61.49179277 | AD120: 0 | AE120: 0
A121: 6309.6 | B121: 6.3096 | C121: 2.081979466 | D121: 1.069785778 | E121: 1.000045263 | F121: 0.009514365532 | G121: 1 | H121: 0 | I121: 4568.103771 | J121: 1.570577418 | K121: 1.464838824 | L121: 0.819387423 | M121: 1.000047359 | N121: 0.009732110628 | O121: 1.00012722 | P121: 0.0178944283 | Q121: 21.09967897 | R121: -105.3719776 | S121: 74.62802244 | U121: 1000000000 | V121: 39811052.16 | X121: 27.82789067 | Y121: -43.59762522 | AA121: 54.89598196 | AB121: -61.77435234 | AD121: 0 | AE121: 0
A122: 6383.05 | B122: 6.38305 | C122: 2.100649275 | D122: 1.074646335 | E122: 1.000046323 | F122: 0.009625115379 | G122: 1 | H122: 0 | I122: 4621.281026 | J122: 1.570579937 | K122: 1.473968602 | L122: 0.8251585385 | M122: 1.000048468 | N122: 0.009845394766 | O122: 1.000130199 | P122: 0.01810270589 | Q122: 20.97554998 | R122: -105.3320294 | S122: 74.66797062 | U122: 1000000000 | V122: 40743327.3 | X122: 27.78132049 | Y122: -43.27359969 | AA122: 54.81842315 | AB122: -62.05842969 | AD122: 0 | AE122: 0
A123: 6456.5 | B123: 6.4565 | C123: 2.119367838 | D123: 1.079421145 | E123: 1.000047395 | F123: 0.00973586499 | G123: 1 | H123: 0 | I123: 4674.458281 | J123: 1.570582398 | K123: 1.483146867 | L123: 0.8308584143 | M123: 1.00004959 | N123: 0.009958678652 | O123: 1.000133212 | P123: 0.01831098239 | Q123: 20.85300791 | R123: -105.2912466 | S123: 74.70875336 | U123: 1000000000 | V123: 41686392.25 | X123: 27.73585109 | Y123: -42.95365259 | AA123: 54.74135048 | AB123: -62.33759404 | AD123: 0 | AE123: 0
A124: 6531.7 | B124: 6.5317 | C124: 2.138581556 | D124: 1.08422301 | E124: 1.000048506 | F124: 0.009849253045 | G124: 1 | H124: 0 | I124: 4728.902523 | J124: 1.570584861 | K124: 1.49259311 | L124: 0.8366212772 | M124: 1.000050752 | N124: 0.01007466134 | O124: 1.000136333 | P124: 0.01852422009 | Q124: 20.72915481 | R124: -105.2486929 | S124: 74.75130711 | U124: 1000000000 | V124: 42663104.89 | X124: 27.690405 | Y124: -42.63025131 | AA124: 54.66294347 | AB124: -62.61844158 | AD124: 0 | AE124: 0
A125: 6606.9 | B125: 6.6069 | C125: 2.157843707 | D125: 1.088939253 | E125: 1.000049629 | F125: 0.009962640846 | G125: 1 | H125: 0 | I125: 4783.346764 | J125: 1.570587268 | K125: 1.502088298 | L125: 0.8423114692 | M125: 1.000051927 | N125: 0.01019064377 | O125: 1.00013949 | P125: 0.01873745663 | Q125: 20.6068941 | R125: -105.2053939 | S125: 74.79460614 | U125: 1000000000 | V125: 43651127.61 | X125: 27.64604532 | Y125: -42.31101053 | AA125: 54.58504244 | AB125: -62.89438333 | AD125: 0 | AE125: 0
A126: 6683.85 | B126: 6.68385 | C126: 2.177602907 | D126: 1.093678771 | E126: 1.000050792 | F126: 0.01007866706 | G126: 1 | H126: 0 | I126: 4839.057993 | J126: 1.570589675 | K126: 1.511854156 | L126: 0.8480598997 | M126: 1.000053143 | N126: 0.01030932496 | O126: 1.000142758 | P126: 0.01895565423 | Q126: 20.48340069 | R126: -105.1603792 | S126: 74.83962078 | U126: 1000000000 | V126: 44673850.82 | X126: 27.60174424 | Y126: -41.98858756 | AA126: 54.50585011 | AB126: -63.17179167 | AD126: 0 | AE126: 0
A127: 6760.8 | B127: 6.7608 | C127: 2.197410143 | D127: 1.098332948 | E127: 1.000051968 | F127: 0.010194693 | G127: 1 | H127: 0 | I127: 4894.769222 | J127: 1.570592027 | K127: 1.521669331 | L127: 0.8537343579 | M127: 1.000054374 | N127: 0.01042800587 | O127: 1.000146064 | P127: 0.01917385059 | Q127: 20.36150267 | R127: -105.11471 | S127: 74.88528995 | U127: 1000000000 | V127: 45708416.64 | X127: 27.55851346 | Y127: -41.67039973 | AA127: 54.42718287 | AB127: -63.44431032 | AD127: 0 | AE127: 0
A128: 6839.55 | B128: 6.83955 | C128: 2.217729097 | D128: 1.103009816 | E128: 1.000053186 | F128: 0.01031343272 | G128: 1 | H128: 0 | I128: 4951.783637 | J128: 1.570594379 | K128: 1.531764171 | L128: 0.8594660701 | M128: 1.000055648 | N128: 0.01054946263 | O128: 1.000149486 | P128: 0.01939714964 | Q128: 20.23836866 | R128: -105.0673564 | S128: 74.93264355 | U128: 1000000000 | V128: 46779444.2 | X128: 27.51534599 | Y128: -41.34909054 | AA128: 54.34721633 | AB128: -63.71826591 | AD128: 0 | AE128: 0
A129: 6918.3 | B129: 6.9183 | C129: 2.238095679 | D129: 1.107601663 | E129: 1.000054418 | F129: 0.01043217214 | G129: 1 | H129: 0 | I129: 5008.798053 | J129: 1.570596678 | K129: 1.541908673 | L129: 0.8651225462 | M129: 1.000056937 | N129: 0.01067091908 | O129: 1.000152948 | P129: 0.01962044736 | Q129: 20.11683268 | R129: -105.0194392 | S129: 74.98056085 | U129: 1000000000 | V129: 47862874.89 | X129: 27.47323246 | Y129: -41.03208899 | AA129: 54.26779388 | AB129: -63.98735016 | AD129: 0 | AE129: 0
A130: 6998.9 | B130: 6.9989 | C130: 2.258988687 | D130: 1.112215545 | E130: 1.000055693 | F130: 0.0105537007 | G130: 1 | H130: 0 | I130: 5067.151855 | J130: 1.570598977 | K130: 1.552341901 | L130: 0.8708351618 | M130: 1.000058271 | N130: 0.01079522847 | O130: 1.000156532 | P130: 0.0198489894 | Q130: 19.99405952 | R130: -104.9698719 | S130: 75.03012812 | U130: 1000000000 | V130: 48984601.21 | X130: 27.43118749 | Y130: -40.71203436 | AA130: 54.18706569 | AB130: -64.25783752 | AD130: 0 | AE130: 0
A131: 7079.5 | B131: 7.0795 | C131: 2.279928902 | D131: 1.116744768 | E131: 1.000056983 | F131: 0.01067522894 | G131: 1 | H131: 0 | I131: 5125.505657 | J131: 1.570601224 | K131: 1.562825111 | L131: 0.8764713205 | M131: 1.000059621 | N131: 0.01091953753 | O131: 1.000160158 | P131: 0.02007753001 | Q131: 19.8728866 | R131: -104.9198316 | S131: 75.08016838 | U131: 1000000000 | V131: 50119320.25 | X131: 27.39017982 | Y131: -40.39635737 | AA131: 54.10690044 | AB131: -64.52347424 | AD131: 0 | AE131: 0
A132: 7161.95 | B132: 7.16195 | C132: 2.301397257 | D132: 1.121292573 | E132: 1.000058318 | F132: 0.01079954628 | G132: 1 | H132: 0 | I132: 5185.198845 | J132: 1.57060347 | K132: 1.573599614 | L132: 0.8821589594 | M132: 1.000061018 | N132: 0.01104669948 | O132: 1.00016391 | P132: 0.02031131477 | Q132: 19.75055097 | R132: -104.8682105 | S132: 75.13178951 | U132: 1000000000 | V132: 51293527.8 | X132: 27.34927092 | Y132: -40.0778942 | AA132: 54.02547371 | AB132: -64.79031629 | AD132: 0 | AE132: 0
A133: 7244.4 | B133: 7.2444 | C133: 2.32291233 | D133: 1.125756224 | E133: 1.000059668 | F133: 0.01092386328 | G133: 1 | H133: 0 | I133: 5244.892033 | J133: 1.570605665 | K133: 1.584424329 | L133: 0.8877690623 | M133: 1.000062431 | N133: 0.01117386108 | O133: 1.000167705 | P133: 0.02054509799 | Q133: 19.6298154 | R133: -104.8162072 | S133: 75.18379282 | U133: 1000000000 | V133: 52481331.36 | X133: 27.30938115 | Y133: -39.76387057 | AA133: 53.94462792 | AB133: -65.05233661 | AD133: 0 | AE133: 0
A134: 7328.75 | B134: 7.32875 | C134: 2.344970207 | D134: 1.130237884 | E134: 1.000061066 | F134: 0.01105104473 | G134: 1 | H134: 0 | I134: 5305.960807 | J134: 1.57060786 | K134: 1.595549387 | L134: 0.8934294904 | M134: 1.000063893 | N134: 0.01130395264 | O134: 1.000171633 | P134: 0.02078426698 | Q134: 19.5079158 | R134: -104.7626646 | S134: 75.2373354 | U134: 1000000000 | V134: 53710576.56 | X134: 27.26959372 | Y134: -39.44713135 | AA134: 53.86251574 | AB134: -65.31553325 | AD134: 0 | AE134: 0
A135: 7413.1 | B135: 7.4131 | C135: 2.367074305 | D135: 1.134635931 | E135: 1.00006248 | F135: 0.01117822582 | G135: 1 | H135: 0 | I135: 5367.029581 | J135: 1.570610004 | K135: 1.606724857 | L135: 0.8990113539 | M135: 1.000065372 | N135: 0.01143404383 | O135: 1.000175606 | P135: 0.02102343431 | Q135: 19.3876157 | R135: -104.7088298 | S135: 75.29117023 | U135: 1000000000 | V135: 54954051.61 | X135: 27.23080707 | Y135: -39.13489068 | AA135: 53.78100228 | AB135: -65.57393909 | AD135: 0 | AE135: 0
A136: 7499.45 | B136: 7.49945 | C136: 2.389749046 | D136: 1.139053894 | E136: 1.000063944 | F136: 0.01130842209 | G136: 1 | H136: 0 | I136: 5429.54634 | J136: 1.570612149 | K136: 1.618216436 | L136: 0.9046455266 | M136: 1.000066904 | N136: 0.01156721917 | O136: 1.000179721 | P136: 0.02126827076 | Q136: 19.26608206 | R136: -104.6534678 | S136: 75.34653218 | U136: 1000000000 | V136: 56241750.3 | X136: 27.19210458 | Y136: -38.81982967 | AA136: 53.69817115 | AB136: -65.83363815 | AD136: 0 | AE136: 0
A137: 7585.8 | B137: 7.5858 | C137: 2.412469554 | D137: 1.143388725 | E137: 1.000065425 | F137: 0.01143861798 | G137: 1 | H137: 0 | I137: 5492.0631 | J137: 1.570614246 | K137: 1.629758658 | L137: 0.9102000692 | M137: 1.000068454 | N137: 0.0117003941 | O137: 1.000183883 | P137: 0.02151310544 | Q137: 19.14614874 | R137: -104.5979023 | S137: 75.40209774 | U137: 1000000000 | V137: 57544361.64 | X137: 27.15438541 | Y137: -38.5093283 | AA137: 53.61595698 | AB137: -66.08857396 | AD137: 0 | AE137: 0
A138: 7674.15 | B138: 7.67415 | C138: 2.435762337 | D138: 1.147740172 | E138: 1.000066957 | F138: 0.01157182901 | G138: 1 | H138: 0 | I138: 5556.027844 | J138: 1.570616342 | K138: 1.641619518 | L138: 0.9158022439 | M138: 1.000070057 | N138: 0.01183665314 | O138: 1.000188191 | P138: 0.02176360903 | Q138: 19.02505561 | R138: -104.5408884 | S138: 75.45911161 | U138: 1000000000 | V138: 58892578.22 | X138: 27.11677778 | Y138: -38.1962745 | AA138: 53.53247149 | AB138: -66.34461389 | AD138: 0 | AE138: 0
A139: 7762.5 | B139: 7.7625 | C139: 2.459100367 | D139: 1.152009104 | E139: 1.000068508 | F139: 0.01170503962 | G139: 1 | H139: 0 | I139: 5619.992589 | J139: 1.570618391 | K139: 1.653531159 | L139: 0.9213238765 | M139: 1.00007168 | N139: 0.01197291174 | O139: 1.000192549 | P139: 0.02201411072 | Q139: 18.9055612 | R139: -104.4837586 | S139: 75.51624135 | U139: 1000000000 | V139: 60256406.25 | X139: 27.08013463 | Y139: -37.88783267 | AA139: 53.44962024 | AB139: -66.59592598 | AD139: 0 | AE139: 0
A140: 7852.9 | B140: 7.8529 | C140: 2.483025417 | D140: 1.156293947 | E140: 1.000070113 | F140: 0.01184134072 | G140: 1 | H140: 0 | I140: 5685.441518 | J140: 1.570620439 | K140: 1.665770614 | L140: 0.9268917162 | M140: 1.000073359 | N140: 0.01211233151 | O140: 1.000197059 | P140: 0.02227042287 | Q140: 18.78491037 | R140: -104.42523 | S140: 75.57477001 | U140: 1000000000 | V140: 61668038.41 | X140: 27.04360723 | Y140: -37.57692448 | AA140: 53.3654968 | AB140: -66.84830551 | AD140: 0 | AE140: 0
A141: 7943.3 | B141: 7.9433 | C141: =SQRT(1+(A141/pole1)^2) -> 2.506995184 | D141: =ATAN(A141/pole1) -> 1.16049693 | E141: =SQRT(1+(A141/Zero1)^2) -> 1.000071736 | F141: =ATAN(A141/Zero1) -> 0.01197764137 | G141: =IF(VIN_nom>Vout, 1, SQRT(1+(A141/z_RHP)^2)) -> 1 | H141: =IF(VIN_nom>Vout, 0, -ATAN(A141/z_RHP)) -> 0 | I141: =SQRT(1+(A141/Pole2)^2) -> 5750.890447 | J141: =ATAN(A141/Pole2) -> 1.570622441 | K141: =SQRT(1+(A141/Zero2)^2) -> 1.678060955 | L141: =ATAN(A141/Zero2) -> 0.9323781648 | M141: =SQRT(1+(A141/pole4)^2) -> 1.000075057 | N141: =ATAN(A141/pole4) -> 0.01225175081 | O141: =SQRT((1-(V141/pterm2))^2+(A141/pterm1)^2) -> 1.000201622 | P141: =IF((ATAN((A141/pterm1)/(1-A141^2/pterm2))>0),ATAN((A141/pterm1)/(1-A141^2/pterm2)),PI()+ATAN((A141/pterm1)/(1-A141^2/pterm2))) -> 0.022526733 | Q141: =20*LOG10(((E141*K141*G141)/(C141*I141*O141*M141))*Adc) -> 18.66585616 | R141: =((F141+L141+H141)-(D141+J141+P141+N141))*radconv -> -104.3666717 | S141: =IF(R141>0,R141,R141+180) -> 75.63332833 | U141: 1000000000 | V141: 63096014.89 | X141: =20*LOG10((K141/(I141*M141))*AEA) -> 27.00802524 | Y141: =(L141-(J141+N141))*radconv -> -37.27067696 | AA141: =20*LOG10((E141*G141/(C141*O141))*Acs*Am) -> 53.28202458 | AB141: =(F141+H141-(D141+P141))*radconv -> -67.09599471 | AD141: 0 | AE141: 0
A142: 8035.8 | B142: =A142/1000 -> 8.0358 | C142: 2.531566734 | D142: 1.164715086 | E142: 1.000073417 | F142: 0.01211710784 | G142: 1 | H142: 0 | I142: 5817.859761 | J142: 1.570624442 | K142: 1.690688316 | L142: 0.9379093258 | M142: 1.000076816 | N142: 0.01239440834 | O142: 1.000206344 | P142: 0.02278899512 | Q142: 18.54565017 | R142: -104.3067661 | S142: 75.69323391 | U142: =IF(Q142<0,A142,1000000000) -> 1000000000 | V142: =A142^2 -> 64574081.64 | X142: 26.97256327 | Y142: -36.96205314 | AA142: 53.19728056 | AB142: -67.34471295 | AD142: =SUM((Q143<0)*(Q142>0))*A142 -> 0 | AE142: 0
A143: 8128.3 | B143: 8.1283 | C143: 2.556182461 | D143: 1.168852075 | E143: 1.000075117 | F143: 0.01225657384 | G143: 1 | H143: 0 | I143: 5884.829075 | J143: 1.570626398 | K143: 1.703366635 | L143: 0.9433583134 | M143: 1.000078594 | N143: 0.01253706537 | O143: 1.000211122 | P143: 0.02305125506 | Q143: 18.42703818 | R143: -104.2469154 | S143: 75.75308464 | U143: 1000000000 | V143: 66069260.89 | X143: 26.93802742 | Y143: -36.65813486 | AA143: 53.11320442 | AB143: -67.5887805 | AD143: 0 | AE143: 0
A144: 8222.95 | B144: 8.22295 | C144: 2.581414749 | D144: 1.173003476 | E144: 1.000076876 | F144: 0.01239928099 | G144: 1 | H144: 0 | I144: 5953.354973 | J144: 1.570628354 | K144: 1.716391208 | L144: 0.9488504587 | M144: 1.000080435 | N144: 0.01268303768 | O144: 1.000216067 | P144: 0.02331960851 | Q144: 18.3072802 | R144: -104.1857711 | S144: 75.81422891 | U144: 1000000000 | V144: 67616906.7 | X144: 26.90361583 | Y144: -36.35193378 | AA144: 53.02785803 | AB144: -67.83383731 | AD144: 0 | AE144: 0
A145: 8270.275 | B145: 8.270275 | C145: 2.594047333 | D145: 1.175048874 | E145: 1.000077763 | F145: 0.01247063437 | G145: 1 | H145: 0 | I145: 5987.617922 | J145: 1.570629315 | K145: 1.722922688 | L145: 0.9515653517 | M145: 1.000081364 | N145: 0.01275602363 | O145: 1.000218561 | P145: 0.02345378436 | Q145: 18.24800016 | R145: -104.1552482 | S145: 75.84475184 | U145: 1000000000 | V145: 68397448.58 | X145: 26.88675192 | Y145: -36.20061873 | AA145: 52.9854419 | AB145: -67.95462943 | AD145: 0 | AE145: 0
A146: 8317.6 | B146: 8.3176 | C146: 2.606690664 | D146: 1.177074439 | E146: 1.000078656 | F146: 0.01254198763 | G146: 1 | H146: 0 | I146: 6021.880871 | J146: 1.570630266 | K146: 1.729466772 | L146: 0.9542597188 | M146: 1.000082297 | N146: 0.01282900945 | O146: 1.000221069 | P146: 0.02358795963 | Q146: 18.18911306 | R146: -104.1247643 | S146: 75.87523574 | U146: 1000000000 | V146: 69182469.76 | X146: 26.87011086 | Y146: -36.05047909 | AA146: 52.94319587 | AB146: -68.07428517 | AD146: 0 | AE146: 0
A147: 8366.05 | B147: 8.36605 | C147: 2.61964552 | D147: 1.179127891 | E147: 1.000079575 | F147: 0.01261503695 | G147: 1 | H147: 0 | I147: 6056.958312 | J147: 1.570631227 | K147: 1.736179328 | L147: 0.956997074 | M147: 1.000083259 | N147: 0.01290373013 | O147: 1.000223652 | P147: 0.02372532388 | Q147: 18.1292283 | R147: -104.0936008 | S147: 75.90639924 | U147: 1000000000 | V147: 69990792.6 | X147: 26.85330118 | Y147: -35.89797647 | AA147: 52.90012078 | AB147: -68.19562429 | AD147: 0 | AE147: 0
A148: 8414.5 | B148: 8.4145 | C148: 2.632611314 | D148: 1.181161125 | E148: 1.000080499 | F148: 0.01268808613 | G148: 1 | H148: 0 | I148: 6092.035752 | J148: 1.570632178 | K148: =SQRT(1+(A148/Zero2)^2) -> 1.742904793 | L148: =ATAN(A148/Zero2) -> 0.9597133238 | M148: 1.000084226 | N148: 0.01297845066 | O148: 1.000226249 | P148: 0.0238626875 | Q148: 18.06974556 | R148: -104.0624874 | S148: 75.93751257 | U148: 1000000000 | V148: 70803810.25 | X148: 26.83671727 | Y148: -35.74668246 | AA148: 52.85722195 | AB148: -68.31580496 | AD148: 0 | AE148: 0
A149: 8462.95 | B149: 8.46295 | C149: 2.645587885 | D149: 1.183174421 | E149: 1.000081429 | F149: 0.01276113518 | G149: 1 | H149: 0 | I149: 6127.113193 | J149: 1.570633118 | K149: 1.749643018 | L149: 0.9624086717 | M149: 1.000085199 | N149: 0.01305317105 | O149: 1.000228862 | P149: 0.02400005051 | Q149: 18.01065997 | R149: -104.0314287 | S149: 75.96857133 | U149: 1000000000 | V149: 71621522.7 | X149: 26.82035529 | Y149: -35.59658541 | AA149: 52.81449834 | AB149: -68.43484326 | AD149: 0 | AE149: 0
A150: 8511.4 | B150: 8.5114 | C150: 2.658575075 | D150: 1.185168056 | E150: 1.000082364 | F150: 0.01283418409 | G150: 1 | H150: 0 | I150: 6162.190633 | J150: 1.570634047 | K150: 1.756393856 | L150: 0.9650833193 | M150: 1.000086177 | N150: 0.01312789129 | O150: 1.00023149 | P150: 0.02413741288 | Q150: 17.95196678 | R150: -104.0004288 | S150: 75.99957124 | U150: 1000000000 | V150: 72443929.96 | X150: 26.80421151 | Y150: -35.44767378 | AA150: 52.77194893 | AB150: -68.55275498 | AD150: 0 | AE150: 0
A151: 8560.95 | B151: 8.56095 | C151: 2.671867945 | D151: 1.187186899 | E151: 1.000083326 | F151: 0.01290889136 | G151: 1 | H151: 0 | I151: 6198.064466 | J151: 1.570634986 | K151: 1.76331086 | L151: 0.9677974892 | M151: 1.000087183 | N151: 0.01320430782 | O151: 1.000234192 | P151: 0.02427789326 | Q151: 17.89234197 | R151: -103.9687902 | S151: 76.03120985 | U151: 1000000000 | V151: 73289864.9 | X151: 26.78792304 | Y151: -35.29659545 | AA151: 52.7286126 | AB151: -68.6721947 | AD151: 0 | AE151: 0
A152: 8610.5 | B152: 8.6105 | C152: 2.685171597 | D152: 1.189185745 | E152: 1.000084293 | F152: 0.01298359847 | G152: 1 | H152: 0 | I152: 6233.938298 | J152: 1.570635915 | K152: 1.770240752 | L152: 0.9704904287 | M152: 1.000088195 | N152: 0.01328072419 | O152: 1.000236911 | P152: 0.02441837297 | Q152: 17.8331177 | R152: -103.9372216 | S152: 76.06277842 | U152: 1000000000 | V152: 74140710.25 | X152: 26.77185507 | Y152: -35.14673292 | AA152: 52.68545629 | AB152: -68.79048867 | AD152: 0 | AE152: 0
A153: 8660.05 | B153: 8.66005 | C153: 2.698485872 | D153: 1.191164875 | E153: 1.000085266 | F153: 0.01305830544 | G153: 1 | H153: 0 | I153: 6269.812131 | J153: 1.570636832 | K153: 1.777183381 | L153: 0.9731623474 | M153: 1.000089213 | N153: 0.01335714041 | O153: 1.000239645 | P153: 0.02455885202 | Q153: 17.77428911 | R153: -103.9057271 | S153: 76.09427291 | U153: 1000000000 | V153: 74996466 | X153: 26.75600385 | Y153: -34.99807417 | AA153: 52.64247892 | AB153: -68.90765292 | AD153: 0 | AE153: 0
A154: 8709.6 | B154: 8.7096 | C154: 2.711810612 | D154: 1.193124564 | E154: 1.000086244 | F154: 0.01313301227 | G154: 1 | H154: 0 | I154: 6305.685963 | J154: 1.57063774 | K154: 1.784138599 | L154: 0.9758134526 | M154: 1.000090237 | N154: 0.01343355647 | O154: 1.000242395 | P154: 0.0246993304 | Q154: 17.71585139 | R154: -103.8743106 | S154: 76.12568945 | U154: 1000000000 | V154: 75857132.16 | X154: 26.74036567 | Y154: -34.85060734 | AA154: 52.59967939 | AB154: -69.02370322 | AD154: 0 | AE154: =IF(AD154>0,S154,0) -> 0
A155: 8760.325 | B155: 8.760325 | C155: 2.725462009 | D155: 1.195110866 | E155: 1.000087252 | F155: 0.0132094905 | G155: 1 | H155: 0 | I155: 6342.410487 | J155: 1.570638658 | K155: 1.791271636 | L155: 0.9785060795 | M155: 1.000091291 | N155: 0.01351178445 | O155: 1.000245226 | P155: 0.0248431393 | Q155: 17.6564279 | R155: -103.8422337 | S155: 76.15776634 | U155: 1000000000 | V155: 76743294.11 | X155: 26.72457354 | Y155: -34.70086593 | AA155: 52.55604802 | AB155: -69.14136773 | AD155: 0 | AE155: 0
A156: 8811.05 | B156: 8.81105 | C156: 2.739124052 | D156: 1.197077362 | E156: 1.000088265 | F156: 0.01328596857 | G156: 1 | H156: 0 | I156: 6379.135011 | J156: 1.570639566 | K156: 1.798417557 | L156: 0.9811773275 | M156: 1.000092351 | N156: 0.01359001227 | O156: 1.000248074 | P156: 0.02498694749 | Q156: 17.59740414 | R156: -103.8102462 | S156: 76.1897538 | U156: 1000000000 | V156: 77634602.1 | X156: 26.70899708 | Y156: -34.55234882 | AA156: 52.51260072 | AB156: -69.25789738 | AD156: 0 | AE156: 0
A157: 8861.775 | B157: 8.861775 | C157: 2.752796582 | D157: 1.199024331 | E157: 1.000089284 | F157: 0.01336244649 | G157: 1 | H157: 0 | I157: 6415.859535 | J157: 1.570640463 | K157: 1.80557621 | L157: 0.9838274127 | M157: 1.000093418 | N157: 0.01366823993 | O157: 1.000250938 | P157: 0.02513075496 | Q157: 17.53877521 | R157: -103.7783518 | S157: 76.22164816 | U157: 1000000000 | V157: 78531056.15 | X157: 26.69363256 | Y157: -34.40504365 | AA157: 52.46933632 | AB157: -69.37330819 | AD157: 0 | AE157: 0
A158: 8912.5 | B158: 8.9125 | C158: 2.766479444 | D158: 1.200952048 | E158: 1.000090309 | F158: 0.01343892425 | G158: 1 | H158: 0 | I158: 6452.584059 | J158: 1.57064135 | K158: =SQRT(1+(A158/Zero2)^2) -> 1.812747442 | L158: =ATAN(A158/Zero2) -> 0.9864565488 | M158: 1.00009449 | N158: 0.01374646741 | O158: 1.000253819 | P158: 0.02527456172 | Q158: 17.48053631 | R158: -103.7465541 | S158: 76.25344591 | U158: 1000000000 | V158: 79432656.25 | X158: 26.67847631 | Y158: -34.25893818 | AA158: 52.42625366 | AB158: -69.48761592 | AD158: 0 | AE158: 0
A159: 8964.4 | B159: 8.9644 | C159: 2.780489791 | D159: 1.202904775 | E159: 1.000091364 | F159: 0.01351717339 | G159: 1 | H159: 0 | I159: 6490.159274 | J159: 1.570642247 | K159: 1.820097656 | L159: 0.9891251244 | M159: 1.000095594 | N159: 0.0138265068 | O159: 1.000256783 | P159: 0.02542169888 | Q159: 17.4213471 | R159: -103.7141233 | S159: 76.28587671 | U159: 1000000000 | V159: 80360467.36 | X159: 26.66318083 | Y159: -34.11067738 | AA159: 52.38235993 | AB159: -69.6034459 | AD159: 0 | AE159: 0
A160: 9016.3 | B160: 9.0163 | C160: 2.794510635 | D160: 1.204837914 | E160: 1.000092425 | F160: 0.01359542237 | G160: 1 | H160: 0 | I160: 6527.734489 | J160: 1.570643134 | K160: 1.827460726 | L160: 0.9917722147 | M160: 1.000096704 | N160: 0.013906546 | O160: 1.000259765 | P160: 0.02556883528 | Q160: 17.36255626 | R160: -103.6818006 | S160: 76.31819942 | U160: 1000000000 | V160: 81293665.69 | X160: 26.6480959 | Y160: -33.96364701 | AA160: 52.33865402 | AB160: -69.71815357 | AD160: 0 | AE160: 0
A161: 9068.2 | B161: 9.0682 | C161: 2.808541818 | D161: 1.206751745 | E161: 1.000093492 | F161: 0.01367367118 | G161: 1 | H161: 0 | I161: 6565.309704 | J161: 1.570644011 | K161: 1.834836499 | L161: 0.9943980414 | M161: 1.00009782 | N161: 0.01398658503 | O161: 1.000262764 | P161: 0.02571597092 | Q161: 17.30415887 | R161: -103.6495893 | S161: 76.35041073 | U161: 1000000000 | V161: 82232251.24 | X161: 26.63321784 | Y161: -33.81783435 | AA161: 52.29513469 | AB161: -69.83175492 | AD161: 0 | AE161: 0
A162: 9120.1 | B162: 9.1201 | C162: 2.822583185 | D162: 1.208646541 | E162: 1.000094565 | F162: 0.01375191982 | G162: 1 | H162: 0 | I162: 6602.884919 | J162: 1.570644878 | K162: 1.842224822 | L162: 0.997002824 | M162: 1.000098943 | N162: 0.01406662388 | O162: 1.00026578 | P162: 0.02586310579 | Q162: 17.24615011 | R162: -103.6174925 | S162: 76.38250751 | U162: 1000000000 | V162: 83176224.01 | X162: 26.61854307 | Y162: -33.67322685 | AA162: 52.25180071 | AB162: -69.94426564 | AD162: 0 | AE162: 0
A163: 9173.2 | B163: 9.1732 | C163: 2.836959591 | D163: 1.210565729 | E163: 1.000095669 | F163: 0.0138319775 | G163: 1 | H163: 0 | I163: 6641.328925 | J163: 1.570645755 | K163: 1.849796804 | L163: 0.9996462795 | M163: 1.000100099 | N163: 0.01414851315 | O163: 1.000268883 | P163: 0.02601364181 | Q163: 17.18719739 | R163: -103.5847753 | S163: 76.41522475 | U163: 1000000000 | V163: 84147598.24 | X163: 26.60373569 | Y163: -33.52651015 | AA163: 52.20765536 | AB163: -70.0582651 | AD163: 0 | AE163: 0
A164: 9226.3 | B164: 9.2263 | C164: 2.851346342 | D164: 1.212465556 | E164: 1.00009678 | F164: 0.013912035 | G164: 1 | H164: 0 | I164: 6679.772932 | J164: 1.570646621 | K164: 1.857381608 | L164: 1.002268164 | M164: 1.000101261 | N164: 0.01423040223 | O164: 1.000272005 | P164: 0.02616417702 | Q164: 17.12864151 | R164: -103.5521841 | S164: 76.44781591 | U164: 1000000000 | V164: 85124611.69 | X164: 26.58913373 | Y164: -33.38102881 | AA164: 52.16370144 | AB164: -70.17115529 | AD164: 0 | AE164: 0
A165: 9279.4 | B165: 9.2794 | C165: 2.86574328 | D165: 1.214346302 | E165: 1.000097897 | F165: 0.01399209233 | G165: 1 | H165: 0 | I165: 6718.216938 | J165: 1.570647478 | K165: 1.864979075 | L165: 1.004868704 | M165: 1.00010243 | N165: 0.01431229112 | O165: 1.000275144 | P165: 0.02631471141 | Q165: 17.07047757 | R165: -103.5197219 | S165: 76.48027807 | U165: 1000000000 | V165: 86107264.36 | X165: 26.57473355 | Y165: -33.23676981 | AA165: 52.11993768 | AB165: -70.28295211 | AD165: 0 | AE165: 0
A166: 9332.5 | B166: 9.3325 | C166: 2.880150253 | D166: 1.216208239 | E166: 1.000099021 | F166: 0.01407214948 | G166: 1 | H166: 0 | I166: 6756.660944 | J166: 1.570648325 | K166: 1.872589053 | L166: 1.007448124 | M166: 1.000103605 | N166: 0.01439417982 | O166: 1.000278302 | P166: 0.02646524498 | Q166: 17.01270074 | R166: -103.4873915 | S166: 76.51260848 | U166: 1000000000 | V166: 87095556.25 | X166: 26.56053162 | Y166: -33.09372029 | AA166: 52.07636278 | AB166: -70.39367123 | AD166: 0 | AE166: 0
A167: 9386.85 | B167: 9.38685 | C167: 2.89490661 | D167: 1.218094807 | E167: 1.000100178 | F167: 0.01415409103 | G167: 1 | H167: 0 | I167: 6796.009941 | J167: 1.570649182 | K167: 1.88039097 | L167: 1.010066627 | M167: 1.000104815 | N167: 0.01447799602 | O167: 1.000281552 | P167: 0.02661932132 | Q167: 16.95395973 | R167: -103.4544392 | S167: 76.54556078 | U167: 1000000000 | V167: 88112952.92 | X167: 26.54619706 | Y167: -32.94854255 | AA167: 52.03195633 | AB167: -70.50589668 | AD167: 0 | AE167: 0
A168: 9441.2 | B168: 9.4412 | C168: 2.909673166 | D168: 1.219962234 | E168: 1.000101341 | F168: 0.01423603238 | G168: 1 | H168: 0 | I168: 6835.358938 | J168: 1.570650029 | K168: 1.888205673 | L168: 1.012663473 | M168: 1.000106033 | N168: 0.01456181201 | O168: 1.000284822 | P168: 0.02677339679 | Q168: 16.89561429 | R168: -103.4216304 | S168: 76.57836961 | U168: 1000000000 | V168: 89136257.44 | X168: 26.53206292 | Y168: -32.80460506 | AA168: 51.98774503 | AB168: -70.61702533 | AD168: 0 | AE168: 0
A169: 9495.55 | B169: 9.49555 | C169: 2.924449766 | D169: 1.221810796 | E169: 1.000102511 | F169: 0.01431797355 | G169: 1 | H169: 0 | I169: 6874.707935 | J169: 1.570650866 | K169: 1.896033005 | L169: 1.015238896 | M169: 1.000107257 | N169: 0.0146456278 | O169: 1.00028811 | P169: 0.02692747137 | Q169: 16.83765948 | R169: -103.3889676 | S169: 76.61103244 | U169: 1000000000 | V169: 90165469.8 | X169: 26.51812564 | Y169: -32.66189449 | AA169: 51.9437275 | AB169: -70.72707306 | AD169: 0 | AE169: 0
A170: 9549.9 | B170: 9.5499 | C170: 2.939236259 | D170: 1.223640765 | E170: 1.000103688 | F170: 0.01439991452 | G170: 1 | H170: 0 | I170: 6914.056932 | J170: 1.570651694 | K170: 1.903872809 | L170: 1.017793125 | M170: 1.000108488 | N170: 0.01472944339 | O170: 1.000291417 | P170: 0.02708154507 | Q170: 16.78009046 | R170: -103.3564531 | S170: 76.64354689 | U170: 1000000000 | V170: 91200590.01 | X170: 26.50438174 | Y170: -32.52039766 | AA170: 51.89990239 | AB170: -70.83605545 | AD170: 0 | AE170: 0
A171: 9605.525 | B171: 9.605525 | C171: 2.954379718 | D171: 1.225494689 | E171: 1.000104899 | F171: 0.01448377755 | G171: 1 | H171: 0 | I171: 6954.32902 | J171: 1.570652531 | K171: 1.911909283 | L171: 1.020385566 | M171: 1.000109755 | N171: 0.01481522499 | O171: 1.000294821 | P171: 0.02723923228 | Q171: 16.72156544 | R171: -103.3233319 | S171: 76.67666806 | U171: 1000000000 | V171: 92266110.53 | X171: 26.49051208 | Y171: -32.37682463 | AA171: 51.85524702 | AB171: -70.94650731 | AD171: 0 | AE171: 0
A172: 9661.15 | B172: 9.66115 | C172: 2.969533228 | D172: 1.227329699 | E172: 1.000106117 | F172: 0.01456764038 | G172: 1 | H172: 0 | I172: 6994.601107 | J172: 1.570653359 | K172: 1.919958498 | L172: 1.022956287 | M172: 1.00011103 | N172: 0.01490100638 | O172: 1.000298245 | P172: 0.02739691855 | Q172: 16.66343452 | R172: -103.2903709 | S172: 76.70962913 | U172: 1000000000 | V172: 93337819.32 | X172: 26.47683783 | Y172: -32.23449549 | AA172: 51.81079035 | AB172: -71.05587538 | AD172: 0 | AE172: 0
A173: 9716.775 | B173: 9.716775 | C173: 2.984696635 | D173: 1.229146069 | E173: 1.000107343 | F173: 0.014651503 | G173: 1 | H173: 0 | I173: 7034.873195 | J173: 1.570654178 | K173: 1.928020295 | L173: 1.025505527 | M173: 1.000112312 | N173: 0.01498678755 | O173: 1.000301689 | P173: 0.02755460387 | Q173: 16.60569276 | R173: -103.2575721 | S173: 76.74242793 | U173: 1000000000 | V173: 94415716.4 | X173: 26.46335547 | Y173: -32.09339661 | AA173: 51.76653095 | AB173: -71.16417547 | AD173: 0 | AE173: 0
A174: 9772.4 | B174: 9.7724 | C174: 2.99986979 | D174: 1.230944071 | E174: 1.000108575 | F174: 0.01473536541 | G174: 1 | H174: 0 | I174: 7075.145282 | J174: 1.570654987 | K174: 1.936094518 | L174: 1.028033521 | M174: 1.000113602 | N174: 0.01507256849 | O174: 1.000305153 | P174: 0.02771228825 | Q174: 16.54833533 | R174: -103.2249376 | S174: 76.77506242 | U174: 1000000000 | V174: 95499801.76 | X174: 26.45006159 | Y174: -31.95351449 | AA174: 51.72246741 | AB174: -71.27142309 | AD174: 0 | AE174: 0
A175: 9829.3 | B175: 9.8293 | C175: 3.015400666 | D175: 1.232764558 | E175: 1.000109843 | F175: 0.01482114985 | G175: 1 | H175: 0 | I175: 7116.34046 | J175: 1.570655805 | K175: 1.944366507 | L175: 1.030597719 | M175: 1.000114929 | N175: 0.01516031543 | O175: 1.000308716 | P175: 0.02787358598 | Q175: 16.49005586 | R175: -103.191727 | S175: 76.80827295 | U175: 1000000000 | V175: 96615138.49 | X175: 26.43665448 | Y175: -31.81167113 | AA175: 51.67759504 | AB175: -71.38005592 | AD175: 0 | AE175: 0
A176: 9886.2 | B176: 9.8862 | C176: 3.030941433 | D176: 1.234566383 | E176: 1.000111119 | F176: 0.01490693408 | G176: 1 | H176: 0 | I176: 7157.535638 | J176: 1.570656614 | K176: 1.952651172 | L176: 1.033140176 | M176: 1.000116263 | N176: 0.01524806212 | O176: 1.0003123 | P176: 0.02803488271 | Q176: 16.43216853 | R176: -103.1586923 | S176: 76.84130765 | U176: 1000000000 | V176: 97736950.44 | X176: 26.42343756 | Y176: -31.67107294 | AA176: 51.63292463 | AB176: -71.4876194 | AD176: 0 | AE176: 0
A177: 9943.1 | B177: 9.9431 | C177: 3.04649194 | D177: 1.236349819 | E177: 1.000112401 | F177: 0.01499271808 | G177: 1 | H177: 0 | I177: 7198.730817 | J177: 1.570657413 | K177: 1.960948352 | L177: 1.035661134 | M177: 1.000117605 | N177: 0.01533580859 | O177: 1.000315905 | P177: 0.02819617842 | Q177: 16.37466841 | R177: -103.1258353 | S177: 76.87416473 | U177: 1000000000 | V177: 98865237.61 | X177: 26.41040738 | Y177: -31.53170603 | AA177: 51.5884547 | AB177: -71.59412925 | AD177: 0 | AE177: 0
A178: 10000 | B178: 10 | C178: 3.062052038 | D178: 1.238115135 | E178: 1.000113691 | F178: 0.01507850186 | G178: 1 | H178: 0 | I178: 7239.925995 | J178: 1.570658204 | K178: 1.96925789 | L178: 1.038160832 | M178: 1.000118955 | N178: 0.01542355482 | O178: 1.00031953 | P178: 0.02835747312 | Q178: 16.31755066 | R178: -103.0931575 | S178: 76.9068425 | U178: 1000000000 | V178: 100000000 | X178: 26.39756058 | Y178: -31.39355664 | AA178: 51.54418375 | AB178: -71.69960086 | AD178: 0 | AE178: 0
A179: 10058.25 | B179: 10.05825 | C179: 3.077991096 | D179: 1.23990384 | E179: 1.00011502 | F179: 0.0151663207 | G179: 1 | H179: 0 | I179: 7282.098563 | J179: 1.570659004 | K179: 1.977777216 | L179: 1.040698063 | M179: 1.000120345 | N179: 0.01551338265 | O179: 1.000323263 | P179: 0.02852259362 | Q179: 16.25946887 | R179: -103.0598918 | S179: 76.94010824 | U179: 1000000000 | V179: 101168393.1 | X179: 26.3845955 | Y179: -31.25337658 | AA179: 51.49906703 | AB179: -71.80651518 | AD179: 0 | AE179: 0
A180: 10116.5 | B180: 10.1165 | C180: 3.093939901 | D180: 1.24167411 | E180: 1.000116356 | F180: 0.01525413932 | G180: 1 | H180: 0 | I180: 7324.271131 | J180: 1.570659794 | K180: 1.986309165 | L180: 1.043213514 | M180: 1.000121742 | N180: 0.01560321024 | O180: 1.000327017 | P180: 0.02868771304 | Q180: 16.20177779 | R180: -103.0268171 | S180: 76.9731829 | U180: 1000000000 | V180: 102343572.2 | X180: 26.3718157 | Y180: -31.11444392 | AA180: 51.45415575 | AB180: -71.91237318 | AD180: 0 | AE180: 0
A181: 10174.75 | B181: 10.17475 | C181: 3.109898302 | D181: 1.243426217 | E181: 1.000117699 | F181: 0.01534195769 | G181: 1 | H181: 0 | I181: 7366.443699 | J181: 1.570660576 | K181: 1.994853575 | L181: 1.045707432 | M181: 1.000123148 | N181: 0.01569303757 | O181: 1.000330793 | P181: 0.02885283138 | Q181: 16.14447249 | R181: -102.9939349 | S181: 77.00606506 | U181: 1000000000 | V181: 103525537.6 | X181: 26.3592178 | Y181: -30.97674446 | AA181: 51.40944836 | AB181: -72.01719048 | AD181: 0 | AE181: 0
A182: 10233 | B182: 10.233 | C182: 3.125866152 | D182: 1.245160429 | E182: 1.000119051 | F182: 0.01542977583 | G182: 1 | H182: 0 | I182: 7408.616267 | J182: 1.570661349 | K182: 2.003410286 | L182: 1.048180062 | M182: 1.000124562 | N182: 0.01578286465 | O182: 1.000334591 | P182: 0.02901794863 | Q182: 16.08754814 | R182: -102.9612466 | S182: 77.03875339 | U182: 1000000000 | V182: 104714289 | X182: 26.3467985 | Y182: -30.8402642 | AA182: 51.3649433 | AB182: -72.12098241 | AD182: 0 | AE182: 0
A183: 10292.5 | B183: 10.2925 | C183: 3.142186266 | D183: 1.246913653 | E183: 1.000120439 | F183: 0.01551947823 | G183: 1 | H183: 0 | I183: 7451.693826 | J183: 1.570662129 | K183: 2.012163154 | L183: 1.050684025 | M183: 1.000126015 | N183: 0.01587461908 | O183: 1.000338493 | P183: 0.02918660803 | Q183: 16.02979057 | R183: -102.9280582 | S183: 77.07194182 | U183: 1000000000 | V183: 105935556.2 | X183: 26.33429371 | Y183: -30.70209952 | AA183: 51.31969052 | AB183: -72.22595866 | AD183: 0 | AE183: 0
A184: 10352 | B184: 10.352 | C184: 3.158515939 | D184: 1.248648754 | E184: 1.000121836 | F184: 0.01560918038 | G184: 1 | H184: 0 | I184: 7494.771385 | J184: 1.5706629 | K184: 2.020928529 | L184: 1.053166283 | M184: 1.000127476 | N184: 0.01596637325 | O184: 1.000342417 | P184: 0.02935526629 | Q184: 15.9724205 | R184: -102.8950744 | S184: 77.10492559 | U184: 1000000000 | V184: 107163904 | X184: 26.32196852 | Y184: -30.56517794 | AA184: 51.27464564 | AB184: -72.32989647 | AD184: 0 | AE184: 0
A185: 10411.5 | B185: 10.4115 | C185: 3.174855023 | D185: 1.250366001 | E185: 1.00012324 | F185: 0.01569888228 | G185: 1 | H185: 0 | I185: 7537.848944 | J185: 1.570663663 | K185: 2.029706249 | L185: 1.055627086 | M185: 1.000128946 | N185: 0.01605812715 | O185: 1.000346364 | P185: 0.0295239234 | Q185: 15.91543303 | R185: -102.8622964 | S185: 77.13770363 | U185: 1000000000 | V185: 108399332.2 | X185: 26.30981964 | Y185: -30.4294851 | AA185: 51.22980705 | AB185: -72.43281127 | AD185: 0 | AE185: 0
A186: 10471 | B186: 10.471 | C186: 3.191203374 | D186: 1.252065658 | E186: 1.000124653 | F186: 0.01578858393 | G186: 1 | H186: 0 | I186: 7580.926503 | J186: 1.570664417 | K186: 2.038496154 | L186: 1.058066682 | M186: 1.000130423 | N186: 0.01614988078 | O186: 1.000350334 | P186: 0.02969257934 | Q186: 15.85882334 | R186: -102.829725 | S186: 77.17027497 | U186: 1000000000 | V186: 109641841 | X186: 26.29784383 | Y186: -30.29500682 | AA186: 51.18517317 | AB186: -72.53471821 | AD186: 0 | AE186: 0
A187: 10532 | B187: 10.532 | C187: 3.207973339 | D187: 1.253790174 | E187: 1.000126109 | F187: 0.0158805467 | G187: 1 | H187: 0 | I187: 7625.09005 | J187: 1.570665181 | K187: 2.047520138 | L187: 1.060546021 | M187: 1.000131947 | N187: 0.01624394725 | O187: 1.000354427 | P187: 0.0298654859 | Q187: 15.80117376 | R187: -102.796548 | S187: 77.20345196 | U187: 1000000000 | V187: 110923024 | X187: 26.28574249 | Y187: -30.15838457 | AA187: 51.13962493 | AB187: -72.63816346 | AD187: 0 | AE187: 0
A188: 10593 | B188: 10.593 | C188: 3.224752746 | D188: 1.25549675 | E188: 1.000127574 | F188: 0.01597250921 | G188: 1 | H188: 0 | I188: 7669.253598 | J188: 1.570665936 | K188: 2.056556598 | L188: 1.063003586 | M188: 1.00013348 | N188: 0.01633801342 | O188: 1.000358543 | P188: 0.03003839122 | Q188: 15.74391125 | R188: -102.76359 | S188: 77.23640997 | U188: 1000000000 | V188: 112211649 | X188: 26.27381643 | Y188: -30.02300932 | AA188: 51.09428848 | AB188: -72.7405807 | AD188: 0 | AE188: 0
A189: 10654 | B189: 10.654 | C189: 3.241541447 | D189: 1.257185652 | E189: 1.000129047 | F189: 0.01606447144 | G189: 1 | H189: 0 | I189: 7713.417146 | J189: 1.570666683 | K189: 2.065605371 | L189: 1.065439634 | M189: 1.000135022 | N189: 0.01643207931 | O189: 1.000362684 | P189: 0.0302112953 | Q189: 15.68703091 | R189: -102.7308517 | S189: 77.26914829 | U189: 1000000000 | V189: 113507716 | X189: 26.2620624 | Y189: -29.8888664 | AA189: 51.04916218 | AB189: -72.84198532 | AD189: 0 | AE189: 0
A190: 10715 | B190: 10.715 | C190: 3.258339299 | D190: 1.258857146 | E190: 1.000130529 | F190: 0.0161564334 | G190: 1 | H190: 0 | I190: 7757.580694 | J190: 1.570667421 | K190: 2.074666294 | L190: 1.067854418 | M190: 1.000136572 | N190: 0.0165261449 | O190: 1.000366848 | P190: 0.03038419813 | Q190: 15.63052789 | R190: -102.6983337 | S190: 77.30166627 | U190: 1000000000 | V190: 114811225 | X190: 26.25047722 | Y190: -29.75594132 | AA190: 51.00424434 | AB190: -72.94239241 | AD190: 0 | AE190: 0
A191: 10777.5 | B191: 10.7775 | C191: 3.275559557 | D191: 1.260551956 | E191: 1.000132056 | F191: 0.01625065643 | G191: 1 | H191: 0 | I191: 7802.83023 | J191: 1.570668168 | K191: 2.083962464 | L191: 1.070306788 | M191: 1.00013817 | N191: 0.01662252329 | O191: 1.00037114 | P191: 0.03056135137 | Q191: 15.57302184 | R191: -102.6652452 | S191: 77.3347548 | U191: 1000000000 | V191: 116154506.2 | X191: 26.23877904 | Y191: -29.62099579 | AA191: 50.95843646 | AB191: -73.04424941 | AD191: 0 | AE191: 0
A192: 10840 | B192: 10.84 | C192: 3.292789125 | D192: 1.262229034 | E192: 1.000133592 | F192: 0.01634487918 | G192: 1 | H192: 0 | I192: 7848.079767 | J192: 1.570668907 | K192: 2.093271056 | L192: 1.072737361 | M192: 1.000139777 | N192: 0.01671890136 | O192: 1.000375456 | P192: 0.03073850328 | Q192: 15.51590189 | R192: -102.632389 | S192: 77.36761099 | U192: 1000000000 | V192: 117505600 | X192: 26.2272516 | Y192: -29.48729859 | AA192: 50.91284396 | AB192: -73.14509042 | AD192: 0 | AE192: 0
A193: 10902.5 | B193: 10.9025 | C193: 3.310027857 | D193: 1.263888648 | E193: 1.000135137 | F193: 0.01643910164 | G193: 1 | H193: 0 | I193: 7893.329304 | J193: 1.570669638 | K193: 2.102591905 | L193: 1.075146399 | M193: 1.000141393 | N193: 0.01681527912 | O193: 1.000379797 | P193: 0.03091565385 | Q193: 15.4591631 | R193: -102.5997655 | S193: 77.40023447 | U193: 1000000000 | V193: 118864506.2 | X193: 26.21589169 | Y193: -29.35483478 | AA193: 50.86746508 | AB193: -73.24493075 | AD193: 0 | AE193: 0
A194: 10965 | B194: 10.965 | C194: 3.327275613 | D194: 1.265531061 | E194: 1.000136691 | F194: 0.01653332381 | G194: 1 | H194: 0 | I194: 7938.57884 | J194: 1.57067036 | K194: 2.111924848 | L194: 1.077534159 | M194: 1.000143019 | N194: 0.01691165657 | O194: 1.000384163 | P194: 0.03109280308 | Q194: 15.40280063 | R194: -102.5673751 | S194: 77.43262493 | U194: 1000000000 | V194: 120231225 | X194: 26.2046962 | Y194: -29.22358963 | AA194: 50.8222981 | AB194: -73.34378545 | AD194: 0 | AE194: 0
A195: 11028.75 | B195: 11.02875 | C195: 3.344877473 | D195: 1.267188868 | E195: 1.000138285 | F195: 0.01662943011 | G195: 1 | H195: 0 | I195: 7984.733368 | J195: 1.570671088 | K195: 2.121456745 | L195: 1.079948016 | M195: 1.000144687 | N195: 0.01700996124 | O195: 1.000388642 | P195: 0.03127349391 | Q195: 15.34569367 | R195: -102.5345771 | S195: 77.46542293 | U195: 1000000000 | V195: 121633326.6 | X195: 26.19344301 | Y195: -29.09095995 | AA195: 50.77644432 | AB195: -73.44361712 | AD195: 0 | AE195: 0
A196: 11092.5 | B196: 11.0925 | C196: 3.36248843 | D196: 1.268829314 | E196: 1.000139888 | F196: 0.01672553611 | G196: 1 | H196: 0 | I196: 8030.887895 | J196: 1.570671808 | K196: 2.131000892 | L196: 1.082340265 | M196: 1.000146364 | N196: 0.01710826559 | O196: 1.000393148 | P196: 0.03145418332 | Q196: 15.28896831 | R196: -102.5020219 | S196: 77.49797815 | U196: 1000000000 | V196: 123043556.2 | X196: 26.18235455 | Y196: -28.95956783 | AA196: 50.73080742 | AB196: -73.54245402 | AD196: 0 | AE196: 0
A197: 11156.25 | B197: 11.15625 | C197: 3.380108342 | D197: 1.270452662 | E197: 1.0001415 | F197: 0.0168216418 | G197: 1 | H197: 0 | I197: 8077.042423 | J197: 1.570672519 | K197: 2.140557126 | L197: 1.084711168 | M197: 1.000148051 | N197: 0.01720656961 | O197: 1.000397679 | P197: 0.03163487132 | Q197: 15.23261969 | R197: -102.4697095 | S197: 77.53029053 | U197: 1000000000 | V197: 124461914.1 | X197: 26.17142771 | Y197: -28.82939827 | AA197: 50.68538564 | AB197: -73.6403112 | AD197: 0 | AE197: 0
A198: 11220 | B198: 11.22 | C198: 3.397737068 | D198: 1.272059168 | E198: 1.000143122 | F198: 0.01691774718 | G198: 1 | H198: 0 | I198: 8123.19695 | J198: 1.570673223 | K198: 2.150125285 | L198: 1.087060983 | M198: 1.000149748 | N198: 0.01730487329 | O198: 1.000402236 | P198: 0.03181555788 | Q198: 15.17664302 | R198: -102.4376399 | S198: 77.56236011 | U198: 1000000000 | V198: 125888400 | X198: 26.16065947 | Y198: -28.70043649 | AA198: 50.64017721 | AB198: -73.7372034 | AD198: 0 | AE198: 0
A199: 11285.5 | B199: 11.2855 | C199: 3.415858758 | D199: 1.2736925 | E199: 1.000144798 | F199: 0.01701649042 | G199: 1 | H199: 0 | I199: 8170.618465 | J199: 1.570673937 | K199: 2.159968354 | L199: 1.089453605 | M199: 1.000151501 | N199: 0.01740587516 | O199: 1.000406945 | P199: 0.03200120297 | Q199: 15.1195122 | R199: -102.4049427 | S199: 77.59505725 | U199: 1000000000 | V199: 127362510.2 | X199: 26.14975772 | Y199: -28.56917724 | AA199: 50.59394815 | AB199: -73.83576551 | AD199: 0 | AE199: 0
A200: 11351 | B200: 11.351 | C200: 3.433989465 | D200: 1.275308589 | E200: 1.000146483 | F200: 0.01711523333 | G200: 1 | H200: 0 | I200: 8218.039979 | J200: 1.570674643 | K200: 2.169823675 | L200: 1.091824507 | M200: 1.000153265 | N200: 0.01750687667 | O200: 1.000411681 | P200: 0.03218684653 | Q200: 15.06276406 | R200: -102.3725016 | S200: 77.62749838 | U200: 1000000000 | V200: 128845201 | X200: 26.13901714 | Y200: -28.43916201 | AA200: 50.54794059 | AB200: -73.93333961 | AD200: 0 | AE200: 0
A201: 11416.5 | B201: 11.4165 | C201: 3.452129046 | D201: 1.276907698 | E201: 1.000148179 | F201: 0.01721397591 | G201: 1 | H201: 0 | I201: 8265.461493 | J201: 1.570675341 | K201: 2.179691084 | L201: 1.094173955 | M201: 1.000155039 | N201: 0.01760787782 | O201: 1.000416445 | P201: 0.03237248856 | Q201: 15.00639369 | R201: -102.3403162 | S201: 77.65968376 | U201: 1000000000 | V201: 130336472.2 | X201: 26.12843467 | Y201: -28.31037547 | AA201: 50.50215268 | AB201: -74.02994078 | AD201: 0 | AE201: 0
A202: 11482 | B202: 11.482 | C202: 3.470277363 | D202: 1.278490085 | E202: 1.000149884 | F202: 0.01731271815 | G202: 1 | H202: 0 | I202: 8312.883008 | J202: 1.570676032 | K202: 2.189570415 | L202: 1.096502215 | M202: 1.000156823 | N202: 0.01770887862 | O202: 1.000421237 | P202: 0.03255812904 | Q202: 14.95039624 | R202: -102.3083863 | S202: 77.69161373 | U202: 1000000000 | V202: 131836324 | X202: 26.11800732 | Y202: -28.18280246 | AA202: 50.45658258 | AB202: -74.1255838 | AD202: 0 | AE202: 0
... 433 more rows

Sheet Bode Plot Management (hidden)
J1: Single or dual output (MODE) | N1: 3.3V or 5V fixed (FB1/2)
A2: =CHOOSE(BODE_PLOT_TYPE, "BODE_PLOT_Ch1", "BODE_PLOT_Ch2") -> BODE_PLOT_Ch1 | J2: With/without dither (DITH) | N2: With/without VOUT connected to VCCX
J3: FPWM or DEM (DEMB)
J4: Shunt or inductor DCR current sensing
F6: =INDIRECT(A2) -> 0

Sheet Efficiency Calculations (hidden)
A1: BUCK CONTROLLER POWER DESIGN TOOL
H2: =AV19 -> 0.9367359025 | I2: 10% load
H3: =AV59 -> 0.9490391044 | I3: 50% load | AP3: =IF(MODE=1, (Qg_Q1+Qg_Q2)*Fsw*Vin, (Qg_Q1+Qg_Q2+Qg_Q3+Qg_Q4)*Fsw*Vin) -> 7.1148
H4: =AV109 -> 0.9387099485 | I4: 100% load | AO4: I_VCC | AP4: =(Qg_Q1+Qg_Q2)*Fsw*1000 -> 72.6 | AQ4: mA | AR4: =AP4*5/1000 -> 0.363
A6: Enter the values of your design and MOSFET datasheet specifications below. Note that thermal resistance (θJA) will change when components are placed on the PCB
G7: Operating Point Condtions | R7: Filter Inductor | V7: Cout | Y7: Cin | AB7: High-side BUCK "Control" MOSFET Losses | AH7: Low-side BUCK "Sync" MOSFET Losses | AL7: External Diode | AM7: Diode/FET | AN7: Sense Rs | AO7: Controller IC Losses | AT7: RESULTS | AZ7: Consolidated Buck/Boost Efficiency & Losses
A8: Input Parameters | G8: Step | H8: Vin | I8: Mode | J8: Iout | K8: Iout/ phase | L8: Iin | M8: Duty Cycle BUCK Leg | N8: Ripple Current pk-pk | O8: Peak Inductor Current | P8: Valley Inductor Current | Q8: SW node voltage at Q1 turn-on | R8: Irms Lf | S8: DCR Loss | T8: Core Loss | U8: Total Inductor Loss | V8: Irms Cout | W8: Cout ESR Loss | X8: Total Cout Loss | Y8: Irms Cin | Z8: Cin ESR Loss | AA8: Total Cin Loss | AB8: Irms | AC8: RDS(on) Loss | AD8: Transition Loss (not including capacitive loss) | AE8: MOSFET Output Capacitance Loss | AF8: Dead Time Loss | AG8: Total Control MOSFET Loss | AH8: Irms | AI8: RDS(on) Loss | AJ8: Deadtime Loss | AK8: Total Sync MOSFET Loss | AL8: Deadtime Loss | AM8: Reverse Recovery Loss | AN8: Isense Shunt Loss | AO8: IQ Loss | AP8: Switching Current Loss | AQ8: Switching Current Diss | AR8: LDO Loss Saved from Gate Drive Current (ext VCC) | AS8: Total IC Loss | AT8: Total Loss | AU8: Pout | AV8: EFF, h | AW8: =IF(Vin>Vout, "Buck ''CONTROL'' MOSFET Temp Rise", "Boost ''CONTROL'' MOSFET Temp Rise") -> Buck ''CONTROL'' MOSFET Temp Rise | AX8: =IF(Vin>Vout, "Buck ''SYNC'' MOSFET Temp Rise", "Boost ''SYNC'' MOSFET Temp Rise") -> Buck ''SYNC'' MOSFET Temp Rise | AZ8: h | BA8: Inductor Cu & Core Loss | BB8: Total MOSFET Loss | BC8: Control MOSFET Loss | BD8: SYNC MOSFET Loss | BE8: Shunt Loss
A9: Design | B9: Input Value | C9: Units | D9: Description | G9: 0 | H9: =Vin -> 49 | I9: =MODE -> 2 | J9: 0 | K9: =Iout*G9/100/Number_of_Phases -> 0 | L9: =Vout*K9/(Vin*Efficiency) -> 0 | M9: =(Vout+(Rdson2+Rs+Rdcr)*K9)/(Vin+(Rs+Rdson2-Rdson1)*K9) -> 0.306122449 | N9: =(Vin-(Rdson1+Rdcr)*K9-Vout)*M9/(Fsw*Lf) -> 4.730983302 | O9: =K9+N9/2 -> 2.365491651 | P9: =K9-N9/2 -> -2.365491651 | Q9: =IF(MIN(Vin, -P9/(Coss_Q1+Coss_Q2)*0.00000002)<0, 0, MIN(Vin, -P9/(Coss_Q1+Coss_Q2)*0.00000002)) -> 24.73070205 | R9: =SQRT(K9^2+(N9^2)/12) -> 1.365717242 | S9: =R9^2*Rdcr -> 0.007460734336 | T9: =Core_Loss_Ch1 -> 0.3 | U9: =(T9+S9*(1+Ltc*(Ta-25)))/(1-S9*Ltc*ThetaCa) -> 0.3076443546 | V9: =N9/SQRT(12) -> 1.365717242 | W9: =RCoutEsr*V9^2 -> 0.003730367168 | X9: =W9 -> 0.003730367168 | Y9: =SQRT(M9*(1-M9))*SQRT(K9^2+(N9^2)/12) -> 0.6294334229 | Z9: =RCinEsr*Y9^2 -> 0.01188559302 | AA9: =Z9 -> 0.01188559302 | AB9: =SQRT(M9)*SQRT(K9^2+(N9^2)/12) -> 0.7556285903 | AC9: =Rdson1*AB9^2 -> 0.003425847399 | AD9: =(Vin*K9/2)*Fsw*(Tr_buck+Tf_buck) -> 0 | AE9: =(0.5*Coss_Q1*(Vin-Q9)^2-0.5*Coss_Q2*(Vin-Q9)^2+(Qoss_Q2*(Vin-Q9)/Vin)*Vin)*Fsw -> 0.63834829 | AF9: =IF(K9>N9/2,0,ABS(K9-N9/2)*Vsd_Q1*Deadtime*Fsw) -> 0.051 | AG9: =(AF9+AE9+AD9+AC9*(1+RdsonTopTc*Ta-RdsonTopTc*25))/(1-AC9*RdsonTopTc*ThetaJA_Q1) -> 0.6932491305 | AH9: =SQRT((1-M9))*SQRT(K9^2+(N9^2)/12) -> 1.137633077 | AI9: =Rdson2*AH9^2 -> 0.003235522544 | AJ9: =IF(K9<N9/2,Deadtime*Fsw*IF(VfdSky_Q2>0,0,Vsd_Q2)*(K9+N9/2),2*Deadtime*Fsw*IF(VfdSky_Q2>0,0,Vsd_Q2)*K9) -> 0.051 | AK9: =(AJ9+AI9*(1+RdsonBotTc*Ta-RdsonBotTc*25))/(1-AI9*RdsonBotTc*ThetaJA_Q2) -> 0.05426220867 | AL9: =2*Deadtime*Fsw*IF(VfdSky_Q2>0,VfdSky_Q2,Vsd_Q2)*K9 -> 0 | AM9: =IF(QrrSky_Q2>0,QrrSky_Q2,Qrr_Q2*K9/(Iout/Number_of_Phases))*Fsw*Vin -> 0 | AN9: =CHOOSE(SENSING_TYPE, Rs*R9^2, 0) -> 0.003730367168 | AO9: =Iq*Vin -> 0.001715 | AP9: =IF(Ext_VCC=1, (Qg_Q1+Qg_Q2)*Fsw*VCC, (Qg_Q1+Qg_Q2)*Fsw*Vin) -> 0.363 | AQ9: =(Vin-VCC)*Fsw*(Qg_Q1+Qg_Q2)+(RdsonDRT+RdsonDRT2)*Fsw*Qg_Q1*VCC/(RdsonDRT+2*Rgate1+RdsonDRT2)+(RdsonDRB+RdsonDRB2)*Fsw*Qg_Q2*VCC/(RdsonDRB+2*Rgate2+RdsonDRB2) -> 3.4122 | AR9: =(Qg_Q1+Qg_Q2)*Fsw*(Vin-VCC) -> 3.1944 | AS9: =SUM(AO9:AP9) -> 0.364715 | AT9: =SUM(U9,X9,AA9,AG9,AK9,AL9,AM9,AS9,AN9) -> 1.439217021 | AU9: =Vout*K9 -> 0 | AV9: =AU9/(AU9+AT9) -> 0 | AW9: =ThetaJA_Q1*BC9 -> 34.66245653 | AX9: =ThetaJA_Q2*BD9 -> 2.061963929 | AZ9: =AV9*100 -> 0 | BA9: =U9 -> 0.3076443546 | BB9: =AG9+AK9+AM9 -> 0.7475113392 | BC9: =AG9+AM9*0.66 -> 0.6932491305 | BD9: =AK9+AM9*0.33 -> 0.05426220867 | BE9: =AN9 -> 0.003730367168
G10: 1 | H10: 49 | I10: 2 | J10: =Iout*G10/100 -> 0.7 | K10: 0.175 | L10: 0.05952380952 | M10: 0.3061544462 | N10: 4.731234274 | O10: =K10+N10/2 -> 2.540617137 | P10: =K10-N10/2 -> -2.190617137 | Q10: 22.90242694 | R10: =SQRT(K10^2+(N10^2)/12) -> 1.376955511 | S10: 0.007584025917 | T10: 0.3 | U10: 0.3077707572 | V10: =N10/SQRT(12) -> 1.365789691 | W10: 0.003730762958 | X10: =W10 -> 0.003730762958 | Y10: =SQRT(M10*(1-M10))*SQRT(K10^2+(N10^2)/12) -> 0.6346314625 | Z10: 0.0120827128 | AA10: =Z10 -> 0.0120827128 | AB10: =SQRT(M10)*SQRT(K10^2+(N10^2)/12) -> 0.7618863522 | AC10: 0.003482824882 | AD10: 0.03537084107 | AE10: 0.608391836 | AF10: 0.04722970547 | AG10: 0.6949592918 | AH10: 1.146968032 | AI10: 0.003288839164 | AJ10: 0.05477570547 | AK10: 0.05809358582 | AL10: 0.007546 | AM10: 0.06468 | AN10: 0.003792012958 | AO10: 0.001715 | AP10: 0.363 | AQ10: 3.4122 | AR10: 3.1944 | AS10: 0.364715 | AT10: 1.517370124 | AU10: 2.625 | AV10: =AU10/(AU10+AT10) -> 0.6336951846 | AW10: 36.88240459 | AX10: 3.018643461 | AZ10: =AV10*100 -> 63.36951846 | BA10: 0.3077707572 | BB10: 0.8177328776 | BC10: 0.7376480918 | BD10: 0.07943798582 | BE10: 0.003792012958
A11: Vin | B11: =Vin -> 49 | C11: V | D11: Vin | G11: 2 | H11: 49 | I11: 2 | J11: 1.4 | K11: 0.35 | L11: 0.119047619 | M11: 0.3061864438 | N11: 4.731485199 | O11: 2.7157426 | P11: -2.0157426 | Q11: 21.07415159 | R11: 1.409992677 | S11: 0.007952317396 | T11: 0.3 | U11: 0.3081483569 | V11: 1.365862127 | W11: 0.003731158698 | X11: 0.003731158698 | Y11: 0.6498770898 | Z11: 0.01267020696 | AA11: 0.01267020696 | AB11: 0.7802069892 | AC11: 0.003652337676 | AD11: 0.07074168213 | AE11: 0.5675004275 | AF11: 0.04345941045 | AG11: 0.6858548525 | AH11: 1.174460047 | AI11: 0.003448391008 | AJ11: 0.05855141045 | AK11: 0.06203231603 | AL11: 0.015092 | AM11: 0.12936 | AN11: 0.003976158698 | AO11: 0.001715 | AP11: 0.363 | AQ11: 3.4122 | AR11: 3.1944 | AS11: 0.364715 | AT11: 1.58558005 | AU11: 5.25 | AV11: 0.7680401607 | AW11: 38.56162262 | AX11: 3.979402409 | AZ11: 76.80401607 | BA11: 0.3081483569 | BB11: 0.8772471685 | BC11: 0.7712324525 | BD11: 0.104721116 | BE11: 0.003976158698
A12: Vout | B12: =Vout -> 15 | C12: V | D12: Vout | G12: 3 | H12: 49 | I12: 2 | J12: 2.1 | K12: 0.525 | L12: 0.1785714286 | M12: 0.3062184418 | N12: 4.731736079 | O12: 2.890868039 | P12: -1.840868039 | Q12: 19.245876 | R12: 1.463353065 | S12: 0.008565608773 | T12: 0.3 | U12: 0.3087771979 | V12: 1.365934549 | W12: 0.003731554387 | X12: 0.003731554387 | Y12: 0.6744910145 | Z12: 0.01364814386 | AA12: 0.01364814386 | AB12: 0.8097757979 | AC12: 0.003934421057 | AD12: 0.1061125232 | AE12: 0.5156740602 | AF12: 0.03968911493 | AG12: 0.6659341324 | AH12: 1.218878727 | AI12: 0.003714163376 | AJ12: 0.06232711493 | AK12: 0.06607858316 | AL12: 0.022638 | AM12: 0.19404 | AN12: 0.004282804387 | AO12: 0.001715 | AP12: 0.363 | AQ12: 3.4122 | AR12: 3.1944 | AS12: 0.364715 | AT12: 1.643845416 | AU12: 7.875 | AV12: 0.8273062179 | AW12: 39.70002662 | AX12: 4.94424776 | AZ12: 82.73062179 | BA12: 0.3087771979 | BB12: 0.9260527155 | BC12: 0.7940005324 | BD12: 0.1301117832 | BE12: 0.004282804387
A13: Fsw | B13: =Fsw/1000 -> 2200 | C13: kHz | D13: Switching Frequency | G13: 4 | H13: 49 | I13: 2 | J13: 2.8 | K13: 0.7 | L13: 0.2380952381 | M13: 0.3062504401 | N13: 4.731986913 | O13: 3.065993457 | P13: -1.665993457 | Q13: 17.41760017 | R13: 1.534918569 | S13: 0.009423900049 | T13: 0.3 | U13: 0.3096573544 | V13: 1.366006959 | W13: 0.003731950024 | X13: 0.003731950024 | Y13: 0.7074977467 | Z13: 0.01501659185 | AA13: 0.01501659185 | AB13: 0.8494223827 | AC13: 0.004329110306 | AD13: 0.1414833643 | AE13: 0.4529127296 | AF13: 0.03591881892 | AG13: 0.6351939881 | AH13: 1.278458692 | AI13: 0.00408614157 | AJ13: 0.06610281892 | AK13: 0.07023258149 | AL13: 0.030184 | AM13: 0.25872 | AN13: 0.004711950024 | AO13: 0.001715 | AP13: 0.363 | AQ13: 3.4122 | AR13: 3.1944 | AS13: 0.364715 | AT13: 1.692163416 | AU13: 10.5 | AV13: 0.8612089292 | AW13: 40.2974594 | AX13: 5.913186897 | AZ13: 86.12089292 | BA13: 0.3096573544 | BB13: 0.9641465696 | BC13: 0.8059491881 | BD13: 0.1556101815 | BE13: 0.004711950024
A14: Iout | B14: =Iout -> 70 | C14: A | D14: Max Output Current | G14: 5 | H14: 49 | I14: 2 | J14: 3.5 | K14: 0.875 | L14: 0.2976190476 | M14: 0.3062824387 | N14: 4.732237702 | O14: 3.241118851 | P14: -1.491118851 | Q14: 15.58932411 | R14: 1.622281667 | S14: 0.01052719122 | T14: 0.3 | U14: 0.31078893 | V14: 1.366079356 | W14: 0.003732345611 | X14: 0.003732345611 | Y14: 0.7477882775 | Z14: 0.01677561924 | AA14: 0.01677561924 | AB14: 0.8978159333 | AC14: 0.0048364407 | AD14: 0.1768542053 | AE14: 0.3792164317 | AF14: 0.03214852243 | AG14: 0.5936298112 | AH14: 1.351193678 | AI14: 0.004564310889 | AJ14: 0.06987852243 | AK14: 0.07449451577 | AL14: 0.03773 | AM14: 0.3234 | AN14: 0.005263595611 | AO14: 0.001715 | AP14: 0.363 | AQ14: 3.4122 | AR14: 3.1944 | AS14: 0.364715 | AT14: 1.730529817 | AU14: 13.125 | AV14: 0.8835093841 | AW14: 40.35369056 | AX14: 6.886227599 | AZ14: 88.35093841 | BA14: 0.31078893 | BB14: 0.991524327 | BC14: 0.8070738112 | BD14: 0.1812165158 | BE14: 0.005263595611
A15: Ta | B15: =Ta -> 25 | C15: °C | D15: Ambient Temperature | G15: 6 | H15: 49 | I15: 2 | J15: 4.2 | K15: 1.05 | L15: 0.3571428571 | M15: 0.3063144377 | N15: 4.732488445 | O15: 3.416244222 | P15: -1.316244222 | Q15: 13.7610478 | R15: 1.723041083 | S15: 0.01187548229 | T15: 0.3 | U15: 0.3121720578 | V15: 1.366151739 | W15: 0.003732741147 | X15: 0.003732741147 | Y15: 0.7942563468 | Z15: 0.01892529434 | AA15: 0.01892529434 | AB15: 0.9536288168 | AC15: 0.005456447521 | AD15: 0.2122250464 | AE15: 0.294585162 | AF15: 0.02837822544 | AG15: 0.541235526 | AH15: 1.435082804 | AI15: 0.005148656633 | AJ15: 0.07365422544 | AK15: 0.07886460118 | AL15: 0.045276 | AM15: 0.38808 | AN15: 0.005937741147 | AO15: 0.001715 | AP15: 0.363 | AQ15: 3.4122 | AR15: 3.1944 | AS15: 0.364715 | AT15: 1.758938962 | AU15: 15.75 | AV15: 0.8995405167 | AW15: 39.8684163 | AX15: 7.863378045 | AZ15: 89.95405167 | BA15: 0.3121720578 | BB15: 1.008180127 | BC15: 0.797368326 | BD15: 0.2069310012 | BE15: 0.005937741147
A16: Vcc | B16: =VCC -> 5 | C16: V | D16: Subregulated VCC Voltage | G16: 7 | H16: 49 | I16: 2 | J16: 4.9 | K16: 1.225 | L16: 0.4166666667 | M16: 0.306346437 | N16: 4.732739142 | O16: 3.591369571 | P16: -1.141369571 | Q16: 11.93277126 | R16: 1.834991367 | S16: 0.01346877326 | T16: 0.3 | U16: 0.3138069008 | V16: 1.366224109 | W16: 0.003733136632 | X16: 0.003733136632 | Y16: 0.8458858357 | Z16: 0.02146568541 | AA16: 0.02146568541 | AB16: 1.015641509 | AC16: 0.006189166049 | AD16: 0.2475958875 | AE16: 0.1990189163 | AF16: 0.02460792795 | AG16: 0.4780035865 | AH16: 1.528288468 | AI16: 0.005839164102 | AJ16: 0.07742992795 | AK16: 0.08334306344 | AL16: 0.052822 | AM16: 0.45276 | AN16: 0.006734386632 | AO16: 0.001715 | AP16: 0.363 | AQ16: 3.4122 | AR16: 3.1944 | AS16: 0.364715 | AT16: 1.777383759 | AU16: 18.375 | AV16: 0.9118028031 | AW16: 38.84125933 | AX16: 8.844646811 | AZ16: 91.18028031 | BA16: 0.3138069008 | BB16: 1.01410665 | BC16: 0.7768251865 | BD16: 0.2327538634 | BE16: 0.006734386632
A17: Components | B17: Input Value | C17: Units | D17: Description | G17: 8 | H17: 49 | I17: 2 | J17: 5.6 | K17: 1.4 | L17: 0.4761904762 | M17: 0.3063784366 | N17: 4.732989794 | O17: 3.766494897 | P17: -0.9664948971 | Q17: 10.10449448 | R17: 1.956212165 | S17: 0.01530706413 | T17: 0.3 | U17: 0.3156936516 | V17: 1.366296466 | W17: 0.003733532065 | X17: 0.003733532065 | Y17: 0.9017919332 | Z17: 0.02439686072 | AA17: 0.02439686072 | AB17: 1.082792037 | AC17: 0.007034631567 | AD17: 0.2829667285 | AE17: 0.09251769044 | AF17: 0.02083762998 | AG17: 0.4039249732 | AH17: 1.62921068 | AI17: 0.006635818596 | AJ17: 0.08120562998 | AK17: 0.08793013882 | AL17: 0.060368 | AM17: 0.51744 | AN17: 0.007653532065 | AO17: 0.001715 | AP17: 0.363 | AQ17: 3.4122 | AR17: 3.1944 | AS17: 0.364715 | AT17: 1.785855688 | AU17: 21 | AV17: 0.9216243747 | AW17: 37.27176866 | AX17: 9.830042875 | AZ17: 92.16243747 | BA17: 0.3156936516 | BB17: 1.009295112 | BC17: 0.7454353732 | BD17: 0.2586853388 | BE17: 0.007653532065
A18: L | B18: =Lf*1000000 -> 1 | C18: uH | D18: Filter Inductance | G18: 9 | H18: 49 | I18: 2 | J18: 6.3 | K18: 1.575 | L18: 0.5357142857 | M18: 0.3064104366 | N18: 4.7332404 | O18: 3.9416202 | P18: -0.7916202002 | Q18: 8.276217462 | R18: 2.085087222 | S18: 0.0173903549 | T18: 0.3 | U18: 0.3178325325 | V18: 1.36636881 | W18: 0.003733927448 | X18: 0.003733927448 | Y18: 0.9612299154 | Z18: 0.02771888851 | AA18: 0.02771888851 | AB18: 1.154186536 | AC18: 0.007992879355 | AD18: 0.3183375696 | AE18: -0.02491852001 | AF18: 0.01706733152 | AG18: 0.3189891889 | AH18: 1.736502855 | AI18: 0.007538605412 | AJ18: 0.08498133152 | AK18: 0.09262607418 | AL18: 0.067914 | AM18: 0.58212 | AN18: 0.008695177448 | AO18: 0.001715 | AP18: 0.363 | AQ18: 3.4122 | AR18: 3.1944 | AS18: 0.364715 | AT18: 1.784344789 | AU18: 23.625 | AV18: 0.9297760409 | AW18: 35.15941944 | AX18: 10.81957562 | AZ18: 92.97760409 | BA18: 0.3178325325 | BB18: 0.9937352631 | BC18: 0.7031883889 | BD18: 0.2847256742 | BE18: 0.008695177448
A19: Rdcr | B19: =Rdcr*1000 -> 4 | C19: mW | D19: Inductor DCR at 25°C | G19: 10 | H19: 49 | I19: 2 | J19: 7 | K19: 1.75 | L19: 0.5952380952 | M19: 0.306442437 | N19: 4.733490961 | O19: 4.116745481 | P19: -0.6167454805 | Q19: 6.447940204 | R19: 2.220284079 | S19: 0.01971864556 | T19: 0.3 | U19: 0.3202237959 | V19: 1.36644114 | W19: 0.00373432278 | X19: 0.00373432278 | Y19: 1.023585805 | Z19: 0.03143183698 | AA19: 0.03143183698 | AB19: 1.229088056 | AC19: 0.009063944698 | AD19: 0.3537084107 | AE19: -0.1532897193 | AF19: 0.01329703256 | AG19: 0.2231842546 | AH19: 1.849054878 | AI19: 0.00854750985 | AJ19: 0.08875703256 | AK19: 0.09743112702 | AL19: 0.07546 | AM19: 0.6468 | AN19: 0.00985932278 | AO19: 0.001715 | AP19: 0.363 | AQ19: 3.4122 | AR19: 3.1944 | AS19: 0.364715 | AT19: 1.77283966 | AU19: 26.25 | AV19: 0.9367359025 | AW19: 32.50361273 | AX19: 11.81325483 | AZ19: 93.67359025 | BA19: 0.3202237959 | BB19: 0.9674153816 | BC19: 0.6500722546 | BD19: 0.310875127 | BE19: 0.00985932278
A20: LTc | B20: =Ltc*1000000 -> 4000 | C20: ppm | D20: Inductor Series Resistance Temp Co | G20: 11 | H20: 49 | I20: 2 | J20: 7.7 | K20: 1.925 | L20: 0.6547619048 | M20: 0.3064744377 | N20: 4.733741476 | O20: 4.291870738 | P20: -0.441870738 | Q20: 4.619662708 | R20: 2.360716847 | S20: 0.02229193612 | T20: 0.3 | U20: 0.3228677239 | V20: 1.366513458 | W20: 0.00373471806 | X20: 0.00373471806 | Y20: 1.088359229 | Z20: 0.03553577433 | AA20: 0.03553577433 | AB20: 1.306895997 | AC20: 0.01024786288 | AD20: 0.3890792517 | AE20: -0.2925959117 | AF20: 0.009526733111 | AG20: 0.1164967045 | AH20: 1.965962076 | AI20: 0.009662517209 | AJ20: 0.09253273311 | AK20: 0.1023455655 | AL20: 0.083006 | AM20: 0.71148 | AN20: 0.01114596806 | AO20: 0.001715 | AP20: 0.363 | AQ20: 3.4122 | AR20: 3.1944 | AS20: 0.364715 | AT20: 1.751327454 | AU20: 28.875 | AV20: 0.9428162761 | AW20: 29.30367523 | AX20: 12.81109069 | AZ20: 94.28162761 | BA20: 0.3228677239 | BB20: 0.93032227 | BC20: 0.5860735045 | BD20: 0.3371339655 | BE20: 0.01114596806
A21: ThetaCa | B21: =ThetaCa -> 20 | C21: °C/W | D21: Core to Ambient Thermal Resistance | G21: 12 | H21: 49 | I21: 2 | J21: 8.4 | K21: 2.1 | L21: 0.7142857143 | M21: 0.3065064387 | N21: 4.733991945 | O21: 4.466995973 | P21: -0.2669959727 | Q21: 2.791384973 | R21: 2.505505267 | S21: 0.02511022658 | T21: 0.3 | U21: 0.3257646285 | V21: 1.366585762 | W21: 0.00373511329 | X21: 0.00373511329 | Y21: 1.155144561 | Z21: 0.04003076874 | AA21: 0.04003076874 | AB21: 1.387123474 | AC21: 0.01154466919 | AD21: 0.4244500928 | AE21: -0.4428371014 | AF21: 0.005756433171 | AG21: -0.001088419346 | AH21: 2.086491101 | AI21: 0.01088361279 | AJ21: 0.09630843317 | AK21: 0.1073696686 | AL21: 0.090552 | AM21: 0.77616 | AN21: 0.01255511329 | AO21: 0.001715 | AP21: 0.363 | AQ21: 3.4122 | AR21: 3.1944 | AS21: 0.364715 | AT21: 1.719793873 | AU21: 31.5 | AV21: 0.9482298451 | AW21: 25.55885903 | AX21: 13.81309381 | AZ21: 94.82298451 | BA21: 0.3257646285 | BB21: 0.8824412492 | BC21: 0.5111771807 | BD21: 0.3635024686 | BE21: 0.01255511329
A22: Cin | B22: =Cin*1000000 -> 50 | C22: μF | D22: Input Capacitance | G22: 13 | H22: 49 | I22: 2 | J22: 9.1 | K22: 2.275 | L22: 0.7738095238 | M22: 0.30653844 | N22: 4.734242369 | O22: 4.642121185 | P22: -0.09212118458 | Q22: 0.9631070004 | R22: 2.653936554 | S22: 0.02817351694 | T22: 0.3 | U22: 0.328914852 | V22: 1.366658053 | W22: 0.003735508468 | X22: 0.003735508468 | Y22: 1.223613342 | Z22: 0.04491688834 | AA22: 0.04491688834 | AB22: 1.469376222 | AC22: 0.0129543989 | AD22: 0.4598209338 | AE22: -0.6040132928 | AF22: 0.00198613274 | AG22: -0.1295875731 | AH22: 2.210048133 | AI22: 0.01221078188 | AJ22: 0.1000841327 | AK22: 0.1125037259 | AL22: 0.098098 | AM22: 0.84084 | AN22: 0.01408675847 | AO22: 0.001715 | AP22: 0.363 | AQ22: 3.4122 | AR22: 3.1944 | AS22: 0.364715 | AT22: 1.67822316 | AU22: 34.125 | AV22: 0.9531264782 | AW22: 21.26834134 | AX22: 14.81927518 | AZ22: 95.31264782 | BA22: 0.328914852 | BB22: 0.8237561528 | BC22: 0.4253668269 | BD22: 0.3899809259 | BE22: 0.01408675847
A23: RCinEsr | B23: =RCinEsr*1000 -> 30 | C23: mW | D23: Input Capacitor ESR | G23: 14 | H23: 49 | I23: 2 | J23: 9.8 | K23: 2.45 | L23: 0.8333333333 | M23: 0.3065704418 | N23: 4.734492747 | O23: 4.817246374 | P23: 0.08275362634 | Q23: 0 | R23: 2.805432551 | S23: 0.03148180719 | T23: 0.3 | U23: 0.3323187668 | V23: 1.366730331 | W23: 0.003735903596 | X23: 0.003735903596 | Y23: 1.293499147 | Z23: 0.05019420128 | AA23: 0.05019420128 | AB23: 1.553334441 | AC23: 0.01447708731 | AD23: 0.4951917749 | AE23: -0.6933157 | AF23: 0 | AG23: -0.1841801161 | AH23: 2.336151518 | AI23: 0.01364400978 | AJ23: 0.105644 | AK23: 0.1195359141 | AL23: 0.105644 | AM23: 0.90552 | AN23: 0.0157409036 | AO23: 0.001715 | AP23: 0.363 | AQ23: 3.4122 | AR23: 3.1944 | AS23: 0.364715 | AT23: 1.713224573 | AU23: 36.75 | AV23: 0.9554581138 | AW23: 20.67315419 | AX23: 15.89758553 | AZ23: 95.54581138 | BA23: 0.3323187668 | BB23: 0.840875798 | BC23: 0.4134630839 | BD23: 0.4183575141 | BE23: 0.0157409036
A24: Cout | B24: =Cout*1000000 -> 232 | C24: μF | D24: Output Capcitance | G24: 15 | H24: 49 | I24: 2 | J24: 10.5 | K24: 2.625 | L24: 0.8928571429 | M24: 0.3066024438 | N24: 4.73474308 | O24: 4.99237154 | P24: 0.2576284601 | Q24: 0 | R24: 2.959522653 | S24: 0.03503509734 | T24: 0.3 | U24: 0.3359767757 | V24: 1.366802596 | W24: 0.003736298672 | X24: 0.003736298672 | Y24: 1.36458511 | Z24: 0.05586277566 | AA24: 0.05586277566 | AB24: 1.638737812 | AC24: 0.0161127697 | AD24: 0.530562616 | AE24: -0.6933157 | AF24: 0 | AG24: -0.1471143984 | AH24: 2.464409203 | AI24: 0.0151832818 | AJ24: 0.11319 | AK24: 0.1286702345 | AL24: 0.11319 | AM24: 0.9702 | AN24: 0.01751754867 | AO24: 0.001715 | AP24: 0.363 | AQ24: 3.4122 | AR24: 3.1944 | AS24: 0.364715 | AT24: 1.842754235 | AU24: 39.375 | AV24: 0.9552922213 | AW24: 24.66088008 | AX24: 17.05577691 | AZ24: 95.52922213 | BA24: 0.3359767757 | BB24: 0.9517558361 | BC24: 0.4932176016 | BD24: 0.4488362345 | BE24: 0.01751754867
A25: RCoutEsr | B25: =Cout_ESR*1000 -> 2 | C25: mW | D25: Output Capacitor ESR | G25: 16 | H25: 49 | I25: 2 | J25: 11.2 | K25: 2.8 | L25: 0.9523809524 | M25: 0.3066344462 | N25: 4.734993367 | O25: 5.167496683 | P25: 0.4325033166 | Q25: 0 | R25: 3.115822018 | S25: 0.03883338739 | T25: 0.3 | U25: 0.3398893117 | V25: 1.366874847 | W25: 0.003736693697 | X25: 0.003736693697 | Y25: 1.436693885 | Z25: 0.06192267956 | AA25: 0.06192267956 | AB25: 1.725373455 | AC25: 0.01786148136 | AD25: 0.565933457 | AE25: -0.6933157 | AF25: 0 | AG25: -0.1099134048 | AH25: 2.594500586 | AI25: 0.01682858322 | AJ25: 0.120736 | AK25: 0.1379173682 | AL25: 0.120736 | AM25: 1.03488 | AN25: 0.0194166937 | AO25: 0.001715 | AP25: 0.363 | AQ25: 3.4122 | AR25: 3.1944 | AS25: 0.364715 | AT25: 1.973300342 | AU25: 42 | AV25: 0.9551250344 | AW25: 28.65536976 | AX25: 18.21825519 | AZ25: 95.51250344 | BA25: 0.3398893117 | BB25: 1.062883963 | BC25: 0.5731073952 | BD25: 0.4794277682 | BE25: 0.0194166937
A26: Top Driver | B26: Input Value | C26: Units | D26: Description | G26: 17 | H26: 49 | I26: 2 | J26: 11.9 | K26: 2.975 | L26: 1.011904762 | M26: 0.306666449 | N26: 4.735243608 | O26: 5.342621804 | P26: 0.607378196 | Q26: 0 | R26: 3.274014254 | S26: 0.04287667734 | T26: 0.3 | U26: 0.3440568385 | V26: 1.366947086 | W26: 0.003737088671 | X26: 0.003737088671 | Y26: 1.509679669 | Z26: 0.06837398107 | AA26: 0.06837398107 | AB26: 1.813066352 | AC26: 0.01972325758 | AD26: 0.6013042981 | AE26: -0.6933157 | AF26: 0 | AG26: -0.07257442513 | AH26: 2.72616209 | AI26: 0.01857989935 | AJ26: 0.128282 | AK26: 0.1472778333 | AL26: 0.128282 | AM26: 1.09956 | AN26: 0.02143833867 | AO26: 0.001715 | AP26: 0.363 | AQ26: 3.4122 | AR26: 3.1944 | AS26: 0.364715 | AT26: 2.104866655 | AU26: 44.625 | AV26: 0.954956716 | AW26: 32.65675874 | AX26: 19.38504006 | AZ26: 95.4956716 | BA26: 0.3440568385 | BB26: 1.174263408 | BC26: 0.6531351749 | BD26: 0.5101326333 | BE26: 0.02143833867
A27: RdsonDRT | B27: =RdsonDRT -> 1 | C27: W | D27: Drain to Source Resistance of pullup Top FET Driver | G27: 18 | H27: 49 | I27: 2 | J27: 12.6 | K27: 3.15 | L27: 1.071428571 | M27: 0.306698452 | N27: 4.735493804 | O27: 5.517746902 | P27: 0.7822530981 | Q27: 0 | R27: 3.433837765 | S27: 0.04716496719 | T27: 0.3 | U27: 0.3484798504 | V27: 1.367019311 | W27: 0.003737483594 | X27: 0.003737483594 | Y27: 1.583421908 | Z27: 0.07521674821 | AA27: 0.07521674821 | AB27: 1.901671793 | AC27: 0.02169813364 | AD27: 0.6366751392 | AE27: -0.6933157 | AF27: 0 | AG27: -0.03509472519 | AH27: 2.859175789 | AI27: 0.02043721548 | AJ27: 0.135828 | AK27: 0.1567521593 | AL27: 0.135828 | AM27: 1.16424 | AN27: 0.02358248359 | AO27: 0.001715 | AP27: 0.363 | AQ27: 3.4122 | AR27: 3.1944 | AS27: 0.364715 | AT27: 2.237457 | AU27: 47.25 | AV27: 0.9547873919 | AW27: 36.66518374 | AX27: 20.55615165 | AZ27: 95.47873919 | BA27: 0.3484798504 | BB27: 1.285897434 | BC27: 0.7333036748 | BD27: 0.5409513593 | BE27: 0.02358248359
A28: RdsonDRT2 | B28: =RdsonDRT2 -> 0.5 | C28: W | D28: Drain to Source Resistance of pulldown Top FET Driver | G28: 19 | H28: 49 | I28: 2 | J28: 13.3 | K28: 3.325 | L28: 1.130952381 | M28: 0.3067304555 | N28: 4.735743954 | O28: 5.692871977 | P28: 0.9571280231 | Q28: 0 | R28: 3.595074997 | S28: 0.05169825693 | T28: 0.3 | U28: 0.3531588728 | V28: 1.367091523 | W28: 0.003737878466 | X28: 0.003737878466 | Y28: 1.657820346 | Z28: 0.08245104901 | AA28: 0.08245104901 | AB28: 1.99106943 | AC28: 0.02378614484 | AD28: 0.6720459802 | AE28: -0.6933157 | AF28: 0 | AG28: 0.002528453517 | AH28: 2.993360446 | AI28: 0.0224005169 | AJ28: 0.143374 | AK28: 0.1663408874 | AL28: 0.143374 | AM28: 1.22892 | AN28: 0.02584912847 | AO28: 0.001715 | AP28: 0.363 | AQ28: 3.4122 | AR28: 3.1944 | AS28: 0.364715 | AT28: 2.37107527 | AU28: 49.875 | AV28: 0.9546171601 | AW28: 40.68078268 | AX28: 21.73161052 | AZ28: 95.46171601 | BA28: 0.3531588728 | BB28: 1.397789341 | BC28: 0.8136156535 | BD28: 0.5718844874 | BE28: 0.02584912847
A29: Bottom Driver | B29: Input Value | C29: Units | D29: Description | G29: 20 | H29: 49 | I29: 2 | J29: 14 | K29: 3.5 | L29: 1.19047619 | M29: 0.3067624592 | N29: 4.735994058 | O29: 5.867997029 | P29: 1.132002971 | Q29: 0 | R29: 3.757543964 | S29: 0.05647654657 | T29: 0.3 | U29: 0.3580944617 | V29: 1.367163722 | W29: 0.003738273287 | X29: 0.003738273287 | Y29: 1.732791115 | Z29: 0.09007695148 | AA29: 0.09007695148 | AB29: 2.081158591 | AC29: 0.02598732647 | AD29: 0.7074168213 | AE29: -0.6933157 | AF29: 0 | AG29: 0.04029789469 | AH29: 3.128564457 | AI29: 0.02446978891 | AJ29: 0.15092 | AK29: 0.1760445705 | AL29: 0.15092 | AM29: 1.2936 | AN29: 0.02823827329 | AO29: 0.001715 | AP29: 0.363 | AQ29: 3.4122 | AR29: 3.1944 | AS29: 0.364715 | AT29: 2.505725425 | AU29: 52.5 | AV29: 0.954446098 | AW29: 44.70369473 | AX29: 22.91143768 | AZ29: 95.4446098 | BA29: 0.3580944617 | BB29: 1.509942465 | BC29: 0.8940738947 | BD29: 0.6029325705 | BE29: 0.02823827329
A30: RdsonDRB | B30: =RdsonDRB -> 1 | C30: W | D30: Drain to Source Resistance of pullup Bottom FET Driver | G30: 21 | H30: 49 | I30: 2 | J30: 14.7 | K30: 3.675 | L30: 1.25 | M30: 0.3067944634 | N30: 4.736244117 | O30: 6.043122059 | P30: 1.306877941 | Q30: 0 | R30: 3.921091561 | S30: 0.06149983611 | T30: 0.3 | U30: 0.3632872044 | V30: 1.367235908 | W30: 0.003738668056 | X30: 0.003738668056 | Y30: 1.808263657 | Z30: 0.0980945236 | AA30: 0.0980945236 | AB30: 2.171854577 | AC30: 0.02830171382 | AD30: 0.7427876624 | AE30: -0.6933157 | AF30: 0 | AG30: 0.07821640787 | AH30: 3.264660277 | AI30: 0.02664501681 | AJ30: 0.158466 | AK30: 0.185863773 | AL30: 0.158466 | AM30: 1.35828 | AN30: 0.03074991806 | AO30: 0.001715 | AP30: 0.363 | AQ30: 3.4122 | AR30: 3.1944 | AS30: 0.364715 | AT30: 2.641411495 | AU30: 55.125 | AV30: 0.9542742672 | AW30: 48.73406039 | AX30: 24.09565457 | AZ30: 95.42742672 | BA30: 0.3632872044 | BB30: 1.622360181 | BC30: 0.9746812079 | BD30: 0.634096173 | BE30: 0.03074991806
A31: RdsonDRB2 | B31: 1 | C31: W | D31: Drain to Source Resistance of pulldown Bottom FET Driver | G31: 22 | H31: 49 | I31: 2 | J31: 15.4 | K31: 3.85 | L31: 1.30952381 | M31: 0.3068264678 | N31: 4.73649413 | O31: 6.218247065 | P31: 1.481752935 | Q31: 0 | R31: 4.085588255 | S31: 0.06676812555 | T31: 0.3 | U31: 0.3687377197 | V31: 1.367308081 | W31: 0.003739062774 | X31: 0.003739062774 | Y31: 1.884178276 | Z31: 0.1065038333 | AA31: 0.1065038333 | AB31: 2.263085732 | AC31: 0.03072934219 | AD31: 0.7781585034 | AE31: -0.6933157 | AF31: 0 | AG31: 0.1162868292 | AH31: 3.401539998 | AI31: 0.02892618589 | AJ31: 0.166012 | AK31: 0.1957990714 | AL31: 0.166012 | AM31: 1.42296 | AN31: 0.03338406277 | AO31: 0.001715 | AP31: 0.363 | AQ31: 3.4122 | AR31: 3.1944 | AS31: 0.364715 | AT31: 2.778137579 | AU31: 57.75 | AV31: 0.9541017171 | AW31: 52.77202146 | AX31: 25.28428311 | AZ31: 95.41017171 | BA31: 0.3687377197 | BB31: 1.735045901 | BC31: 1.055440429 | BD31: 0.6653758714 | BE31: 0.03338406277
A32: Deadtime | B32: Input Value | C32: Units | D32: Description | G32: 23 | H32: 49 | I32: 2 | J32: 16.1 | K32: 4.025 | L32: 1.369047619 | M32: 0.3068584726 | N32: 4.736744098 | O32: 6.393372049 | P32: 1.656627951 | Q32: 0 | R32: 4.250923867 | S32: 0.07228141488 | T32: 0.3 | U32: 0.3744466576 | V32: 1.36738024 | W32: 0.003739457441 | X32: 0.003739457441 | Y32: 1.960484197 | Z32: 0.1153049486 | AA32: 0.1153049486 | AB32: 2.354791104 | AC32: 0.03327024685 | AD32: 0.8135293445 | AE32: -0.6933157 | AF32: 0 | AG32: 0.154512022 | AH32: 3.539111835 | AI32: 0.03131328145 | AJ32: 0.173558 | AK32: 0.205851054 | AL32: 0.173558 | AM32: 1.48764 | AN32: 0.03614070744 | AO32: 0.001715 | AP32: 0.363 | AQ32: 3.4122 | AR32: 3.1944 | AS32: 0.364715 | AT32: 2.915907847 | AU32: 60.375 | AV32: 0.9539284876 | AW32: 56.8177211 | AX32: 26.47734565 | AZ32: 95.39284876 | BA32: 0.3744466576 | BB32: 1.848003076 | BC32: 1.136354422 | BD32: 0.696772254 | BE32: 0.03614070744
A33: Deadtime | B33: =Deadtime*1000000000 -> 14 | C33: ns | D33: Total Deadtime | G33: 24 | H33: 49 | I33: 2 | J33: 16.8 | K33: 4.2 | L33: 1.428571429 | M33: 0.3068904778 | N33: 4.73699402 | O33: 6.56849701 | P33: 1.83150299 | Q33: 0 | R33: 4.417004192 | S33: 0.07803970411 | T33: 0.3 | U33: 0.3804147002 | V33: 1.367452386 | W33: 0.003739852057 | X33: 0.003739852057 | Y33: 2.037138003 | Z33: 0.1244979373 | AA33: 0.1244979373 | AB33: 2.446918576 | AC33: 0.03592446312 | AD33: 0.8489001856 | AE33: -0.6933157 | AF33: 0 | AG33: 0.1928948777 | AH33: 3.67729731 | AI33: 0.03380628877 | AJ33: 0.181104 | AK33: 0.2160203213 | AL33: 0.181104 | AM33: 1.55232 | AN33: 0.03901985206 | AO33: 0.001715 | AP33: 0.363 | AQ33: 3.4122 | AR33: 3.1944 | AS33: 0.364715 | AT33: 3.054726541 | AU33: 63 | AV33: 0.9537546108 | AW33: 60.87130388 | AX33: 27.67486501 | AZ33: 95.37546108 | BA33: 0.3804147002 | BB33: 1.961235199 | BC33: 1.217426078 | BD33: 0.7282859213 | BE33: 0.03901985206
A34: IQ | B34: Input Value | C34: Units | D34: Description | G34: 25 | H34: 49 | I34: 2 | J34: 17.5 | K34: 4.375 | L34: 1.488095238 | M34: 0.3069224832 | N34: 4.737243896 | O34: 6.743621948 | P34: 2.006378052 | Q34: 0 | R34: 4.583748282 | S34: 0.08404299324 | T34: 0.3 | U34: 0.3866425611 | V34: 1.367524519 | W34: 0.003740246622 | X34: 0.003740246622 | Y34: 2.11410239 | Z34: 0.1340828675 | AA34: 0.1340828675 | AB34: 2.539423369 | AC34: 0.03869202628 | AD34: 0.8842710266 | AE34: -0.6933157 | AF34: 0 | AG34: 0.2314383164 | AH34: 3.816028992 | AI34: 0.03640519316 | AJ34: 0.18865 | AK34: 0.2263074859 | AL34: 0.18865 | AM34: 1.617 | AN34: 0.04202149662 | AO34: 0.001715 | AP34: 0.363 | AQ34: 3.4122 | AR34: 3.1944 | AS34: 0.364715 | AT34: 3.194597974 | AU34: 65.625 | AV34: 0.9535801128 | AW34: 64.93291582 | AX34: 28.87686446 | AZ34: 95.35801128 | BA34: 0.3866425611 | BB34: 2.074745802 | BC34: 1.298658316 | BD34: 0.7599174859 | BE34: 0.04202149662
A35: IQ | B35: =Iq*1000 -> 0.035 | C35: mA | D35: Quiescent Current Of Controller (Not Switching!) | G35: 26 | H35: 49 | I35: 2 | J35: 18.2 | K35: 4.55 | L35: 1.547619048 | M35: 0.3069544891 | N35: 4.737493727 | O35: 6.918746863 | P35: 2.181253137 | Q35: 0 | R35: 4.751086251 | S35: 0.09029128227 | T35: 0.3 | U35: 0.3931309863 | V35: 1.367596639 | W35: 0.003740641135 | X35: 0.003740641135 | Y35: 2.191345149 | Z35: 0.1440598068 | AA35: 0.1440598068 | AB35: 2.632266819 | AC35: 0.04157297163 | AD35: 0.9196418677 | AE35: -0.6933157 | AF35: 0 | AG35: 0.2701452878 | AH35: 3.95524866 | AI35: 0.03910997991 | AJ35: 0.196196 | AK35: 0.2367131727 | AL35: 0.196196 | AM35: 1.68168 | AN35: 0.04514564114 | AO35: 0.001715 | AP35: 0.363 | AQ35: 3.4122 | AR35: 3.1944 | AS35: 0.364715 | AT35: 3.335526536 | AU35: 68.25 | AV35: 0.953405015 | AW35: 69.00270439 | AX35: 30.08336776 | AZ35: 95.3405015 | BA35: 0.3931309863 | BB35: 2.188538461 | BC35: 1.380054088 | BD35: 0.7916675727 | BE35: 0.04514564114
A36: High-side FET | B36: Input Value | C36: Units | D36: Description | G36: 27 | H36: 49 | I36: 2 | J36: 18.9 | K36: 4.725 | L36: 1.607142857 | M36: 0.3069864952 | N36: 4.737743512 | O36: 7.093871756 | P36: 2.356128244 | Q36: 0 | R36: 4.918957491 | S36: 0.09678457119 | T36: 0.3 | U36: 0.3998807542 | V36: 1.367668746 | W36: 0.003741035597 | X36: 0.003741035597 | Y36: 2.268838346 | Z36: 0.1544288232 | AA36: 0.1544288232 | AB36: 2.725415395 | AC36: 0.04456733446 | AD36: 0.9550127088 | AE36: -0.6933157 | AF36: 0 | AG36: 0.3090187718 | AH36: 4.094905826 | AI36: 0.04192063431 | AJ36: 0.203742 | AK36: 0.2472380192 | AL36: 0.203742 | AM36: 1.74636 | AN36: 0.0483922856 | AO36: 0.001715 | AP36: 0.363 | AQ36: 3.4122 | AR36: 3.1944 | AS36: 0.364715 | AT36: 3.47751669 | AU36: 70.875 | AV36: 0.9532293345 | AW36: 73.08081859 | AX36: 31.29439913 | AZ36: 95.32293345 | BA36: 0.3998807542 | BB36: 2.302616791 | BC36: 1.461616372 | BD36: 0.8235368192 | BE36: 0.0483922856
A37: RdsonTop | B37: =Rdson1*1000 -> 6 | C37: mW | D37: Drain-Source Resistance of Top FET | G37: 28 | H37: 49 | I37: 2 | J37: 19.6 | K37: 4.9 | L37: 1.666666667 | M37: 0.3070185018 | N37: 4.737993251 | O37: 7.268996626 | P37: 2.531003374 | Q37: 0 | R37: 5.087309211 | S37: 0.10352286 | T37: 0.3 | U37: 0.4068926755 | V37: 1.36774084 | W37: 0.003741430008 | X37: 0.003741430008 | Y37: 2.346557653 | Z37: 0.1651899846 | AA37: 0.1651899846 | AB37: 2.818839893 | AC37: 0.04767515007 | AD37: 0.9903835498 | AE37: -0.6933157 | AF37: 0 | AG37: 0.3480617794 | AH37: 4.234956512 | AI37: 0.04483714165 | AJ37: 0.211288 | AK37: 0.2578826754 | AL37: 0.211288 | AM37: 1.81104 | AN37: 0.05176143001 | AO37: 0.001715 | AP37: 0.363 | AQ37: 3.4122 | AR37: 3.1944 | AS37: 0.364715 | AT37: 3.620572975 | AU37: 73.5 | AV37: 0.9530530851 | AW37: 77.16740897 | AX37: 32.50998327 | AZ37: 95.30530851 | BA37: 0.4068926755 | BB37: 2.416984455 | BC37: 1.543348179 | BD37: 0.8555258754 | BE37: 0.05176143001
A38: RdsonTopTc | B38: =RdsonTopTc*1000000 -> 4000 | C38: ppm | D38: Drain to Source Resistance Temp Co | G38: 29 | H38: 49 | I38: 2 | J38: 20.3 | K38: 5.075 | L38: 1.726190476 | M38: 0.3070505086 | N38: 4.738242945 | O38: 7.444121473 | P38: 2.705878527 | Q38: 0 | R38: 5.256095241 | S38: 0.1105061487 | T38: 0.3 | U38: 0.414167594 | V38: 1.36781292 | W38: 0.003741824368 | X38: 0.003741824368 | Y38: 2.424481792 | Z38: 0.1763433587 | AA38: 0.1763433587 | AB38: 2.912514771 | AC38: 0.05089645376 | AD38: 1.025754391 | AE38: -0.6933157 | AF38: 0 | AG38: 0.3872773534 | AH38: 4.375362258 | AI38: 0.04785948723 | AJ38: 0.218834 | AK38: 0.2686478038 | AL38: 0.218834 | AM38: 1.87572 | AN38: 0.05525307437 | AO38: 0.001715 | AP38: 0.363 | AQ38: 3.4122 | AR38: 3.1944 | AS38: 0.364715 | AT38: 3.764700009 | AU38: 76.125 | AV38: 0.9528762781 | AW38: 81.26262767 | AX38: 33.73014535 | AZ38: 95.28762781 | BA38: 0.414167594 | BB38: 2.531645157 | BC38: 1.625252553 | BD38: 0.8876354038 | BE38: 0.05525307437
A39: QgTop | B39: =Qg_Q1*1000000000 -> 8 | C39: nC | D39: Gate Charge Of Top FET | G39: 30 | H39: 49 | I39: 2 | J39: 21 | K39: 5.25 | L39: 1.785714286 | M39: 0.3070825158 | N39: 4.738492593 | O39: 7.619246297 | P39: 2.880753703 | Q39: 0 | R39: 5.425275047 | S39: 0.1177344374 | T39: 0.3 | U39: 0.4217063865 | V39: 1.367884987 | W39: 0.003742218676 | X39: 0.003742218676 | Y39: 2.502592079 | Z39: 0.1878890134 | AA39: 0.1878890134 | AB39: 3.006417603 | AC39: 0.05423128083 | AD39: 1.061125232 | AE39: -0.6933157 | AF39: 0 | AG39: 0.4266685694 | AH39: 4.516089296 | AI39: 0.05098765633 | AJ39: 0.22638 | AK39: 0.27953408 | AL39: 0.22638 | AM39: 1.9404 | AN39: 0.05886721868 | AO39: 0.001715 | AP39: 0.363 | AQ39: 3.4122 | AR39: 3.1944 | AS39: 0.364715 | AT39: 3.909902487 | AU39: 78.75 | AV39: 0.9526989221 | AW39: 85.36662847 | AX39: 34.95491104 | AZ39: 95.26989221 | BA39: 0.4217063865 | BB39: 2.646602649 | BC39: 1.707332569 | BD39: 0.91986608 | BE39: 0.05886721868
A40: QgdTop | B40: =Qgd_Q1*1000000000 -> 1.4 | C40: nC | D40: Gate to Drain Charge | G40: 31 | H40: 49 | I40: 2 | J40: 21.7 | K40: 5.425 | L40: 1.845238095 | M40: 0.3071145234 | N40: 4.738742196 | O40: 7.794371098 | P40: 3.055628902 | Q40: 0 | R40: 5.594812907 | S40: 0.1252077259 | T40: 0.3 | U40: 0.4295099631 | V40: 1.367957041 | W40: 0.003742612933 | X40: 0.003742612933 | Y40: 2.580872051 | Z40: 0.1998270163 | AA40: 0.1998270163 | AB40: 3.100528626 | AC40: 0.05767966658 | AD40: 1.096496073 | AE40: -0.6933157 | AF40: 0 | AG40: 0.4662385363 | AH40: 4.657107869 | AI40: 0.05422163426 | AJ40: 0.233926 | AK40: 0.2905421925 | AL40: 0.233926 | AM40: 2.00508 | AN40: 0.06260386293 | AO40: 0.001715 | AP40: 0.363 | AQ40: 3.4122 | AR40: 3.1944 | AS40: 0.364715 | AT40: 4.056185184 | AU40: 81.375 | AV40: 0.9525210241 | AW40: 89.47956681 | AX40: 36.18430651 | AZ40: 95.25210241 | BA40: 0.4295099631 | BB40: 2.761860729 | BC40: 1.789591336 | BD40: 0.9522185925 | BE40: 0.06260386293
A41: QgsTop | B41: =Qgs_Q1*1000000000 -> 3.8 | C41: nC | G41: 32 | H41: =Vin -> 49 | I41: =MODE -> 2 | J41: 22.4 | K41: =Iout*G41/100/Number_of_Phases -> 5.6 | L41: =Vout*K41/(Vin*Efficiency) -> 1.904761905 | M41: =(Vout+(Rdson2+Rs+Rdcr)*K41)/(Vin+(Rs+Rdson2-Rdson1)*K41) -> 0.3071465312 | N41: =(Vin-(Rdson1+Rdcr)*K41-Vout)*M41/(Fsw*Lf) -> 4.738991753 | O41: 7.969495876 | P41: 3.230504124 | Q41: =IF(MIN(Vin, -P41/(Coss_Q1+Coss_Q2)*0.00000002)<0, 0, MIN(Vin, -P41/(Coss_Q1+Coss_Q2)*0.00000002)) -> 0 | R41: 5.76467723 | S41: =R41^2*Rdcr -> 0.1329260143 | T41: =Core_Loss_Ch1 -> 0.3 | U41: =(T41+S41*(1+Ltc*(Ta-25)))/(1-S41*Ltc*ThetaCa) -> 0.4375792677 | V41: 1.368029082 | W41: 0.003743007139 | X41: 0.003743007139 | Y41: 2.659307149 | Z41: 0.2121574353 | AA41: 0.2121574353 | AB41: 3.194830363 | AC41: =Rdson1*AB41^2 -> 0.0612416463 | AD41: =(Vin*K41/2)*Fsw*(Tr_buck+Tf_buck) -> 1.131866914 | AE41: =(0.5*Coss_Q1*(Vin-Q41)^2-0.5*Coss_Q2*(Vin-Q41)^2+(Qoss_Q2*(Vin-Q41)/Vin)*Vin)*Fsw -> -0.6933157 | AF41: =IF(K41>N41/2,0,ABS(K41-N41/2)*Vsd_Q1*Deadtime*Fsw) -> 0 | AG41: =(AF41+AE41+AD41+AC41*(1+RdsonTopTc*Ta-RdsonTopTc*25))/(1-AC41*RdsonTopTc*ThetaJA_Q1) -> 0.5059903974 | AH41: =SQRT((1-M41))*SQRT(K41^2+(N41^2)/12) -> 4.79839166 | AI41: =Rdson2*AH41^2 -> 0.0575614063 | AJ41: =IF(K41<N41/2,Deadtime*Fsw*IF(VfdSky_Q2>0,0,Vsd_Q2)*(K41+N41/2),2*Deadtime*Fsw*IF(VfdSky_Q2>0,0,Vsd_Q2)*K41) -> 0.241472 | AK41: =(AJ41+AI41*(1+RdsonBotTc*Ta-RdsonBotTc*25))/(1-AI41*RdsonBotTc*ThetaJA_Q2) -> 0.3016728427 | AL41: =2*Deadtime*Fsw*IF(VfdSky_Q2>0,VfdSky_Q2,Vsd_Q2)*K41 -> 0.241472 | AM41: =IF(QrrSky_Q2>0,QrrSky_Q2,Qrr_Q2*K41/(Iout/Number_of_Phases))*Fsw*Vin -> 2.06976 | AN41: =CHOOSE(SENSING_TYPE, Rs*R41^2, 0) -> 0.06646300714 | AO41: =Iq*Vin -> 0.001715 | AP41: =IF(Ext_VCC=1, (Qg_Q1+Qg_Q2)*Fsw*VCC, (Qg_Q1+Qg_Q2)*Fsw*Vin) -> 0.363 | AQ41: 3.4122 | AR41: =(Qg_Q1+Qg_Q2)*Fsw*(Vin-VCC) -> 3.1944 | AS41: =SUM(AO41:AP41) -> 0.364715 | AT41: =SUM(U41,X41,AA41,AG41,AK41,AL41,AM41,AS41,AN41) -> 4.203552957 | AU41: =Vout*K41 -> 84 | AV41: 0.9523425892 | AW41: =ThetaJA_Q1*BC41 -> 93.60159987 | AX41: =ThetaJA_Q2*BD41 -> 37.41835842 | AZ41: 95.23425892 | BA41: =U41 -> 0.4375792677 | BB41: =AG41+AK41+AM41 -> 2.87742324 | BC41: =AG41+AM41*0.66 -> 1.872031997 | BD41: =AK41+AM41*0.33 -> 0.9846936427 | BE41: =AN41 -> 0.06646300714
A42: RGateTop | B42: =Rgate1 -> 0.5 | C42: W | D42: Gate Resistance | G42: 33 | H42: 49 | I42: 2 | J42: =Iout*G42/100 -> 23.1 | K42: 5.775 | L42: 1.964285714 | M42: 0.3071785395 | N42: 4.739241264 | O42: 8.144620632 | P42: 3.405379368 | Q42: 0 | R42: 5.934839985 | S42: 0.1408893026 | T42: 0.3 | U42: 0.445915278 | V42: 1.36810111 | W42: 0.003743401293 | X42: 0.003743401293 | Y42: 2.737884452 | Z42: 0.2248803381 | AA42: 0.2248803381 | AB42: 3.289307305 | AC42: 0.06491725529 | AD42: 1.167237755 | AE42: -0.6933157 | AF42: 0 | AG42: 0.5459273312 | AH42: 4.939917317 | AI42: 0.06100695774 | AJ42: 0.249018 | AK42: 0.3129267455 | AL42: 0.249018 | AM42: 2.13444 | AN42: 0.07044465129 | AO42: 0.001715 | AP42: 0.363 | AQ42: 3.4122 | AR42: 3.1944 | AS42: 0.364715 | AT42: 4.352010745 | AU42: 86.625 | AV42: 0.9521636212 | AW42: 97.73288656 | AX42: 38.65709393 | AZ42: 95.21636212 | BA42: 0.445915278 | BB42: 2.993294077 | BC42: 1.954657731 | BD42: 1.017291945 | BE42: 0.07044465129
A43: GfsTop | B43: =Gfs_Q1 -> 64 | C43: S | D43: Transconductance of Top FET | G43: 34 | H43: 49 | I43: 2 | J43: 23.8 | K43: 5.95 | L43: 2.023809524 | M43: 0.307210548 | N43: 4.73949073 | O43: 8.319745365 | P43: 3.580254635 | Q43: 0 | R43: 6.105276218 | S43: 0.1490975908 | T43: 0.3 | U43: 0.4545190059 | V43: 1.368173124 | W43: 0.003743795397 | X43: 0.003743795397 | Y43: 2.816592459 | Z43: 0.2379957924 | AA43: 0.2379957924 | AB43: 3.383945647 | AC43: 0.06870652887 | AD43: 1.202608596 | AE43: -0.6933157 | AF43: 0 | AG43: 0.5860525524 | AH43: 5.081664054 | AI43: 0.06455827388 | AJ43: 0.256564 | AK43: 0.324304629 | AL43: 0.256564 | AM43: 2.19912 | AN43: 0.0745487954 | AO43: 0.001715 | AP43: 0.363 | AQ43: 3.4122 | AR43: 3.1944 | AS43: 0.364715 | AT43: 4.501563571 | AU43: 89.25 | AV43: 0.9519841227 | AW43: 101.8735876 | AX43: 39.9005407 | AZ43: 95.19841227 | BA43: 0.4545190059 | BB43: 3.109477181 | BC43: 2.037471752 | BD43: 1.050014229 | BE43: 0.0745487954
A44: VthTop | B44: =Vth_Q1 -> 2.9 | C44: V | D44: Threshold Voltage of Top FET | G44: 35 | H44: 49 | I44: 2 | J44: 24.5 | K44: 6.125 | L44: 2.083333333 | M44: 0.307242557 | N44: 4.73974015 | O44: 8.494870075 | P44: 3.755129925 | Q44: 0 | R44: 6.275963649 | S44: 0.1575508789 | T44: 0.3 | U44: 0.4633914979 | V44: 1.368245126 | W44: 0.003744189448 | X44: 0.003744189448 | Y44: 2.895420901 | Z44: 0.2515038659 | AA44: 0.2515038659 | AB44: 3.478733063 | AC44: 0.07260950232 | AD44: 1.237979437 | AE44: -0.6933157 | AF44: 0 | AG44: 0.6263693124 | AH44: 5.223613309 | AI44: 0.06821534001 | AJ44: 0.26411 | AK44: 0.3358072351 | AL44: 0.26411 | AM44: 2.2638 | AN44: 0.07877543945 | AO44: 0.001715 | AP44: 0.363 | AQ44: 3.4122 | AR44: 3.1944 | AS44: 0.364715 | AT44: 4.65221654 | AU44: 91.875 | AV44: 0.9518040952 | AW44: 106.0238656 | AX44: 41.14872693 | AZ44: 95.18040952 | BA44: 0.4633914979 | BB44: 3.225976548 | BC44: 2.120477312 | BD44: 1.082861235 | BE44: 0.07877543945
A45: VspTop | B45: =Vsp_Q1 -> 3.1734375 | C45: V | G45: 36 | H45: 49 | I45: 2 | J45: 25.2 | K45: 6.3 | L45: 2.142857143 | M45: 0.3072745662 | N45: 4.739989524 | O45: 8.669994762 | P45: 3.930005238 | Q45: 0 | R45: 6.446882326 | S45: 0.1662491669 | T45: 0.3 | U45: 0.4725338354 | V45: 1.368317114 | W45: 0.003744583449 | X45: 0.003744583449 | Y45: 2.974360582 | Z45: 0.2654046261 | AA45: 0.2654046261 | AB45: 3.573658512 | AC45: 0.07662621096 | AD45: 1.273350278 | AE45: -0.6933157 | AF45: 0 | AG45: 0.6668809006 | AH45: 5.365748463 | AI45: 0.07197814141 | AJ45: 0.271656 | AK45: 0.3474353192 | AL45: 0.271656 | AM45: 2.32848 | AN45: 0.08312458345 | AO45: 0.001715 | AP45: 0.363 | AQ45: 3.4122 | AR45: 3.1944 | AS45: 0.364715 | AT45: 4.803974848 | AU45: 94.5 | AV45: 0.9516235392 | AW45: 110.183885 | AX45: 42.40168133 | AZ45: 95.16235392 | BA45: 0.4725338354 | BB45: 3.34279622 | BC45: 2.203677701 | BD45: 1.115833719 | BE45: 0.08312458345
A46: VsdTop | B46: =Vsd_Q1 -> 0.7 | C46: V | G46: 37 | H46: 49 | I46: 2 | J46: 25.9 | K46: 6.475 | L46: 2.202380952 | M46: 0.3073065758 | N46: 4.740238853 | O46: 8.845119427 | P46: 4.104880573 | Q46: 0 | R46: 6.618014332 | S46: 0.1751924548 | T46: 0.3 | U46: 0.4819471349 | V46: 1.368389089 | W46: 0.003744977398 | X46: 0.003744977398 | Y46: 3.053403243 | Z46: 0.2796981409 | AA46: 0.2796981409 | AB46: 3.668712083 | AC46: 0.08075669009 | AD46: 1.308721119 | AE46: -0.6933157 | AF46: 0 | AG46: 0.7075906452 | AH46: 5.508054589 | AI46: 0.07584666338 | AJ46: 0.279202 | AK46: 0.3591896505 | AL46: 0.279202 | AM46: 2.39316 | AN46: 0.0875962274 | AO46: 0.001715 | AP46: 0.363 | AQ46: 3.4122 | AR46: 3.1944 | AS46: 0.364715 | AT46: 4.956843776 | AU46: 97.125 | AV46: 0.9514424545 | AW46: 114.3538123 | AX46: 43.65943312 | AZ46: 95.14424545 | BA46: 0.4819471349 | BB46: 3.459940296 | BC46: 2.287076245 | BD46: 1.148932451 | BE46: 0.0875962274
A47: θJATop | B47: =ThetaJA_Q1 -> 50 | C47: °C/W | D47: Junction to Ambient Resistance | G47: 38 | H47: 49 | I47: 2 | J47: 26.6 | K47: 6.65 | L47: 2.261904762 | M47: 0.3073385858 | N47: 4.740488136 | O47: 9.020244068 | P47: 4.279755932 | Q47: 0 | R47: 6.789343536 | S47: 0.1843807426 | T47: 0.3 | U47: 0.4916325485 | V47: 1.368461051 | W47: 0.003745371295 | X47: 0.003745371295 | Y47: 3.132541448 | Z47: 0.2943844778 | AA47: 0.2943844778 | AB47: 3.76388485 | AC47: 0.085000975 | AD47: 1.34409196 | AE47: -0.6933157 | AF47: 0 | AG47: 0.748501914 | AH47: 5.650518249 | AI47: 0.0798208912 | AJ47: 0.286748 | AK47: 0.3710710125 | AL47: 0.286748 | AM47: 2.45784 | AN47: 0.0921903713 | AO47: 0.001715 | AP47: 0.363 | AQ47: 3.4122 | AR47: 3.1944 | AS47: 0.364715 | AT47: 5.110828695 | AU47: 99.75 | AV47: 0.9512608401 | AW47: 118.5338157 | AX47: 44.92201207 | AZ47: 95.12608401 | BA47: 0.4916325485 | BB47: 3.577412926 | BC47: 2.370676314 | BD47: 1.182158212 | BE47: 0.0921903713
A48: Low-side FET | B48: Input Value | C48: Units | D48: Description | G48: 39 | H48: 49 | I48: 2 | J48: 27.3 | K48: 6.825 | L48: 2.321428571 | M48: 0.3073705961 | N48: 4.740737374 | O48: 9.195368687 | P48: 4.454631313 | Q48: 0 | R48: 6.960855376 | S48: 0.1938140303 | T48: 0.3 | U48: 0.5015912642 | V48: 1.368532999 | W48: 0.003745765141 | X48: 0.003745765141 | Y48: 3.211768487 | Z48: 0.3094637044 | AA48: 0.3094637044 | AB48: 3.859168758 | AC48: 0.08935910102 | AD48: 1.379462802 | AE48: -0.6933157 | AF48: 0 | AG48: 0.7896181156 | AH48: 5.793127313 | AI48: 0.08390081017 | AJ48: 0.294294 | AK48: 0.3830802026 | AL48: 0.294294 | AM48: 2.52252 | AN48: 0.09690701514 | AO48: 0.001715 | AP48: 0.363 | AQ48: 3.4122 | AR48: 3.1944 | AS48: 0.364715 | AT48: 5.265935067 | AU48: 102.375 | AV48: 0.9510786945 | AW48: 122.7240658 | AX48: 46.1894485 | AZ48: 95.10786945 | BA48: 0.5015912642 | BB48: 3.695218318 | BC48: 2.454481316 | BD48: 1.215511803 | BE48: 0.09690701514
A49: RdsonBot | B49: =Rdson2*1000 -> 2.5 | C49: mW | D49: Drain-Source Resistance of Low-side FET | G49: 40 | H49: 49 | I49: 2 | J49: 28 | K49: 7 | L49: 2.380952381 | M49: 0.3074026067 | N49: 4.740986566 | O49: 9.370493283 | P49: 4.629506717 | Q49: 0 | R49: 7.132536678 | S49: 0.2034923179 | T49: 0.3 | U49: 0.5118245063 | V49: 1.368604935 | W49: 0.003746158936 | X49: 0.003746158936 | Y49: 3.291078284 | Z49: 0.3249358882 | AA49: 0.3249358882 | AB49: 3.954556516 | AC49: 0.09383110343 | AD49: 1.414833643 | AE49: -0.6933157 | AF49: 0 | AG49: 0.8309427001 | AH49: 5.935870806 | AI49: 0.08808640557 | AJ49: 0.30184 | AK49: 0.3952180326 | AL49: 0.30184 | AM49: 2.5872 | AN49: 0.1017461589 | AO49: 0.001715 | AP49: 0.363 | AQ49: 3.4122 | AR49: 3.1944 | AS49: 0.364715 | AT49: 5.422168445 | AU49: 105 | AV49: 0.9508960155 | AW49: 126.924735 | AX49: 47.46177324 | AZ49: 95.08960155 | BA49: 0.5118245063 | BB49: 3.813360733 | BC49: 2.5384947 | BD49: 1.248994033 | BE49: 0.1017461589
A50: RdsonBotTc | B50: =RdsonBotTc*1000000 -> 4000 | C50: ppm | D50: Drain To Source Resitance Temp Co | G50: 41 | H50: 49 | I50: 2 | J50: 28.7 | K50: 7.175 | L50: 2.44047619 | M50: 0.3074346177 | N50: 4.741235712 | O50: 9.545617856 | P50: 4.804382144 | Q50: 0 | R50: 7.304375493 | S50: 0.2134156054 | T50: 0.3 | U50: 0.5223335356 | V50: 1.368676857 | W50: 0.003746552679 | X50: 0.003746552679 | Y50: 3.370465334 | Z50: 0.340801097 | AA50: 0.340801097 | AB50: 4.050041513 | AC50: 0.09841701755 | AD50: 1.450204484 | AE50: -0.6933157 | AF50: 0 | AG50: 0.8724791606 | AH50: 6.078738774 | AI50: 0.0923776627 | AJ50: 0.309386 | AK50: 0.4074853291 | AL50: 0.309386 | AM50: 2.65188 | AN50: 0.1067078027 | AO50: 0.001715 | AP50: 0.363 | AQ50: 3.4122 | AR50: 3.1944 | AS50: 0.364715 | AT50: 5.579534478 | AU50: 107.625 | AV50: 0.9507128005 | AW50: 131.135998 | AX50: 48.73901771 | AZ50: 95.07128005 | BA50: 0.5223335356 | BB50: 3.93184449 | BC50: 2.622719961 | BD50: 1.282605729 | BE50: 0.1067078027
A51: QgBot | B51: =Qg_Q2*1000000000 -> 25 | C51: nC | D51: Gate Charge Of Top FET | G51: 42 | H51: 49 | I51: 2 | J51: 29.4 | K51: 7.35 | L51: 2.5 | M51: 0.307466629 | N51: 4.741484813 | O51: 9.720742406 | P51: 4.979257594 | Q51: 0 | R51: 7.476360959 | S51: 0.2235838927 | T51: 0.3 | U51: 0.5331196501 | V51: 1.368748766 | W51: 0.003746946371 | X51: 0.003746946371 | Y51: 3.449924627 | Z51: 0.357059398 | AA51: 0.357059398 | AB51: 4.14561774 | AC51: 0.1031168787 | AD51: 1.485575325 | AE51: -0.6933157 | AF51: 0 | AG51: 0.9142310335 | AH51: 6.221722168 | AI51: 0.09677456684 | AJ51: 0.316932 | AK51: 0.4198829332 | AL51: 0.316932 | AM51: 2.71656 | AN51: 0.1117919464 | AO51: 0.001715 | AP51: 0.363 | AQ51: 3.4122 | AR51: 3.1944 | AS51: 0.364715 | AT51: 5.738038908 | AU51: 110.25 | AV51: 0.9505290463 | AW51: 135.3580317 | AX51: 50.02121386 | AZ51: 95.05290463 | BA51: 0.5331196501 | BB51: 4.050673967 | BC51: 2.707160634 | BD51: 1.316347733 | BE51: 0.1117919464
A52: RGateBot | B52: =Rgate2 -> 0.5 | C52: W | D52: Gate Resistance | G52: 43 | H52: 49 | I52: 2 | J52: 30.1 | K52: 7.525 | L52: 2.55952381 | M52: 0.3074986406 | N52: 4.741733868 | O52: 9.895866934 | P52: 5.154133066 | Q52: 0 | R52: 7.648483183 | S52: 0.23399718 | T52: 0.3 | U52: 0.5441841852 | V52: 1.368820662 | W52: 0.003747340012 | X52: 0.003747340012 | Y52: 3.529451605 | Z52: 0.373710859 | AA52: 0.373710859 | AB52: 4.241279723 | AC52: 0.1079307222 | AD52: 1.520946166 | AE52: -0.6933157 | AF52: 0 | AG52: 0.9562019003 | AH52: 6.364812748 | AI52: 0.1012771033 | AJ52: 0.324478 | AK52: 0.4324117008 | AL52: 0.324478 | AM52: 2.78124 | AN52: 0.11699859 | AO52: 0.001715 | AP52: 0.363 | AQ52: 3.4122 | AR52: 3.1944 | AS52: 0.364715 | AT52: 5.897687575 | AU52: 112.875 | AV52: 0.9503447493 | AW52: 139.591015 | AX52: 51.30839423 | AZ52: 95.03447493 | BA52: 0.5441841852 | BB52: 4.169853601 | BC52: 2.7918203 | BD52: 1.350220901 | BE52: 0.11699859
A53: VsdBot | B53: =Vsd_Q2 -> 0.7 | C53: V | D53: Diode Forward Voltage of Bottom FET Body Diode | G53: 44 | H53: 49 | I53: 2 | J53: 30.8 | K53: 7.7 | L53: 2.619047619 | M53: 0.3075306526 | N53: 4.741982877 | O53: 10.07099144 | P53: 5.329008562 | Q53: 0 | R53: 7.820733137 | S53: 0.2446554672 | T53: 0.3 | U53: 0.5555285143 | V53: 1.368892545 | W53: 0.003747733601 | X53: 0.003747733601 | Y53: 3.609042105 | Z53: 0.3907555474 | AA53: 0.3907555474 | AB53: 4.337022466 | AC53: 0.1128585832 | AD53: 1.556317007 | AE53: -0.6933157 | AF53: 0 | AG53: 0.9983953879 | AH53: 6.508002991 | AI53: 0.1058852573 | AJ53: 0.332024 | AK53: 0.445072503 | AL53: 0.332024 | AM53: 2.84592 | AN53: 0.1223277336 | AO53: 0.001715 | AP53: 0.363 | AQ53: 3.4122 | AR53: 3.1944 | AS53: 0.364715 | AT53: 6.05848642 | AU53: 115.5 | AV53: 0.9501599058 | AW53: 143.8351294 | AX53: 52.60059191 | AZ53: 95.01599058 | BA53: 0.5555285143 | BB53: 4.289387891 | BC53: 2.876702588 | BD53: 1.384226103 | BE53: 0.1223277336
A54: QrrBot | B54: =Qrr_Q2*1000000000 -> 60 | C54: nC | D54: Reverse Recovery Charge of Body Diode | G54: 45 | H54: 49 | I54: 2 | J54: 31.5 | K54: 7.875 | L54: 2.678571429 | M54: 0.307562665 | N54: 4.742231841 | O54: 10.24611592 | P54: 5.50388408 | Q54: 0 | R54: 7.993102562 | S54: 0.2555587543 | T54: 0.3 | U54: 0.5671540489 | V54: 1.368964415 | W54: 0.003748127138 | X54: 0.003748127138 | Y54: 3.688692319 | Z54: 0.4081935307 | AA54: 0.4081935307 | AB54: 4.4328414 | AC54: 0.1179004973 | AD54: 1.591687848 | AE54: -0.6933157 | AF54: 0 | AG54: 1.04081517 | AH54: 6.651286018 | AI54: 0.1105990142 | AJ54: 0.33957 | AK54: 0.4578662263 | AL54: 0.33957 | AM54: 2.9106 | AN54: 0.1277793771 | AO54: 0.001715 | AP54: 0.363 | AQ54: 3.4122 | AR54: 3.1944 | AS54: 0.364715 | AT54: 6.220441481 | AU54: 118.125 | AV54: 0.9499745113 | AW54: 148.0905585 | AX54: 53.8978406 | AZ54: 94.99745113 | BA54: 0.5671540489 | BB54: 4.409281397 | BC54: 2.96181117 | BD54: 1.418364226 | BE54: 0.1277793771
A55: TrrBot | B55: =Trr_Q2*1000000000 -> 40 | C55: ns | D55: Reverse Recovery Time of Body Diode | G55: 46 | H55: 49 | I55: 2 | J55: 32.2 | K55: 8.05 | L55: 2.738095238 | M55: 0.3075946777 | N55: 4.742480759 | O55: 10.42124038 | P55: 5.678759621 | Q55: 0 | R55: 8.165583893 | S55: 0.2667070412 | T55: 0.3 | U55: 0.5790622394 | V55: 1.369036271 | W55: 0.003748520624 | X55: 0.003748520624 | Y55: 3.768398759 | Z55: 0.4260248763 | AA55: 0.4260248763 | AB55: 4.528732339 | AC55: 0.1230564996 | AD55: 1.627058689 | AE55: -0.6933157 | AF55: 0 | AG55: 1.08346497 | AH55: 6.794655526 | AI55: 0.1154183593 | AJ55: 0.347116 | AK55: 0.4707937725 | AL55: 0.347116 | AM55: 2.97528 | AN55: 0.1333535206 | AO55: 0.001715 | AP55: 0.363 | AQ55: 3.4122 | AR55: 3.1944 | AS55: 0.364715 | AT55: 6.383558899 | AU55: 120.75 | AV55: 0.9497885613 | AW55: 152.3574885 | AX55: 55.20017455 | AZ55: 94.97885613 | BA55: 0.5790622394 | BB55: 4.529538742 | BC55: 3.04714977 | BD55: 1.452636172 | BE55: 0.1333535206
A56: θJABot | B56: =ThetaJA_Q2 -> 38 | C56: °C/W | D56: Junction to Ambient Resistance | G56: 47 | H56: 49 | I56: 2 | J56: 32.9 | K56: 8.225 | L56: 2.797619048 | M56: 0.3076266907 | N56: 4.742729631 | O56: 10.59636482 | P56: 5.853635184 | Q56: 0 | R56: 8.338170185 | S56: 0.2781003281 | T56: 0.3 | U56: 0.5912545754 | V56: 1.369108115 | W56: 0.003748914059 | X56: 0.003748914059 | Y56: 3.848158224 | Z56: 0.4442496516 | AA56: 0.4442496516 | AB56: 4.624691439 | AC56: 0.1283266254 | AD56: 1.66242953 | AE56: -0.6933157 | AF56: 0 | AG56: 1.126348557 | AH56: 6.93810573 | AI56: 0.1203432778 | AJ56: 0.354662 | AK56: 0.4838560591 | AL56: 0.354662 | AM56: 3.03996 | AN56: 0.1390501641 | AO56: 0.001715 | AP56: 0.363 | AQ56: 3.4122 | AR56: 3.1944 | AS56: 0.364715 | AT56: 6.547844922 | AU56: 123.375 | AV56: 0.9496020509 | AW56: 156.6361079 | AX56: 56.50762865 | AZ56: 94.96020509 | BA56: 0.5912545754 | BB56: 4.650164616 | BC56: 3.132722157 | BD56: 1.487042859 | BE56: 0.1390501641
A57: Bottom Schottky | B57: Input Value | C57: Units | D57: Std Units | G57: 48 | H57: 49 | I57: 2 | J57: 33.6 | K57: 8.4 | L57: 2.857142857 | M57: 0.3076587041 | N57: 4.742978458 | O57: 10.77148923 | P57: 6.028510771 | Q57: 0 | R57: 8.510855052 | S57: 0.2897386149 | T57: 0.3 | U57: 0.6037325864 | V57: 1.369179945 | W57: 0.003749307442 | X57: 0.003749307442 | Y57: 3.92796777 | Z57: 0.4628679241 | AA57: 0.4628679241 | AB57: 4.720715168 | AC57: 0.1337109102 | AD57: 1.697800371 | AE57: -0.6933157 | AF57: 0 | AG57: 1.169469754 | AH57: 7.081631311 | AI57: 0.1253737551 | AJ57: 0.362208 | AK57: 0.4970540195 | AL57: 0.362208 | AM57: 3.10464 | AN57: 0.1448693074 | AO57: 0.001715 | AP57: 0.363 | AQ57: 3.4122 | AR57: 3.1944 | AS57: 0.364715 | AT57: 6.713305899 | AU57: 126 | AV57: 0.949414975 | AW57: 160.9266077 | AX57: 57.82023834 | AZ57: 94.9414975 | BA57: 0.6037325864 | BB57: 4.771163774 | BC57: 3.218532154 | BD57: 1.521585219 | BE57: 0.1448693074
A58: VfdSky | B58: =VfdSky_Q2 -> 0 | C58: V | D58: Diode Forward Voltage | G58: 49 | H58: 49 | I58: 2 | J58: 34.3 | K58: 8.575 | L58: 2.916666667 | M58: 0.3076907178 | N58: 4.743227239 | O58: 10.94661362 | P58: 6.20338638 | Q58: 0 | R58: 8.683632615 | S58: 0.3016219015 | T58: 0.3 | U58: 0.6164978417 | V58: 1.369251762 | W58: 0.003749700774 | X58: 0.003749700774 | Y58: 4.007824685 | Z58: 0.4818797612 | AA58: 0.4818797612 | AB58: 4.816800271 | AC58: 0.1392093891 | AD58: 1.733171212 | AE58: -0.6933157 | AF58: 0 | AG58: 1.212832434 | AH58: 7.225227369 | AI58: 0.1305097763 | AJ58: 0.369754 | AK58: 0.5103886031 | AL58: 0.369754 | AM58: 3.16932 | AN58: 0.1508109508 | AO58: 0.001715 | AP58: 0.363 | AQ58: 3.4122 | AR58: 3.1944 | AS58: 0.364715 | AT58: 6.879948291 | AU58: 128.625 | AV58: 0.949227328 | AW58: 165.2291817 | AX58: 59.13803972 | AZ58: 94.9227328 | BA58: 0.6164978417 | BB58: 4.892541037 | BC58: 3.304583634 | BD58: 1.556264203 | BE58: 0.1508109508
A59: QrrSky | B59: =QrrSky_Q2*1000000000 -> 0 | C59: nC | D59: Diode Reverse Recovery Charge | G59: 50 | H59: 49 | I59: 2 | J59: 35 | K59: 8.75 | L59: 2.976190476 | M59: 0.3077227319 | N59: 4.743475975 | O59: 11.12173799 | P59: 6.378262013 | Q59: 0 | R59: 8.856497447 | S59: 0.3137501881 | T59: 0.3 | U59: 0.6295519516 | V59: 1.369323565 | W59: 0.003750094054 | X59: 0.003750094054 | Y59: 4.087726467 | Z59: 0.5012852301 | AA59: 0.5012852301 | AB59: 4.912943746 | AC59: 0.1448220975 | AD59: 1.768542053 | AE59: -0.6933157 | AF59: 0 | AG59: 1.256440521 | AH59: 7.368889386 | AI59: 0.1357513269 | AJ59: 0.3773 | AK59: 0.5238607758 | AL59: 0.3773 | AM59: 3.234 | AN59: 0.1568750941 | AO59: 0.001715 | AP59: 0.363 | AQ59: 3.4122 | AR59: 3.1944 | AS59: 0.364715 | AT59: 7.047778667 | AU59: 131.25 | AV59: 0.9490391044 | AW59: 169.5440261 | AX59: 60.46106948 | AZ59: 94.90391044 | BA59: 0.6295519516 | BB59: 5.014301297 | BC59: 3.390880521 | BD59: 1.591080776 | BE59: 0.1568750941
A60: Ireverse | B60: =Ireverse -> 0 | C60: mA | D60: Reverse Leakage Current | G60: 51 | H60: 49 | I60: 2 | J60: 35.7 | K60: 8.925 | L60: 3.035714286 | M60: 0.3077547463 | N60: 4.743724664 | O60: 11.29686233 | P60: 6.553137668 | Q60: 0 | R60: 9.029444537 | S60: 0.3261234746 | T60: 0.3 | U60: 0.6428965676 | V60: 1.369395356 | W60: 0.003750487282 | X60: 0.003750487282 | Y60: 4.167670806 | Z60: 0.5210843984 | AA60: 0.5210843984 | AB60: 5.00914282 | AC60: 0.1505490707 | AD60: 1.803912894 | AE60: -0.6933157 | AF60: 0 | AG60: 1.300297996 | AH60: 7.512613184 | AI60: 0.1410983921 | AJ60: 0.384846 | AK60: 0.53747152 | AL60: 0.384846 | AM60: 3.29868 | AN60: 0.1630617373 | AO60: 0.001715 | AP60: 0.363 | AQ60: 3.4122 | AR60: 3.1944 | AS60: 0.364715 | AT60: 7.216803707 | AU60: 133.875 | AV60: 0.9488502981 | AW60: 173.8713398 | AX60: 61.78936496 | AZ60: 94.88502981 | BA60: 0.6428965676 | BB60: 5.136449516 | BC60: 3.477426796 | BD60: 1.62603592 | BE60: 0.1630617373
A61: Controller | B61: Input Value | C61: Units | D61: Std Units | G61: 52 | H61: 49 | I61: 2 | J61: 36.4 | K61: 9.1 | L61: 3.095238095 | M61: 0.307786761 | N61: 4.743973309 | O61: 11.47198665 | P61: 6.728013346 | Q61: 0 | R61: 9.202469246 | S61: 0.3387417609 | T61: 0.3 | U61: 0.6565333829 | V61: 1.369467133 | W61: 0.003750880459 | X61: 0.003750880459 | Y61: 4.247655562 | Z61: 0.5412773332 | AA61: 0.5412773332 | AB61: 5.105394926 | AC61: 0.1563903441 | AD61: 1.839283735 | AE61: -0.6933157 | AF61: 0 | AG61: 1.344408893 | AH61: 7.656394901 | AI61: 0.1465509572 | AJ61: 0.392392 | AK61: 0.5512218345 | AL61: 0.392392 | AM61: 3.36336 | AN61: 0.1693708805 | AO61: 0.001715 | AP61: 0.363 | AQ61: 3.4122 | AR61: 3.1944 | AS61: 0.364715 | AT61: 7.387030205 | AU61: 136.5 | AV61: 0.948660903 | AW61: 178.2113247 | AX61: 63.12296411 | AZ61: 94.8660903 | BA61: 0.6565333829 | BB61: 5.258990728 | BC61: 3.564226493 | BD61: 1.661130634 | BE61: 0.1693708805
A62: θJA | B62: 30 | C62: °C/W | D62: Junction to Ambient Resistance | G62: 53 | H62: 49 | I62: 2 | J62: 37.1 | K62: 9.275 | L62: 3.154761905 | M62: 0.3078187761 | N62: 4.744221907 | O62: 11.64711095 | P62: 6.902889046 | Q62: 0 | R62: 9.375567278 | S62: 0.3516050472 | T62: 0.3 | U62: 0.670464133 | V62: 1.369538898 | W62: 0.003751273584 | X62: 0.003751273584 | Y62: 4.327678754 | Z62: 0.561864102 | AA62: 0.561864102 | AB62: 5.201697687 | AC62: 0.1623459529 | AD62: 1.874654576 | AE62: -0.6933157 | AF62: 0 | AG62: 1.388777304 | AH62: 7.800230956 | AI62: 0.1521090074 | AJ62: 0.399938 | AK62: 0.5651127355 | AL62: 0.399938 | AM62: 3.42804 | AN62: 0.1758025236 | AO62: 0.001715 | AP62: 0.363 | AQ62: 3.4122 | AR62: 3.1944 | AS62: 0.364715 | AT62: 7.558465072 | AU62: 139.125 | AV62: 0.9484709127 | AW62: 182.5641852 | AX62: 64.46190555 | AZ62: 94.84709127 | BA62: 0.670464133 | BB62: 5.38193004 | BC62: 3.651283704 | BD62: 1.696365935 | BE62: 0.1758025236
A63: Theta Ja | B63: 2 | C63: °C/W | D63: Junction to Ambient Resistance | G63: 54 | H63: 49 | I63: 2 | J63: 37.8 | K63: 9.45 | L63: 3.214285714 | M63: 0.3078507915 | N63: 4.74447046 | O63: 11.82223523 | P63: 7.07776477 | Q63: 0 | R63: 9.548734645 | S63: 0.3647133333 | T63: 0.3 | U63: 0.6846905965 | V63: 1.369610649 | W63: 0.003751666658 | X63: 0.003751666658 | Y63: 4.407738543 | Z63: 0.5828447719 | AA63: 0.5828447719 | AB63: 5.298048894 | AC63: 0.1684159325 | AD63: 1.910025418 | AE63: -0.6933157 | AF63: 0 | AG63: 1.433407378 | AH63: 7.944118028 | AI63: 0.1577725281 | AJ63: 0.407484 | AK63: 0.5791452562 | AL63: 0.407484 | AM63: 3.49272 | AN63: 0.1823566667 | AO63: 0.001715 | AP63: 0.363 | AQ63: 3.4122 | AR63: 3.1944 | AS63: 0.364715 | AT63: 7.731115336 | AU63: 141.75 | AV63: 0.9482803208 | AW63: 186.9301289 | AX63: 65.80622854 | AZ63: 94.82803208 | BA63: 0.6846905965 | BB63: 5.505272634 | BC63: 3.738602578 | BD63: 1.731742856 | BE63: 0.1823566667
G64: 55 | H64: 49 | I64: 2 | J64: 38.5 | K64: 9.625 | L64: 3.273809524 | M64: 0.3078828073 | N64: 4.744718967 | O64: 11.99735948 | P64: 7.252640516 | Q64: 0 | R64: 9.721967642 | S64: 0.3780666194 | T64: 0.3 | U64: 0.6992145952 | V64: 1.369682387 | W64: 0.00375205968 | X64: 0.00375205968 | Y64: 4.48783322 | Z64: 0.6042194103 | AA64: 0.6042194103 | AB64: 5.394446499 | AC64: 0.1746003182 | AD64: 1.945396259 | AE64: -0.6933157 | AF64: 0 | AG64: 1.478303323 | AH64: 8.08805303 | AI64: 0.1635415045 | AJ64: 0.41503 | AK64: 0.5933204474 | AL64: 0.41503 | AM64: 3.5574 | AN64: 0.1890333097 | AO64: 0.001715 | AP64: 0.363 | AQ64: 3.4122 | AR64: 3.1944 | AS64: 0.364715 | AT64: 7.904988145 | AU64: 144.375 | AV64: 0.9480891203 | AW64: 191.3093661 | AX64: 67.155973 | AZ64: 94.80891203 | BA64: 0.6992145952 | BB64: 5.62902377 | BC64: 3.826187323 | BD64: 1.767262447 | BE64: 0.1890333097
